Workbook

Sheet Wizard
A1: Scanning
T2: 0

Sheet Report
A1: ProShares UltraPro QQQ (TQQQ)
B3: =HYPERLINK("http://www.signalsolver.com/help#StrategyTable", "Strategy") -> Strategy | D3: A.Ret | E3: Comp | F3: =CHOOSE(Analysis!B539, "R/R", "Eff", "R/R", "FOM") -> R/R | H3: =IF(AND(Webquery!$BI$1=FALSE, Webquery!$BJ$1=FALSE),"Symbol Error", UPPER(Stocksymbol)&" "&DataInterval&" "&VBA_TXT(InvestmentYears, "#0.0")& "yrs") -> TQQQ Daily 0.8yrs | J3: =Analysis!$R$2&" at "&VBA_TXT(Analysis!$B$537,"#0.0#%")&BuyBandName&","&VBA_TXT(Analysis!$B$538,"#0.0#%")&SellBandName -> BLS BCS at 1.95%PB,2.97%PB | M3: Buy/Hold | P3: =IF(P4="","No ","")&"Messages" -> Messages | T3: =NOW() -> 2023-11-21T12:14:49.460
B4: =IF(Strategy!V5<>"", Strategy!V2, "") -> BLS BCS | D4: =IF(Strategy!V5<>"", Strategy!Y543, "") -> 11.10155127 | E4: Y | F4: =IF(Strategy!V5<>"", CHOOSE(Analysis!B539, Strategy!Y549, Strategy!Y545, Strategy!Y549,Strategy!Y550), "") -> 47.2047127 | H4: =VBA_TXT(Strategy!$C$539, DateFormat1)&"-"&VBA_TXT(Trades!$C$108, DateFormat1) -> 02/03/23-11/17/23 | J4: Long | K4: Short | L4: =IF(Style = "Long & Short", "L&S", Style) -> L&S | M4: Long | N4: Short | P4: =IF(Messaging!F13<>"", Messaging!F13, Messaging!D87) -> Returns have been adjusted for 3 dividends.
B5: =IF(Strategy!AJ5<>"", Strategy!AJ2, "") -> BMS BYS | D5: =IF(Strategy!AJ5<>"", Strategy!AM543, "") -> 5.304117826 | E5: Y | F5: =IF(Strategy!AJ5<>"", CHOOSE(Analysis!B539, Strategy!AM549, Strategy!AM545, Strategy!AM549,Strategy!AM550), "") -> 19.23295602 | H5: ="Total Return on $" & VBA_TXT(Settings!$C$3/1000, "##")&"K" -> Total Return on $10K | J5: =Analysis!$W$563 -> 25646.50528 | K5: =Analysis!$X$563 -> 9932.559945 | L5: =Analysis!$Y$563 -> 61029.60461 | M5: =Analysis!$Z$563 -> 7196.985011 | N5: =Analysis!$AA$563 -> -7196.985011
B6: =IF(Strategy!AX5<>"", Strategy!AX2, "") -> BLS BCO | D6: =IF(Strategy!AX5<>"", Strategy!BA543,"") -> 4.264558308 | E6: Y | F6: =IF(Strategy!AX5<>"", CHOOSE(Analysis!B539, Strategy!BA549, Strategy!BA545, Strategy!BA549,Strategy!BA550),"") -> 14.11963954 | H6: Annualized Return | J6: =Analysis!$W$551 -> 4.035498533 | K6: =Analysis!$X$551 -> 1.404237877 | L6: =Analysis!$Y$551 -> 11.10155127 | M6: =Analysis!$Z$551 -> 0.9927042027 | N6: =Analysis!$AA$551 -> -0.8016177955
B7: =IF(Strategy!BL5<>"", Strategy!BL2, "") -> BPC BLC | D7: =IF(Strategy!BL5<>"",Strategy!BO543,"") -> 4.179728295 | E7: Y | F7: =IF(Strategy!BL5<>"", CHOOSE(Analysis!B539,Strategy!BO549, Strategy!BO545, Strategy!BO549,Strategy!BO550), "") -> 19.91595964 | H7: Efficiency | J7: =Analysis!$W$553 -> 6.987876247 | K7: =Analysis!$X$553 -> 3.404213034 | L7: =Analysis!$Y$553 -> 11.21368815 | M7: =Analysis!$Z$553 -> 0.9927042027 | N7: =Analysis!$AA$553 -> -0.8016177955
B8: =IF(Strategy!BZ5<>"", Strategy!BZ2, "") -> BAS AAS | D8: =IF(Strategy!BZ5<>"",Strategy!CC543, "") -> 4.173784528 | E8: Y | F8: =IF(Strategy!BZ5<>"",CHOOSE(Analysis!B539, Strategy!CC549, Strategy!CC545, Strategy!CC549,Strategy!CC550), "") -> 14.68999325 | H8: Reward/Risk | J8: =Analysis!$W$558 -> 24.86945695 | K8: =Analysis!$X$558 -> 6.033893232 | L8: =Analysis!$Y$558 -> 47.2047127 | M8: =Analysis!$Z$558 -> 2.671196418 | N8: =Analysis!$AA$558 -> -0.8517226421
B9: =IF(Strategy!CN5<>"", Strategy!CN2, "") -> MASO BCO | D9: =IF(Strategy!CN5<>"",Strategy!CQ543,"") -> 3.114705235 | E9: Y | F9: =IF(Strategy!CN5<>"",CHOOSE(Analysis!B539, Strategy!CQ549, Strategy!CQ545, Strategy!CQ549,Strategy!CQ550), "") -> 8.703344968 | H9: Figure of Merit | J9: =Analysis!$W$561 -> 659.1272621 | K9: =Analysis!$X$561 -> 61.53857975 | L9: =Analysis!$Y$561 -> 3094.376012 | M9: =Analysis!$Z$561 -> 19.01032401 | N9: =Analysis!$AA$561 -> 0
B10: =IF(Strategy!DB5<>"", Strategy!DB2, "") -> BPS ACS | D10: =IF(Strategy!DB5<>"",Strategy!DE543,"") -> 3.01703937 | E10: Y | F10: =IF(Strategy!DB5<>"",CHOOSE(Analysis!B539, Strategy!DE549, Strategy!DE545, Strategy!DE549,Strategy!DE550), "") -> 11.76964149 | H10: Drawdown | J10: =Analysis!$W$557 -> 0.1122672558 | K10: =Analysis!$X$557 -> 0.1827250123 | L10: =Analysis!$Y$557 -> 0.1851788759 | M10: =Analysis!$O$4 -> 0.3216327995 | N10: =Analysis!$Q$4 -> 0.891172344
B11: =IF(Strategy!DP5<>"", Strategy!DP2, "") -> BCS ACS | D11: =IF(Strategy!DP5<>"", Strategy!DS543, "") -> 2.835093938 | E11: Y | F11: =IF(Strategy!DP5<>"",CHOOSE(Analysis!B539, Strategy!DS549, Strategy!DS545, Strategy!DS549,Strategy!DS550), "") -> 11.05986205 | H11: =Analysis!$S$552 -> %Days in mkt | J11: =Analysis!$W$552 -> 0.5775 | K11: =Analysis!$X$552 -> 0.4125 | L11: =Analysis!$Y$552 -> 0.99 | M11: 1 | N11: 1
H12: Signals | J12: =Analysis!$W$554 & " buy" -> 49 buy | K12: =Analysis!$X$554 & " sell" -> 65 sell | L12: =Analysis!$Y$554 & " total" -> 114 total | M12: =Analysis!$Z$554 -> 0 | N12: =Analysis!$AA$554 -> 0
H13: Trades (Good/Total) | J13: =VBA_TXT(Analysis!W556, "##0") & " / " &VBA_TXT(Analysis!$W$555, "##0") -> 18 / 28 | K13: =VBA_TXT(Analysis!X556, "##0") & " / " &VBA_TXT(Analysis!$X$555, "##0") -> 25 / 29 | L13: =VBA_TXT(Analysis!Y556, "##0") & " / " &VBA_TXT(Analysis!$Y$555, "##0") -> 43 / 57 | M13: =Analysis!$Z$555 -> 1 | N13: =Analysis!$AA$555 -> 1
B15: Control Panel | H15: =CHOOSE(Trades!$C$151, Trades!$B$159, Trades!$B$152) -> BUY&COVER Signal | J15: =CHOOSE(Trades!$C$151, Trades!$C$159, Trades!$C$152) -> Price drops 1.95% or more below the previous day's low.
B16: =HYPERLINK("http://www.signalsolver.com/help#Symbol", "Symbol") -> Symbol | D16: TQQQ
H17: =CHOOSE(Trades!$C$151, Trades!$B$160, Trades!$B$153) -> SELL&SHORT Signal | J17: =CHOOSE(Trades!$C$151, Trades!$C$160, Trades!$C$153) -> Price drops 2.97% or more below the closing price of the previous day.
B18: ="Buy "&IF(BuyBandIndex<>0, "Pt. (%Band)", "Point") -> Buy Point | D18: 0.0195 | F18: PB
B19: ="Sell "&IF(SellBandIndex<>0, "Pt. (%Band)", "Point") -> Sell Point | D19: 0.0297 | F19: PB | H19: =CHOOSE(Trades!$C$151, Trades!$B$161, Trades!$B$154) -> Buy Strategy | J19: =CHOOSE(ActionButtonState, Trades!$C$161, Trades!$C$154) -> Prior to each day's open enter limit orders to both cover and buy at the signal price. If the trades execute, the next day switch to the sell strategy.
B20: =HYPERLINK("http://www.signalsolver.com/help#SellEqualsBuy", "Sell % = Buy %") -> Sell % = Buy % | D20: No
B21: =HYPERLINK("http://www.signalsolver.com/help#Style", "Style") -> Style | D21: Long & Short
B22: =HYPERLINK("http://www.signalsolver.com/help#StartResetTo", "Start/Reset To") -> Start/Reset To | D22: Out
B23: =HYPERLINK("http://www.signalsolver.com/help#ScanSeekLevel", "Scan/Seek Level") -> Scan/Seek Level | D23: Scan | F23: 5
B24: =HYPERLINK("http://www.signalsolver.com/help#Reset", "Reset") -> Reset | D24: No | G24: . | H24: =CHOOSE(Trades!$C$151, Trades!$B$162, Trades!$B$155) -> Sell Strategy | J24: =CHOOSE(Trades!$C$151, Trades!$C$162,Trades!$C$155) -> Prior to each day's open enter stop orders to both sell and short sell at the signal price. If the trades execute, the next day switch to the buy strategy.
B25: =HYPERLINK("http://www.signalsolver.com/help#DataInterval", "Data Interval") -> Data Interval | D25: Daily
B26: =HYPERLINK("http://www.signalsolver.com/help#BuyPointRange", "Buy Scan Range") -> Buy Scan Range | D26: -0.04 | E26: to | F26: 0.2
B27: =HYPERLINK("http://www.signalsolver.com/help#BuyPointRange", "Sell Scan Range") -> Sell Scan Range | D27: -0.04 | E27: to | F27: 0.2
B28: =HYPERLINK("http://www.signalsolver.com/help#DaysToAnalyze",IF(DataInterval="Monthly","Months",IF(DataInterval="Daily","Days","Weeks"))&" To Analyze") -> Days To Analyze | D28: 200 | E28: Offset | F28: 0
B29: =HYPERLINK("http://www.signalsolver.com/help#Optimize", "Optimize") -> Optimize | D29: Return | H29: Manual Price Update: | J29: Open: | K29: =StrategyOpen -> ? | L29: High: | M29: =StrategyHigh -> ? | N29: Low: | P29: =StrategyLow -> ? | Q29: Close: | R29: =StrategyClose -> ? | S29: =Trades!B24 -> Mon 11/20/2023
B100: =Messaging!C69 -> 801

Sheet Settings
B2: General Settings | E2: Scanning | H2: Bands
B3: Amount | C3: 10000 | E3: Algorithm seek | H3: =FirstBand -> BOL1
B4: Commission per Trade | C4: 0 | E4: M prefix (Misses) | F4: Yes | H4: Periods | I4: 50
B5: Slippage per Trade | C5: 0 | E5: O ref (Open) | F5: Yes | H5: Prices | I5: (H+L)/2
B6: Periods in Peak/Trough | C6: 10 | E6: H ref (High) | F6: Yes | H6: Scaler | I6: 10
B7: ="Delay in Peak/Trough (" & MonthWeekDayString & "s)" -> Delay in Peak/Trough (days) | C7: 0 | E7: L ref (Low) | F7: Yes | H7: ='Data Prep'!BR2 -> BOL2
B8: Use Div Adj Prices | C8: N | E8: B/S rf (last Buy/Sell) | F8: No | H8: Periods | I8: 7
B9: Days or Time | C9: %Days in mkt | E9: Y ref (Prev Open) | F9: Yes | H9: Prices | I9: (H+L)/2
B10: Trade Count Exit | C10: 500 | E10: M ref (MA) | F10: No | H10: Scaler | I10: 10
B11: Drawdown Exit | C11: 1 | E11: E ref (EMA) | F11: No | H11: ='Data Prep'!BS2 -> KEL
B12: Speech Alerts | C12: Yes | E12: A ref (Ave(HL)) | F12: Yes | H12: Periods | I12: 14
B13: Signals at Close Only | C13: No | E13: U ref (User Defined) | F13: No | H13: Prices | I13: True Range
B14: WebQuery End Date | E14: P ref (Peak) | F14: No | H14: Scaler | I14: 1
B15: WebQuery Start Date | E15: T ref (Trough) | F15: No | H15: ='Data Prep'!BT2 -> RSI1
B16: Price Jump Threshold | C16: 0.9 | E16: I suffix (Ignore Both) | F16: No | H16: Periods | I16: 40
B17: SMA Periods | C17: 10 | E17: A suffix (Sell & Buy) | F17: No | H17: Value | I17: 30
B18: SMA Prices | C18: (H+L)/2 | E18: Hypotheticals | F18: No | H18: Scaler | I18: 1
B19: EMA Periods | C19: 10 | E19: Assign Scan Level | F19: 4 | H19: ='Data Prep'!BU2 -> RSI2
B20: EMA Prices | C20: (H+L)/2 | E20: ="Clear Level " & AssignScanLevel & " At Start" -> Clear Level 4 At Start | F20: Yes | H20: Periods | I20: 40
B21: Process Unclosed Prices | C21: N | E21: Results Retained | F21: 50 | H21: Value | I21: 70
B22: Stop on Errors | C22: Yes | E22: Figure of Merit Weights | H22: Scaler | I22: 1
B23: Backtest Start Date | E23: Return | F23: 1 | H23: ='Data Prep'!BV2 -> TMTR
B24: Click to check for updates | E24: % Time In Market | F24: 0 | H24: Periods | I24: 20
E25: Max Drawdown | F25: 0 | H25: Value | I25: 0.2
E26: Ending Drawdown | F26: 0 | H26: Scaler | I26: 10
E27: Min QARet. | F27: 1 | H27: ='Data Prep'!BW2 -> SMA
E28: RecentQARet | F28: 0 | H28: Periods | I28: 20
E29: FOM Offset | F29: 0.05 | H29: Prices | I29: (H+L)/2
H30: Scaler | I30: 1
H31: ='Data Prep'!BX2 -> EMA
H32: Periods | I32: 10
H33: Prices | I33: (H+L)/2
H34: Scaler | I34: 1
H35: Donchian (UD and LD)
H36: Periods | I36: 20
H37: Scaler | I37: 1

Sheet Strategy
AC1: 0
V2: =IF(AD542="H", "", AD542)&AD543&AD544&AD545&IF(AD546="B", "", AD546)&" "&IF(AE542="H", "", AE542)&AE543&AE544&AE545&IF(AE546="S", "", AE546)&ResetString -> BLS BCS | AJ2: =IF(AR542="H", "", AR542)&AR543&AR544&AR545&IF(AR546="B", "", AR546)&" "&IF(AS542="H", "", AS542)&AS543&AS544&AS545&IF(AS546="S", "", AS546)&ResetString -> BMS BYS | AX2: =IF(BF542="H", "", BF542)&BF543&BF544&BF545&IF(BF546="B", "", BF546)&" "&IF(BG542="H", "", BG542)&BG543&BG544&BG545&IF(BG546="S", "", BG546)&ResetString -> BLS BCO | BL2: =IF(BT542="H", "", BT542)&BT543&BT544&BT545&IF(BT546="B", "", BT546)&" "&IF(BU542="H", "", BU542)&BU543&BU544&BU545&IF(BU546="S", "", BU546)&ResetString -> BPC BLC | BZ2: =IF(CH542="H", "", CH542)&CH543&CH544&CH545&IF(CH546="B", "", CH546)&" "&IF(CI542="H", "", CI542)&CI543&CI544&CI545&IF(CI546="S", "", CI546)&ResetString -> BAS AAS | CN2: =IF(CV542="H", "", CV542)&CV543&CV544&CV545&IF(CV546="B", "", CV546)&" "&IF(CW542="H", "", CW542)&CW543&CW544&CW545&IF(CW546="S", "", CW546)&ResetString -> MASO BCO | DB2: =IF(DJ542="H", "", DJ542)&DJ543&DJ544&DJ545&IF(DJ546="B", "", DJ546)&" "&IF(DK542="H", "", DK542)&DK543&DK544&DK545&IF(DK546="S", "", DK546)&ResetString -> BPS ACS | DP2: =IF(DX542="H", "", DX542)&DX543&DX544&DX545&IF(DX546="B", "", DX546)&" "&IF(DY542="H", "", DY542)&DY543&DY544&DY545&IF(DY546="S", "", DY546)&ResetString -> BCS ACS
V3: STRATEGY SETUP | AJ3: STRATEGY SETUP | AX3: STRATEGY SETUP | BL3: STRATEGY SETUP | BZ3: STRATEGY SETUP | CN3: STRATEGY SETUP | DB3: STRATEGY SETUP | DP3: STRATEGY SETUP
V4: Set to | AJ4: Set to | AX4: Set to | BL4: Set to | BZ4: Set to | CN4: Set to | DB4: Set to | DP4: Set to
V5: 0.0195 | Z5: Buy signal if price | AB5: hits | AC5: =IF(V5="BP",$D$544,IF(V5="SP",$D$545,V5))*(IF(EULA!$B$7="",0,1)) -> 0.0195 | AD5: below | AE5: last | AF5: low | AG5: =IF(AH5="Signal", "Buy at", "Buy next") -> Buy at | AH5: signal | AJ5: 0.1057 | AN5: Buy signal if price | AP5: hits | AQ5: =IF(AJ5="BP",$D$544,IF(AJ5="SP",$D$545,AJ5))*(IF(EULA!$B$7="",0,1)) -> 0.1057 | AR5: below | AS5: last | AT5: MA | AU5: Buy at | AV5: signal | AX5: 0.0286 | BB5: Buy signal if price | BD5: hits | BE5: =IF(AX5="BP",$D$544,IF(AX5="SP",$D$545,AX5))*(IF(EULA!$B$7="",0,1)) -> 0.0286 | BF5: below | BG5: last | BH5: low | BI5: =IF(BJ5="Signal", "Buy at", "Buy next") -> Buy at | BJ5: signal | BL5: 0.1813 | BP5: Buy signal if price | BR5: hits | BS5: =IF(BL5="BP",$D$544,IF(BL5="SP",$D$545,BL5))*(IF(EULA!$B$7="",0,1)) -> 0.1813 | BT5: below | BU5: last | BV5: peak | BW5: =IF(BX5="Signal", "Buy at", "Buy next") -> Buy next | BX5: close | BZ5: -0.0373 | CD5: Buy signal if price | CF5: hits | CG5: =IF(BZ5="BP",$D$544,IF(BZ5="SP",$D$545,BZ5))*(IF(EULA!$B$7="",0,1)) -> -0.0373 | CH5: below | CI5: last | CJ5: ave(HL) | CK5: =IF(CL5="Signal", "Buy at", "Buy next") -> Buy at | CL5: signal | CN5: 0.0266 | CR5: Buy signal if price | CT5: misses | CU5: =IF(CN5="BP",$D$544,IF(CN5="SP",$D$545,CN5))*(IF(EULA!$B$7="",0,1)) -> 0.0266 | CV5: above | CW5: last | CX5: sell | CY5: =IF(CZ5="Signal", "Buy at", "Buy next") -> Buy next | CZ5: open | DB5: 0.0024 | DF5: Buy signal if price | DH5: hits | DI5: =IF(DB5="BP",$D$544,IF(DB5="SP",$D$545,DB5))*(IF(EULA!$B$7="",0,1)) -> 0.0024 | DJ5: below | DK5: last | DL5: peak | DM5: =IF(DN5="Signal", "Buy at", "Buy next") -> Buy at | DN5: signal | DP5: -0.0301 | DT5: Buy signal if price | DV5: hits | DW5: =IF(DP5="BP",$D$544,IF(DP5="SP",$D$545,DP5))*(IF(EULA!$B$7="",0,1)) -> -0.0301 | DX5: below | DY5: last | DZ5: close | EA5: =IF(EB5="Signal", "Buy at", "Buy next") -> Buy at | EB5: signal
V6: 0.0297 | Z6: Sell signal if price | AB6: hits | AC6: =IF(V6="BP",$D$544,IF(V6="SP",$D$545,V6))*(IF(EULA!$B$7="",0,1)) -> 0.0297 | AD6: below | AE6: last | AF6: close | AG6: =IF(AH6="Signal", "Sell at", "Sell next") -> Sell at | AH6: signal | AJ6: 0.0665 | AN6: Sell signal if price | AP6: hits | AQ6: =IF(AJ6="BP",$D$544,IF(AJ6="SP",$D$545,AJ6))*(IF(EULA!$B$7="",0,1)) -> 0.0665 | AR6: below | AS6: last | AT6: Y.open | AU6: Sell at | AV6: signal | AX6: 0.0442 | BB6: Sell signal if price | BD6: hits | BE6: =IF(AX6="BP",$D$544,IF(AX6="SP",$D$545,AX6))*(IF(EULA!$B$7="",0,1)) -> 0.0442 | BF6: below | BG6: last | BH6: close | BI6: =IF(BJ6="Signal", "Sell at", "Sell next") -> Sell next | BJ6: open | BL6: 0.048 | BP6: Sell signal if price | BR6: hits | BS6: =IF(BL6="BP",$D$544,IF(BL6="SP",$D$545,BL6))*(IF(EULA!$B$7="",0,1)) -> 0.048 | BT6: below | BU6: last | BV6: low | BW6: =IF(BX6="Signal", "Sell at", "Sell next") -> Sell next | BX6: close | BZ6: 0.016 | CD6: Sell signal if price | CF6: hits | CG6: =IF(BZ6="BP",$D$544,IF(BZ6="SP",$D$545,BZ6))*(IF(EULA!$B$7="",0,1)) -> 0.016 | CH6: above | CI6: last | CJ6: ave(HL) | CK6: =IF(CL6="Signal", "Sell at", "Sell next") -> Sell at | CL6: signal | CN6: 0.0587 | CR6: Sell signal if price | CT6: hits | CU6: =IF(CN6="BP",$D$544,IF(CN6="SP",$D$545,CN6))*(IF(EULA!$B$7="",0,1)) -> 0.0587 | CV6: below | CW6: last | CX6: close | CY6: =IF(CZ6="Signal", "Sell at", "Sell next") -> Sell next | CZ6: open | DB6: 0.0017 | DF6: Sell signal if price | DH6: hits | DI6: =IF(DB6="BP",$D$544,IF(DB6="SP",$D$545,DB6))*(IF(EULA!$B$7="",0,1)) -> 0.0017 | DJ6: above | DK6: last | DL6: close | DM6: =IF(DN6="Signal", "Sell at", "Sell next") -> Sell at | DN6: signal | DP6: 0.0017 | DT6: Sell signal if price | DV6: hits | DW6: =IF(DP6="BP",$D$544,IF(DP6="SP",$D$545,DP6))*(IF(EULA!$B$7="",0,1)) -> 0.0017 | DX6: above | DY6: last | DZ6: close | EA6: =IF(EB6="Signal", "Sell at", "Sell next") -> Sell at | EB6: signal
Z7: =IF(ClosePositions<>"No", "Reset to "&AtStart&" "&ClosePositions, "") ->  | AN7: =IF(ClosePositions<>"No", "Reset to "&AtStart&" "&ClosePositions, "") ->  | BB7: =IF(ClosePositions<>"No", "Reset to "&AtStart&" "&ClosePositions, "") ->  | BP7: =IF(ClosePositions<>"No", "Reset to "&AtStart&" "&ClosePositions, "") ->  | CD7: =IF(ClosePositions<>"No", "Reset to "&AtStart&" "&ClosePositions, "") ->  | CR7: =IF(ClosePositions<>"No", "Reset to "&AtStart&" "&ClosePositions, "") ->  | DF7: =IF(ClosePositions<>"No", "Reset to "&AtStart&" "&ClosePositions, "") ->  | DT7: =IF(ClosePositions<>"No", "Reset to "&AtStart&" "&ClosePositions, "") -> 
Z8: On dual signal days: | AB8: buy | AD8: if bearish and | AF8: sell | AH8: =" if bullish" -> if bullish | AN8: On dual signal days: | AP8: buy | AR8: if bearish and | AT8: sell | AV8: =" if bullish" -> if bullish | BB8: On dual signal days: | BD8: buy | BF8: if bearish and | BH8: sell | BJ8: =" if bullish" -> if bullish | BP8: On dual signal days: | BR8: buy | BT8: if bearish and | BV8: sell | BX8: =" if bullish" -> if bullish | CD8: On dual signal days: | CF8: buy | CH8: if bearish and | CJ8: sell | CL8: =" if bullish" -> if bullish | CR8: Dual signal actions: | CT8: buy | CV8: if bearish and | CX8: sell | CZ8: =" if bullish" -> if bullish | DF8: On dual signal days: | DH8: buy | DJ8: if bearish and | DL8: sell | DN8: =" if bullish" -> if bullish | DT8: On dual signal days: | DV8: buy | DX8: if bearish and | DZ8: sell | EB8: =" if bullish" -> if bullish
C9: =HYPERLINK("http://www.signalsolver.com/help#HistoricData", "Historical Data") -> Historical Data | V9: =IF(AD548>1, AD547&" "&AE547&" has a hypothetical buy strategy ", "")&INDEX(Messaging!$D23:$D27,AD548)&IF(AD548>1, " ", "")&IF(AE548>1, AD547&" "&AE547&" has a hypothetical sell strategy ", "")&INDEX(Messaging!$D30:$D34,AE548) ->  | AJ9: =IF(AR548>1, AR547&" "&AS547&" has a hypothetical buy strategy ", "")&INDEX(Messaging!$D23:$D27,AR548)&IF(AR548>1, " ", "")&IF(AS548>1, AR547&" "&AS547&" has a hypothetical sell strategy ", "")&INDEX(Messaging!$D30:$D34,AS548) ->  | AX9: =IF(BF548>1, BF547&" "&BG547&" has a hypothetical buy strategy ", "")&INDEX(Messaging!$D23:$D27,BF548)&IF(BF548>1, " ", "")&IF(BG548>1, BF547&" "&BG547&" has a hypothetical sell strategy ", "")&INDEX(Messaging!$D30:$D34,BG548) ->  | BL9: =IF(BT548>1, BT547&" "&BU547&" has a hypothetical buy strategy ", "")&INDEX(Messaging!$D23:$D27,BT548)&IF(BT548>1, " ", "")&IF(BU548>1, BT547&" "&BU547&" has a hypothetical sell strategy ", "")&INDEX(Messaging!$D30:$D34,BU548) ->  | BZ9: =IF(CH548>1, CH547&" "&CI547&" has a hypothetical buy strategy ", "")&INDEX(Messaging!$D23:$D27,CH548)&IF(CH548>1, " ", "")&IF(CI548>1, CH547&" "&CI547&" has a hypothetical sell strategy ", "")&INDEX(Messaging!$D30:$D34,CI548) ->  | CN9: =IF(CV548>1, CV547&" "&CW547&" has a hypothetical buy strategy ", "")&INDEX(Messaging!$D23:$D27,CV548)&IF(CV548>1, " ", "")&IF(CW548>1, CV547&" "&CW547&" has a hypothetical sell strategy ", "")&INDEX(Messaging!$D30:$D34,CW548) ->  | DB9: =IF(DJ548>1, DJ547&" "&DK547&" has a hypothetical buy strategy ", "")&INDEX(Messaging!$D23:$D27,DJ548)&IF(DJ548>1, " ", "")&IF(DK548>1, DJ547&" "&DK547&" has a hypothetical sell strategy ", "")&INDEX(Messaging!$D30:$D34,DK548) ->  | DP9: =IF(DX548>1, DX547&" "&DY547&" has a hypothetical buy strategy ", "")&INDEX(Messaging!$D23:$D27,DX548)&IF(DX548>1, " ", "")&IF(DY548>1, DX547&" "&DY547&" has a hypothetical sell strategy ", "")&INDEX(Messaging!$D30:$D34,DY548) -> 
C10: Date | D10: Open | E10: High | F10: Low | G10: Close | H10: Volume | I10: ='Data Prep'!AO2 -> 10 Period Peak | J10: ='Data Prep'!AP2 -> 10 Period Trough | K10: ave(HL) | L10: Userref | M10: ='Data Prep'!AM2 -> 10 day EMA: (H+L)/2 | O10: ='Data Prep'!AL2 -> 10 day SMA: (H+L)/2 | P10: Buy Band | Q10: Sell Band | T10: Style | U10: Div | V10: Style at Open | W10: Target Buy/Cov | X10: Target Sell/Sht | Y10: Buy/Cov Signal | Z10: Sell/Sht Signal | AA10: Dividend per stock | AB10: Div Amt | AC10: State At Open | AD10: Buy/Cov Action | AE10: Sell/Sht Action | AF10: Buy/Cov Price | AG10: Sell/Sht Price | AH10: Value Next Open | AI10: Draw down | AJ10: Style at Open | AK10: Target Buy/Cov | AL10: Target Sell/Sht | AM10: Buy/Cov Signal | AN10: Sell/Sht Signal | AO10: Dividend per stock | AP10: Div. Amt. | AQ10: State At Open | AR10: Buy/Cov Action | AS10: Sell/Sht Action | AT10: Buy/Cov Price | AU10: Sell/Sht Price | AV10: Value Next Open | AW10: Draw down | AX10: Style at Open | AY10: Target Buy/Cov | AZ10: Target Sell/Sht | BA10: Buy/Cov Signal | BB10: Sell/Sht Signal | BC10: Dividend per Stock | BD10: Div. Amt. | BE10: State At Open | BF10: Buy/Cov Action | BG10: Sell/Sht Action | BH10: Buy/Cov Price | BI10: Sell/Sht Price | BJ10: Value Next Open | BK10: Draw down | BL10: Style at Open | BM10: Target Buy/Cov | BN10: Target Sell/Sht | BO10: Buy/Cov Signal | BP10: Sell/Sht Signal | BQ10: Dividend per stock | BR10: Div. Amt. | BS10: State At Open | BT10: Buy/Cov Action | BU10: Sell/Sht Action | BV10: Buy/Cov Price | BW10: Sell/Sht Price | BX10: Value Next Open | BY10: Draw down | BZ10: Style at Open | CA10: Target Buy/Cov | CB10: Target Sell/Sht | CC10: Buy/Cov Signal | CD10: Sell/Sht Signal | CE10: Dividend per stock | CF10: Div. Amt. | CG10: State At Open | CH10: Buy/Cov Action | CI10: Sell/Sht Action | CJ10: Buy/Cov Price | CK10: Sell/Sht Price | CL10: Value Next Open | CM10: Draw down | CN10: Style at Open | CO10: Target Buy/Cov | CP10: Target Sell/Sht | CQ10: Buy/Cov Signal | CR10: Sell/Sht Signal | CS10: Dividend per stock | CT10: Div. Amt. | CU10: State At Open | CV10: Buy/Cov Action | CW10: Sell/Sht Action | CX10: Buy/Cov Price | CY10: Sell/Sht Price | CZ10: Value Next Open | DA10: Draw down | DB10: Style at Open | DC10: Target Buy/Cov | DD10: Target Sell/Sht | DE10: Buy/Cov Signal | DF10: Sell/Sht Signal | DG10: Dividend per stock | DH10: Div. Amt. | DI10: State At Open | DJ10: Buy/Cov Action | DK10: Sell/Sht Action | DL10: Buy/Cov Price | DM10: Sell/Sht Price | DN10: Value Next Open | DO10: Draw down | DP10: Style at Open | DQ10: Target Buy/Cov | DR10: Target Sell/Sht | DS10: Buy/Cov Signal | DT10: Sell/Sht Signal | DU10: Dividend per stock | DV10: Div. Amt. | DW10: State At Open | DX10: Buy/Cov Action | DY10: Sell/Sht Action | DZ10: Buy/Cov Price | EA10: Sell/Sht Price | EB10: Value Next Open | EC10: Draw down | ED10: Row Number | EE10: Row Offset | EF10: Data Prep ln.
C11: =D549 -> 2023-11-20 | D11: =Trades!F144 -> ? | E11: =Trades!F145 -> ? | F11: =Trades!F146 -> ? | G11: =Trades!F147 -> ? | T11: =IF(Style = "Long", "L", IF(Style = "Short", "S", "")) ->  | V11: =$T$11 ->  | W11: =IF(ISERROR(W$650), "?", W$650) -> 41.7496918 | X11: =IF(ISERROR(X$650), "?", X$650) -> 41.52398672 | Y11: =IF(ISERROR(Y$650), "?", Y$650) -> ? | Z11: =IF(ISERROR(Z$650), "?", Z$650) -> ? | AB11: 0 | AC11: =IF(AND(AD12<>"",AE12=""), IF(OR(AND(V12="S",AC12<>"L"),AND(V12="L", AC12="S")), "", "L"), IF(AND(AE12<>"",AD12=""), IF(OR(AND(V12="L",AC12<>"S"),AND(V12="S", AC12="L")), "", "S"),IF(AC12 = 0, "", AC12))) -> L | AD11: =IF(AE550,"",IF(Y$11<>"?", IF( ISERROR(AD$650), "?", AD$650), "?")) -> ? | AE11: =IF(AE550,"",IF(Z$11<>"?", IF( ISERROR(AE$650), "?", AE$650), "?")) -> ? | AF11: =IF(ISERROR(AF$650), "?", AF$650) -> ? | AG11: =IF(ISERROR(AG$650), "?", AG$650) -> ? | AH11: =AH12 -> 71029.60461 | AI11: =MAX(AI12:AI539) -> 0.1851788759 | AJ11: =$T$11 ->  | AK11: =IF(ISERROR(AK$650), "?", AK$650) -> 36.28531487 | AL11: =IF(ISERROR(AL$650), "?", AL$650) -> 40.028481 | AM11: =IF(ISERROR(AM$650), "?", AM$650) -> ? | AN11: =IF(ISERROR(AN$650), "?", AN$650) -> ? | AP11: 0 | AQ11: =IF(AND(AR12<>"",AS12=""), IF(OR(AND(AJ12="S",AQ12<>"L"),AND(AJ12="L", AQ12="S")), "", "L"), IF(AND(AS12<>"",AR12=""), IF(OR(AND(AJ12="L",AQ12<>"S"),AND(AJ12="S", AQ12="L")), "", "S"),IF(AQ12 = 0, "", AQ12))) -> L | AR11: =IF(AS550,"",IF(AM$11<>"?", IF( ISERROR(AR$650), "?", AR$650), "?")) -> ? | AS11: =IF(AS550,"",IF(AN$11<>"?", IF( ISERROR(AS$650), "?", AS$650), "?")) -> ? | AT11: =IF(ISERROR(AT$650), "?", AT$650) -> ? | AU11: =IF(ISERROR(AU$650), "?", AU$650) -> ? | AV11: =AV12 -> 42534.92776 | AW11: =MAX(AW12:AW539) -> 0.2257827669 | AX11: =$T$11 ->  | AY11: =IF(ISERROR(AY$650), "?", AY$650) -> 41.36221378 | AZ11: =IF(ISERROR(AZ$650), "?", AZ$650) -> 40.90345925 | BA11: =IF(ISERROR(BA$650), "?", BA$650) -> ? | BB11: =IF(ISERROR(BB$650), "?", BB$650) -> ? | BD11: 0 | BE11: =IF(AND(BF12<>"",BG12=""), IF(OR(AND(AX12="S",BE12<>"L"),AND(AX12="L", BE12="S")), "", "L"), IF(AND(BG12<>"",BF12=""), IF(OR(AND(AX12="L",BE12<>"S"),AND(AX12="S", BE12="L")), "", "S"),IF(BE12 = 0, "", BE12))) -> L | BF11: =IF(BG550,"",IF(BA$11<>"?", IF( ISERROR(BF$650), "?", BF$650), "?")) -> ? | BG11: =IF(BG550,"",IF(BB$11<>"?", IF( ISERROR(BG$650), "?", BG$650), "?")) -> ? | BH11: =IF(ISERROR(BH$650), "?", BH$650) -> ? | BI11: =IF(ISERROR(BI$650), "?", BI$650) -> NOpen | BJ11: =BJ12 -> 36915.42576 | BK11: =MAX(BK12:BK539) -> 0.2520302534 | BL11: =$T$11 ->  | BM11: =IF(ISERROR(BM$650), "?", BM$650) -> 35.842685 | BN11: =IF(ISERROR(BN$650), "?", BN$650) -> 40.53616174 | BO11: =IF(ISERROR(BO$650), "?", BO$650) -> ? | BP11: =IF(ISERROR(BP$650), "?", BP$650) -> ? | BR11: 0 | BS11: =IF(AND(BT12<>"",BU12=""), IF(OR(AND(BL12="S",BS12<>"L"),AND(BL12="L", BS12="S")), "", "L"), IF(AND(BU12<>"",BT12=""), IF(OR(AND(BL12="L",BS12<>"S"),AND(BL12="S", BS12="L")), "", "S"),IF(BS12 = 0, "", BS12))) -> L | BT11: =IF(BU550,"",IF(BO$11<>"?", IF( ISERROR(BT$650), "?", BT$650), "?")) -> ? | BU11: =IF(BU550,"",IF(BP$11<>"?", IF( ISERROR(BU$650), "?", BU$650), "?")) -> ? | BV11: =IF(ISERROR(BV$650), "?", BV$650) -> <Close> | BW11: =IF(ISERROR(BW$650), "?", BW$650) -> <Close> | BX11: =BX12 -> 36446.89673 | BY11: =MAX(BY12:BY539) -> 0.1598682851 | BZ11: =$T$11 ->  | CA11: =IF(ISERROR(CA$650), "?", CA$650) -> 44.39628489 | CB11: =IF(ISERROR(CB$650), "?", CB$650) -> 43.48464807 | CC11: =IF(ISERROR(CC$650), "?", CC$650) -> ? | CD11: =IF(ISERROR(CD$650), "?", CD$650) -> ? | CF11: 0 | CG11: =IF(AND(CH12<>"",CI12=""), IF(OR(AND(BZ12="S",CG12<>"L"),AND(BZ12="L", CG12="S")), "", "L"), IF(AND(CI12<>"",CH12=""), IF(OR(AND(BZ12="L",CG12<>"S"),AND(BZ12="S", CG12="L")), "", "S"),IF(CG12 = 0, "", CG12))) -> L | CH11: =IF(CI550,"",IF(CC$11<>"?", IF( ISERROR(CH$650), "?", CH$650), "?")) -> ? | CI11: =IF(CI550,"",IF(CD$11<>"?", IF( ISERROR(CI$650), "?", CI$650), "?")) -> ? | CJ11: =IF(ISERROR(CJ$650), "?", CJ$650) -> ? | CK11: =IF(ISERROR(CK$650), "?", CK$650) -> ? | CL11: =CL12 -> 36414.0072 | CM11: =MAX(CM12:CM539) -> 0.2341243327 | CN11: =$T$11 ->  | CO11: =IF(ISERROR(CO$650), "?", CO$650) -> 33.2413091 | CP11: =IF(ISERROR(CP$650), "?", CP$650) -> 40.28293178 | CQ11: =IF(ISERROR(CQ$650), "?", CQ$650) -> ? | CR11: =IF(ISERROR(CR$650), "?", CR$650) -> ? | CT11: 0 | CU11: =IF(AND(CV12<>"",CW12=""), IF(OR(AND(CN12="S",CU12<>"L"),AND(CN12="L", CU12="S")), "", "L"), IF(AND(CW12<>"",CV12=""), IF(OR(AND(CN12="L",CU12<>"S"),AND(CN12="S", CU12="L")), "", "S"),IF(CU12 = 0, "", CU12))) -> L | CV11: =IF(CW550,"",IF(CQ$11<>"?", IF( ISERROR(CV$650), "?", CV$650), "?")) -> ? | CW11: =IF(CW550,"",IF(CR$11<>"?", IF( ISERROR(CW$650), "?", CW$650), "?")) -> ? | CX11: =IF(ISERROR(CX$650), "?", CX$650) -> NOpen | CY11: =IF(ISERROR(CY$650), "?", CY$650) -> NOpen | CZ11: =CZ12 -> 30412.72845 | DA11: =MAX(DA12:DA539) -> 0.3078745008 | DB11: =$T$11 ->  | DC11: =IF(ISERROR(DC$650), "?", DC$650) -> 43.67492678 | DD11: =IF(ISERROR(DD$650), "?", DD$650) -> 42.86774967 | DE11: =IF(ISERROR(DE$650), "?", DE$650) -> ? | DF11: =IF(ISERROR(DF$650), "?", DF$650) -> ? | DH11: 0 | DI11: =IF(AND(DJ12<>"",DK12=""), IF(OR(AND(DB12="S",DI12<>"L"),AND(DB12="L", DI12="S")), "", "L"), IF(AND(DK12<>"",DJ12=""), IF(OR(AND(DB12="L",DI12<>"S"),AND(DB12="S", DI12="L")), "", "S"),IF(DI12 = 0, "", DI12))) -> L | DJ11: =IF(DK550,"",IF(DE$11<>"?", IF( ISERROR(DJ$650), "?", DJ$650), "?")) -> ? | DK11: =IF(DK550,"",IF(DF$11<>"?", IF( ISERROR(DK$650), "?", DK$650), "?")) -> ? | DL11: =IF(ISERROR(DL$650), "?", DL$650) -> ? | DM11: =IF(ISERROR(DM$650), "?", DM$650) -> ? | DN11: =DN12 -> 29843.66693 | DO11: =MAX(DO12:DO539) -> 0.2063408047 | DP11: =$T$11 ->  | DQ11: =IF(ISERROR(DQ$650), "?", DQ$650) -> 44.08312761 | DR11: =IF(ISERROR(DR$650), "?", DR$650) -> 42.86774967 | DS11: =IF(ISERROR(DS$650), "?", DS$650) -> ? | DT11: =IF(ISERROR(DT$650), "?", DT$650) -> ? | DV11: 0 | DW11: =IF(AND(DX12<>"",DY12=""), IF(OR(AND(DP12="S",DW12<>"L"),AND(DP12="L", DW12="S")), "", "L"), IF(AND(DY12<>"",DX12=""), IF(OR(AND(DP12="L",DW12<>"S"),AND(DP12="S", DW12="L")), "", "S"),IF(DW12 = 0, "", DW12))) -> L | DX11: =IF(DY550,"",IF(DS$11<>"?", IF( ISERROR(DX$650), "?", DX$650), "?")) -> ? | DY11: =IF(DY550,"",IF(DT$11<>"?", IF( ISERROR(DY$650), "?", DY$650), "?")) -> ? | DZ11: =IF(ISERROR(DZ$650), "?", DZ$650) -> ? | EA11: =IF(ISERROR(EA$650), "?", EA$650) -> ? | EB11: =EB12 -> 28775.56591 | EC11: =MAX(EC12:EC539) -> 0.2063408047 | ED11: 0 | EE11: =IF(ED11<DaysRequested, ED11, DaysRequested)+DateOffset+DPRowOffset -> 0 | EF11: =IF(EE11>DatesAvailable, DatesAvailable, EE11) -> 0
B12: =BuyPointRangeLow -> -0.04 | C12: =OFFSET(DataPrepRoot, $EF12, 0) -> 2023-11-17 | D12: =OFFSET(DataPrepRoot, $EF12, 1) -> 42.88000107 | E12: =OFFSET(DataPrepRoot, $EF12, 2) -> 43.0196991 | F12: =OFFSET(DataPrepRoot, $EF12, 3) -> 42.58000183 | G12: =OFFSET(DataPrepRoot, $EF12, 4) -> 42.79499817 | H12: =OFFSET(DataPrepRoot, $EF12, 5) -> 27381056 | I12: =OFFSET(DataPrepRoot, $EF12, 40) -> 43.77999878 | J12: =OFFSET(DataPrepRoot, $EF12, 41) -> 37.31999969 | K12: =(E12+F12)/2 -> 42.79985046 | L12: =(E12+F12)/2 -> 42.79985046 | M12: =OFFSET(DataPrepRoot, $EF12, 38) -> 40.64507925 | O12: =OFFSET(DataPrepRoot, $EF12, 37) -> 40.5739851 | P12: =OFFSET(DataPrepRoot, $EF12, BandColumnOffset+BuyBandIndex) -> 0 | Q12: =OFFSET(DataPrepRoot, $EF12, BandColumnOffset+SellBandIndex) -> 0 | T12: =IF(Style = "Long", "L", IF(Style = "Short", "S", "")) ->  | U12: =IF(ROW()-ROW($C$11)<DaysToAnalyze+1,OFFSET(DataPrepRoot, $EF12, 6),0)*(IF(AdjDividend = "Y", 0,1)) -> 0 | W12: 41.50456619 | X12: 41.84904099 | Y12: 0 | Z12: 0 | AA12: 0 | AB12: 0 | AC12: L | AF12: 31.94469261 | AG12: 34.30980682 | AH12: 71029.60461 | AI12: 0.01891336031 | AK12: 35.79391098 | AL12: 39.91645813 | AM12: 0 | AN12: 0 | AO12: 0 | AP12: 0 | AQ12: L | AT12: 31.57999992 | AU12: 32.32710648 | AV12: 42534.92776 | AW12: 0.01891336031 | AY12: 41.11936188 | AZ12: 41.2236557 | BA12: 0 | BB12: 0 | BC12: 0 | BD12: 0 | BE12: L | BH12: 31.64821434 | BI12: 32.38000107 | BJ12: 36915.42576 | BK12: 0.01891336031 | BM12: 35.8426857 | BN12: 40.29816055 | BO12: 0 | BP12: 0 | BQ12: 0 | BR12: 0 | BS12: L | BV12: 30.86000061 | BW12: 32.77000046 | BX12: 36446.89673 | BY12: 0.01891336031 | CA12: 44.36532211 | CB12: 43.454319 | CC12: 42.88000107 | CD12: 0 | CE12: 0 | CF12: 0 | CG12: L | CJ12: 43.61999893 | CK12: 42.47000122 | CL12: 36414.0072 | CM12: 0.09878064692 | CO12: 33.24131012 | CP12: 40.59827042 | CQ12: 0 | CR12: 0 | CS12: 0 | CT12: 0 | CU12: L | CX12: 31.57999992 | CY12: 32.38000107 | CZ12: 30412.72845 | DA12: 0.01891336031 | DC12: 43.67492676 | DD12: 43.20332336 | DE12: 42.88000107 | DF12: 0 | DG12: 0 | DH12: 0 | DI12: S | DJ12: RvL S | DL12: 42.88000107 | DM12: 43.1332016 | DN12: 29843.66693 | DO12: 0.1146930531 | DQ12: 44.42821503 | DR12: 43.20332336 | DS12: 42.88000107 | DT12: 0 | DU12: 0 | DV12: 0 | DW12: S | DX12: RvL S | DZ12: 42.88000107 | EA12: 43.1332016 | EB12: 28775.56591 | EC12: 0.1642012298 | ED12: 1 | EE12: =IF(ED12<DaysRequested, ED12, DaysRequested)+DateOffset+DPRowOffset -> 1 | EF12: 1
B13: =BuyPointRangeHigh -> 0.2 | C13: 2023-11-16 | D13: 42.75999832 | E13: 43.20999908 | F13: 42.33000183 | G13: 43.13000107 | H13: 88738300 | I13: 43.77999878 | J13: 36.63000107 | K13: 42.77000046 | L13: =(E13+F13+D12)/3 -> 42.80666733 | M13: 40.1662412 | O13: 40.02450008 | P13: 0 | Q13: 0 | U13: 0 | W13: 41.76929855 | X13: 41.7811203 | Y13: 0 | Z13: 0 | AA13: 0 | AB13: 0 | AC13: L | AF13: 31.94469261 | AG13: 34.30980682 | AH13: 71170.68938 | AI13: 0.01696464606 | AK13: 35.17863083 | AL13: 40.7192688 | AM13: 0 | AN13: 0 | AO13: 0 | AP13: 0 | AQ13: L | AT13: 31.57999992 | AU13: 32.32710648 | AV13: 42619.41408 | AW13: 0.01696464606 | AY13: 41.38163757 | AZ13: 41.15674973 | BA13: 0 | BB13: 0 | BC13: 0 | BD13: 0 | BE13: L | BH13: 31.64821434 | BI13: 32.38000107 | BJ13: 36988.75018 | BK13: 0.01696464606 | BM13: 35.8426857 | BN13: 40.55519867 | BO13: 0 | BP13: 0 | BQ13: 0 | BR13: 0 | BS13: L | BV13: 30.86000061 | BW13: 32.77000046 | BX13: 36519.29052 | BY13: 0.01696464606 | CA13: 44.80098724 | CB13: 43.88103867 | CC13: 42.75999832 | CD13: 0 | CE13: 0 | CF13: 0 | CG13: L | CJ13: 43.61999893 | CK13: 42.47000122 | CL13: 36486.33566 | CM13: 0.09699057043 | CO13: 33.24131012 | CP13: 40.53237915 | CQ13: 0 | CR13: 0 | CS13: 0 | CT13: 0 | CU13: L | CX13: 31.57999992 | CY13: 32.38000107 | CZ13: 30473.13668 | DA13: 0.01696464606 | DC13: 43.67492676 | DD13: 43.1332016 | DE13: 42.75999832 | DF13: 43.1332016 | DG13: 0 | DH13: 0 | DI13: L | DK13: RvS S | DL13: 43.17612839 | DM13: 43.1332016 | DN13: 29902.94484 | DO13: 0.1129345819 | DQ13: 44.3561058 | DR13: 43.1332016 | DS13: 42.75999832 | DT13: 43.1332016 | DU13: 0 | DV13: 0 | DW13: L | DY13: RvS S | DZ13: 43.61999893 | EA13: 43.1332016 | EB13: 28832.72227 | EC13: 0.1625410914 | ED13: 2 | EE13: =IF(ED13<DaysRequested, ED13, DaysRequested)+DateOffset+DPRowOffset -> 2 | EF13: 2
B14: =SellPointRangeLow -> -0.04 | C14: 2023-11-15 | D14: 43.61999893 | E14: 43.77999878 | F14: 42.59999847 | G14: 43.06000137 | H14: 109216300 | I14: 43.77999878 | J14: 35.40000153 | K14: 43.18999863 | L14: =(E14+F14+D13)/3 -> 43.04666519 | M14: 39.58762803 | O14: 39.33650017 | P14: 0 | Q14: 0 | U14: 0 | W14: 41.46534729 | X14: 41.66468048 | Y14: 0 | Z14: 0 | AA14: 0 | AB14: 0 | AC14: L | AF14: 31.94469261 | AG14: 34.30980682 | AH14: 70971.51312 | AI14: 0.01971574128 | AK14: 34.33888626 | AL14: 39.64574432 | AM14: 0 | AN14: 0 | AO14: 0 | AP14: 0 | AQ14: L | AT14: 31.57999992 | AU14: 32.32710648 | AV14: 42500.14061 | AW14: 0.01971574128 | AY14: 41.08050537 | AZ14: 41.04204941 | BA14: 0 | BB14: 0 | BC14: 0 | BD14: 0 | BE14: L | BH14: 31.64821434 | BI14: 32.38000107 | BJ14: 36885.23452 | BK14: 0.01971574128 | BM14: 35.43333435 | BN14: 40.26008224 | BO14: 0 | BP14: 0 | BQ14: 0 | BR14: 0 | BS14: L | BV14: 30.86000061 | BW14: 32.77000046 | BX14: 36417.08868 | BY14: 0.01971574128 | CA14: 44.38087845 | CB14: 43.46955872 | CC14: 43.61999893 | CD14: 43.61999893 | CE14: 0 | CF14: 0 | CG14: S | CH14: RvL S | CJ14: 43.61999893 | CK14: 42.47000122 | CL14: 36384.22604 | CM14: 0.09951770306 | CO14: 33.24131012 | CP14: 40.41942215 | CQ14: 0 | CR14: 0 | CS14: 0 | CT14: 0 | CU14: L | CX14: 31.57999992 | CY14: 32.38000107 | CZ14: 30387.85543 | DA14: 0.01971574128 | DC14: 43.17612839 | DD14: 43.01299667 | DE14: 43.17612839 | DF14: 43.61999893 | DG14: 0 | DH14: 0 | DI14: S | DJ14: RvL S | DL14: 43.17612839 | DM14: 42.47000122 | DN14: 29471.20996 | DO14: 0.1257419139 | DQ14: 44.23249435 | DR14: 43.01299667 | DS14: 43.61999893 | DT14: 43.61999893 | DU14: 0 | DV14: 0 | DW14: S | DX14: RvL S | DZ14: 43.61999893 | EA14: 42.47000122 | EB14: 28416.43912 | EC14: 0.1746322215 | ED14: 3 | EE14: 3 | EF14: 3
B15: =SellPointRangeHigh -> 0.2 | C15: 2023-11-14 | D15: 42.47000122 | E15: 43.27999878 | F15: 42.29000092 | G15: 42.93999863 | H15: 116776200 | I15: 43.27999878 | J15: 32.97000122 | K15: 42.78499985 | L15: 43.06333288 | M15: 38.78710123 | O15: 38.39750042 | P15: 0 | Q15: 0 | U15: 0 | W15: 38.9748764 | X15: 39.20012283 | Y15: 0 | Z15: 0 | AA15: 0 | AB15: 0 | AC15: L | AF15: 31.94469261 | AG15: 34.30980682 | AH15: 72398.91132 | AI15: 0 | AK15: 33.39629364 | AL15: 37.5733757 | AM15: 0 | AN15: 0 | AO15: 0 | AP15: 0 | AQ15: L | AT15: 31.57999992 | AU15: 32.32710648 | AV15: 43354.91489 | AW15: 0 | AY15: 38.61315155 | AZ15: 38.61432266 | BA15: 0 | BB15: 0 | BC15: 0 | BD15: 0 | BE15: L | BH15: 31.64821434 | BI15: 32.38000107 | BJ15: 37627.08029 | BK15: 0 | BM15: 33.42752075 | BN15: 37.84199905 | BO15: 0 | BP15: 0 | BQ15: 0 | BR15: 0 | BS15: L | BV15: 30.86000061 | BW15: 32.77000046 | BX15: 37149.51898 | BY15: 0 | CA15: 41.74095154 | CB15: 40.88383865 | CC15: 0 | CD15: 42.47000122 | CE15: 0 | CF15: 0 | CG15: L | CI15: RvS S | CJ15: 40.25 | CK15: 42.47000122 | CL15: 37115.9954 | CM15: 0.08140696585 | CO15: 33.24131012 | CP15: 38.02852249 | CQ15: 0 | CR15: 0 | CS15: 0 | CT15: 0 | CU15: L | CX15: 31.57999992 | CY15: 32.38000107 | CZ15: 30999.02417 | DA15: 0 | DC15: 40.73200989 | DD15: 40.46868134 | DE15: 0 | DF15: 42.47000122 | DG15: 0 | DH15: 0 | DI15: L | DK15: RvS S | DL15: 38.75 | DM15: 42.47000122 | DN15: 29441.74338 | DO15: 0.1266160458 | DQ15: 41.61604309 | DR15: 40.46868134 | DS15: 0 | DT15: 42.47000122 | DU15: 0 | DV15: 0 | DW15: L | DY15: RvS S | DZ15: 40.25 | EA15: 42.47000122 | EB15: 28987.95821 | EC15: 0.1580321938 | ED15: 4 | EE15: 4 | EF15: 4
B16: =SpotlightAlg -> 1 | C16: 2023-11-13 | D16: 40.25 | E16: 40.72999954 | F16: 39.75 | G16: 40.40000153 | H16: 90215200 | I16: 40.83000183 | J16: 31.60000038 | K16: 40.23999977 | L16: 40.98333359 | M16: 37.89867931 | O16: 37.34350042 | P16: 0 | Q16: 0 | U16: 0 | W16: 37.82769012 | X16: 39.55913162 | Y16: 0 | Z16: 0 | AA16: 0 | AB16: 0 | AC16: L | AF16: 31.94469261 | AG16: 34.30980682 | AH16: 70490.18632 | AI16: 0 | AK16: 32.67146301 | AL16: 36.17312622 | AM16: 0 | AN16: 0 | AO16: 0 | AP16: 0 | AQ16: L | AT16: 31.57999992 | AU16: 32.32710648 | AV16: 42211.90585 | AW16: 0 | AY16: 37.47661209 | AZ16: 38.96796799 | BA16: 0 | BB16: 0 | BC16: 0 | BD16: 0 | BE16: L | BH16: 31.64821434 | BI16: 32.38000107 | BJ16: 36635.0799 | BK16: 0 | BM16: 33.42752075 | BN16: 36.72816086 | BO16: 0 | BP16: 0 | BQ16: 0 | BR16: 0 | BS16: L | BV16: 30.86000061 | BW16: 32.77000046 | BX16: 36170.10901 | BY16: 0 | CA16: 41.18599701 | CB16: 40.34028244 | CC16: 40.25 | CD16: 40.34028244 | CE16: 0 | CF16: 0 | CG16: S | CH16: RvL S | CJ16: 40.25 | CK16: 39.50716019 | CL16: 38148.98926 | CM16: 0.05584114045 | CO16: 33.24131012 | CP16: 38.37680054 | CQ16: 0 | CR16: 0 | CS16: 0 | CT16: 0 | CU16: L | CX16: 31.57999992 | CY16: 32.38000107 | CZ16: 30181.76586 | DA16: 0 | DC16: 40.73200989 | DD16: 40.83930969 | DE16: 40.25 | DF16: 0 | DG16: 0 | DH16: 0 | DI16: L | DL16: 38.75 | DM16: 39.34000015 | DN16: 30261.15128 | DO16: 0.1023084521 | DQ16: 41.99717712 | DR16: 40.83930969 | DS16: 40.25 | DT16: 0 | DU16: 0 | DV16: 0 | DW16: S | DX16: RvL S | DZ16: 40.25 | EA16: 38.75 | EB16: 29794.73659 | EC16: 0.1345989704 | ED16: 5 | EE16: 5 | EF16: 5
B17: =AtStart -> Out | C17: 2023-11-10 | D17: 38.75 | E17: 40.83000183 | F17: 38.58000183 | G17: 40.77000046 | H17: 124463800 | I17: 40.83000183 | J17: 31.57999992 | K17: 39.70500183 | L17: 39.88666789 | M17: 37.37838588 | O17: 36.53300037 | P17: 0 | Q17: 0 | U17: 0 | W17: 37.31783295 | X17: 37.08486557 | Y17: 0 | Z17: 0 | AA17: 0 | AB17: 0 | AC17: L | AF17: 31.94469261 | AG17: 34.30980682 | AH17: 66805.50784 | AI17: 0 | AK17: 31.94573784 | AL17: 36.7238884 | AM17: 0 | AN17: 0 | AO17: 0 | AP17: 0 | AQ17: L | AT17: 31.57999992 | AU17: 32.32710648 | AV17: 40005.39585 | AW17: 0 | AY17: 36.97148514 | AZ17: 36.5306778 | BA17: 0 | BB17: 0 | BC17: 0 | BD17: 0 | BE17: L | BH17: 31.64821434 | BI17: 32.38000107 | BJ17: 34720.08296 | BK17: 0 | BM17: 32.51057816 | BN17: 36.23311996 | BO17: 0 | BP17: 0 | BQ17: 0 | BR17: 0 | BS17: L | BV17: 30.86000061 | BW17: 32.77000046 | BX17: 34279.41714 | BY17: 0 | CA17: 40.33541107 | CB17: 39.50716019 | CC17: 38.75 | CD17: 39.50716019 | CE17: 0 | CF17: 0 | CG17: L | CI17: RvS S | CJ17: 39.34000015 | CK17: 39.50716019 | CL17: 36154.85692 | CM17: 0.1051944196 | CO17: 33.24131012 | CP17: 35.97648621 | CQ17: 0 | CR17: 0 | CS17: 0 | CT17: 0 | CU17: L | CX17: 31.57999992 | CY17: 32.38000107 | CZ17: 28604.09797 | DA17: 0 | DC17: 39.6146965 | DD17: 38.28497696 | DE17: 38.75 | DF17: 38.75 | DG17: 0 | DH17: 0 | DI17: S | DJ17: RvL S | DL17: 38.75 | DM17: 39.34000015 | DN17: 28679.33374 | DO17: 0.149232775 | DQ17: 39.37042236 | DR17: 38.28497696 | DS17: 38.75 | DT17: 38.75 | DU17: 0 | DV17: 0 | DW17: L | DY17: RvS S | DZ17: 39.34000015 | EA17: 38.75 | EB17: 28237.29958 | EC17: 0.1798354089 | ED17: 6 | EE17: 6 | EF17: 6
B18: =ClosePositions -> No | C18: 2023-11-09 | D18: 39.34000015 | E18: 39.70999908 | F18: 38.06000137 | G18: 38.22000122 | H18: 129182600 | I18: 39.70999908 | J18: 30.95000076 | K18: 38.88500023 | L18: 38.84000015 | M18: 36.86136011 | O18: 35.72150021 | P18: 0 | Q18: 0 | U18: 0 | W18: 37.68061447 | X18: 37.98724747 | Y18: 0 | Z18: 0 | AA18: 0 | AB18: 0 | AC18: L | AF18: 31.94469261 | AG18: 34.30980682 | AH18: 64315.86158 | AI18: 0.01499746181 | AK18: 31.29021645 | AL18: 36.59320068 | AM18: 0 | AN18: 0 | AO18: 0 | AP18: 0 | AQ18: L | AT18: 31.57999992 | AU18: 32.32710648 | AV18: 38514.51153 | AW18: 0.01499746181 | AY18: 37.3309021 | AZ18: 37.41957092 | BA18: 0 | BB18: 0 | BC18: 0 | BD18: 0 | BE18: L | BH18: 31.64821434 | BI18: 32.38000107 | BJ18: 33426.16683 | BK18: 0.01499746181 | BM18: 32.28134155 | BN18: 36.58536148 | BO18: 0 | BP18: 0 | BQ18: 0 | BR18: 0 | BS18: L | BV18: 30.86000061 | BW18: 32.77000046 | BX18: 33001.92333 | BY18: 0.01499746181 | CA18: 40.38208771 | CB18: 39.55287933 | CC18: 39.34000015 | CD18: 39.55287933 | CE18: 0 | CF18: 0 | CG18: S | CH18: RvL S | CJ18: 39.34000015 | CK18: 39.28871918 | CL18: 36141.50046 | CM18: 0.1055249795 | CO18: 33.24131012 | CP18: 36.85189819 | CQ18: 0 | CR18: 0 | CS18: 0 | CT18: 0 | CU18: L | CX18: 31.57999992 | CY18: 32.38000107 | CZ18: 27538.10674 | DA18: 0.01499746181 | DC18: 39.33536911 | DD18: 39.21655655 | DE18: 39.33536911 | DF18: 39.34000015 | DG18: 0 | DH18: 0 | DI18: L | DK18: RvS S | DL18: 39.20000076 | DM18: 39.34000015 | DN18: 27610.5387 | DO18: 0.1809383929 | DQ18: 40.32841492 | DR18: 39.21655655 | DS18: 39.34000015 | DT18: 39.34000015 | DU18: 0 | DV18: 0 | DW18: S | DX18: RvL S | DZ18: 39.34000015 | EA18: 39.20000076 | EB18: 29374.37205 | EC18: 0.1468086392 | ED18: 7 | EE18: 7 | EF18: 7
B19: =Optimize -> Return | C19: 2023-11-08 | D19: 39.20000076 | E19: 39.43000031 | F19: 38.43000031 | G19: 39.15000153 | H19: 93980100 | I19: 39.43000031 | J19: 30.46999931 | K19: 38.93000031 | L19: 39.06666692 | M19: 36.41166231 | O19: 34.98850012 | P19: 0 | Q19: 0 | U19: 0 | W19: 37.22958755 | X19: 37.91932678 | Y19: 0 | Z19: 0 | AA19: 0 | AB19: 0 | AC19: L | AF19: 31.94469261 | AG19: 34.30980682 | AH19: 65295.12269 | AI19: 0 | AK19: 30.8162365 | AL19: 35.79972458 | AM19: 0 | AN19: 0 | AO19: 0 | AP19: 0 | AQ19: L | AT19: 31.57999992 | AU19: 32.32710648 | AV19: 39100.92618 | AW19: 0 | AY19: 36.88405991 | AZ19: 37.35266495 | BA19: 0 | BB19: 0 | BC19: 0 | BD19: 0 | BE19: L | BH19: 31.64821434 | BI19: 32.38000107 | BJ19: 33935.10731 | BK19: 0 | BM19: 32.2322197 | BN19: 36.14744186 | BO19: 0 | BP19: 0 | BQ19: 0 | BR19: 0 | BS19: L | BV19: 30.86000061 | BW19: 32.77000046 | BX19: 33504.40436 | BY19: 0 | CA19: 40.11239243 | CB19: 39.28871918 | CC19: 39.20000076 | CD19: 39.28871918 | CE19: 0 | CF19: 0 | CG19: L | CI19: RvS S | CJ19: 38.34999847 | CK19: 39.28871918 | CL19: 36691.78409 | CM19: 0.09190587699 | CO19: 33.24131012 | CP19: 36.78600693 | CQ19: 0 | CR19: 0 | CS19: 0 | CT19: 0 | CU19: L | CX19: 31.57999992 | CY19: 32.38000107 | CZ19: 27957.39673 | DA19: 0 | DC19: 39.2755127 | DD19: 39.1464386 | DE19: 39.20000076 | DF19: 39.20000076 | DG19: 0 | DH19: 0 | DI19: S | DJ19: RvL S | DL19: 39.20000076 | DM19: 38.34999847 | DN19: 27202.5692 | DO19: 0.1930407286 | DQ19: 40.25630951 | DR19: 39.1464386 | DS19: 39.20000076 | DT19: 39.20000076 | DU19: 0 | DV19: 0 | DW19: L | DY19: RvS S | DZ19: 38.34999847 | EA19: 39.20000076 | EB19: 29821.62067 | EC19: 0.1338181198 | ED19: 8 | EE19: 8 | EF19: 8
B20: =Amount -> 10000 | C20: 2023-11-07 | D20: 38.34999847 | E20: 39.36999893 | F20: 37.97000122 | G20: 39.08000183 | H20: 102251100 | I20: 39.36999893 | J20: 30.46999931 | K20: 38.67000008 | L20: 38.84666697 | M20: 35.85203164 | O20: 34.45850019 | P20: 0 | Q20: 0 | U20: 0 | W20: 36.59225845 | X20: 36.8810997 | Y20: 0 | Z20: 0 | AA20: 0 | AB20: 0 | AC20: L | AF20: 31.94469261 | AG20: 34.30980682 | AH20: 65062.75672 | AI20: 0 | AK20: 30.48758125 | AL20: 35.29563522 | AM20: 0 | AN20: 0 | AO20: 0 | AP20: 0 | AQ20: L | AT20: 31.57999992 | AU20: 32.32710648 | AV20: 38961.77759 | AW20: 0 | AY20: 36.2526474 | AZ20: 36.32995605 | BA20: 0 | BB20: 0 | BC20: 0 | BD20: 0 | BE20: L | BH20: 31.64821434 | BI20: 32.38000107 | BJ20: 33814.34233 | BK20: 0 | BM20: 31.28252602 | BN20: 35.52864075 | BO20: 0 | BP20: 0 | BQ20: 0 | BR20: 0 | BS20: L | BV20: 30.86000061 | BW20: 32.77000046 | BX20: 33385.17212 | BY20: 0 | CA20: 39.17363358 | CB20: 38.36923981 | CC20: 38.34999847 | CD20: 38.36923981 | CE20: 0 | CF20: 0 | CG20: S | CH20: RvL S | CJ20: 38.34999847 | CK20: 37.90188217 | CL20: 36656.77384 | CM20: 0.09277234972 | CO20: 33.24131012 | CP20: 35.77881241 | CQ20: 0 | CR20: 0 | CS20: 0 | CT20: 0 | CU20: L | CX20: 31.57999992 | CY20: 32.38000107 | CZ20: 27857.90465 | DA20: 0 | DC20: 38.11829376 | DD20: 38.07461548 | DE20: 38.11829376 | DF20: 38.34999847 | DG20: 0 | DH20: 0 | DI20: L | DK20: RvS S | DL20: 37.81000137 | DM20: 38.34999847 | DN20: 27105.76333 | DO20: 0.1959124655 | DQ20: 39.15409851 | DR20: 38.07461548 | DS20: 38.34999847 | DT20: 38.34999847 | DU20: 0 | DV20: 0 | DW20: S | DX20: RvL S | DZ20: 38.34999847 | EA20: 37.81000137 | EB20: 29928.50773 | EC20: 0.1307135373 | ED20: 9 | EE20: 9 | EF20: 9
B21: =PointsInScan -> 7 | C21: 2023-11-06 | D21: 37.81000137 | E21: 38.20999908 | F21: 37.31999969 | G21: 38.00999832 | H21: 91799800 | I21: 38.20999908 | J21: 30.46999931 | K21: 37.76499939 | L21: 37.95999908 | M21: 35.22581643 | O21: 34.09100027 | P21: 0 | Q21: 0 | U21: 0 | W21: 35.91571426 | X21: 36.46387482 | Y21: 0 | Z21: 0 | AA21: 0 | AB21: 0 | AC21: L | AF21: 31.94469261 | AG21: 34.30980682 | AH21: 63651.95338 | AI21: 0 | AK21: 30.17189407 | AL21: 34.25944901 | AM21: 0 | AN21: 0 | AO21: 0 | AP21: 0 | AQ21: L | AT21: 31.57999992 | AU21: 32.32710648 | AV21: 38116.94087 | AW21: 0 | AY21: 35.5823822 | AZ21: 35.91896439 | BA21: 0 | BB21: 0 | BC21: 0 | BD21: 0 | BE21: L | BH21: 31.64821434 | BI21: 32.38000107 | BJ21: 33081.12121 | BK21: 0 | BM21: 31.09422493 | BN21: 34.87176132 | BO21: 0 | BP21: 0 | BQ21: 0 | BR21: 0 | BS21: L | BV21: 30.86000061 | BW21: 32.77000046 | BX21: 32661.25702 | BY21: 0 | CA21: 38.69647598 | CB21: 37.90188217 | CC21: 37.81000137 | CD21: 37.90188217 | CE21: 0 | CF21: 0 | CG21: L | CI21: RvS S | CJ21: 36.70000076 | CK21: 37.90188217 | CL21: 35861.9182 | CM21: 0.1124444306 | CO21: 33.24131012 | CP21: 35.37405396 | CQ21: 0 | CR21: 0 | CS21: 0 | CT21: 0 | CU21: L | CX21: 31.57999992 | CY21: 32.38000107 | CZ21: 27253.84133 | DA21: 0 | DC21: 37.88884735 | DD21: 37.64388657 | DE21: 37.81000137 | DF21: 37.81000137 | DG21: 0 | DH21: 0 | DI21: S | DJ21: RvL S | DL21: 37.81000137 | DM21: 35.75999832 | DN21: 27720.16235 | DO21: 0.1776864231 | DQ21: 38.71115875 | DR21: 37.64388657 | DS21: 37.81000137 | DT21: 37.81000137 | DU21: 0 | DV21: 0 | DW21: L | DY21: RvS S | DZ21: 36.70000076 | EA21: 37.81000137 | EB21: 29279.546 | EC21: 0.1495629102 | ED21: 10 | EE21: 10 | EF21: 10
B22: =NumIterations -> 7 | C22: 2023-11-03 | D22: 36.70000076 | E22: 37.97999954 | F22: 36.63000107 | G22: 37.58000183 | H22: 114110500 | I22: 37.97999954 | J22: 30.46999931 | K22: 37.30500031 | L22: 37.47333399 | M22: 34.66155355 | O22: 33.73800039 | P22: 0 | Q22: 0 | U22: 0 | W22: 34.70970154 | X22: 35.2218895 | Y22: 0 | Z22: 0 | AA22: 0 | AB22: 0 | AC22: L | AF22: 31.94469261 | AG22: 34.30980682 | AH22: 62755.68554 | AI22: 0 | AK22: 29.95323753 | AL22: 33.38195801 | AM22: 0 | AN22: 0 | AO22: 0 | AP22: 0 | AQ22: L | AT22: 31.57999992 | AU22: 32.32710648 | AV22: 37580.22539 | AW22: 0 | AY22: 34.3875618 | AZ22: 34.69553757 | BA22: 0 | BB22: 0 | BC22: 0 | BD22: 0 | BE22: L | BH22: 31.64821434 | BI22: 32.38000107 | BJ22: 32615.3139 | BK22: 0 | BM22: 29.78430748 | BN22: 33.70080185 | BO22: 0 | BP22: 0 | BQ22: 0 | BR22: 0 | BS22: L | BV22: 30.86000061 | BW22: 32.77000046 | BX22: 32201.36171 | BY22: 0 | CA22: 37.22869873 | CB22: 36.46424103 | CC22: 36.70000076 | CD22: 36.70000076 | CE22: 0 | CF22: 0 | CG22: S | CH22: RvL S | CJ22: 36.70000076 | CK22: 35.75999832 | CL22: 36203.0167 | CM22: 0.1040024981 | CO22: 33.24131012 | CP22: 34.16918945 | CQ22: 0 | CR22: 0 | CS22: 0 | CT22: 0 | CU22: L | CX22: 31.57999992 | CY22: 32.38000107 | CZ22: 26870.08655 | DA22: 0.01088113803 | DC22: 36.29269028 | DD22: 36.36170959 | DE22: 0 | DF22: 36.70000076 | DG22: 0 | DH22: 0 | DI22: S | DL22: 33 | DM22: 35.75999832 | DN22: 27329.84141 | DO22: 0.1892652214 | DQ22: 37.39262772 | DR22: 36.36170959 | DS22: 36.70000076 | DT22: 36.70000076 | DU22: 0 | DV22: 0 | DW22: S | DX22: RvL S | DZ22: 36.70000076 | EA22: 35.75999832 | EB22: 29703.77107 | EC22: 0.1372411102 | ED22: 11 | EE22: 11 | EF22: 11
B23: =DaysToAnalyze -> 200 | C23: 2023-11-02 | D23: 35.75999832 | E23: 36.38000107 | F23: 35.40000153 | G23: 36.29999924 | H23: 117067000 | I23: 36.38000107 | J23: 30.46999931 | K23: 35.8900013 | L23: 36.16000112 | M23: 34.07412094 | O23: 33.49350042 | P23: 0 | Q23: 0 | U23: 0 | W23: 32.3270874 | X23: 33.44624329 | Y23: 0 | Z23: 0 | AA23: 0 | AB23: 0 | AC23: L | AF23: 31.94469261 | AG23: 34.30980682 | AH23: 60913.3463 | AI23: 0 | AK23: 30.0055542 | AL23: 30.80550003 | AM23: 0 | AN23: 0 | AO23: 0 | AP23: 0 | AQ23: L | AT23: 31.57999992 | AU23: 32.32710648 | AV23: 36476.97039 | AW23: 0 | AY23: 32.02705765 | AZ23: 32.94642639 | BA23: 0 | BB23: 0 | BC23: 0 | BD23: 0 | BE23: L | BH23: 31.64821434 | BI23: 32.38000107 | BJ23: 31657.81544 | BK23: 0 | BM23: 30.70943642 | BN23: 31.38744164 | BO23: 0 | BP23: 0 | BQ23: 0 | BR23: 0 | BS23: L | BV23: 30.86000061 | BW23: 32.77000046 | BX23: 31256.01578 | BY23: 0 | CA23: 35.06074142 | CB23: 34.34080124 | CC23: 0 | CD23: 35.75999832 | CE23: 0 | CF23: 0 | CG23: L | CI23: RvS S | CJ23: 33 | CK23: 35.75999832 | CL23: 35140.19287 | CM23: 0.1303065866 | CO23: 33.24131012 | CP23: 32.44661331 | CQ23: 0 | CR23: 0 | CS23: 0 | CT23: 0 | CU23: L | CX23: 31.57999992 | CY23: 32.38000107 | CZ23: 26081.25261 | DA23: 0.0399190262 | DC23: 37.41997528 | DD23: 34.52859879 | DE23: 35.75999832 | DF23: 35.75999832 | DG23: 0 | DH23: 0 | DI23: L | DK23: RvS S | DL23: 33 | DM23: 35.75999832 | DN23: 28229.75672 | DO23: 0.1625694036 | DQ23: 35.50754929 | DR23: 34.52859879 | DS23: 35.50754929 | DT23: 35.75999832 | DU23: 0 | DV23: 0 | DW23: L | DY23: RvS S | DZ23: 33 | EA23: 35.75999832 | EB23: 28831.74772 | EC23: 0.1625694036 | ED23: 12 | EE23: 12 | EF23: 12
B24: =AlgScanYN1 -> Y | C24: 2023-11-01 | D24: 33 | E24: 34.63000107 | F24: 32.97000122 | G24: 34.47000122 | H24: 166317800 | I24: 37.50999832 | J24: 30.46999931 | K24: 33.80000114 | L24: 34.45333354 | M24: 33.67059197 | O24: 33.55200014 | P24: 0 | Q24: 0 | U24: 0 | W24: 30.98380089 | X24: 31.80643272 | Y24: 0 | Z24: 0 | AA24: 0 | AB24: 0 | AC24: L | AF24: 31.94469261 | AG24: 34.30980682 | AH24: 59353.16393 | AI24: 0 | AK24: 30.31453514 | AL24: 30.17071915 | AM24: 0 | AN24: 0 | AO24: 0 | AP24: 0 | AQ24: L | AT24: 31.57999992 | AU24: 32.32710648 | AV24: 35542.68046 | AW24: 0 | AY24: 30.69623947 | AZ24: 31.33112335 | BA24: 0 | BB24: 0 | BC24: 0 | BD24: 0 | BE24: L | BH24: 31.64821434 | BI24: 32.38000107 | BJ24: 30846.95922 | BK24: 0 | BM24: 31.257967 | BN24: 30.08320045 | BO24: 0 | BP24: 0 | BQ24: 0 | BR24: 0 | BS24: L | BV24: 30.86000061 | BW24: 32.77000046 | BX24: 30455.45091 | BY24: 0 | CA24: 33.44773865 | CB24: 32.76092148 | CC24: 33 | CD24: 33 | CE24: 0 | CF24: 0 | CG24: S | CH24: RvL S | CJ24: 33 | CK24: 32.64915848 | CL24: 36088.83936 | CM24: 0.1068283021 | CO24: 33.24131012 | CP24: 30.85581207 | CQ24: 0 | CR24: 0 | CS24: 0 | CT24: 0 | CU24: L | CX24: 31.57999992 | CY24: 32.38000107 | CZ24: 25413.2297 | DA24: 0.06450971961 | DC24: 38.08836746 | DD24: 32.83572388 | DE24: 33 | DF24: 33 | DG24: 0 | DH24: 0 | DI24: S | DJ24: RvL S | DL24: 33 | DM24: 32.3649292 | DN24: 28991.84871 | DO24: 0.1399620771 | DQ24: 33.76667786 | DR24: 32.83572388 | DS24: 33 | DT24: 33 | DU24: 0 | DV24: 0 | DW24: S | DX24: RvL S | DZ24: 33 | EA24: 32.3649292 | EB24: 29610.0911 | EC24: 0.1399620771 | ED24: 13 | EE24: 13 | EF24: 13
B25: =Report!E5 -> Y | C25: 2023-10-31 | D25: 32.31999969 | E25: 32.88999939 | F25: 31.60000038 | G25: 32.77999878 | H25: 111461800 | I25: 38.18000031 | J25: 30.46999931 | K25: 32.24499989 | L25: 32.49666659 | M25: 33.64183437 | O25: 33.89750013 | P25: 0 | Q25: 0 | U25: 0 | W25: 30.96418953 | X25: 31.3503952 | Y25: 0 | Z25: 0 | AA25: 0 | AB25: 0 | AC25: L | AF25: 31.94469261 | AG25: 34.30980682 | AH25: 54772.2176 | AI25: 0 | AK25: 30.8144474 | AL25: 29.82532501 | AM25: 0 | AN25: 0 | AO25: 0 | AP25: 0 | AQ25: L | AT25: 31.57999992 | AU25: 32.32710648 | AV25: 32799.45498 | AW25: 0.0718543455 | AY25: 30.67681122 | AZ25: 30.88189888 | BA25: 0 | BB25: 0 | BC25: 0 | BD25: 0 | BE25: L | BH25: 31.64821434 | BI25: 32.38000107 | BJ25: 28466.15498 | BK25: 0.01071385294 | BM25: 31.78193283 | BN25: 30.06415939 | BO25: 32.77999878 | BP25: 0 | BQ25: 0 | BR25: 0 | BS25: L | BV25: 30.86000061 | BW25: 32.77000046 | BX25: 28104.86374 | BY25: 0.0604282245 | CA25: 33.33363342 | CB25: 32.64915848 | CC25: 32.31999969 | CD25: 32.64915848 | CE25: 0 | CF25: 0 | CG25: L | CI25: RvS S | CJ25: 31.95000076 | CK25: 32.64915848 | CL25: 33303.46071 | CM25: 0.1757643372 | CO25: 33.24131012 | CP25: 30.41340446 | CQ25: 33 | CR25: 0 | CS25: 0 | CT25: 0 | CU25: L | CX25: 31.57999992 | CY25: 32.38000107 | CZ25: 23451.80703 | DA25: 0.1367119402 | DC25: 38.72683334 | DD25: 32.3649292 | DE25: 32.31999969 | DF25: 32.3649292 | DG25: 0 | DH25: 0 | DI25: L | DK25: RvS S | DL25: 31.95000076 | DM25: 32.3649292 | DN25: 26754.22406 | DO25: 0.2063408047 | DQ25: 33.28253174 | DR25: 32.3649292 | DS25: 32.31999969 | DT25: 32.3649292 | DU25: 0 | DV25: 0 | DW25: L | DY25: RvS S | DZ25: 31.95000076 | EA25: 32.3649292 | EB25: 27324.74978 | EC25: 0.2063408047 | ED25: 14 | EE25: 14 | EF25: 14
B26: =Report!E6 -> Y | C26: 2023-10-30 | D26: 31.95000076 | E26: 32.68999863 | F26: 31.57999992 | G26: 32.31000137 | H26: 132152800 | I26: 38.81999969 | J26: 30.46999931 | K26: 32.13499928 | L26: 32.19666608 | M26: 33.95224204 | O26: 34.45650005 | P26: 0 | Q26: 0 | U26: 0 | W26: 30.3464756 | X26: 30.37038994 | Y26: 0 | Z26: 0 | AA26: 0 | AB26: 0 | AC26: L | AF26: 31.94469261 | AG26: 34.30980682 | AH26: 53643.57746 | AI26: 0 | AK26: 31.37338638 | AL26: 29.47993088 | AM26: 0 | AN26: 0 | AO26: 0 | AP26: 0 | AQ26: L | AT26: 31.57999992 | AU26: 32.32710648 | AV26: 32123.58712 | AW26: 0.09097978473 | AY26: 30.06483078 | AZ26: 29.91654015 | BA26: 0 | BB26: 0 | BC26: 0 | BD26: 0 | BE26: L | BH26: 31.64821434 | BI26: 32.38000107 | BJ26: 27879.5794 | BK26: 0.03109915182 | BM26: 31.92930031 | BN26: 29.46440125 | BO26: 32.31000137 | BP26: 0 | BQ26: 0 | BR26: 0 | BS26: L | BV26: 30.86000061 | BW26: 32.77000046 | BX26: 27525.73295 | BY26: 0.07978910953 | CA26: 32.76830673 | CB26: 32.09543991 | CC26: 31.95000076 | CD26: 32.09543991 | CE26: 0 | CF26: 0 | CG26: S | CH26: RvL S | CJ26: 31.95000076 | CK26: 32.0598793 | CL26: 33325.81661 | CM26: 0.1752110422 | CO26: 33.24131012 | CP26: 29.46268845 | CQ26: 32.31999969 | CR26: 0 | CS26: 0 | CT26: 0 | CU26: L | CX26: 31.57999992 | CY26: 32.38000107 | CZ26: 22968.55746 | DA26: 0.1545009166 | DC26: 38.90639877 | DD26: 31.35320854 | DE26: 31.95000076 | DF26: 31.95000076 | DG26: 0 | DH26: 0 | DI26: S | DJ26: RvL S | DL26: 31.95000076 | DM26: 31.57999992 | DN26: 27251.82532 | DO26: 0.1915795654 | DQ26: 32.24213028 | DR26: 31.35320854 | DS26: 31.95000076 | DT26: 31.95000076 | DU26: 0 | DV26: 0 | DW26: S | DX26: RvL S | DZ26: 31.95000076 | EA26: 31.57999992 | EB26: 27832.96223 | EC26: 0.1915795654 | ED26: 15 | EE26: 15 | EF26: 15
B27: =Report!E7 -> Y | C27: 2023-10-27 | D27: 31.57999992 | E27: 32.22999954 | F27: 30.95000076 | G27: 31.29999924 | H27: 147351100 | I27: 39 | J27: 30.46999931 | K27: 31.59000015 | L27: 31.71000036 | M27: 34.35607376 | O27: 35.08150015 | P27: 0 | Q27: 0 | U27: 0 | W27: 29.87583351 | X27: 29.94345856 | Y27: 0 | Z27: 0 | AA27: 0 | AB27: 0 | AC27: L | AF27: 31.94469261 | AG27: 34.30980682 | AH27: 53029.46649 | AI27: 0 | AK27: 31.95781136 | AL27: 30.22673035 | AM27: 31.57999992 | AN27: 0 | AO27: 0 | AP27: 0 | AQ27: S | AR27: RvL S | AT27: 31.57999992 | AU27: 32.32710648 | AV27: 31755.83672 | AW27: 0.1013862342 | AY27: 29.59855652 | AZ27: 29.49598885 | BA27: 0 | BB27: 0 | BC27: 0 | BD27: 0 | BE27: L | BH27: 31.64821434 | BI27: 32.38000107 | BJ27: 27560.41434 | BK27: 0.04219111428 | BM27: 32.158535 | BN27: 29.00743866 | BO27: 31.29999924 | BP27: 0 | BQ27: 0 | BR27: 0 | BS27: L | BV27: 30.86000061 | BW27: 32.77000046 | BX27: 27210.61872 | BY27: 0.0903236717 | CA27: 32.73200226 | CB27: 32.0598793 | CC27: 31.57999992 | CD27: 32.0598793 | CE27: 0 | CF27: 0 | CG27: L | CI27: RvS S | CJ27: 34.63000107 | CK27: 32.0598793 | CL27: 32944.30309 | CM27: 0.1846532226 | CO27: 33.24131012 | CP27: 29.04851913 | CQ27: 31.95000076 | CR27: 0 | CS27: 0 | CT27: 0 | CU27: L | CX27: 31.57999992 | CY27: 32.38000107 | CZ27: 22705.61371 | DA27: 0.1641801894 | DC27: 39.18572617 | DD27: 30.91246223 | DE27: 31.57999992 | DF27: 31.57999992 | DG27: 0 | DH27: 0 | DI27: L | DK27: RvS S | DL27: 34.90000153 | DM27: 31.57999992 | DN27: 26939.84678 | DO27: 0.2008343488 | DQ27: 31.78888702 | DR27: 30.91246223 | DS27: 31.57999992 | DT27: 31.57999992 | DU27: 0 | DV27: 0 | DW27: L | DY27: RvS S | DZ27: 34.90000153 | EA27: 31.57999992 | EB27: 27514.33084 | EC27: 0.2008343488 | ED27: 16 | EE27: 16 | EF27: 16
B28: =Report!E8 -> Y | C28: 2023-10-26 | D28: 32.38000107 | E28: 32.63999939 | F28: 30.46999931 | G28: 30.86000061 | H28: 187023700 | I28: 39.27999878 | J28: 30.46999931 | K28: 31.55499935 | L28: 31.56333288 | M28: 34.97075679 | O28: 35.73500013 | P28: 0 | Q28: 0 | U28: 0 | W28: 31.94469261 | X28: 31.79673195 | Y28: 31.94469261 | Z28: 31.79673195 | AA28: 0 | AB28: 0 | AC28: S | AD28: RvL S | AF28: 31.94469261 | AG28: 34.30980682 | AH28: 52415.35236 | AI28: 0 | AK28: 32.63121796 | AL28: 32.32710648 | AM28: 32.38000107 | AN28: 32.32710648 | AO28: 0 | AP28: 0 | AQ28: L | AS28: RvS S | AT28: 33.66999817 | AU28: 32.32710648 | AV28: 31388.08442 | AW28: 0.1117927432 | AY28: 31.64821434 | AZ28: 31.32156563 | BA28: 31.64821434 | BB28: 31.57999992 | BC28: 0 | BD28: 0 | BE28: S | BF28: RvL S | BH28: 31.64821434 | BI28: 32.38000107 | BJ28: 27241.24764 | BK28: 0.05328313634 | BM28: 32.7889328 | BN28: 31.01616096 | BO28: 30.86000061 | BP28: 30.86000061 | BQ28: 0 | BR28: 0 | BS28: S | BT28: RvL C | BV28: 30.86000061 | BW28: 32.77000046 | BX28: 26895.50287 | BY28: 0.100858286 | CA28: 34.88439941 | CB28: 34.16807938 | CC28: 32.38000107 | CD28: 0 | CE28: 0 | CF28: 0 | CG28: L | CJ28: 34.63000107 | CK28: 34.90000153 | CL28: 32340.34561 | CM28: 0.1996007115 | CO28: 33.24131012 | CP28: 30.84640121 | CQ28: 31.57999992 | CR28: 31.57999992 | CS28: 0 | CT28: 0 | CU28: S | CV28: RvL O | CX28: 31.57999992 | CY28: 32.38000107 | CZ28: 22442.66861 | DA28: 0.1738594919 | DC28: 39.95388031 | DD28: 32.8257103 | DE28: 32.38000107 | DF28: 0 | DG28: 0 | DH28: 0 | DI28: L | DL28: 34.90000153 | DM28: 34.14795303 | DN28: 27259.2241 | DO28: 0.1913600713 | DQ28: 33.75637817 | DR28: 32.8257103 | DS28: 32.38000107 | DT28: 0 | DU28: 0 | DV28: 0 | DW28: L | DZ28: 34.90000153 | EA28: 34.14795303 | EB28: 27840.51879 | EC28: 0.1913600713 | ED28: 17 | EE28: 17 | EF28: 17
B29: =Report!E9 -> Y | C29: 2023-10-25 | D29: 34.63000107 | E29: 34.68000031 | F29: 32.58000183 | G29: 32.77000046 | H29: 164181600 | I29: 40.04999924 | J29: 32.58000183 | K29: 33.63000107 | L29: 33.2133344 | M29: 35.729814 | O29: 36.48800011 | P29: 0 | Q29: 0 | U29: 0 | W29: 33.72920227 | X29: 34.30980682 | Y29: 33.72920227 | Z29: 34.30980682 | AA29: 0 | AB29: 0 | AC29: L | AE29: RvS S | AF29: 33.35660934 | AG29: 34.30980682 | AH29: 52391.33162 | AI29: 0 | AK29: 33.10296249 | AL29: 32.57915115 | AM29: 33.10296249 | AN29: 0 | AO29: 0 | AP29: 0 | AQ29: L | AT29: 33.66999817 | AU29: 34.67952728 | AV29: 30729.26439 | AW29: 0.1304357648 | AY29: 33.41616058 | AZ29: 33.79708862 | BA29: 33.41616058 | BB29: 32.38000107 | BC29: 0 | BD29: 0 | BE29: L | BG29: RvS O | BH29: 34.42641449 | BI29: 32.38000107 | BJ29: 26696.74384 | BK29: 0.07220631093 | BM29: 32.7889328 | BN29: 32.74880219 | BO29: 32.77000046 | BP29: 32.77000046 | BQ29: 0 | BR29: 0 | BS29: L | BU29: RvS C | BV29: 34.49000168 | BW29: 32.77000046 | BX29: 25130.37109 | BY29: 0.1598682851 | CA29: 36.30031586 | CB29: 35.5549202 | CC29: 34.63000107 | CD29: 0 | CE29: 0 | CF29: 0 | CG29: S | CH29: RvL S | CJ29: 34.63000107 | CK29: 34.90000153 | CL29: 33159.60823 | CM29: 0.1793245822 | CO29: 35.70514679 | CP29: 33.28437042 | CQ29: 32.38000107 | CR29: 32.38000107 | CS29: 0 | CT29: 0 | CU29: L | CW29: RvS O | CX29: 33.66999817 | CY29: 32.38000107 | CZ29: 21901.55471 | DA29: 0.1937785298 | DC29: 39.95388031 | DD29: 35.42011261 | DE29: 34.63000107 | DF29: 0 | DG29: 0 | DH29: 0 | DI29: L | DL29: 34.90000153 | DM29: 34.14795303 | DN29: 27949.76908 | DO29: 0.1708751917 | DQ29: 36.42433548 | DR29: 35.42011261 | DS29: 34.63000107 | DT29: 0 | DU29: 0 | DV29: 0 | DW29: L | DZ29: 34.90000153 | EA29: 34.14795303 | EB29: 28545.78943 | EC29: 0.1708751917 | ED29: 18 | EE29: 18 | EF29: 18
B30: =Report!E10 -> Y | C30: 2023-10-24 | D30: 34.90000153 | E30: 35.59000015 | F30: 34.40000153 | G30: 35.36000061 | H30: 122537300 | I30: 40.04999924 | J30: 33.06000137 | K30: 34.99500084 | L30: 34.87333425 | M30: 36.19643909 | O30: 37.01550007 | P30: 0 | Q30: 0 | U30: 0 | W30: 32.41533279 | X30: 33.36861801 | Y30: 0 | Z30: 0 | AA30: 0 | AB30: 0 | AC30: L | AF30: 33.35660934 | AG30: 34.63970947 | AH30: 50064.32365 | AI30: 0.007736402564 | AK30: 33.42625046 | AL30: 31.43094254 | AM30: 0 | AN30: 0 | AO30: 0 | AP30: 0 | AQ30: L | AT30: 33.66999817 | AU30: 34.67952728 | AV30: 32864.55909 | AW30: 0.07001206279 | AY30: 32.11448669 | AZ30: 32.86996078 | BA30: 0 | BB30: 0 | BC30: 0 | BD30: 0 | BE30: L | BH30: 34.42641449 | BI30: 37.81999969 | BJ30: 28551.82943 | BK30: 0.007736402564 | BM30: 32.7889328 | BN30: 31.47312164 | BO30: 0 | BP30: 0 | BQ30: 0 | BR30: 0 | BS30: L | BV30: 34.49000168 | BW30: 43.06999969 | BX30: 26244.41441 | BY30: 0.1226247773 | CA30: 35.51196671 | CB30: 34.78276062 | CC30: 34.90000153 | CD30: 34.90000153 | CE30: 0 | CF30: 0 | CG30: L | CI30: RvS S | CJ30: 37.52000046 | CK30: 34.90000153 | CL30: 35463.78105 | CM30: 0.1222980246 | CO30: 35.70514679 | CP30: 32.37130737 | CQ30: 34.63000107 | CR30: 0 | CS30: 0 | CT30: 0 | CU30: L | CX30: 33.66999817 | CY30: 34.77999878 | CZ30: 23423.43539 | DA30: 0.1377563328 | DC30: 39.95388031 | DD30: 34.44846344 | DE30: 34.90000153 | DF30: 34.90000153 | DG30: 0 | DH30: 0 | DI30: S | DJ30: RvL S | DL30: 34.90000153 | DM30: 34.14795303 | DN30: 29891.92407 | DO30: 0.1132615134 | DQ30: 35.42513657 | DR30: 34.44846344 | DS30: 34.90000153 | DT30: 34.90000153 | DU30: 0 | DV30: 0 | DW30: S | DX30: RvL S | DZ30: 34.90000153 | EA30: 34.14795303 | EB30: 30529.36028 | EC30: 0.1132615134 | ED30: 19 | EE30: 19 | EF30: 19
B31: =Report!E11 -> Y | C31: 2023-10-23 | D31: 33.66999817 | E31: 35.40999985 | F31: 33.06000137 | G31: 34.38999939 | H31: 131799500 | I31: 40.04999924 | J31: 33.06000137 | K31: 34.23500061 | L31: 34.45666758 | M31: 36.46342537 | O31: 37.37699986 | P31: 0 | Q31: 0 | U31: 0 | W31: 33.35660934 | X31: 33.07752609 | Y31: 33.35660934 | Z31: 33.07752609 | AA31: 0 | AB31: 0 | AC31: S | AD31: RvL S | AF31: 33.35660934 | AG31: 34.63970947 | AH31: 50454.66121 | AI31: 0 | AK31: 33.68381119 | AL31: 33.15792084 | AM31: 33.66999817 | AN31: 33.15792084 | AO31: 0 | AP31: 0 | AQ31: S | AR31: RvL S | AT31: 33.66999817 | AU31: 34.67952728 | AV31: 33120.79489 | AW31: 0.06276120245 | AY31: 33.04702759 | AZ31: 32.58322144 | BA31: 0 | BB31: 0 | BC31: 0 | BD31: 0 | BE31: L | BH31: 34.42641449 | BI31: 37.81999969 | BJ31: 28774.44008 | BK31: 0 | BM31: 32.7889328 | BN31: 32.38703918 | BO31: 0 | BP31: 0 | BQ31: 0 | BR31: 0 | BS31: L | BV31: 34.49000168 | BW31: 43.06999969 | BX31: 26449.03479 | BY31: 0.115784131 | CA31: 36.16027832 | CB31: 35.41775894 | CC31: 33.66999817 | CD31: 0 | CE31: 0 | CF31: 0 | CG31: L | CJ31: 37.52000046 | CK31: 38.73500061 | CL31: 35191.52525 | CM31: 0.1290361583 | CO31: 35.70514679 | CP31: 32.08891678 | CQ31: 34.90000153 | CR31: 0 | CS31: 0 | CT31: 0 | CU31: L | CX31: 33.66999817 | CY31: 34.77999878 | CZ31: 23606.06138 | DA31: 0.1310336739 | DC31: 39.95388031 | DD31: 34.14795303 | DE31: 33.66999817 | DF31: 34.14795303 | DG31: 0 | DH31: 0 | DI31: L | DK31: RvS S | DL31: 35.52000046 | DM31: 34.14795303 | DN31: 30124.98306 | DO31: 0.1063478589 | DQ31: 35.11610794 | DR31: 34.14795303 | DS31: 33.66999817 | DT31: 34.14795303 | DU31: 0 | DV31: 0 | DW31: L | DY31: RvS S | DZ31: 35.52000046 | EA31: 34.14795303 | EB31: 30767.38919 | EC31: 0.1063478589 | ED31: 20 | EE31: 20 | EF31: 20
B32: =AD542 -> H | C32: 2023-10-20 | D32: 35.52000046 | E32: 35.70000076 | F32: 34.02000046 | G32: 34.09000015 | H32: 138488400 | I32: 40.04999924 | J32: 34.02000046 | K32: 34.86000061 | L32: 34.46333313 | M32: 36.95863087 | O32: 37.66499977 | P32: 0 | Q32: 0 | U32: 0 | W32: 34.74892044 | X32: 34.63970947 | Y32: 34.74892044 | Z32: 34.63970947 | AA32: 0 | AB32: 0 | AC32: L | AE32: RvS S | AF32: 35.62156677 | AG32: 34.63970947 | AH32: 47802.69571 | AI32: 0.03746866435 | AK32: 33.7902298 | AL32: 34.67952728 | AM32: 0 | AN32: 34.67952728 | AO32: 0 | AP32: 0 | AQ32: L | AS32: RvS S | AT32: 36.12301254 | AU32: 34.67952728 | AV32: 31953.49727 | AW32: 0.0957929194 | AY32: 34.42641449 | AZ32: 34.12205887 | BA32: 34.42641449 | BB32: 33.66999817 | BC32: 0 | BD32: 0 | BE32: S | BF32: RvL S | BH32: 34.42641449 | BI32: 37.81999969 | BJ32: 27760.32386 | BK32: 0 | BM32: 32.7889328 | BN32: 33.73888016 | BO32: 0 | BP32: 0 | BQ32: 0 | BR32: 0 | BS32: L | BV32: 34.49000168 | BW32: 43.06999969 | BX32: 25516.87432 | BY32: 0.1469471157 | CA32: 37.83551407 | CB32: 37.05859756 | CC32: 35.52000046 | CD32: 0 | CE32: 0 | CF32: 0 | CG32: L | CJ32: 37.52000046 | CK32: 38.73500061 | CL32: 33951.24753 | CM32: 0.1597321033 | CO32: 35.70514679 | CP32: 33.60441208 | CQ32: 33.66999817 | CR32: 0 | CS32: 0 | CT32: 0 | CU32: S | CV32: RvL O | CX32: 33.66999817 | CY32: 34.77999878 | CZ32: 22774.09767 | DA32: 0.1616592109 | DC32: 39.95388031 | DD32: 35.7606926 | DE32: 35.52000046 | DF32: 0 | DG32: 0 | DH32: 0 | DI32: S | DJ32: RvL S | DL32: 35.52000046 | DM32: 37.15000153 | DN32: 30372.2307 | DO32: 0.09901329875 | DQ32: 36.77457047 | DR32: 35.7606926 | DS32: 35.52000046 | DT32: 0 | DU32: 0 | DV32: 0 | DW32: S | DX32: RvL S | DZ32: 35.52000046 | EA32: 37.15000153 | EB32: 31019.90931 | EC32: 0.09901329875 | ED32: 21 | EE32: 21 | EF32: 21
B33: =AD543 -> B | C33: 2023-10-19 | D33: 37.15000153 | E33: 37.50999832 | F33: 35.43999863 | G33: 35.70000076 | H33: 185025200 | I33: 40.04999924 | J33: 34.40999985 | K33: 36.47499847 | L33: 36.1566658 | M33: 37.42499315 | O33: 37.78399963 | P33: 0 | Q33: 0 | U33: 0 | W33: 35.62156677 | X33: 35.59060287 | Y33: 35.62156677 | Z33: 35.59060287 | AA33: 0 | AB33: 0 | AC33: S | AD33: RvL S | AF33: 35.62156677 | AG33: 37.52000046 | AH33: 47682.65295 | AI33: 0.03988578543 | AK33: 33.68067932 | AL33: 34.97824478 | AM33: 0 | AN33: 0 | AO33: 0 | AP33: 0 | AQ33: L | AT33: 36.12301254 | AU33: 37.43000031 | AV33: 31802.13787 | AW33: 0.1000760198 | AY33: 35.29096222 | AZ33: 35.05874252 | BA33: 0 | BB33: 0 | BC33: 0 | BD33: 0 | BE33: S | BH33: 34.465271 | BI33: 37.81999969 | BJ33: 27630.81869 | BK33: 0 | BM33: 32.7889328 | BN33: 34.58616257 | BO33: 0 | BP33: 0 | BQ33: 0 | BR33: 0 | BS33: L | BV33: 34.49000168 | BW33: 43.06999969 | BX33: 26918.9022 | BY33: 0.1000760198 | CA33: 38.64461136 | CB33: 37.85108185 | CC33: 37.15000153 | CD33: 0 | CE33: 0 | CF33: 0 | CG33: L | CJ33: 37.52000046 | CK33: 38.73500061 | CL33: 35816.7031 | CM33: 0.1135634705 | CO33: 35.70514679 | CP33: 34.52688599 | CQ33: 0 | CR33: 0 | CS33: 0 | CT33: 0 | CU33: S | CX33: 36.13000107 | CY33: 34.77999878 | CZ33: 21600.17364 | DA33: 0.2048727125 | DC33: 39.95388031 | DD33: 36.74235535 | DE33: 37.15000153 | DF33: 37.15000153 | DG33: 0 | DH33: 0 | DI33: L | DK33: RvS S | DL33: 37.52000046 | DM33: 37.15000153 | DN33: 32041.03674 | DO33: 0.04950847477 | DQ33: 37.78406906 | DR33: 36.74235535 | DS33: 37.15000153 | DT33: 37.15000153 | DU33: 0 | DV33: 0 | DW33: L | DY33: RvS S | DZ33: 37.52000046 | EA33: 37.15000153 | EB33: 32724.30214 | EC33: 0.04950847477 | ED33: 22 | EE33: 22 | EF33: 22
B34: L | C34: 2023-10-18 | D34: 37.47000122 | E34: 38.18000031 | F34: 36.33000183 | G34: 36.68000031 | H34: 131582600 | I34: 40.04999924 | J34: 34.40999985 | K34: 37.25500107 | L34: 37.22000122 | M34: 37.63610308 | O34: 37.66149979 | P34: 0 | Q34: 0 | U34: 0 | W34: 36.13142395 | X34: 37.16249084 | Y34: 0 | Z34: 37.16249084 | AA34: 0 | AB34: 0 | AC34: S | AF34: 37.37665939 | AG34: 37.52000046 | AH34: 45964.83397 | AI34: 0.07447493821 | AK34: 33.51612854 | AL34: 35.02492142 | AM34: 0 | AN34: 0 | AO34: 0 | AP34: 0 | AQ34: L | AT34: 36.12301254 | AU34: 37.43000031 | AV34: 33261.52746 | AW34: 0.05877881125 | AY34: 35.79608917 | AZ34: 36.60713959 | BA34: 0 | BB34: 37.15000153 | BC34: 0 | BD34: 0 | BE34: S | BH34: 34.465271 | BI34: 37.81999969 | BJ34: 26508.22983 | BK34: 0.02482906915 | BM34: 32.7889328 | BN34: 35.08119965 | BO34: 0 | BP34: 0 | BQ34: 0 | BR34: 0 | BS34: L | BV34: 34.49000168 | BW34: 43.06999969 | BX34: 28154.20171 | BY34: 0.05877881125 | CA34: 39.24624634 | CB34: 38.44035721 | CC34: 37.47000122 | CD34: 0 | CE34: 0 | CF34: 0 | CG34: L | CJ34: 37.52000046 | CK34: 38.73500061 | CL34: 37460.31976 | CM34: 0.07288519293 | CO34: 35.70514679 | CP34: 36.05178833 | CQ34: 0 | CR34: 0 | CS34: 0 | CT34: 0 | CU34: S | CX34: 36.13000107 | CY34: 34.77999878 | CZ34: 20565.85199 | DA34: 0.2429472804 | DC34: 39.95388031 | DD34: 38.36510849 | DE34: 37.47000122 | DF34: 0 | DG34: 0 | DH34: 0 | DI34: L | DL34: 37.52000046 | DM34: 37.81999969 | DN34: 30694.28789 | DO34: 0.08945953101 | DQ34: 39.45282745 | DR34: 38.36510849 | DS34: 37.47000122 | DT34: 0 | DU34: 0 | DV34: 0 | DW34: L | DZ34: 37.52000046 | EA34: 37.81999969 | EB34: 31348.83427 | EC34: 0.08945953101 | ED34: 23 | EE34: 23 | EF34: 23
B35: S | C35: 2023-10-17 | D35: 37.52000046 | E35: 38.81999969 | F35: 36.84999847 | G35: 38.29999924 | H35: 105193500 | I35: 40.04999924 | J35: 34.40999985 | K35: 37.83499908 | L35: 37.71333313 | M35: 37.72079242 | O35: 37.47749958 | P35: 0 | Q35: 0 | U35: 0 | W35: 37.03348541 | X35: 37.52149963 | Y35: 37.03348541 | Z35: 37.52000046 | AA35: 0 | AB35: 0 | AC35: L | AE35: RvS S | AF35: 37.37665939 | AG35: 37.52000046 | AH35: 45576.63832 | AI35: 0.08229144663 | AK35: 33.2818222 | AL35: 35.30496979 | AM35: 0 | AN35: 0 | AO35: 0 | AP35: 0 | AQ35: L | AT35: 36.12301254 | AU35: 37.43000031 | AV35: 33548.03293 | AW35: 0.05067139491 | AY35: 36.68977737 | AZ35: 36.96078491 | BA35: 0 | BB35: 37.47000122 | BC35: 0 | BD35: 0 | BE35: S | BH35: 34.465271 | BI35: 37.81999969 | BJ35: 26287.84464 | BK35: 0.03293648362 | BM35: 32.7889328 | BN35: 35.95703888 | BO35: 0 | BP35: 0 | BQ35: 0 | BR35: 0 | BS35: L | BV35: 34.49000168 | BW35: 43.06999969 | BX35: 28396.71411 | BY35: 0.05067139491 | CA35: 39.81676102 | CB35: 38.99916077 | CC35: 37.52000046 | CD35: 0 | CE35: 0 | CF35: 0 | CG35: S | CH35: RvL S | CJ35: 37.52000046 | CK35: 38.73500061 | CL35: 37782.99245 | CM35: 0.06489928812 | CO35: 35.70514679 | CP35: 36.40007019 | CQ35: 0 | CR35: 0 | CS35: 0 | CT35: 0 | CU35: S | CX35: 36.13000107 | CY35: 34.77999878 | CZ35: 20362.7953 | DA35: 0.2504220307 | DC35: 39.95388031 | DD35: 38.73573685 | DE35: 37.52000046 | DF35: 38.73573685 | DG35: 0 | DH35: 0 | DI35: S | DJ35: RvL S | DL35: 37.52000046 | DM35: 37.81999969 | DN35: 30958.67987 | DO35: 0.08161639422 | DQ35: 39.8339653 | DR35: 38.73573685 | DS35: 37.52000046 | DT35: 38.73573685 | DU35: 0 | DV35: 0 | DW35: S | DX35: RvL S | DZ35: 37.52000046 | EA35: 37.81999969 | EB35: 31618.86434 | EC35: 0.08161639422 | ED35: 24 | EE35: 24 | EF35: 24
B36: B | C36: 2023-10-16 | D36: 37.81999969 | E36: 39 | F36: 37.77000046 | G36: 38.66999817 | H36: 86576100 | I36: 40.04999924 | J36: 34.04000092 | K36: 38.38500023 | L36: 38.09666697 | M36: 37.69541316 | O36: 37.21549969 | P36: 0 | Q36: 0 | U36: 0 | W36: 36.24908447 | X36: 36.29892349 | Y36: 0 | Z36: 0 | AA36: 0 | AB36: 0 | AC36: L | AF36: 37.37665939 | AG36: 35.38684082 | AH36: 45515.98362 | AI36: 0.0835127607 | AK36: 33.0855217 | AL36: 36.49051666 | AM36: 0 | AN36: 0 | AO36: 0 | AP36: 0 | AQ36: L | AT36: 36.12301254 | AU36: 37.43000031 | AV36: 33592.79877 | AW36: 0.04940462857 | AY36: 35.91265869 | AZ36: 35.75647736 | BA36: 0 | BB36: 0 | BC36: 0 | BD36: 0 | BE36: S | BH36: 34.465271 | BI36: 37.81999969 | BJ36: 26253.40995 | BK36: 0.03420324996 | BM36: 32.7889328 | BN36: 35.1954422 | BO36: 0 | BP36: 0 | BQ36: 0 | BR36: 0 | BS36: L | BV36: 34.49000168 | BW36: 43.06999969 | BX36: 28434.60613 | BY36: 0.04940462857 | CA36: 39.54706192 | CB36: 38.73500061 | CC36: 37.81999969 | CD36: 38.73500061 | CE36: 0 | CF36: 0 | CG36: L | CI36: RvS S | CJ36: 39.09000015 | CK36: 38.73500061 | CL36: 37833.40933 | CM36: 0.06365150958 | CO36: 35.70514679 | CP36: 35.21403122 | CQ36: 0 | CR36: 0 | CS36: 0 | CT36: 0 | CU36: S | CX36: 36.13000107 | CY36: 34.77999878 | CZ36: 20331.06815 | DA36: 0.2515899539 | DC36: 39.95388031 | DD36: 37.47359848 | DE36: 37.81999969 | DF36: 37.81999969 | DG36: 0 | DH36: 0 | DI36: L | DK36: RvS S | DL36: 39.09000015 | DM36: 37.81999969 | DN36: 30999.99053 | DO36: 0.08039092273 | DQ36: 38.53604126 | DR36: 37.47359848 | DS36: 37.81999969 | DT36: 37.81999969 | DU36: 0 | DV36: 0 | DW36: L | DY36: RvS S | DZ36: 39.09000015 | EA36: 37.81999969 | EB36: 31661.05593 | EC36: 0.08039092273 | ED36: 25 | EE36: 25 | EF36: 25
B37: BLS | C37: 2023-10-13 | D37: 39.09000015 | E37: 39.27999878 | F37: 36.97000122 | G37: 37.40999985 | H37: 129755500 | I37: 40.04999924 | J37: 34.04000092 | K37: 38.125 | L37: 38.02333323 | M37: 37.54217159 | O37: 36.99599972 | P37: 0 | Q37: 0 | U37: 0 | W37: 37.37665939 | X37: 37.7252655 | Y37: 37.37665939 | Z37: 37.7252655 | AA37: 0 | AB37: 0 | AC37: S | AD37: RvL S | AF37: 37.37665939 | AG37: 35.38684082 | AH37: 45879.91646 | AI37: 0.07618479431 | AK37: 32.90576935 | AL37: 36.84524536 | AM37: 0 | AN37: 0 | AO37: 0 | AP37: 0 | AQ37: L | AT37: 36.12301254 | AU37: 37.43000031 | AV37: 33861.39722 | AW37: 0.04180393741 | AY37: 37.02976608 | AZ37: 37.16150665 | BA37: 37.02976608 | BB37: 37.81999969 | BC37: 0 | BD37: 0 | BE37: L | BG37: RvS O | BH37: 34.465271 | BI37: 37.81999969 | BJ37: 26046.79916 | BK37: 0.04180393741 | BM37: 32.7889328 | BN37: 36.29023743 | BO37: 0 | BP37: 0 | BQ37: 0 | BR37: 0 | BS37: L | BV37: 34.49000168 | BW37: 43.06999969 | BX37: 28661.96114 | BY37: 0.04180393741 | CA37: 40.54286957 | CB37: 39.71035767 | CC37: 39.09000015 | CD37: 0 | CE37: 0 | CF37: 0 | CG37: S | CH37: RvL S | CJ37: 39.09000015 | CK37: 39.52748108 | CL37: 35816.25897 | CM37: 0.1135744676 | CO37: 35.70514679 | CP37: 36.59774399 | CQ37: 0 | CR37: 0 | CS37: 0 | CT37: 0 | CU37: S | CX37: 36.13000107 | CY37: 34.77999878 | CZ37: 20140.70281 | DA37: 0.258597523 | DC37: 39.95388031 | DD37: 38.94609833 | DE37: 39.09000015 | DF37: 39.09000015 | DG37: 0 | DH37: 0 | DI37: S | DJ37: RvL S | DL37: 39.09000015 | DM37: 39.47000122 | DN37: 30756.0248 | DO37: 0.08762811869 | DQ37: 40.05028915 | DR37: 38.94609833 | DS37: 39.09000015 | DT37: 39.09000015 | DU37: 0 | DV37: 0 | DW37: S | DX37: RvL S | DZ37: 39.09000015 | EA37: 39.47000122 | EB37: 31411.8877 | EC37: 0.08762811869 | ED37: 26 | EE37: 26 | EF37: 26
B38: 1 | C38: 2023-10-12 | D38: 39.47000122 | E38: 40.04999924 | F38: 38.11999893 | G38: 38.88000107 | H38: 118254600 | I38: 40.04999924 | J38: 34.04000092 | K38: 39.08499908 | L38: 39.08666611 | M38: 37.41265417 | O38: 36.79499969 | P38: 0 | Q38: 0 | U38: 0 | W38: 37.65120316 | X38: 38.17160034 | Y38: 0 | Z38: 38.17160034 | AA38: 0 | AB38: 0 | AC38: S | AF38: 34.32730484 | AG38: 35.38684082 | AH38: 43015.94461 | AI38: 0.133852303 | AK38: 32.55385971 | AL38: 36.35049057 | AM38: 0 | AN38: 0 | AO38: 0 | AP38: 0 | AQ38: L | AT38: 36.12301254 | AU38: 37.43000031 | AV38: 34998.46729 | AW38: 0.009627591819 | AY38: 37.30176163 | AZ38: 37.6011734 | BA38: 0 | BB38: 0 | BC38: 0 | BD38: 0 | BE38: L | BH38: 34.465271 | BI38: 34.81000137 | BJ38: 26921.45403 | BK38: 0.009627591819 | BM38: 32.26496506 | BN38: 36.55680084 | BO38: 0 | BP38: 0 | BQ38: 0 | BR38: 0 | BS38: L | BV38: 34.49000168 | BW38: 43.06999969 | BX38: 29624.43348 | BY38: 0.009627591819 | CA38: 40.3561554 | CB38: 39.52748108 | CC38: 39.47000122 | CD38: 39.52748108 | CE38: 0 | CF38: 0 | CG38: L | CI38: RvS S | CJ38: 38.93999863 | CK38: 39.52748108 | CL38: 37018.97356 | CM38: 0.08380818367 | CO38: 35.70514679 | CP38: 37.03074265 | CQ38: 0 | CR38: 0 | CS38: 0 | CT38: 0 | CU38: S | CX38: 36.13000107 | CY38: 34.77999878 | CZ38: 19334.82053 | DA38: 0.2882629633 | DC38: 39.31541443 | DD38: 39.40687943 | DE38: 39.31541443 | DF38: 39.47000122 | DG38: 0 | DH38: 0 | DI38: L | DK38: RvS S | DL38: 38.93999863 | DM38: 39.47000122 | DN38: 31788.81607 | DO38: 0.05699055269 | DQ38: 40.52413559 | DR38: 39.40687943 | DS38: 39.47000122 | DT38: 39.47000122 | DU38: 0 | DV38: 0 | DW38: L | DY38: RvS S | DZ38: 38.93999863 | EA38: 39.47000122 | EB38: 32466.70293 | EC38: 0.05699055269 | ED38: 27 | EE38: 27 | EF38: 27
B39: 0.0195 | C39: 2023-10-11 | D39: 38.93999863 | E39: 39.40999985 | F39: 38.40000153 | G39: 39.34000015 | H39: 95855400 | I39: 39.40999985 | J39: 34.04000092 | K39: 38.90500069 | L39: 39.0933342 | M39: 37.04102196 | O39: 36.40149975 | P39: 0 | Q39: 0 | U39: 0 | W39: 37.11192322 | X39: 37.37595749 | Y39: 0 | Z39: 0 | AA39: 0 | AB39: 0 | AC39: S | AF39: 34.32730484 | AG39: 35.38684082 | AH39: 42500.02908 | AI39: 0.1442405283 | AK39: 32.15544891 | AL39: 35.48233414 | AM39: 0 | AN39: 0 | AO39: 0 | AP39: 0 | AQ39: L | AT39: 36.12301254 | AU39: 37.43000031 | AV39: 35338.69382 | AW39: 0 | AY39: 36.76749039 | AZ39: 36.81741714 | BA39: 0 | BB39: 0 | BC39: 0 | BD39: 0 | BE39: L | BH39: 34.465271 | BI39: 34.81000137 | BJ39: 27183.16243 | BK39: 0 | BM39: 32.2322197 | BN39: 36.03319931 | BO39: 0 | BP39: 0 | BQ39: 0 | BR39: 0 | BS39: L | BV39: 34.49000168 | BW39: 43.06999969 | BX39: 29912.41804 | BY39: 0 | CA39: 40.05015182 | CB39: 39.22776031 | CC39: 38.93999863 | CD39: 39.22776031 | CE39: 0 | CF39: 0 | CG39: S | CH39: RvL S | CJ39: 38.93999863 | CK39: 38.00999832 | CL39: 36560.49915 | CM39: 0.09515507519 | CO39: 35.70514679 | CP39: 36.2588768 | CQ39: 0 | CR39: 0 | CS39: 0 | CT39: 0 | CU39: S | CX39: 36.13000107 | CY39: 34.77999878 | CZ39: 19093.68981 | DA39: 0.2971392572 | DC39: 39.2755127 | DD39: 38.58548355 | DE39: 38.93999863 | DF39: 38.93999863 | DG39: 0 | DH39: 0 | DI39: S | DJ39: RvL S | DL39: 38.93999863 | DM39: 38.00999832 | DN39: 31485.68474 | DO39: 0.06598289311 | DQ39: 39.67945099 | DR39: 38.58548355 | DS39: 38.93999863 | DT39: 38.93999863 | DU39: 0 | DV39: 0 | DW39: S | DX39: RvL S | DZ39: 38.93999863 | EA39: 38.00999832 | EB39: 32157.10742 | EC39: 0.06598289311 | ED39: 28 | EE39: 28 | EF39: 28
B40: =AE542 -> H | C40: 2023-10-10 | D40: 38.00999832 | E40: 39.36999893 | F40: 37.84999847 | G40: 38.52000046 | H40: 108054800 | I40: 39.36999893 | J40: 33.63000107 | K40: 38.6099987 | L40: 38.71999868 | M40: 36.62680447 | O40: 35.95599976 | P40: 0 | Q40: 0 | U40: 0 | W40: 35.4352684 | X40: 36.7743721 | Y40: 0 | Z40: 0 | AA40: 0 | AB40: 0 | AC40: S | AF40: 34.32730484 | AG40: 35.38684082 | AH40: 43219.59698 | AI40: 0.1297516674 | AK40: 31.81695747 | AL40: 34.17543411 | AM40: 0 | AN40: 0 | AO40: 0 | AP40: 0 | AQ40: L | AT40: 36.12301254 | AU40: 37.43000031 | AV40: 34864.16636 | AW40: 0 | AY40: 35.10639572 | AZ40: 36.224823 | BA40: 0 | BB40: 0 | BC40: 0 | BD40: 0 | BE40: L | BH40: 34.465271 | BI40: 34.81000137 | BJ40: 26818.14732 | BK40: 0 | BM40: 31.1842823 | BN40: 34.40528107 | BO40: 0 | BP40: 0 | BQ40: 0 | BR40: 0 | BS40: L | BV40: 34.49000168 | BW40: 43.06999969 | BX40: 29510.75453 | BY40: 0 | CA40: 38.49938965 | CB40: 37.70883942 | CC40: 38.00999832 | CD40: 38.00999832 | CE40: 0 | CF40: 0 | CG40: L | CI40: RvS S | CJ40: 36.61000061 | CK40: 38.00999832 | CL40: 36069.56531 | CM40: 0.1073053256 | CO40: 35.70514679 | CP40: 35.67527008 | CQ40: 0 | CR40: 0 | CS40: 0 | CT40: 0 | CU40: S | CX40: 36.13000107 | CY40: 34.77999878 | CZ40: 19430.00441 | DA40: 0.2847591341 | DC40: 37.99858475 | DD40: 37.96443176 | DE40: 37.99858475 | DF40: 38.00999832 | DG40: 0 | DH40: 0 | DI40: L | DK40: RvS S | DL40: 36.61000061 | DM40: 38.00999832 | DN40: 31062.89543 | DO40: 0.07852485776 | DQ40: 39.04079056 | DR40: 37.96443176 | DS40: 38.00999832 | DT40: 38.00999832 | DU40: 0 | DV40: 0 | DW40: L | DY40: RvS S | DZ40: 36.61000061 | EA40: 38.00999832 | EB40: 31725.30226 | EC40: 0.07852485776 | ED40: 29 | EE40: 29 | EF40: 29
B41: =AE543 -> B | C41: 2023-10-09 | D41: 36.61000061 | E41: 38.09000015 | F41: 36.13999939 | G41: 37.90000153 | H41: 105483000 | I41: 38.09000015 | J41: 33.63000107 | K41: 37.11499977 | L41: 37.41333262 | M41: 36.18609464 | O41: 35.57749977 | P41: 0 | Q41: 0 | U41: 0 | W41: 33.73900604 | X41: 36.24070358 | Y41: 0 | Z41: 36.24070358 | AA41: 0 | AB41: 0 | AC41: S | AF41: 34.32730484 | AG41: 35.38684082 | AH41: 44482.22923 | AI41: 0.1043279245 | AK41: 31.67923546 | AL41: 32.3457756 | AM41: 0 | AN41: 0 | AO41: 0 | AP41: 0 | AQ41: L | AT41: 36.12301254 | AU41: 37.43000031 | AV41: 34031.50877 | AW41: 0.006458727177 | AY41: 33.4258728 | AZ41: 35.6991272 | BA41: 0 | BB41: 0 | BC41: 0 | BD41: 0 | BE41: L | BH41: 34.465271 | BI41: 34.81000137 | BJ41: 26177.65205 | BK41: 0.01620114408 | BM41: 30.85680199 | BN41: 32.75831985 | BO41: 0 | BP41: 0 | BQ41: 0 | BR41: 0 | BS41: L | BV41: 34.49000168 | BW41: 43.06999969 | BX41: 28805.95197 | BY41: 0 | CA41: 37.39466476 | CB41: 36.62680054 | CC41: 36.61000061 | CD41: 36.62680054 | CE41: 0 | CF41: 0 | CG41: S | CH41: RvL S | CJ41: 36.61000061 | CK41: 35.81399918 | CL41: 36974.22303 | CM41: 0.08491571993 | CO41: 35.70514679 | CP41: 35.15755463 | CQ41: 0 | CR41: 0 | CS41: 0 | CT41: 0 | CU41: S | CX41: 36.13000107 | CY41: 34.77999878 | CZ41: 20020.13866 | DA41: 0.2630356252 | DC41: 37.59954453 | DD41: 37.41349411 | DE41: 36.61000061 | DF41: 37.41349411 | DG41: 0 | DH41: 0 | DI41: S | DJ41: RvL S | DL41: 36.61000061 | DM41: 35.62045288 | DN41: 31841.98129 | DO41: 0.05541341752 | DQ41: 38.47423172 | DR41: 37.41349411 | DS41: 36.61000061 | DT41: 37.41349411 | DU41: 0 | DV41: 0 | DW41: S | DX41: RvL S | DZ41: 36.61000061 | EA41: 35.62045288 | EB41: 32521.00189 | EC41: 0.05541341752 | ED41: 30 | EE41: 30 | EF41: 30
B42: C | C42: 2023-10-06 | D42: 34.65000153 | E42: 37.68999863 | F42: 34.40999985 | G42: 37.34999847 | H42: 147151000 | I42: 37.68999863 | J42: 33.63000107 | K42: 36.04999924 | L42: 36.23666636 | M42: 35.97967128 | O42: 35.42349968 | P42: 0 | Q42: 0 | U42: 0 | W42: 33.82725143 | X42: 34.5038681 | Y42: 0 | Z42: 34.5038681 | AA42: 0 | AB42: 0 | AC42: S | AF42: 34.32730484 | AG42: 35.38684082 | AH42: 46382.96223 | AI42: 0.06605571508 | AK42: 31.68817902 | AL42: 33.50331497 | AM42: 0 | AN42: 0 | AO42: 0 | AP42: 0 | AQ42: L | AT42: 36.12301254 | AU42: 37.43000031 | AV42: 32778.0482 | AW42: 0.04305319116 | AY42: 33.51330185 | AZ42: 33.98825073 | BA42: 0 | BB42: 0 | BC42: 0 | BD42: 0 | BE42: L | BH42: 34.465271 | BI42: 34.81000137 | BJ42: 25213.4675 | BK42: 0.05243677273 | BM42: 30.29190063 | BN42: 32.84400177 | BO42: 0 | BP42: 0 | BQ42: 0 | BR42: 0 | BS42: L | BV42: 34.49000168 | BW42: 43.06999969 | BX42: 27744.96095 | BY42: 0 | CA42: 36.56482315 | CB42: 35.81399918 | CC42: 34.65000153 | CD42: 35.81399918 | CE42: 0 | CF42: 0 | CG42: L | CI42: RvS S | CJ42: 35.88999939 | CK42: 35.81399918 | CL42: 35612.37536 | CM42: 0.1186204329 | CO42: 35.70514679 | CP42: 33.47262955 | CQ42: 0 | CR42: 0 | CS42: 0 | CT42: 0 | CU42: S | CX42: 36.13000107 | CY42: 34.77999878 | CZ42: 20908.51105 | DA42: 0.2303336114 | DC42: 36.91120148 | DD42: 35.62045288 | DE42: 34.65000153 | DF42: 35.62045288 | DG42: 0 | DH42: 0 | DI42: L | DK42: RvS S | DL42: 35.88999939 | DM42: 35.62045288 | DN42: 30669.16617 | DO42: 0.09020476788 | DQ42: 36.63035583 | DR42: 35.62045288 | DS42: 34.65000153 | DT42: 35.62045288 | DU42: 0 | DV42: 0 | DW42: L | DY42: RvS S | DZ42: 35.88999939 | EA42: 35.62045288 | EB42: 31323.17684 | EC42: 0.09020476788 | ED42: 31 | EE42: 31 | EF42: 31
B43: S | C43: 2023-10-05 | D43: 35.88999939 | E43: 36 | F43: 34.5 | G43: 35.56000137 | H43: 109003100 | I43: 37 | J43: 33.63000107 | K43: 35.25 | L43: 35.05000051 | M43: 35.96404284 | O43: 35.43349972 | P43: 0 | Q43: 0 | U43: 0 | W43: 33.9645195 | X43: 34.87258148 | Y43: 0 | Z43: 34.87258148 | AA43: 0 | AB43: 0 | AC43: S | AF43: 34.32730484 | AG43: 35.38684082 | AH43: 49043.99153 | AI43: 0.01247454807 | AK43: 31.77090073 | AL43: 32.46712875 | AM43: 0 | AN43: 0 | AO43: 0 | AP43: 0 | AQ43: L | AT43: 36.12301254 | AU43: 37.43000031 | AV43: 31023.20134 | AW43: 0.09428550303 | AY43: 33.64929581 | AZ43: 34.35145187 | BA43: 0 | BB43: 0 | BC43: 0 | BD43: 0 | BE43: L | BH43: 34.465271 | BI43: 34.81000137 | BJ43: 23863.60756 | BK43: 0.1031667069 | BM43: 30.29190063 | BN43: 32.97727966 | BO43: 0 | BP43: 0 | BQ43: 0 | BR43: 0 | BS43: L | BV43: 34.49000168 | BW43: 43.06999969 | BX43: 26259.57179 | BY43: 0.05276107788 | CA43: 36.73597717 | CB43: 35.98163986 | CC43: 35.88999939 | CD43: 35.98163986 | CE43: 0 | CF43: 0 | CG43: S | CH43: RvL S | CJ43: 35.88999939 | CK43: 35.77843857 | CL43: 35238.13131 | CM43: 0.1278826892 | CO43: 35.70514679 | CP43: 33.83032227 | CQ43: 0 | CR43: 0 | CS43: 0 | CT43: 0 | CU43: S | CX43: 36.13000107 | CY43: 34.77999878 | CZ43: 22152.23385 | DA43: 0.1845507324 | DC43: 36.91120148 | DD43: 36.00109482 | DE43: 35.88999939 | DF43: 0 | DG43: 0 | DH43: 0 | DI43: S | DJ43: RvL S | DL43: 35.88999939 | DM43: 34.77999878 | DN43: 30686.07706 | DO43: 0.08970310539 | DQ43: 37.02179337 | DR43: 36.00109482 | DS43: 35.88999939 | DT43: 0 | DU43: 0 | DV43: 0 | DW43: S | DX43: RvL S | DZ43: 35.88999939 | EA43: 34.77999878 | EB43: 31340.44835 | EC43: 0.08970310539 | ED43: 32 | EE43: 32 | EF43: 32
B44: S | C44: 2023-10-04 | D44: 34.77999878 | E44: 36.18999863 | F44: 34.63999939 | G44: 35.93999863 | H44: 126379600 | I44: 37 | J44: 33.63000107 | K44: 35.41499901 | L44: 35.57333247 | M44: 36.12271903 | O44: 35.52599964 | P44: 0 | Q44: 0 | U44: 0 | W44: 33.3762207 | X44: 33.51416397 | Y44: 0 | Z44: 0 | AA44: 0 | AB44: 0 | AC44: S | AF44: 34.32730484 | AG44: 35.38684082 | AH44: 47360.48531 | AI44: 0.04637279361 | AK44: 32.07362366 | AL44: 33.33528519 | AM44: 0 | AN44: 0 | AO44: 0 | AP44: 0 | AQ44: L | AT44: 36.12301254 | AU44: 37.43000031 | AV44: 32133.40918 | AW44: 0.06187326461 | AY44: 33.06645584 | AZ44: 33.01333237 | BA44: 0 | BB44: 0 | BC44: 0 | BD44: 0 | BE44: L | BH44: 34.465271 | BI44: 34.81000137 | BJ44: 24717.59951 | BK44: 0.07107230276 | BM44: 32.66613007 | BN44: 32.40608215 | BO44: 0 | BP44: 0 | BQ44: 0 | BR44: 0 | BS44: L | BV44: 34.49000168 | BW44: 43.06999969 | BX44: 27199.30661 | BY44: 0.01886283234 | CA44: 36.52851868 | CB44: 35.77843857 | CC44: 34.77999878 | CD44: 35.77843857 | CE44: 0 | CF44: 0 | CG44: L | CI44: RvS S | CJ44: 35.70999908 | CK44: 35.77843857 | CL44: 36499.1762 | CM44: 0.09667277336 | CO44: 35.70514679 | CP44: 32.51250458 | CQ44: 0 | CR44: 0 | CS44: 0 | CT44: 0 | CU44: S | CX44: 36.13000107 | CY44: 34.77999878 | CZ44: 21365.3898 | DA44: 0.2135153711 | DC44: 39.80424118 | DD44: 34.59872055 | DE44: 34.77999878 | DF44: 34.77999878 | DG44: 0 | DH44: 0 | DI44: L | DK44: RvS S | DL44: 35.66999817 | DM44: 34.77999878 | DN44: 31784.22045 | DO44: 0.05712688342 | DQ44: 35.57965469 | DR44: 34.59872055 | DS44: 34.77999878 | DT44: 34.77999878 | DU44: 0 | DV44: 0 | DW44: L | DY44: RvS S | DZ44: 35.66999817 | EA44: 34.77999878 | EB44: 32462.00931 | EC44: 0.05712688342 | ED44: 33 | EE44: 33 | EF44: 33
B45: BCS | C45: 2023-10-03 | D45: 35.70999908 | E45: 36.38999939 | F45: 34.04000092 | G45: 34.54000092 | H45: 133269500 | I45: 39.90000153 | J45: 33.63000107 | K45: 35.21500015 | L45: 35.06999969 | M45: 36.27999014 | O45: 35.86449986 | P45: 0 | Q45: 0 | U45: 0 | W45: 34.78813934 | X45: 35.38684082 | Y45: 34.78813934 | Z45: 35.38684082 | AA45: 0 | AB45: 0 | AC45: L | AE45: RvS S | AF45: 34.32730484 | AG45: 35.38684082 | AH45: 48867.49834 | AI45: 0.01602832787 | AK45: 32.43134308 | AL45: 33.29794312 | AM45: 0 | AN45: 0 | AO45: 0 | AP45: 0 | AQ45: L | AT45: 36.12301254 | AU45: 37.43000031 | AV45: 31139.59184 | AW45: 0.09088750929 | AY45: 34.465271 | AZ45: 34.85802841 | BA45: 34.465271 | BB45: 34.77999878 | BC45: 0 | BD45: 0 | BE45: S | BF45: RvL S | BH45: 34.465271 | BI45: 34.81000137 | BJ45: 23953.13724 | BK45: 0.09980203956 | BM45: 32.66613007 | BN45: 33.77695847 | BO45: 0 | BP45: 0 | BQ45: 0 | BR45: 0 | BS45: L | BV45: 34.49000168 | BW45: 43.06999969 | BX45: 26358.09047 | BY45: 0.04920729622 | CA45: 37.53988647 | CB45: 36.76903915 | CC45: 35.70999908 | CD45: 0 | CE45: 0 | CF45: 0 | CG45: S | CH45: RvL S | CJ45: 35.70999908 | CK45: 36.69284058 | CL45: 35591.59845 | CM45: 0.1191346422 | CO45: 38.42564011 | CP45: 34.32921219 | CQ45: 34.77999878 | CR45: 34.77999878 | CS45: 0 | CT45: 0 | CU45: L | CW45: RvS O | CX45: 36.13000107 | CY45: 34.77999878 | CZ45: 22069.74374 | DA45: 0.187587291 | DC45: 39.80424118 | DD45: 36.5320015 | DE45: 35.70999908 | DF45: 0 | DG45: 0 | DH45: 0 | DI45: L | DL45: 35.66999817 | DM45: 36.58000183 | DN45: 32832.05253 | DO45: 0.02604313381 | DQ45: 37.56774902 | DR45: 36.5320015 | DS45: 35.70999908 | DT45: 0 | DU45: 0 | DV45: 0 | DW45: L | DZ45: 35.66999817 | EA45: 36.58000183 | EB45: 33532.18609 | EC45: 0.02604313381 | ED45: 34 | EE45: 34 | EF45: 34
B46: 1 | C46: 2023-10-02 | D46: 35.66999817 | E46: 36.90000153 | F46: 35.47999954 | G46: 36.47000122 | H46: 118231600 | I46: 39.90000153 | J46: 33.63000107 | K46: 36.19000053 | L46: 36.03000005 | M46: 36.51665458 | O46: 36.26449986 | P46: 0 | Q46: 0 | U46: 0 | W46: 34.54301453 | X46: 34.5620842 | Y46: 0 | Z46: 0 | AA46: 0 | AB46: 0 | AC46: L | AF46: 34.32730484 | AG46: 36.54999924 | AH46: 48482.34606 | AI46: 0.0237835627 | AK46: 32.75194931 | AL46: 34.14743042 | AM46: 0 | AN46: 0 | AO46: 0 | AP46: 0 | AQ46: L | AT46: 36.12301254 | AU46: 37.43000031 | AV46: 31972.24943 | AW46: 0.06657828391 | AY46: 34.22241974 | AZ46: 34.04559326 | BA46: 0 | BB46: 0 | BC46: 0 | BD46: 0 | BE46: S | BH46: 36.54999924 | BI46: 34.81000137 | BJ46: 22895.94643 | BK46: 0.1395329982 | BM46: 32.92811584 | BN46: 33.5389595 | BO46: 0 | BP46: 0 | BQ46: 0 | BR46: 0 | BS46: L | BV46: 34.49000168 | BW46: 43.06999969 | BX46: 27062.89303 | BY46: 0.0237835627 | CA46: 37.46208954 | CB46: 36.69284058 | CC46: 35.66999817 | CD46: 36.69284058 | CE46: 0 | CF46: 0 | CG46: L | CI46: RvS S | CJ46: 36.4610939 | CK46: 36.69284058 | CL46: 36543.30054 | CM46: 0.09558072686 | CO46: 38.42564011 | CP46: 33.52910614 | CQ46: 35.70999908 | CR46: 0 | CS46: 0 | CT46: 0 | CU46: L | CX46: 36.13000107 | CY46: 37.43000031 | CZ46: 22659.87798 | DA46: 0.1658637673 | DC46: 40.12347412 | DD46: 35.68055344 | DE46: 35.66999817 | DF46: 35.68055344 | DG46: 0 | DH46: 0 | DI46: S | DJ46: RvL S | DL46: 35.66999817 | DM46: 36.58000183 | DN46: 33709.96569 | DO46: 0 | DQ46: 36.69216156 | DR46: 35.68055344 | DS46: 35.66999817 | DT46: 35.68055344 | DU46: 0 | DV46: 0 | DW46: S | DX46: RvL S | DZ46: 35.66999817 | EA46: 36.58000183 | EB46: 34428.82049 | EC46: 0 | ED46: 35 | EE46: 35 | EF46: 35
B47: 0.0297 | C47: 2023-09-29 | D47: 36.58000183 | E47: 37 | F47: 35.22999954 | G47: 35.61999893 | H47: 143081300 | I47: 40.22000122 | J47: 33.63000107 | K47: 36.11499977 | L47: 35.9666659 | M47: 36.58924437 | O47: 36.62299995 | P47: 0 | Q47: 0 | U47: 0 | W47: 33.46446609 | X47: 34.48446274 | Y47: 0 | Z47: 0 | AA47: 0 | AB47: 0 | AC47: L | AF47: 34.32730484 | AG47: 36.54999924 | AH47: 48428.03807 | AI47: 0.02487708069 | AK47: 33.14499283 | AL47: 32.10306549 | AM47: 0 | AN47: 0 | AO47: 0 | AP47: 0 | AQ47: L | AT47: 36.12301254 | AU47: 37.43000031 | AV47: 31936.43539 | AW47: 0.06762386113 | AY47: 33.15388489 | AZ47: 33.96913147 | BA47: 0 | BB47: 0 | BC47: 0 | BD47: 0 | BE47: S | BH47: 36.54999924 | BI47: 34.81000137 | BJ47: 22922.95494 | BK47: 0.1385179758 | BM47: 34.04973221 | BN47: 32.49176025 | BO47: 0 | BP47: 0 | BQ47: 0 | BR47: 0 | BS47: L | BV47: 34.49000168 | BW47: 43.06999969 | BX47: 27032.57826 | BY47: 0.02487708069 | CA47: 36.4610939 | CB47: 35.71239853 | CC47: 36.4610939 | CD47: 36.58000183 | CE47: 0 | CF47: 0 | CG47: S | CH47: RvL S | CJ47: 36.4610939 | CK47: 35.00120163 | CL47: 34597.90103 | CM47: 0.1437279135 | CO47: 38.42564011 | CP47: 33.45380402 | CQ47: 35.66999817 | CR47: 0 | CS47: 0 | CT47: 0 | CU47: L | CX47: 36.13000107 | CY47: 37.43000031 | CZ47: 22634.49529 | DA47: 0.1667981297 | DC47: 41.49018478 | DD47: 35.60041809 | DE47: 36.58000183 | DF47: 36.58000183 | DG47: 0 | DH47: 0 | DI47: L | DK47: RvS S | DL47: 34.38999939 | DM47: 36.58000183 | DN47: 33672.20513 | DO47: 0 | DQ47: 36.60975647 | DR47: 35.60041809 | DS47: 36.58000183 | DT47: 36.58000183 | DU47: 0 | DV47: 0 | DW47: L | DY47: RvS S | DZ47: 34.38999939 | EA47: 36.58000183 | EB47: 34390.2547 | EC47: 0 | ED47: 36 | EE47: 36 | EF47: 36
B48: =AR542 -> H | C48: 2023-09-28 | D48: 34.38999939 | E48: 36.16999817 | F48: 34.13000107 | G48: 35.54000092 | H48: 134072900 | I48: 41.59000015 | J48: 33.63000107 | K48: 35.14999962 | L48: 35.62666702 | M48: 36.69463206 | O48: 37.0625 | P48: 0 | Q48: 0 | U48: 0 | W48: 32.97421646 | X48: 33.66941071 | Y48: 0 | Z48: 0 | AA48: 0 | AB48: 0 | AC48: L | AF48: 34.32730484 | AG48: 36.54999924 | AH48: 49663.52151 | AI48: 0 | AK48: 33.71466446 | AL48: 32.49513626 | AM48: 0 | AN48: 0 | AO48: 0 | AP48: 0 | AQ48: L | AT48: 36.12301254 | AU48: 37.43000031 | AV48: 32751.18938 | AW48: 0.04383732751 | AY48: 32.66818237 | AZ48: 33.16625977 | BA48: 0 | BB48: 0 | BC48: 0 | BD48: 0 | BE48: S | BH48: 36.54999924 | BI48: 34.81000137 | BJ48: 22308.52283 | BK48: 0.1616093367 | BM48: 34.58189011 | BN48: 32.01576233 | BO48: 35.54000092 | BP48: 0 | BQ48: 0 | BR48: 0 | BS48: L | BV48: 34.49000168 | BW48: 43.06999969 | BX48: 27722.22632 | BY48: 0 | CA48: 35.73498535 | CB48: 35.00120163 | CC48: 34.38999939 | CD48: 35.00120163 | CE48: 0 | CF48: 0 | CG48: L | CI48: RvS S | CJ48: 35.31000137 | CK48: 35.00120163 | CL48: 35239.8471 | CM48: 0.1278402209 | CO48: 38.42564011 | CP48: 32.66310883 | CQ48: 36.58000183 | CR48: 0 | CS48: 0 | CT48: 0 | CU48: L | CX48: 36.13000107 | CY48: 37.43000031 | CZ48: 23211.94062 | DA48: 0.1455417126 | DC48: 42.1386261 | DD48: 34.75899124 | DE48: 34.38999939 | DF48: 34.75899124 | DG48: 0 | DH48: 0 | DI48: S | DJ48: RvL S | DL48: 34.38999939 | DM48: 34.81000137 | DN48: 32854.87183 | DO48: 0 | DQ48: 35.7444725 | DR48: 34.75899124 | DS48: 34.38999939 | DT48: 34.75899124 | DU48: 0 | DV48: 0 | DW48: S | DX48: RvL S | DZ48: 34.38999939 | EA48: 34.81000137 | EB48: 33555.49201 | EC48: 0 | ED48: 37 | EE48: 37 | EF48: 37
B49: =AR543 -> B | C49: 2023-09-27 | D49: 34.81000137 | E49: 35.27000046 | F49: 33.63000107 | G49: 34.70000076 | H49: 128435800 | I49: 42.24000168 | J49: 33.63000107 | K49: 34.45000076 | L49: 34.43000031 | M49: 37.03788371 | O49: 37.69950008 | P49: 0 | Q49: 0 | U49: 0 | W49: 33.503685 | X49: 33.46564865 | Y49: 0 | Z49: 0 | AA49: 0 | AB49: 0 | AC49: L | AF49: 34.32730484 | AG49: 36.54999924 | AH49: 46690.22387 | AI49: 0.01206555497 | AK49: 34.28612137 | AL49: 32.96188736 | AM49: 34.28612137 | AN49: 0 | AO49: 0 | AP49: 0 | AQ49: L | AT49: 36.12301254 | AU49: 37.43000031 | AV49: 30790.41351 | AW49: 0.1010816842 | AY49: 33.19273758 | AZ49: 32.96554184 | BA49: 0 | BB49: 0 | BC49: 0 | BD49: 0 | BE49: S | BH49: 36.54999924 | BI49: 34.81000137 | BJ49: 23787.20679 | BK49: 0.1060379744 | BM49: 34.58189011 | BN49: 32.52983856 | BO49: 34.70000076 | BP49: 0 | BQ49: 0 | BR49: 0 | BS49: L | BV49: 34.49000168 | BW49: 43.06999969 | BX49: 26062.52866 | BY49: 0.01206555497 | CA49: 36.12397003 | CB49: 35.38219833 | CC49: 34.81000137 | CD49: 0 | CE49: 0 | CF49: 0 | CG49: L | CJ49: 35.31000137 | CK49: 36.75379944 | CL49: 36260.06302 | CM49: 0.1025906429 | CO49: 38.42564011 | CP49: 32.46543884 | CQ49: 34.38999939 | CR49: 0 | CS49: 0 | CT49: 0 | CU49: L | CX49: 36.13000107 | CY49: 37.43000031 | CZ49: 21822.26855 | DA49: 0.1966971308 | DC49: 42.1386261 | DD49: 34.54863358 | DE49: 34.81000137 | DF49: 34.81000137 | DG49: 0 | DH49: 0 | DI49: L | DK49: RvS S | DL49: 35.31000137 | DM49: 34.81000137 | DN49: 30887.88862 | DO49: 0.04219125584 | DQ49: 35.52815247 | DR49: 34.54863358 | DS49: 34.81000137 | DT49: 34.81000137 | DU49: 0 | DV49: 0 | DW49: L | DY49: RvS S | DZ49: 35.31000137 | EA49: 34.81000137 | EB49: 31546.56348 | EC49: 0.04219125584 | ED49: 38 | EE49: 38 | EF49: 38
B50: M | C50: 2023-09-26 | D50: 35.31000137 | E50: 35.47999954 | F50: 34.16999817 | G50: 34.49000168 | H50: 105339700 | I50: 42.24000168 | J50: 34.16999817 | K50: 34.82499886 | L50: 34.81999969 | M50: 37.61296881 | O50: 38.33850002 | P50: 0 | Q50: 0 | U50: 0 | W50: 34.32730484 | X50: 35.02782822 | Y50: 34.32730484 | Z50: 35.02782822 | AA50: 0 | AB50: 0 | AC50: S | AD50: RvL S | AF50: 34.32730484 | AG50: 36.54999924 | AH50: 47260.44739 | AI50: 0 | AK50: 34.84774017 | AL50: 32.96188736 | AM50: 34.84774017 | AN50: 0 | AO50: 0 | AP50: 0 | AQ50: L | AT50: 36.12301254 | AU50: 37.43000031 | AV50: 31166.45408 | AW50: 0.09010327607 | AY50: 34.00871277 | AZ50: 34.50437927 | BA50: 0 | BB50: 34.81000137 | BC50: 0 | BD50: 0 | BE50: L | BG50: RvS O | BH50: 36.54999924 | BI50: 34.81000137 | BJ50: 23503.62255 | BK50: 0.1166955307 | BM50: 34.58189011 | BN50: 33.32951736 | BO50: 34.49000168 | BP50: 0 | BQ50: 0 | BR50: 0 | BS50: S | BT50: RvL C | BV50: 34.49000168 | BW50: 43.06999969 | BX50: 26380.82799 | BY50: 0 | CA50: 36.90194702 | CB50: 36.14419937 | CC50: 35.31000137 | CD50: 0 | CE50: 0 | CF50: 0 | CG50: L | CJ50: 35.31000137 | CK50: 36.75379944 | CL50: 36702.90393 | CM50: 0.09163066745 | CO50: 38.42564011 | CP50: 33.98093033 | CQ50: 34.81000137 | CR50: 0 | CS50: 0 | CT50: 0 | CU50: L | CX50: 36.13000107 | CY50: 37.43000031 | CZ50: 22088.78197 | DA50: 0.1868864745 | DC50: 42.1386261 | DD50: 36.16136932 | DE50: 35.31000137 | DF50: 0 | DG50: 0 | DH50: 0 | DI50: L | DL50: 35.31000137 | DM50: 36.13000107 | DN50: 30519.65208 | DO50: 0.05360997841 | DQ50: 37.18660736 | DR50: 36.16136932 | DS50: 35.31000137 | DT50: 0 | DU50: 0 | DV50: 0 | DW50: L | DZ50: 35.31000137 | EA50: 36.13000107 | EB50: 31170.47441 | EC50: 0.05360997841 | ED50: 39 | EE50: 39 | EF50: 39
B51: S | C51: 2023-09-25 | D51: 35.31000137 | E51: 36.13999939 | F51: 35.00999832 | G51: 36.09999847 | H51: 81269200 | I51: 42.24000168 | J51: 35.00999832 | K51: 35.57499886 | L51: 35.48666636 | M51: 38.23251769 | O51: 38.96650028 | P51: 0 | Q51: 0 | U51: 0 | W51: 34.82736206 | X51: 34.57178879 | Y51: 0 | Z51: 0 | AA51: 0 | AB51: 0 | AC51: S | AF51: 37.84729767 | AG51: 36.54999924 | AH51: 45423.8922 | AI51: 0.02379266545 | AK51: 35.37448502 | AL51: 33.72735596 | AM51: 35.31000137 | AN51: 0 | AO51: 0 | AP51: 0 | AQ51: L | AT51: 36.12301254 | AU51: 37.43000031 | AV51: 31614.1193 | AW51: 0.07703380287 | AY51: 34.5041275 | AZ51: 34.05515671 | BA51: 0 | BB51: 0 | BC51: 0 | BD51: 0 | BE51: L | BH51: 36.54999924 | BI51: 39.43000031 | BJ51: 23841.22125 | BK51: 0.1040080264 | BM51: 34.58189011 | BN51: 33.81504059 | BO51: 0 | BP51: 0 | BQ51: 0 | BR51: 0 | BS51: S | BV51: 21.77000046 | BW51: 43.06999969 | BX51: 25720.70282 | BY51: 0 | CA51: 37.49839401 | CB51: 36.72840118 | CC51: 35.31000137 | CD51: 0 | CE51: 0 | CF51: 0 | CG51: S | CH51: RvL S | CJ51: 35.31000137 | CK51: 36.75379944 | CL51: 37230.09299 | CM51: 0.0785831362 | CO51: 38.42564011 | CP51: 33.53852081 | CQ51: 35.31000137 | CR51: 0 | CS51: 0 | CT51: 0 | CU51: L | CX51: 36.13000107 | CY51: 37.43000031 | CZ51: 22406.05834 | DA51: 0.1752071679 | DC51: 42.1386261 | DD51: 35.69057083 | DE51: 35.31000137 | DF51: 35.69057083 | DG51: 0 | DH51: 0 | DI51: S | DJ51: RvL S | DL51: 35.31000137 | DM51: 36.13000107 | DN51: 30958.02684 | DO51: 0.04001632705 | DQ51: 36.70246506 | DR51: 35.69057083 | DS51: 35.31000137 | DT51: 35.69057083 | DU51: 0 | DV51: 0 | DW51: S | DX51: RvL S | DZ51: 35.31000137 | EA51: 36.13000107 | EB51: 31618.19738 | EC51: 0.04001632705 | ED51: 40 | EE51: 40 | EF51: 40
B52: B | C52: 2023-09-22 | D52: 36.13000107 | E52: 36.77999878 | F52: 35.52000046 | G52: 35.63000107 | H52: 94090600 | I52: 42.24000168 | J52: 35.52000046 | K52: 36.14999962 | L52: 35.8700002 | M52: 38.82307743 | O52: 39.55550041 | P52: 0 | Q52: 0 | U52: 0 | W52: 34.87638474 | X52: 34.54267883 | Y52: 0 | Z52: 0 | AA52: 0 | AB52: 0 | AC52: S | AF52: 37.84729767 | AG52: 36.54999924 | AH52: 45423.8922 | AI52: 0.02379266545 | AK52: 35.78183746 | AL52: 34.11942291 | AM52: 35.78183746 | AN52: 0 | AO52: 0 | AP52: 0 | AQ52: L | AT52: 36.12301254 | AU52: 37.43000031 | AV52: 31614.1193 | AW52: 0.07703380287 | AY52: 34.55269623 | AZ52: 34.02647781 | BA52: 0 | BB52: 0 | BC52: 0 | BD52: 0 | BE52: L | BH52: 36.54999924 | BI52: 39.43000031 | BJ52: 23841.22125 | BK52: 0.1040080264 | BM52: 34.58189011 | BN52: 33.86264038 | BO52: 0 | BP52: 0 | BQ52: 0 | BR52: 0 | BS52: S | BV52: 21.77000046 | BW52: 43.06999969 | BX52: 25720.70282 | BY52: 0 | CA52: 37.52432632 | CB52: 36.75379944 | CC52: 36.13000107 | CD52: 36.75379944 | CE52: 0 | CF52: 0 | CG52: L | CI52: RvS S | CJ52: 36.54999924 | CK52: 36.75379944 | CL52: 37230.09299 | CM52: 0.0785831362 | CO52: 38.42564011 | CP52: 33.51027679 | CQ52: 35.31000137 | CR52: 0 | CS52: 0 | CT52: 0 | CU52: L | CX52: 36.13000107 | CY52: 37.43000031 | CZ52: 22406.05834 | DA52: 0.1752071679 | DC52: 42.1386261 | DD52: 35.66051865 | DE52: 36.13000107 | DF52: 36.13000107 | DG52: 0 | DH52: 0 | DI52: L | DK52: RvS S | DL52: 36.54999924 | DM52: 36.13000107 | DN52: 30958.02684 | DO52: 0.04001632705 | DQ52: 36.67155838 | DR52: 35.66051865 | DS52: 36.13000107 | DT52: 36.13000107 | DU52: 0 | DV52: 0 | DW52: L | DY52: RvS S | DZ52: 36.54999924 | EA52: 36.13000107 | EB52: 31618.19738 | EC52: 0.04001632705 | ED52: 41 | EE52: 41 | EF52: 41
B53: BMS | C53: 2023-09-21 | D53: 36.54999924 | E53: 36.77999878 | F53: 35.56999969 | G53: 35.59999847 | H53: 107851700 | I53: 42.24000168 | J53: 35.56999969 | K53: 36.17499924 | L53: 36.15999985 | M53: 39.41709473 | O53: 40.01100044 | P53: 0 | Q53: 0 | U53: 0 | W53: 36.96485138 | X53: 36.62882614 | Y53: 36.54999924 | Z53: 36.54999924 | AA53: 0 | AB53: 0 | AC53: L | AE53: RvS S | AF53: 37.84729767 | AG53: 36.54999924 | AH53: 44438.24571 | AI53: 0.04497524723 | AK53: 36.12301254 | AL53: 37.12529373 | AM53: 36.12301254 | AN53: 36.54999924 | AO53: 0 | AP53: 0 | AQ53: S | AR53: RvL S | AT53: 36.12301254 | AU53: 37.43000031 | AV53: 32348.28999 | AW53: 0.05559987202 | AY53: 36.6217804 | AZ53: 36.08145142 | BA53: 36.54999924 | BB53: 36.13000107 | BC53: 0 | BD53: 0 | BE53: S | BF53: RvL S | BH53: 36.54999924 | BI53: 39.43000031 | BJ53: 24394.88291 | BK53: 0.08320051432 | BM53: 34.58189011 | BN53: 35.89039993 | BO53: 0 | BP53: 35.59999847 | BQ53: 0 | BR53: 0 | BS53: S | BV53: 21.77000046 | BW53: 43.06999969 | BX53: 25303.09005 | BY53: 0.01457034238 | CA53: 40.24724197 | CB53: 39.42079926 | CC53: 36.54999924 | CD53: 0 | CE53: 0 | CF53: 0 | CG53: S | CH53: RvL S | CJ53: 36.54999924 | CK53: 39.84244156 | CL53: 35214.86696 | CM53: 0.1284584701 | CO53: 38.42564011 | CP53: 35.53407669 | CQ53: 36.13000107 | CR53: 0 | CS53: 0 | CT53: 0 | CU53: S | CV53: RvL O | CX53: 36.13000107 | CY53: 37.43000031 | CZ53: 22926.3914 | DA53: 0.1560530961 | DC53: 42.1386261 | DD53: 37.81417465 | DE53: 36.54999924 | DF53: 0 | DG53: 0 | DH53: 0 | DI53: S | DJ53: RvL S | DL53: 36.54999924 | DM53: 39.77000046 | DN53: 30271.00189 | DO53: 0.06132042035 | DQ53: 38.88627625 | DR53: 37.81417465 | DS53: 36.54999924 | DT53: 0 | DU53: 0 | DV53: 0 | DW53: S | DX53: RvL S | DZ53: 36.54999924 | EA53: 39.77000046 | EB53: 30916.52182 | EC53: 0.06132042035 | ED53: 42 | EE53: 42 | EF53: 42
B54: 1 | C54: 2023-09-20 | D54: 39.77000046 | E54: 39.90000153 | F54: 37.70000076 | G54: 37.75 | H54: 98019200 | I54: 42.24000168 | J54: 37.70000076 | K54: 38.80000114 | L54: 38.05000051 | M54: 40.13756039 | O54: 40.3925005 | P54: 0 | Q54: 0 | U54: 0.139 | W54: 37.84729767 | X54: 38.42387772 | Y54: 37.84729767 | Z54: 38.42387772 | AA54: 0.1389999986 | AB54: -160.8120422 | AC54: S | AD54: RvL S | AF54: 37.84729767 | AG54: 38.65675354 | AH54: 43933.40441 | AI54: 0.05582481995 | AK54: 36.35642624 | AL54: 36.78923416 | AM54: 0 | AN54: 0 | AO54: 0.1389999986 | AP54: -116.466011 | AQ54: S | AT54: 35.52999878 | AU54: 37.43000031 | AV54: 31982.90777 | AW54: 0.06626711041 | AY54: 37.49604034 | AZ54: 37.84967804 | BA54: 0 | BB54: 36.54999924 | BC54: 0.1389999986 | BD54: -81.34278107 | BE54: S | BH54: 39.41941452 | BI54: 39.43000031 | BJ54: 24678.46459 | BK54: 0.07254305482 | BM54: 34.58189011 | BN54: 36.74720001 | BO54: 0 | BP54: 0 | BQ54: 0.1389999986 | BR54: -70.52228546 | BS54: S | BV54: 21.77000046 | BW54: 43.06999969 | BX54: 25089.19168 | BY54: 0.02290062048 | CA54: 40.67771912 | CB54: 39.84244156 | CC54: 39.77000046 | CD54: 39.84244156 | CE54: 0.1389999986 | CF54: 114.4285507 | CG54: L | CI54: RvS S | CJ54: 41.45000076 | CK54: 39.84244156 | CL54: 35624.22703 | CM54: 0.118327111 | CO54: 38.42564011 | CP54: 37.27547836 | CQ54: 0 | CR54: 0 | CS54: 0.1389999986 | CT54: -82.57460785 | CU54: S | CX54: 41.29000092 | CY54: 37.43000031 | CZ54: 22675.93762 | DA54: 0.1652725935 | DC54: 42.1386261 | DD54: 39.66732025 | DE54: 39.77000046 | DF54: 39.77000046 | DG54: 0.1389999986 | DH54: 98.69419098 | DI54: L | DK54: RvS S | DL54: 39.40999985 | DM54: 39.77000046 | DN54: 30622.89131 | DO54: 0.05040861294 | DQ54: 40.79195786 | DR54: 39.66732025 | DS54: 39.77000046 | DT54: 39.77000046 | DU54: 0.1389999986 | DV54: 100.7988129 | DW54: L | DY54: RvS S | DZ54: 39.40999985 | EA54: 39.77000046 | EB54: 31275.91519 | EC54: 0.05040861294 | ED54: 43 | EE54: 43 | EF54: 43
B55: =AR549 -> 0.1057 | C55: 2023-09-19 | D55: 39.40999985 | E55: 39.83000183 | F55: 38.59999847 | G55: 39.59999847 | H55: 74370700 | I55: 42.24000168 | J55: 38.59999847 | K55: 39.21500015 | L55: 39.40000025 | M55: 40.43479578 | O55: 40.65350056 | P55: 0 | Q55: 0 | U55: 0 | W55: 38.56306839 | X55: 38.65675354 | Y55: 0 | Z55: 38.65675354 | AA55: 0 | AB55: 0 | AC55: L | AE55: RvS S | AF55: 40.00439835 | AG55: 38.65675354 | AH55: 43434.87425 | AI55: 0.06653875858 | AK55: 36.62695312 | AL55: 36.8079071 | AM55: 0 | AN55: 0 | AO55: 0 | AP55: 0 | AQ55: S | AT55: 35.52999878 | AU55: 37.43000031 | AV55: 29401.3832 | AW55: 0.1416340768 | AY55: 38.20516205 | AZ55: 38.07907104 | BA55: 0 | BB55: 0 | BC55: 0 | BD55: 0 | BE55: S | BH55: 39.41941452 | BI55: 39.43000031 | BJ55: 22875.46307 | BK55: 0.1403027922 | BM55: 35.05673218 | BN55: 37.44216156 | BO55: 0 | BP55: 0 | BQ55: 0 | BR55: 0 | BS55: S | BV55: 21.77000046 | BW55: 43.06999969 | BX55: 23526.03158 | BY55: 0.08377794176 | CA55: 41.25860977 | CB55: 40.41139984 | CC55: 39.40999985 | CD55: 0 | CE55: 0 | CF55: 0 | CG55: L | CJ55: 41.45000076 | CK55: 41.5 | CL55: 32739.73793 | CM55: 0.189716056 | CO55: 38.42564011 | CP55: 37.50139236 | CQ55: 0 | CR55: 0 | CS55: 0 | CT55: 0 | CU55: S | CX55: 41.29000092 | CY55: 37.43000031 | CZ55: 20845.63218 | DA55: 0.2326482534 | DC55: 42.71723175 | DD55: 39.90772629 | DE55: 39.40999985 | DF55: 0 | DG55: 0 | DH55: 0 | DI55: S | DJ55: RvL S | DL55: 39.40999985 | DM55: 39.81757355 | DN55: 28237.89919 | DO55: 0.1243653148 | DQ55: 41.03918457 | DR55: 39.90772629 | DS55: 39.40999985 | DT55: 0 | DU55: 0 | DV55: 0 | DW55: S | DX55: RvL S | DZ55: 39.40999985 | EA55: 39.81757355 | EB55: 28840.06383 | EC55: 0.1243653148 | ED55: 44 | EE55: 44 | EF55: 44
B56: =AS542 -> H | C56: 2023-09-18 | D56: 39.43000031 | E56: 40.22000122 | F56: 39.33000183 | G56: 39.84000015 | H56: 62399100 | I56: 42.81999969 | J56: 39.33000183 | K56: 39.77500153 | L56: 39.6533343 | M56: 40.70586148 | O56: 40.95600052 | P56: 0 | Q56: 0 | U56: 0 | W56: 38.66111374 | X56: 38.56942368 | Y56: 0 | Z56: 0 | AA56: 0 | AB56: 0 | AC56: L | AF56: 40.00439835 | AG56: 40.63616562 | AH56: 45594.26299 | AI56: 0.02013121732 | AK56: 36.87556839 | AL56: 38.69357681 | AM56: 0 | AN56: 0 | AO56: 0 | AP56: 0 | AQ56: S | AT56: 35.52999878 | AU56: 37.43000031 | AV56: 29703.0223 | AW56: 0.1328277886 | AY56: 38.30230331 | AZ56: 37.99304962 | BA56: 0 | BB56: 0 | BC56: 0 | BD56: 0 | BE56: S | BH56: 39.41941452 | BI56: 39.43000031 | BJ56: 23086.13538 | BK56: 0.132385388 | BM56: 35.4988327 | BN56: 37.53736115 | BO56: 0 | BP56: 0 | BQ56: 0 | BR56: 0 | BS56: S | BV56: 21.77000046 | BW56: 43.06999969 | BX56: 23708.67954 | BY56: 0.07666470855 | CA56: 42.0210228 | CB56: 41.15816116 | CC56: 39.43000031 | CD56: 0 | CE56: 0 | CF56: 0 | CG56: L | CJ56: 41.45000076 | CK56: 41.5 | CL56: 32443.37571 | CM56: 0.197050795 | CO56: 38.42564011 | CP56: 37.41667557 | CQ56: 0 | CR56: 0 | CS56: 0 | CT56: 0 | CU56: S | CX56: 41.29000092 | CY56: 37.43000031 | CZ56: 21059.49482 | DA56: 0.2247757167 | DC56: 43.25593567 | DD56: 39.81757355 | DE56: 39.43000031 | DF56: 39.81757355 | DG56: 0 | DH56: 0 | DI56: L | DK56: RvS S | DL56: 41.5 | DM56: 39.81757355 | DN56: 27982.28791 | DO56: 0.132291615 | DQ56: 40.94647598 | DR56: 39.81757355 | DS56: 39.43000031 | DT56: 39.81757355 | DU56: 0 | DV56: 0 | DW56: L | DY56: RvS S | DZ56: 41.5 | EA56: 39.81757355 | EB56: 28579.00171 | EC56: 0.132291615 | ED56: 45 | EE56: 45 | EF56: 45
B57: =AS543 -> B | C57: 2023-09-15 | D57: 41.45000076 | E57: 41.59000015 | F57: 39.43000031 | G57: 39.75 | H57: 89663700 | I57: 43.36000061 | J57: 39.38000107 | K57: 40.51000023 | L57: 40.15000025 | M57: 40.91271924 | O57: 41.2340004 | P57: 0 | Q57: 0 | U57: 0 | W57: 40.00439835 | X57: 40.65557098 | Y57: 40.00439835 | Z57: 40.65557098 | AA57: 0 | AB57: 0 | AC57: S | AD57: RvL S | AF57: 40.00439835 | AG57: 40.63616562 | AH57: 45617.40194 | AI57: 0.01963393763 | AK57: 37.05353165 | AL57: 38.74024963 | AM57: 0 | AN57: 0 | AO57: 0 | AP57: 0 | AQ57: S | AT57: 35.52999878 | AU57: 37.43000031 | AV57: 29686.26421 | AW57: 0.1333170384 | AY57: 39.63311768 | AZ57: 40.04802322 | BA57: 39.63311768 | BB57: 39.43000031 | BC57: 0 | BD57: 0 | BE57: L | BG57: RvS O | BH57: 39.41941452 | BI57: 39.43000031 | BJ57: 23074.43111 | BK57: 0.1328252405 | BM57: 35.4988327 | BN57: 38.84159851 | BO57: 0 | BP57: 0 | BQ57: 0 | BR57: 0 | BS57: S | BV57: 21.77000046 | BW57: 43.06999969 | BX57: 23698.53222 | BY57: 0.07705990225 | CA57: 43.06869507 | CB57: 42.18432236 | CC57: 41.45000076 | CD57: 0 | CE57: 0 | CF57: 0 | CG57: S | CH57: RvL S | CJ57: 41.45000076 | CK57: 41.5 | CL57: 32459.84062 | CM57: 0.1966432929 | CO57: 38.42564011 | CP57: 39.44047165 | CQ57: 0 | CR57: 39.43000031 | CS57: 0 | CT57: 0 | CU57: S | CX57: 41.29000092 | CY57: 37.43000031 | CZ57: 21047.61331 | DA57: 0.2252130955 | DC57: 43.25593567 | DD57: 41.97123337 | DE57: 41.45000076 | DF57: 0 | DG57: 0 | DH57: 0 | DI57: L | DL57: 41.5 | DM57: 40.60891724 | DN57: 27429.14859 | DO57: 0.1494440287 | DQ57: 43.16119003 | DR57: 41.97123337 | DS57: 41.45000076 | DT57: 0 | DU57: 0 | DV57: 0 | DW57: L | DZ57: 41.5 | EA57: 40.60891724 | EB57: 28014.06687 | EC57: 0.1494440287 | ED57: 46 | EE57: 46 | EF57: 46
B58: Y | C58: 2023-09-14 | D58: 41.5 | E58: 42.24000168 | F58: 40.79999924 | G58: 41.90000153 | H58: 76189900 | I58: 43.36000061 | J58: 39.38000107 | K58: 41.52000046 | L58: 41.49666723 | M58: 41.00221236 | O58: 41.43300037 | P58: 0 | Q58: 0 | U58: 0 | W58: 39.40629196 | X58: 39.72407913 | Y58: 0 | Z58: 0 | AA58: 0 | AB58: 0 | AC58: S | AF58: 39.74000168 | AG58: 40.63616562 | AH58: 44660.69584 | AI58: 0.04019455984 | AK58: 37.06784058 | AL58: 37.88143158 | AM58: 0 | AN58: 0 | AO58: 0 | AP58: 0 | AQ58: S | AT58: 35.52999878 | AU58: 37.43000031 | AV58: 27993.73622 | AW58: 0.1827299595 | AY58: 39.04056549 | AZ58: 39.1304512 | BA58: 0 | BB58: 0 | BC58: 0 | BD58: 0 | BE58: L | BH58: 39.41941452 | BI58: 37.43000031 | BJ58: 24256.53512 | BK58: 0.08839984983 | BM58: 35.4988327 | BN58: 38.26087952 | BO58: 0 | BP58: 0 | BQ58: 0 | BR58: 0 | BS58: S | BV58: 21.77000046 | BW58: 43.06999969 | BX58: 22673.67572 | BY58: 0.116972968 | CA58: 42.36333084 | CB58: 41.49343872 | CC58: 41.5 | CD58: 41.5 | CE58: 0 | CF58: 0 | CG58: L | CI58: RvS S | CJ58: 41.49000168 | CK58: 41.5 | CL58: 34122.75953 | CM58: 0.155487299 | CO58: 38.42564011 | CP58: 38.53681946 | CQ58: 0 | CR58: 0 | CS58: 0 | CT58: 0 | CU58: S | CX58: 41.29000092 | CY58: 37.43000031 | CZ58: 19847.608 | DA58: 0.2693866789 | DC58: 43.25593567 | DD58: 41.00959778 | DE58: 41.5 | DF58: 41.5 | DG58: 0 | DH58: 0 | DI58: S | DJ58: RvL S | DL58: 41.5 | DM58: 40.60891724 | DN58: 28834.34495 | DO58: 0.1058700085 | DQ58: 42.1722908 | DR58: 41.00959778 | DS58: 41.5 | DT58: 41.5 | DU58: 0 | DV58: 0 | DW58: S | DX58: RvL S | DZ58: 41.5 | EA58: 40.60891724 | EB58: 29449.22861 | EC58: 0.1058700085 | ED58: 47 | EE58: 47 | EF58: 47
B59: S | C59: 2023-09-13 | D59: 40.58000183 | E59: 41.49000168 | F59: 40.18999863 | G59: 40.93999863 | H59: 85424700 | I59: 43.36000061 | J59: 39.38000107 | K59: 40.84000015 | L59: 41.0600001 | M59: 40.88714833 | O59: 41.44900036 | P59: 0 | Q59: 0 | U59: 0 | W59: 39.61220169 | X59: 39.3359642 | Y59: 0 | Z59: 0 | AA59: 0 | AB59: 0 | AC59: S | AF59: 39.74000168 | AG59: 40.63616562 | AH59: 44604.62175 | AI59: 0.04139965028 | AK59: 37.00210953 | AL59: 38.59088898 | AM59: 0 | AN59: 0 | AO59: 0 | AP59: 0 | AQ59: S | AT59: 35.52999878 | AU59: 37.43000031 | AV59: 27951.84261 | AW59: 0.1839530468 | AY59: 39.24456024 | AZ59: 38.74813461 | BA59: 0 | BB59: 0 | BC59: 0 | BD59: 0 | BE59: L | BH59: 39.41941452 | BI59: 37.43000031 | BJ59: 24285.79467 | BK59: 0.08730022609 | BM59: 35.4988327 | BN59: 38.46080017 | BO59: 0 | BP59: 0 | BQ59: 0 | BR59: 0 | BS59: S | BV59: 21.77000046 | BW59: 43.06999969 | BX59: 22648.30838 | BY59: 0.1179609001 | CA59: 42.63821793 | CB59: 41.76268005 | CC59: 40.58000183 | CD59: 0 | CE59: 0 | CF59: 0 | CG59: L | CJ59: 41.49000168 | CK59: 40.62984085 | CL59: 34081.69787 | CM59: 0.1565035433 | CO59: 38.42564011 | CP59: 38.16030121 | CQ59: 0 | CR59: 0 | CS59: 0 | CT59: 0 | CU59: S | CX59: 41.29000092 | CY59: 37.43000031 | CZ59: 19817.90536 | DA59: 0.2704800665 | DC59: 43.25593567 | DD59: 40.60891724 | DE59: 40.58000183 | DF59: 40.60891724 | DG59: 0 | DH59: 0 | DI59: L | DK59: RvS S | DL59: 41.49000168 | DM59: 40.60891724 | DN59: 28869.1265 | DO59: 0.104791455 | DQ59: 41.76025391 | DR59: 40.60891724 | DS59: 40.58000183 | DT59: 40.60891724 | DU59: 0 | DV59: 0 | DW59: L | DY59: RvS S | DZ59: 41.49000168 | EA59: 40.60891724 | EB59: 29484.75186 | EC59: 0.104791455 | ED59: 48 | EE59: 48 | EF59: 48
B60: S | C60: 2023-09-12 | D60: 41.34000015 | E60: 41.81000137 | F60: 40.40000153 | G60: 40.54000092 | H60: 77762100 | I60: 43.36000061 | J60: 38.68999863 | K60: 41.10500145 | L60: 40.93000158 | M60: 40.89762571 | O60: 41.3755003 | P60: 0 | Q60: 0 | U60: 0 | W60: 40.04362106 | X60: 40.63616562 | Y60: 0 | Z60: 40.63616562 | AA60: 0 | AB60: 0 | AC60: L | AE60: RvS S | AF60: 39.74000168 | AG60: 40.63616562 | AH60: 45636.39862 | AI60: 0.01922567934 | AK60: 36.78032303 | AL60: 38.73091507 | AM60: 0 | AN60: 0 | AO60: 0 | AP60: 0 | AQ60: S | AT60: 35.52999878 | AU60: 37.43000031 | AV60: 28722.69524 | AW60: 0.1614481956 | AY60: 39.671978 | AZ60: 40.02890396 | BA60: 0 | BB60: 0 | BC60: 0 | BD60: 0 | BE60: L | BH60: 39.41941452 | BI60: 37.43000031 | BJ60: 23747.41186 | BK60: 0.1075335369 | BM60: 35.4988327 | BN60: 38.87968063 | BO60: 0 | BP60: 0 | BQ60: 0 | BR60: 0 | BS60: S | BV60: 21.77000046 | BW60: 43.06999969 | BX60: 23115.07367 | BY60: 0.09978271276 | CA60: 43.01164627 | CB60: 42.12844086 | CC60: 41.34000015 | CD60: 0 | CE60: 0 | CF60: 0 | CG60: L | CJ60: 41.49000168 | CK60: 40.62984085 | CL60: 33326.1533 | CM60: 0.1752027124 | CO60: 38.42564011 | CP60: 39.42164612 | CQ60: 0 | CR60: 0 | CS60: 0 | CT60: 0 | CU60: S | CX60: 41.29000092 | CY60: 37.43000031 | CZ60: 20364.44122 | DA60: 0.2503614426 | DC60: 43.25593567 | DD60: 41.95119858 | DE60: 41.34000015 | DF60: 0 | DG60: 0 | DH60: 0 | DI60: L | DL60: 41.49000168 | DM60: 40.44864655 | DN60: 29495.79509 | DO60: 0.08535896242 | DQ60: 43.14059067 | DR60: 41.95119858 | DS60: 41.34000015 | DT60: 0 | DU60: 0 | DV60: 0 | DW60: L | DZ60: 41.49000168 | EA60: 40.44864655 | EB60: 30124.78397 | EC60: 0.08535896242 | ED60: 49 | EE60: 49 | EF60: 49
B61: BYS | C61: 2023-09-11 | D61: 41.49000168 | E61: 42.09000015 | F61: 40.84000015 | G61: 41.88000107 | H61: 70856400 | I61: 43.36000061 | J61: 38.08000183 | K61: 41.46500015 | L61: 41.42333349 | M61: 40.85154221 | O61: 41.12750015 | P61: 0 | Q61: 0 | U61: 0 | W61: 39.38668442 | X61: 39.29714966 | Y61: 0 | Z61: 0 | AA61: 0 | AB61: 0 | AC61: L | AF61: 39.74000168 | AG61: 41.14072037 | AH61: 46362.76191 | AI61: 0.003615365596 | AK61: 36.42171097 | AL61: 37.6293869 | AM61: 0 | AN61: 0 | AO61: 0 | AP61: 0 | AQ61: S | AT61: 35.52999878 | AU61: 37.43000031 | AV61: 28085.90408 | AW61: 0.1800391525 | AY61: 39.02113724 | AZ61: 38.7098999 | BA61: 0 | BB61: 0 | BC61: 0 | BD61: 0 | BE61: L | BH61: 39.41941452 | BI61: 37.43000031 | BJ61: 24192.16278 | BK61: 0.09081906825 | BM61: 35.4988327 | BN61: 38.24183655 | BO61: 0 | BP61: 0 | BQ61: 0 | BR61: 0 | BS61: S | BV61: 21.77000046 | BW61: 43.06999969 | BX61: 22729.48504 | BY61: 0.1147994697 | CA61: 42.22329712 | CB61: 41.35628128 | CC61: 41.49000168 | CD61: 41.49000168 | CE61: 0 | CF61: 0 | CG61: S | CH61: RvL S | CJ61: 41.49000168 | CK61: 40.62984085 | CL61: 33950.29867 | CM61: 0.1597555876 | CO61: 38.42564011 | CP61: 38.12265015 | CQ61: 0 | CR61: 0 | CS61: 0 | CT61: 0 | CU61: S | CX61: 41.29000092 | CY61: 37.43000031 | CZ61: 19912.95517 | DA61: 0.2669811547 | DC61: 43.25593567 | DD61: 40.56885147 | DE61: 41.49000168 | DF61: 41.49000168 | DG61: 0 | DH61: 0 | DI61: S | DJ61: RvL S | DL61: 41.49000168 | DM61: 40.44864655 | DN61: 30048.204 | DO61: 0.06822920591 | DQ61: 41.71905136 | DR61: 40.56885147 | DS61: 41.49000168 | DT61: 41.49000168 | DU61: 0 | DV61: 0 | DW61: S | DX61: RvL S | DZ61: 41.49000168 | EA61: 40.44864655 | EB61: 30688.97284 | EC61: 0.06822920591 | ED61: 50 | EE61: 50 | EF61: 50
B62: 1 | C62: 2023-09-08 | D62: 40.31000137 | E62: 41.24000168 | F62: 40.16999817 | G62: 40.5 | H62: 74770800 | I62: 43.36000061 | J62: 36.34999847 | K62: 40.70499992 | L62: 40.96666718 | M62: 40.71521822 | O62: 40.72650013 | P62: 0 | Q62: 0 | U62: 0 | W62: 38.61209106 | X62: 39.18071365 | Y62: 0 | Z62: 0 | AA62: 0 | AB62: 0 | AC62: L | AF62: 39.74000168 | AG62: 41.14072037 | AH62: 46530.98845 | AI62: 0 | AK62: 36.26967621 | AL62: 37.09729004 | AM62: 0 | AN62: 0 | AO62: 0 | AP62: 0 | AQ62: S | AT62: 35.52999878 | AU62: 37.43000031 | AV62: 27960.22005 | AW62: 0.1837084591 | AY62: 38.25373459 | AZ62: 38.5952034 | BA62: 0 | BB62: 0 | BC62: 0 | BD62: 0 | BE62: L | BH62: 39.41941452 | BI62: 37.43000031 | BJ62: 24279.94365 | BK62: 0.08752012253 | BM62: 35.4988327 | BN62: 37.48976135 | BO62: 0 | BP62: 0 | BQ62: 0 | BR62: 0 | BS62: S | BV62: 21.77000046 | BW62: 43.06999969 | BX62: 22653.38107 | BY62: 0.1177633405 | CA62: 41.48162842 | CB62: 40.62984085 | CC62: 40.31000137 | CD62: 40.62984085 | CE62: 0 | CF62: 0 | CG62: L | CI62: RvS S | CJ62: 41.97000122 | CK62: 40.62984085 | CL62: 34073.48679 | CM62: 0.1567067653 | CO62: 38.42564011 | CP62: 38.00969315 | CQ62: 0 | CR62: 0 | CS62: 0 | CT62: 0 | CU62: S | CX62: 41.29000092 | CY62: 37.43000031 | CZ62: 19823.84498 | DA62: 0.2702614069 | DC62: 43.25593567 | DD62: 40.44864655 | DE62: 40.31000137 | DF62: 40.44864655 | DG62: 0 | DH62: 0 | DI62: L | DK62: RvS S | DL62: 41.97000122 | DM62: 40.44864655 | DN62: 30157.23343 | DO62: 0.06484828889 | DQ62: 41.59543991 | DR62: 40.44864655 | DS62: 40.31000137 | DT62: 40.44864655 | DU62: 0 | DV62: 0 | DW62: L | DY62: RvS S | DZ62: 41.97000122 | EA62: 40.44864655 | EB62: 30800.32729 | EC62: 0.06484828889 | ED62: 51 | EE62: 51 | EF62: 51
B63: 0.0665 | C63: 2023-09-07 | D63: 39.74000168 | E63: 40.59999847 | F63: 39.38000107 | G63: 40.38000107 | H63: 84311500 | I63: 43.36000061 | J63: 36.34999847 | K63: 39.98999977 | L63: 40.09666697 | M63: 40.71748895 | O63: 40.55650005 | P63: 0 | Q63: 0 | U63: 0 | W63: 39.78869247 | X63: 40.05398178 | Y63: 39.74000168 | Z63: 39.74000168 | AA63: 0 | AB63: 0 | AC63: S | AD63: RvL S | AF63: 39.74000168 | AG63: 41.14072037 | AH63: 45207.61949 | AI63: 0.00135099364 | AK63: 36.19902802 | AL63: 39.33768845 | AM63: 0 | AN63: 0 | AO63: 0 | AP63: 0 | AQ63: S | AT63: 35.52999878 | AU63: 37.43000031 | AV63: 28948.92456 | AW63: 0.1548434794 | AY63: 39.41941452 | AZ63: 39.45542145 | BA63: 39.41941452 | BB63: 40.31000137 | BC63: 0 | BD63: 0 | BE63: S | BF63: RvL S | BH63: 39.41941452 | BI63: 37.43000031 | BJ63: 23589.40762 | BK63: 0.11347159 | BM63: 35.4988327 | BN63: 38.63216019 | BO63: 0 | BP63: 0 | BQ63: 0 | BR63: 0 | BS63: S | BV63: 21.77000046 | BW63: 43.06999969 | BX63: 23252.05964 | BY63: 0.09444778413 | CA63: 42.95459366 | CB63: 42.07256317 | CC63: 39.74000168 | CD63: 0 | CE63: 0 | CF63: 0 | CG63: L | CJ63: 41.97000122 | CK63: 43.20999908 | CL63: 34536.42004 | CM63: 0.1452495158 | CO63: 38.42564011 | CP63: 38.85686111 | CQ63: 0 | CR63: 0 | CS63: 0 | CT63: 0 | CU63: S | CX63: 41.29000092 | CY63: 37.43000031 | CZ63: 20524.83821 | DA63: 0.2444570512 | DC63: 43.25593567 | DD63: 41.35017395 | DE63: 39.74000168 | DF63: 0 | DG63: 0 | DH63: 0 | DI63: L | DL63: 41.97000122 | DM63: 43.20999908 | DN63: 30848.04981 | DO63: 0.04342662543 | DQ63: 42.52252579 | DR63: 41.35017395 | DS63: 39.74000168 | DT63: 0 | DU63: 0 | DV63: 0 | DW63: L | DZ63: 41.97000122 | EA63: 43.20999908 | EB63: 31505.87512 | EC63: 0.04342662543 | ED63: 52 | EE63: 52 | EF63: 52
B64: =BF542 -> H | C64: 2023-09-06 | D64: 42.13999939 | E64: 42.24000168 | F64: 40.58000183 | G64: 41.27999878 | H64: 74029100 | I64: 43.36000061 | J64: 36.34999847 | K64: 41.41000175 | L64: 40.85333506 | M64: 40.87915322 | O64: 40.47749996 | P64: 0 | Q64: 0 | U64: 0 | W64: 40.84762955 | X64: 41.14072037 | Y64: 40.84762955 | Z64: 41.14072037 | AA64: 0 | AB64: 0 | AC64: L | AE64: RvS S | AF64: 36.37654877 | AG64: 41.14072037 | AH64: 44568.36549 | AI64: 0.01547229383 | AK64: 35.92760849 | AL64: 39.17899704 | AM64: 0 | AN64: 0 | AO64: 0 | AP64: 0 | AQ64: S | AT64: 35.52999878 | AU64: 37.43000031 | AV64: 29426.51873 | AW64: 0.1409002393 | AY64: 40.46852493 | AZ64: 40.52592087 | BA64: 0 | BB64: 0 | BC64: 0 | BD64: 0 | BE64: S | BH64: 36.7383461 | BI64: 37.43000031 | BJ64: 22859.5656 | BK64: 0.1409002393 | BM64: 35.4988327 | BN64: 39.66032028 | BO64: 0 | BP64: 0 | BQ64: 0 | BR64: 0 | BS64: S | BV64: 21.77000046 | BW64: 43.06999969 | BX64: 23541.2516 | BY64: 0.08318519592 | CA64: 43.81555176 | CB64: 42.91584015 | CC64: 42.13999939 | CD64: 0 | CE64: 0 | CF64: 0 | CG64: L | CJ64: 41.97000122 | CK64: 43.20999908 | CL64: 34048.06111 | CM64: 0.1573360413 | CO64: 38.42564011 | CP64: 39.91112137 | CQ64: 0 | CR64: 0 | CS64: 0 | CT64: 0 | CU64: S | CX64: 41.29000092 | CY64: 37.43000031 | CZ64: 20863.45331 | DA64: 0.2319922298 | DC64: 43.25593567 | DD64: 42.47208023 | DE64: 42.13999939 | DF64: 0 | DG64: 0 | DH64: 0 | DI64: L | DL64: 41.97000122 | DM64: 43.20999908 | DN64: 30411.84593 | DO64: 0.05695296079 | DQ64: 43.67624283 | DR64: 42.47208023 | DS64: 42.13999939 | DT64: 0 | DU64: 0 | DV64: 0 | DW64: L | DZ64: 41.97000122 | EA64: 43.20999908 | EB64: 31060.36933 | EC64: 0.05695296079 | ED64: 53 | EE64: 53 | EF64: 53
B65: =BF543 -> B | C65: 2023-09-05 | D65: 41.97000122 | E65: 42.81999969 | F65: 41.65999985 | G65: 42.40000153 | H65: 61889300 | I65: 43.36000061 | J65: 36.34999847 | K65: 42.23999977 | L65: 42.20666631 | M65: 40.76118688 | O65: 40.17399979 | P65: 0 | Q65: 0 | U65: 0 | W65: 40.93587494 | X65: 41.03398895 | Y65: 0 | Z65: 0 | AA65: 0 | AB65: 0 | AC65: L | AF65: 36.37654877 | AG65: 38.59853363 | AH65: 44147.79655 | AI65: 0.02476277947 | AK65: 35.50773239 | AL65: 40.33653259 | AM65: 0 | AN65: 0 | AO65: 0 | AP65: 0 | AQ65: S | AT65: 35.52999878 | AU65: 37.43000031 | AV65: 27415.59675 | AW65: 0.1996085942 | AY65: 40.55595016 | AZ65: 40.420784 | BA65: 0 | BB65: 0 | BC65: 0 | BD65: 0 | BE65: S | BH65: 36.7383461 | BI65: 37.43000031 | BJ65: 21297.40994 | BK65: 0.1996085942 | BM65: 35.4988327 | BN65: 39.74599838 | BO65: 0 | BP65: 0 | BQ65: 0 | BR65: 0 | BS65: S | BV65: 21.77000046 | BW65: 43.06999969 | BX65: 22323.60175 | BY65: 0.1306066066 | CA65: 44.14230347 | CB65: 43.23588181 | CC65: 41.97000122 | CD65: 0 | CE65: 0 | CF65: 0 | CG65: S | CH65: RvL S | CJ65: 41.97000122 | CK65: 43.20999908 | CL65: 36104.30835 | CM65: 0.1064454541 | CO65: 38.42564011 | CP65: 39.80757904 | CQ65: 0 | CR65: 0 | CS65: 0 | CT65: 0 | CU65: S | CX65: 41.29000092 | CY65: 37.43000031 | CZ65: 19437.70611 | DA65: 0.2844756246 | DC65: 43.25593567 | DD65: 42.3618927 | DE65: 41.97000122 | DF65: 42.3618927 | DG65: 0 | DH65: 0 | DI65: S | DJ65: RvL S | DL65: 41.97000122 | DM65: 43.20999908 | DN65: 32248.49308 | DO65: 0 | DQ65: 43.56293106 | DR65: 42.3618927 | DS65: 41.97000122 | DT65: 42.3618927 | DU65: 0 | DV65: 0 | DW65: S | DX65: RvL S | DZ65: 41.97000122 | EA65: 43.20999908 | EB65: 32936.18242 | EC65: 0 | ED65: 54 | EE65: 54 | EF65: 54
B66: L | C66: 2023-09-01 | D66: 43.20999908 | E66: 43.36000061 | F66: 41.75 | G66: 42.29000092 | H66: 82413500 | I66: 43.36000061 | J66: 36.34999847 | K66: 42.55500031 | L66: 42.36000061 | M66: 40.43256179 | O66: 39.70449982 | P66: 0 | Q66: 0 | U66: 0 | W66: 41.20061111 | X66: 41.1795311 | Y66: 0 | Z66: 0 | AA66: 0 | AB66: 0 | AC66: L | AF66: 36.37654877 | AG66: 38.59853363 | AH66: 43969.69867 | AI66: 0.02869701199 | AK66: 34.92956924 | AL66: 39.24433899 | AM66: 0 | AN66: 0 | AO66: 0 | AP66: 0 | AQ66: S | AT66: 35.52999878 | AU66: 37.43000031 | AV66: 27558.03566 | AW66: 0.1954501271 | AY66: 40.81822968 | AZ66: 40.56415176 | BA66: 0 | BB66: 0 | BC66: 0 | BD66: 0 | BE66: S | BH66: 36.7383461 | BI66: 37.43000031 | BJ66: 21408.06154 | BK66: 0.1954501271 | BM66: 35.18772507 | BN66: 40.00304031 | BO66: 0 | BP66: 0 | BQ66: 0 | BR66: 0 | BS66: S | BV66: 21.77000046 | BW66: 43.06999969 | BX66: 22409.8511 | BY66: 0.1272476315 | CA66: 44.08525085 | CB66: 43.18000031 | CC66: 43.20999908 | CD66: 43.20999908 | CE66: 0 | CF66: 0 | CG66: L | CI66: RvS S | CJ66: 42.04000092 | CK66: 43.20999908 | CL66: 35958.65894 | CM66: 0.1100501716 | CO66: 38.42564011 | CP66: 39.94877243 | CQ66: 0 | CR66: 0 | CS66: 0 | CT66: 0 | CU66: S | CX66: 41.29000092 | CY66: 37.43000031 | CZ66: 19538.69554 | DA66: 0.2807580829 | DC66: 42.87684631 | DD66: 42.512146 | DE66: 42.87684631 | DF66: 43.20999908 | DG66: 0 | DH66: 0 | DI66: L | DK66: RvS S | DL66: 42.04000092 | DM66: 43.20999908 | DN66: 32118.39852 | DO66: 0 | DQ66: 43.71744156 | DR66: 42.512146 | DS66: 43.20999908 | DT66: 43.20999908 | DU66: 0 | DV66: 0 | DW66: L | DY66: RvS S | DZ66: 42.04000092 | EA66: 43.20999908 | EB66: 32803.31363 | EC66: 0 | ED66: 55 | EE66: 55 | EF66: 55
B67: S | C67: 2023-08-31 | D67: 42.04000092 | E67: 42.97999954 | F67: 42.02000046 | G67: 42.43999863 | H67: 81121400 | I67: 42.97999954 | J67: 35.36999893 | K67: 42.5 | L67: 42.73666636 | M67: 39.96090878 | O67: 39.0579998 | P67: 0 | Q67: 0 | U67: 0 | W67: 40.27894211 | X67: 40.81081772 | Y67: 0 | Z67: 0 | AA67: 0 | AB67: 0 | AC67: L | AF67: 36.37654877 | AG67: 38.59853363 | AH67: 45268.77732 | AI67: 0 | AK67: 34.47303009 | AL67: 38.67490387 | AM67: 0 | AN67: 0 | AO67: 0 | AP67: 0 | AQ67: S | AT67: 35.52999878 | AU67: 37.43000031 | AV67: 26519.06011 | AW67: 0.2257827669 | AY67: 39.90511322 | AZ67: 40.20095062 | BA67: 0 | BB67: 0 | BC67: 0 | BD67: 0 | BE67: S | BH67: 36.7383461 | BI67: 37.43000031 | BJ67: 20600.94841 | BK67: 0.2257827669 | BM67: 34.61463547 | BN67: 39.10816193 | BO67: 0 | BP67: 0 | BQ67: 0 | BR67: 0 | BS67: S | BV67: 21.77000046 | BW67: 43.06999969 | BX67: 21780.7325 | BY67: 0.1517486721 | CA67: 43.23466492 | CB67: 42.34688187 | CC67: 42.04000092 | CD67: 42.34688187 | CE67: 0 | CF67: 0 | CG67: S | CH67: RvL S | CJ67: 42.04000092 | CK67: 41.43000031 | CL67: 34955.5394 | CM67: 0.1348766237 | CO67: 38.42564011 | CP67: 39.59107971 | CQ67: 0 | CR67: 0 | CS67: 0 | CT67: 0 | CU67: S | CX67: 41.29000092 | CY67: 37.43000031 | CZ67: 18802.06005 | DA67: 0.3078745008 | DC67: 42.17852783 | DD67: 42.13150406 | DE67: 42.04000092 | DF67: 42.13150406 | DG67: 0 | DH67: 0 | DI67: S | DJ67: RvL S | DL67: 42.04000092 | DM67: 41.44032669 | DN67: 31222.40868 | DO67: 0 | DQ67: 43.32600784 | DR67: 42.13150406 | DS67: 42.04000092 | DT67: 42.13150406 | DU67: 0 | DV67: 0 | DW67: S | DX67: RvL S | DZ67: 42.04000092 | EA67: 41.44032669 | EB67: 31888.21708 | EC67: 0 | ED67: 56 | EE67: 56 | EF67: 56
B68: B | C68: 2023-08-30 | D68: 41.43000031 | E68: 42.27999878 | F68: 41.08000183 | G68: 42.06000137 | H68: 92979100 | I68: 42.27999878 | J68: 35.36999893 | K68: 41.68000031 | L68: 41.80000051 | M68: 39.39666629 | O68: 38.54749985 | P68: 0 | Q68: 0 | U68: 0 | W68: 37.93554306 | X68: 40.14131165 | Y68: 0 | Z68: 0 | AA68: 0 | AB68: 0 | AC68: L | AF68: 36.37654877 | AG68: 38.59853363 | AH68: 44043.03356 | AI68: 0 | AK68: 34.19937134 | AL68: 36.21979904 | AM68: 0 | AN68: 0 | AO68: 0 | AP68: 0 | AQ68: S | AT68: 35.52999878 | AU68: 37.43000031 | AV68: 27499.38397 | AW68: 0.1971624494 | AY68: 37.58346558 | AZ68: 39.54144669 | BA68: 0 | BB68: 0 | BC68: 0 | BD68: 0 | BE68: S | BH68: 36.7383461 | BI68: 37.43000031 | BJ68: 21362.49882 | BK68: 0.1971624494 | BM68: 33.99242401 | BN68: 36.83287811 | BO68: 0 | BP68: 0 | BQ68: 0 | BR68: 0 | BS68: S | BV68: 21.77000046 | BW68: 43.06999969 | BX68: 22374.33644 | BY68: 0.1286307424 | CA68: 41.60091782 | CB68: 40.74668121 | CC68: 41.43000031 | CD68: 41.43000031 | CE68: 0 | CF68: 0 | CG68: L | CI68: RvS S | CJ68: 38.79999924 | CK68: 41.43000031 | CL68: 34009.04743 | CM68: 0.1583015919 | CO68: 38.42564011 | CP68: 38.94158173 | CQ68: 0 | CR68: 0 | CS68: 0 | CT68: 0 | CU68: S | CX68: 41.29000092 | CY68: 37.43000031 | CZ68: 19497.11139 | DA68: 0.2822888494 | DC68: 41.42035294 | DD68: 41.44032669 | DE68: 41.42035294 | DF68: 41.44032669 | DG68: 0 | DH68: 0 | DI68: L | DK68: RvS S | DL68: 38.79999924 | DM68: 41.44032669 | DN68: 30376.99878 | DO68: 0.01422508713 | DQ68: 42.61523438 | DR68: 41.44032669 | DS68: 41.43000031 | DT68: 41.44032669 | DU68: 0 | DV68: 0 | DW68: L | DY68: RvS S | DZ68: 38.79999924 | EA68: 41.44032669 | EB68: 31024.77907 | EC68: 0.01422508713 | ED68: 57 | EE68: 57 | EF68: 57
B69: BLS | C69: 2023-08-29 | D69: 38.79999924 | E69: 41.52000046 | F69: 38.68999863 | G69: 41.36999893 | H69: 93747800 | I69: 41.52000046 | J69: 35.36999893 | K69: 40.10499954 | L69: 40.54666646 | M69: 38.88925873 | O69: 38.24149971 | P69: 0 | Q69: 0 | U69: 0 | W69: 37.33744049 | X69: 37.73496628 | Y69: 0 | Z69: 0 | AA69: 0 | AB69: 0 | AC69: L | AF69: 36.37654877 | AG69: 38.59853363 | AH69: 43403.96894 | AI69: 0 | AK69: 34.15510559 | AL69: 36.35982513 | AM69: 0 | AN69: 0 | AO69: 0 | AP69: 0 | AQ69: S | AT69: 35.52999878 | AU69: 37.43000031 | AV69: 28010.4943 | AW69: 0.1822407246 | AY69: 36.99091339 | AZ69: 37.17106247 | BA69: 0 | BB69: 0 | BC69: 0 | BD69: 0 | BE69: S | BH69: 36.7383461 | BI69: 37.43000031 | BJ69: 21759.5475 | BK69: 0.1822407246 | BM69: 33.49301529 | BN69: 36.25216293 | BO69: 0 | BP69: 0 | BQ69: 0 | BR69: 0 | BS69: S | BV69: 21.77000046 | BW69: 43.06999969 | BX69: 22683.82304 | BY69: 0.1165777817 | CA69: 40.06571198 | CB69: 39.24300003 | CC69: 38.79999924 | CD69: 39.24300003 | CE69: 0 | CF69: 0 | CG69: S | CH69: RvL S | CJ69: 38.79999924 | CK69: 38.95000076 | CL69: 34517.26742 | CM69: 0.1457235366 | CO69: 38.42564011 | CP69: 36.60715485 | CQ69: 0 | CR69: 0 | CS69: 0 | CT69: 0 | CU69: S | CX69: 41.29000092 | CY69: 37.43000031 | CZ69: 19859.48951 | DA69: 0.2689493001 | DC69: 40.81181717 | DD69: 38.95611191 | DE69: 38.79999924 | DF69: 38.95611191 | DG69: 0 | DH69: 0 | DI69: S | DJ69: RvL S | DL69: 38.79999924 | DM69: 38.95000076 | DN69: 30815.34981 | DO69: 0 | DQ69: 40.06058884 | DR69: 38.95611191 | DS69: 38.79999924 | DT69: 38.95611191 | DU69: 0 | DV69: 0 | DW69: S | DX69: RvL S | DZ69: 38.79999924 | EA69: 38.95000076 | EB69: 31472.4778 | EC69: 0 | ED69: 58 | EE69: 58 | EF69: 58
B70: 1 | C70: 2023-08-28 | D70: 38.95000076 | E70: 39.16999817 | F70: 38.08000183 | G70: 38.88999939 | H70: 91320500 | I70: 40.90999985 | J70: 35.36999893 | K70: 38.625 | L70: 38.68333308 | M70: 38.61909411 | O70: 38.19199982 | P70: 0 | Q70: 0 | U70: 0 | W70: 35.64117432 | X70: 36.91021347 | Y70: 0 | Z70: 0 | AA70: 0 | AB70: 0 | AC70: L | AF70: 36.37654877 | AG70: 38.59853363 | AH70: 40648.65917 | AI70: 0.003851130139 | AK70: 34.23514557 | AL70: 34.94090652 | AM70: 0 | AN70: 0 | AO70: 0 | AP70: 0 | AQ70: S | AT70: 35.52999878 | AU70: 37.43000031 | AV70: 30214.13263 | AW70: 0.1179060563 | AY70: 35.31038666 | AZ70: 36.35863113 | BA70: 0 | BB70: 0 | BC70: 0 | BD70: 0 | BE70: S | BH70: 36.7383461 | BI70: 37.43000031 | BJ70: 23471.41207 | BK70: 0.1179060563 | BM70: 33.49301529 | BN70: 34.60519791 | BO70: 0 | BP70: 0 | BQ70: 0 | BR70: 0 | BS70: S | BV70: 21.77000046 | BW70: 43.06999969 | BX70: 24018.16615 | BY70: 0.06461174786 | CA70: 38.85206985 | CB70: 38.05427933 | CC70: 38.85206985 | CD70: 38.95000076 | CE70: 0 | CF70: 0 | CG70: L | CI70: RvS S | CJ70: 40.66215897 | CK70: 38.95000076 | CL70: 32326.09075 | CM70: 0.1999535114 | CO70: 38.42564011 | CP70: 35.80705261 | CQ70: 0 | CR70: 0 | CS70: 0 | CT70: 0 | CU70: S | CX70: 41.29000092 | CY70: 37.43000031 | CZ70: 21421.87294 | DA70: 0.2114361674 | DC70: 40.81181717 | DD70: 38.10466766 | DE70: 38.95000076 | DF70: 38.95000076 | DG70: 0 | DH70: 0 | DI70: L | DK70: RvS S | DL70: 37.43000031 | DM70: 38.95000076 | DN70: 28859.17307 | DO70: 0 | DQ70: 39.18500519 | DR70: 38.10466766 | DS70: 38.95000076 | DT70: 38.95000076 | DU70: 0 | DV70: 0 | DW70: L | DY70: RvS S | DZ70: 37.43000031 | EA70: 38.95000076 | EB70: 29474.58619 | EC70: 0 | ED70: 59 | EE70: 59 | EF70: 59
B71: 0.0286 | C71: 2023-08-25 | D71: 37.43000031 | E71: 38.56000137 | F71: 36.34999847 | G71: 38.04000092 | H71: 139144700 | I71: 40.90999985 | J71: 35.36999893 | K71: 37.45499992 | L71: 37.95333354 | M71: 38.61778169 | O71: 38.28149967 | P71: 0 | Q71: 0 | U71: 0 | W71: 36.37654877 | X71: 36.05634689 | Y71: 36.37654877 | Z71: 0 | AA71: 0 | AB71: 0 | AC71: S | AD71: RvL S | AF71: 36.37654877 | AG71: 38.59853363 | AH71: 40805.80765 | AI71: 0 | AK71: 34.38538742 | AL71: 38.16147995 | AM71: 0 | AN71: 37.43000031 | AO71: 0 | AP71: 0 | AQ71: L | AS71: RvS S | AT71: 35.52999878 | AU71: 37.43000031 | AV71: 30088.44861 | AW71: 0.1215753704 | AY71: 36.03893661 | AZ71: 35.51752853 | BA71: 0 | BB71: 0 | BC71: 0 | BD71: 0 | BE71: S | BH71: 36.7383461 | BI71: 37.43000031 | BJ71: 23373.77625 | BK71: 0.1215753704 | BM71: 33.49301529 | BN71: 35.31919861 | BO71: 0 | BP71: 0 | BQ71: 0 | BR71: 0 | BS71: S | BV71: 21.77000046 | BW71: 43.06999969 | BX71: 23942.06218 | BY71: 0.06757561862 | CA71: 40.45988464 | CB71: 39.62907791 | CC71: 37.43000031 | CD71: 0 | CE71: 0 | CF71: 0 | CG71: L | CJ71: 40.66215897 | CK71: 38.98899841 | CL71: 32202.07636 | CM71: 0.203022778 | CO71: 38.42564011 | CP71: 34.97870636 | CQ71: 0 | CR71: 0 | CS71: 0 | CT71: 0 | CU71: S | CX71: 41.29000092 | CY71: 37.43000031 | CZ71: 21332.76275 | DA71: 0.2147164047 | DC71: 40.81181717 | DD71: 37.22317123 | DE71: 37.43000031 | DF71: 37.43000031 | DG71: 0 | DH71: 0 | DI71: S | DJ71: RvL S | DL71: 37.43000031 | DM71: 40.88000107 | DN71: 28748.45901 | DO71: 0 | DQ71: 38.27851486 | DR71: 37.22317123 | DS71: 37.43000031 | DT71: 37.43000031 | DU71: 0 | DV71: 0 | DW71: S | DX71: RvL S | DZ71: 37.43000031 | EA71: 40.88000107 | EB71: 29361.51118 | EC71: 0 | ED71: 60 | EE71: 60 | EF71: 60
B72: =BG542 -> H | C72: 2023-08-24 | D72: 40.88000107 | E72: 40.90999985 | F72: 37.09999847 | G72: 37.15999985 | H72: 116198600 | I72: 40.90999985 | J72: 35.36999893 | K72: 39.00499916 | L72: 38.47999954 | M72: 38.87617763 | O72: 38.44949951 | P72: 0 | Q72: 0 | U72: 0 | W72: 37.53353882 | X72: 38.59853363 | Y72: 37.53353882 | Z72: 38.59853363 | AA72: 0 | AB72: 0 | AC72: L | AE72: RvS S | AF72: 35.52999878 | AG72: 38.59853363 | AH72: 37126.24598 | AI72: 0.02722445503 | AK72: 34.52445221 | AL72: 35.79972458 | AM72: 0 | AN72: 0 | AO72: 0 | AP72: 0 | AQ72: L | AT72: 35.52999878 | AU72: 43.6224556 | AV72: 31362.03412 | AW72: 0.08439335972 | AY72: 37.18519211 | AZ72: 38.0217247 | BA72: 37.18519211 | BB72: 37.43000031 | BC72: 0 | BD72: 0 | BE72: L | BG72: RvS O | BH72: 36.7383461 | BI72: 37.43000031 | BJ72: 24363.14275 | BK72: 0.08439335972 | BM72: 34.1807251 | BN72: 36.44255829 | BO72: 0 | BP72: 0 | BQ72: 0 | BR72: 0 | BS72: S | BV72: 21.77000046 | BW72: 43.06999969 | BX72: 24713.24139 | BY72: 0.03754201904 | CA72: 40.66215897 | CB72: 39.82719803 | CC72: 40.66215897 | CD72: 40.88000107 | CE72: 0 | CF72: 0 | CG72: S | CH72: RvL S | CJ72: 40.66215897 | CK72: 38.98899841 | CL72: 30945.40961 | CM72: 0.2341243327 | CO72: 42.20352554 | CP72: 37.44491196 | CQ72: 37.43000031 | CR72: 37.43000031 | CS72: 0 | CT72: 0 | CU72: L | CW72: RvS O | CX72: 41.29000092 | CY72: 37.43000031 | CZ72: 22235.73711 | DA72: 0.1814768761 | DC72: 41.64979935 | DD72: 39.84762573 | DE72: 40.88000107 | DF72: 40.88000107 | DG72: 0 | DH72: 0 | DI72: L | DK72: RvS S | DL72: 38.34999847 | DM72: 40.88000107 | DN72: 27626.56761 | DO72: 0 | DQ72: 40.97737503 | DR72: 39.84762573 | DS72: 40.88000107 | DT72: 40.88000107 | DU72: 0 | DV72: 0 | DW72: L | DY72: RvS S | DZ72: 38.34999847 | EA72: 40.88000107 | EB72: 28215.69579 | EC72: 0 | ED72: 61 | EE72: 61 | EF72: 61
B73: =BG543 -> B | C73: 2023-08-23 | D73: 38.34999847 | E73: 40.11999893 | F73: 38.27999878 | G73: 39.77999878 | H73: 87727000 | I73: 41.75 | J73: 35.36999893 | K73: 39.19999886 | L73: 39.75999959 | M73: 38.84755063 | O73: 38.60499954 | P73: 0 | Q73: 0 | U73: 0 | W73: 37.03348541 | X73: 36.86169815 | Y73: 0 | Z73: 0 | AA73: 0 | AB73: 0 | AC73: L | AF73: 35.52999878 | AG73: 36.72585297 | AH73: 38165.27478 | AI73: 0 | AK73: 34.62550735 | AL73: 36.37849426 | AM73: 0 | AN73: 0 | AO73: 0 | AP73: 0 | AQ73: L | AT73: 35.52999878 | AU73: 43.6224556 | AV73: 34252.73786 | AW73: 0 | AY73: 36.68977737 | AZ73: 36.31084442 | BA73: 0 | BB73: 0 | BC73: 0 | BD73: 0 | BE73: L | BH73: 36.7383461 | BI73: 41.15999985 | BJ73: 26608.74415 | BK73: 0 | BM73: 34.1807251 | BN73: 35.95703888 | BO73: 0 | BP73: 0 | BQ73: 0 | BR73: 0 | BS73: S | BV73: 21.77000046 | BW73: 43.06999969 | BX73: 22962.86768 | BY73: 0.1057103798 | CA73: 39.80638885 | CB73: 38.98899841 | CC73: 38.34999847 | CD73: 38.98899841 | CE73: 0 | CF73: 0 | CG73: L | CI73: RvS S | CJ73: 38.94542694 | CK73: 38.98899841 | CL73: 33421.35746 | CM73: 0.1728464812 | CO73: 42.20352554 | CP73: 35.75998688 | CQ73: 40.88000107 | CR73: 0 | CS73: 0 | CT73: 0 | CU73: L | CX73: 41.29000092 | CY73: 41.11000061 | CZ73: 24285.25112 | DA73: 0.1060319096 | DC73: 41.64979935 | DD73: 38.0545845 | DE73: 38.34999847 | DF73: 38.34999847 | DG73: 0 | DH73: 0 | DI73: S | DJ73: RvL S | DL73: 38.34999847 | DM73: 38.97000122 | DN73: 25476.51854 | DO73: 0.03793640435 | DQ73: 39.13349915 | DR73: 38.0545845 | DS73: 38.34999847 | DT73: 38.34999847 | DU73: 0 | DV73: 0 | DW73: S | DX73: RvL S | DZ73: 38.34999847 | EA73: 38.97000122 | EB73: 26019.79757 | EC73: 0.03793640435 | ED73: 62 | EE73: 62 | EF73: 62
B74: C | C74: 2023-08-22 | D74: 38.97000122 | E74: 38.97999954 | F74: 37.77000046 | G74: 37.99000168 | H74: 90393000 | I74: 41.75 | J74: 35.36999893 | K74: 38.375 | L74: 38.36666616 | M74: 38.7692288 | O74: 38.71799965 | P74: 0 | Q74: 0 | U74: 0 | W74: 35.99415588 | X74: 37.02664948 | Y74: 0 | Z74: 0 | AA74: 0 | AB74: 0 | AC74: L | AF74: 35.52999878 | AG74: 36.72585297 | AH74: 35803.28257 | AI74: 0.01590974443 | AK74: 34.8285141 | AL74: 34.41814423 | AM74: 0 | AN74: 0 | AO74: 0 | AP74: 0 | AQ74: L | AT74: 35.52999878 | AU74: 43.6224556 | AV74: 32132.88675 | AW74: 0.01590974443 | AY74: 35.6600914 | AZ74: 36.47332764 | BA74: 0 | BB74: 0 | BC74: 0 | BD74: 0 | BE74: L | BH74: 36.7383461 | BI74: 41.15999985 | BJ74: 24961.96846 | BK74: 0.01590974443 | BM74: 34.1807251 | BN74: 34.94791794 | BO74: 0 | BP74: 0 | BQ74: 0 | BR74: 0 | BS74: S | BV74: 21.77000046 | BW74: 43.06999969 | BX74: 24246.4761 | BY74: 0.05572020635 | CA74: 38.94542694 | CB74: 38.14572144 | CC74: 38.94542694 | CD74: 38.97000122 | CE74: 0 | CF74: 0 | CG74: S | CH74: RvL S | CJ74: 38.94542694 | CK74: 36.86999893 | CL74: 34549.2761 | CM74: 0.1449313462 | CO74: 42.20352554 | CP74: 35.92000961 | CQ74: 38.34999847 | CR74: 0 | CS74: 0 | CT74: 0 | CU74: L | CX74: 41.29000092 | CY74: 41.11000061 | CZ74: 22782.27297 | DA74: 0.1613582671 | DC74: 41.64979935 | DD74: 38.22487259 | DE74: 38.97000122 | DF74: 38.97000122 | DG74: 0 | DH74: 0 | DI74: L | DK74: RvS S | DL74: 36.86999893 | DM74: 38.97000122 | DN74: 23899.81462 | DO74: 0.09747709334 | DQ74: 39.30861664 | DR74: 38.22487259 | DS74: 38.97000122 | DT74: 38.97000122 | DU74: 0 | DV74: 0 | DW74: L | DY74: RvS S | DZ74: 36.86999893 | EA74: 38.97000122 | EB74: 24409.47092 | EC74: 0.09747709334 | ED74: 63 | EE74: 63 | EF74: 63
B75: O | C75: 2023-08-21 | D75: 36.86999893 | E75: 38.38000107 | F75: 36.70999908 | G75: 38.15999985 | H75: 95743600 | I75: 41.75 | J75: 35.36999893 | K75: 37.54500008 | L75: 38.02000046 | M75: 38.8568352 | O75: 38.94499969 | P75: 0 | Q75: 0 | U75: 0 | W75: 34.68028259 | X75: 35.31892014 | Y75: 0 | Z75: 0 | AA75: 0 | AB75: 0 | AC75: L | AF75: 35.52999878 | AG75: 36.72585297 | AH75: 36382.11267 | AI75: 0 | AK75: 35.18846893 | AL75: 33.1672554 | AM75: 0 | AN75: 0 | AO75: 0 | AP75: 0 | AQ75: L | AT75: 35.52999878 | AU75: 43.6224556 | AV75: 32652.37772 | AW75: 0 | AY75: 34.35841751 | AZ75: 34.79112244 | BA75: 0 | BB75: 0 | BC75: 0 | BD75: 0 | BE75: L | BH75: 36.7383461 | BI75: 41.15999985 | BJ75: 25365.52751 | BK75: 0 | BM75: 34.54914093 | BN75: 33.6722374 | BO75: 0 | BP75: 0 | BQ75: 0 | BR75: 0 | BS75: S | BV75: 21.77000046 | BW75: 43.06999969 | BX75: 23931.91486 | BY75: 0.06797080487 | CA75: 37.43615723 | CB75: 36.66743851 | CC75: 36.86999893 | CD75: 36.86999893 | CE75: 0 | CF75: 0 | CG75: L | CI75: RvS S | CJ75: 40.06999969 | CK75: 36.86999893 | CL75: 35060.91715 | CM75: 0.1322686076 | CO75: 42.20352554 | CP75: 34.26332092 | CQ75: 38.97000122 | CR75: 0 | CS75: 0 | CT75: 0 | CU75: L | CX75: 41.29000092 | CY75: 41.11000061 | CZ75: 23150.59298 | DA75: 0.1477999836 | DC75: 42.09872055 | DD75: 36.46187973 | DE75: 36.86999893 | DF75: 36.86999893 | DG75: 0 | DH75: 0 | DI75: S | DJ75: RvL S | DL75: 36.86999893 | DM75: 36.63216782 | DN75: 23525.52947 | DO75: 0.1116111353 | DQ75: 37.4956398 | DR75: 36.46187973 | DS75: 36.86999893 | DT75: 36.86999893 | DU75: 0 | DV75: 0 | DW75: S | DX75: RvL S | DZ75: 36.86999893 | EA75: 36.63216782 | EB75: 24027.20425 | EC75: 0.1116111353 | ED75: 64 | EE75: 64 | EF75: 64
B76: S | C76: =OFFSET(DataPrepRoot, $EF76, 0) -> 2023-08-18 | D76: =OFFSET(DataPrepRoot, $EF76, 1) -> 35.52999878 | E76: =OFFSET(DataPrepRoot, $EF76, 2) -> 36.81000137 | F76: =OFFSET(DataPrepRoot, $EF76, 3) -> 35.36999893 | G76: =OFFSET(DataPrepRoot, $EF76, 4) -> 36.40000153 | H76: =OFFSET(DataPrepRoot, $EF76, 5) -> 123264900 | I76: =OFFSET(DataPrepRoot, $EF76, 40) -> 42.20000076 | J76: =OFFSET(DataPrepRoot, $EF76, 41) -> 35.36999893 | K76: =(E76+F76)/2 -> 36.09000015 | L76: 36.34999975 | M76: =OFFSET(DataPrepRoot, $EF76, 38) -> 39.14835412 | O76: =OFFSET(DataPrepRoot, $EF76, 37) -> 39.34749966 | P76: =OFFSET(DataPrepRoot, $EF76, BandColumnOffset+BuyBandIndex) -> 0 | Q76: =OFFSET(DataPrepRoot, $EF76, BandColumnOffset+SellBandIndex) -> 0 | T76: =IF(Style = "Long", "L", IF(Style = "Short", "S", "")) ->  | U76: =IF(ROW()-ROW($C$11)<DaysToAnalyze+1,OFFSET(DataPrepRoot, $EF76, 6),0)*(IF(AdjDividend = "Y", 0,1)) -> 0 | W76: 35.71961594 | X76: 35.48387146 | Y76: 35.52999878 | Z76: 35.48387146 | AA76: 0 | AB76: 0 | AC76: S | AD76: RvL S | AF76: 35.52999878 | AG76: 36.72585297 | AH76: 34421.56565 | AI76: 0 | AK76: 35.72325897 | AL76: 35.70637512 | AM76: 35.52999878 | AN76: 35.52999878 | AO76: 0 | AP76: 0 | AQ76: S | AR76: RvL S | AT76: 35.52999878 | AU76: 43.6224556 | AV76: 30892.8174 | AW76: 0 | AY76: 35.38810349 | AZ76: 34.95360565 | BA76: 35.38810349 | BB76: 0 | BC76: 0 | BD76: 0 | BE76: L | BH76: 36.7383461 | BI76: 41.15999985 | BJ76: 23998.63852 | BK76: 0.007838292047 | BM76: 35.34327698 | BN76: 34.68136215 | BO76: 0 | BP76: 0 | BQ76: 0 | BR76: 0 | BS76: S | BV76: 21.77000046 | BW76: 43.06999969 | BX76: 24997.36065 | BY76: 0.02647698298 | CA76: 38.78983307 | CB76: 37.99332047 | CC76: 35.52999878 | CD76: 0 | CE76: 0 | CF76: 0 | CG76: L | CJ76: 40.06999969 | CK76: 39.76115799 | CL76: 37178.49015 | CM76: 0.07986026257 | CO76: 42.20352554 | CP76: 34.42333984 | CQ76: 36.86999893 | CR76: 0 | CS76: 0 | CT76: 0 | CU76: L | CX76: 41.29000092 | CY76: 41.11000061 | CZ76: 21903.06163 | DA76: 0.1937230527 | DC76: 43.06639099 | DD76: 36.63216782 | DE76: 35.52999878 | DF76: 36.63216782 | DG76: 0 | DH76: 0 | DI76: L | DK76: RvS S | DL76: 38.25 | DM76: 36.63216782 | DN76: 22257.79366 | DO76: 0.1594843268 | DQ76: 37.67075729 | DR76: 36.63216782 | DS76: 35.52999878 | DT76: 36.63216782 | DU76: 0 | DV76: 0 | DW76: L | DY76: RvS S | DZ76: 38.25 | EA76: 36.63216782 | EB76: 22732.43437 | EC76: 0.1594843268 | ED76: 65 | EE76: =IF(ED76<DaysRequested, ED76, DaysRequested)+DateOffset+DPRowOffset -> 65 | EF76: =IF(EE76>DatesAvailable, DatesAvailable, EE76) -> 65
B77: BCO | C77: 2023-08-17 | D77: 38.25 | E77: 38.36000061 | F77: 36.43000031 | G77: 36.56999969 | H77: 105116400 | I77: 43.16999817 | J77: 36.43000031 | K77: 37.39500046 | L77: 36.77333323 | M77: 39.82798833 | O77: 39.94549961 | P77: 0 | Q77: 0 | U77: 0 | W77: 37.08250809 | X77: 36.72585297 | Y77: 37.08250809 | Z77: 36.72585297 | AA77: 0 | AB77: 0 | AC77: L | AE77: RvS S | AF77: 38.12184143 | AG77: 36.72585297 | AH77: 33170.55115 | AI77: 0.008582790382 | AK77: 36.11317444 | AL77: 36.33181763 | AM77: 0 | AN77: 0 | AO77: 0 | AP77: 0 | AQ77: S | AT77: 20.13024521 | AU77: 43.6224556 | AV77: 29770.05143 | AW77: 0 | AY77: 36.7383461 | AZ77: 36.17702866 | BA77: 36.7383461 | BB77: 0 | BC77: 0 | BD77: 0 | BE77: S | BF77: RvL S | BH77: 36.7383461 | BI77: 41.15999985 | BJ77: 23126.43401 | BK77: 0.04389733449 | BM77: 35.34327698 | BN77: 36.00463867 | BO77: 0 | BP77: 0 | BQ77: 0 | BR77: 0 | BS77: S | BV77: 21.77000046 | BW77: 43.06999969 | BX77: 25677.21587 | BY77: 0 | CA77: 40.06052399 | CB77: 39.23791885 | CC77: 38.25 | CD77: 0 | CE77: 0 | CF77: 0 | CG77: L | CJ77: 40.06999969 | CK77: 39.76115799 | CL77: 35827.27822 | CM77: 0.1133017465 | CO77: 42.20352554 | CP77: 35.62820435 | CQ77: 35.52999878 | CR77: 0 | CS77: 0 | CT77: 0 | CU77: L | CX77: 41.29000092 | CY77: 41.11000061 | CZ77: 21107.0186 | DA77: 0.2230263054 | DC77: 43.06639099 | DD77: 37.91434479 | DE77: 38.25 | DF77: 38.25 | DG77: 0 | DH77: 0 | DI77: S | DJ77: RvL S | DL77: 38.25 | DM77: 39.21655655 | DN77: 21729.18688 | DO77: 0.179445982 | DQ77: 38.98928452 | DR77: 37.91434479 | DS77: 38.25 | DT77: 38.25 | DU77: 0 | DV77: 0 | DW77: S | DX77: RvL S | DZ77: 38.25 | EA77: 39.21655655 | EB77: 22192.5552 | EC77: 0.179445982 | ED77: 66 | EE77: 66 | EF77: 66
B78: 1 | C78: 2023-08-16 | D78: 38.91999817 | E78: 39.41999817 | F78: 37.81999969 | G78: 37.84999847 | H78: 95111000 | I78: 43.16999817 | J78: 37.81999969 | K78: 38.61999893 | L78: =(E78+F78+D77)/3 -> 38.49666595 | M78: 40.3686523 | O78: 40.38149948 | P78: 0 | Q78: 0 | U78: 0 | W78: 38.12184143 | X78: 37.98724747 | Y78: 38.12184143 | Z78: 37.98724747 | AA78: 0 | AB78: 0 | AC78: S | AD78: RvL S | AF78: 38.12184143 | AG78: 39.19041824 | AH78: 33457.71168 | AI78: 0 | AK78: 36.47044754 | AL78: 37.40534592 | AM78: 0 | AN78: 0 | AO78: 0 | AP78: 0 | AQ78: S | AT78: 20.13024521 | AU78: 43.6224556 | AV78: 28204.26362 | AW78: 0 | AY78: 37.76803207 | AZ78: 37.41957092 | BA78: 0 | BB78: 0 | BC78: 0 | BD78: 0 | BE78: S | BH78: 42.94559479 | BI78: 41.15999985 | BJ78: 23119.90716 | BK78: 0.04416716844 | BM78: 35.77719116 | BN78: 37.01375961 | BO78: 0 | BP78: 0 | BQ78: 0 | BR78: 0 | BS78: S | BV78: 21.77000046 | BW78: 43.06999969 | BX78: 24297.21078 | BY78: 0 | CA78: 41.08745193 | CB78: 40.24375916 | CC78: 38.91999817 | CD78: 0 | CE78: 0 | CF78: 0 | CG78: L | CJ78: 40.06999969 | CK78: 39.76115799 | CL78: 38570.03769 | CM78: 0.04542050511 | CO78: 42.20352554 | CP78: 36.85189819 | CQ78: 38.25 | CR78: 0 | CS78: 0 | CT78: 0 | CU78: L | CX78: 41.29000092 | CY78: 41.11000061 | CZ78: 22722.86769 | DA78: 0.1635450423 | DC78: 43.59511948 | DD78: 39.21655655 | DE78: 38.91999817 | DF78: 39.21655655 | DG78: 0 | DH78: 0 | DI78: L | DK78: RvS S | DL78: 40.06999969 | DM78: 39.21655655 | DN78: 23392.66611 | DO78: 0.1166284159 | DQ78: 40.32841492 | DR78: 39.21655655 | DS78: 38.91999817 | DT78: 39.21655655 | DU78: 0 | DV78: 0 | DW78: L | DY78: RvS S | DZ78: 40.06999969 | EA78: 39.21655655 | EB78: 23891.50762 | EC78: 0.1166284159 | ED78: 67 | EE78: 67 | EF78: 67
B79: 0.0442 | C79: 2023-08-15 | D79: 40.06999969 | E79: 40.34000015 | F79: 38.88000107 | G79: 39.15000153 | H79: 81276800 | I79: 43.70000076 | J79: 38.59999847 | K79: 39.61000061 | L79: 39.3799998 | M79: 40.75724194 | O79: 40.78099957 | P79: 0 | Q79: 0 | U79: 0 | W79: 37.84729767 | X79: 39.19041824 | Y79: 0 | Z79: 39.19041824 | AA79: 0 | AB79: 0 | AC79: L | AE79: RvS S | AF79: 38.60228348 | AG79: 39.19041824 | AH79: 32684.51415 | AI79: 0.01520252228 | AK79: 36.92743683 | AL79: 36.24780655 | AM79: 0 | AN79: 0 | AO79: 0 | AP79: 0 | AQ79: S | AT79: 20.13024521 | AU79: 43.6224556 | AV79: 27818.57447 | AW79: 0.001858855947 | AY79: 37.49604034 | AZ79: 38.60476303 | BA79: 0 | BB79: 0 | BC79: 0 | BD79: 0 | BE79: S | BH79: 42.94559479 | BI79: 41.15999985 | BJ79: 22768.41418 | BK79: 0.05869873986 | BM79: 37.02980042 | BN79: 36.74720001 | BO79: 0 | BP79: 0 | BQ79: 0 | BR79: 0 | BS79: S | BV79: 21.77000046 | BW79: 43.06999969 | BX79: 23957.28414 | BY79: 0.001902268967 | CA79: 40.99409485 | CB79: 40.15231705 | CC79: 40.06999969 | CD79: 40.15231705 | CE79: 0 | CF79: 0 | CG79: S | CH79: RvL S | CJ79: 40.06999969 | CK79: 39.76115799 | CL79: 39245.64173 | CM79: 0.02869981341 | CO79: 42.20352554 | CP79: 38.01910782 | CQ79: 38.91999817 | CR79: 0 | CS79: 0 | CT79: 0 | CU79: L | CX79: 41.29000092 | CY79: 41.11000061 | CZ79: 23120.88808 | DA79: 0.1488934606 | DC79: 45.12144852 | DD79: 40.45866394 | DE79: 40.06999969 | DF79: 0 | DG79: 0 | DH79: 0 | DI79: S | DJ79: RvL S | DL79: 40.06999969 | DM79: 39.15645218 | DN79: 22657.34167 | DO79: 0.1443962902 | DQ79: 41.60573959 | DR79: 40.45866394 | DS79: 40.06999969 | DT79: 0 | DU79: 0 | DV79: 0 | DW79: S | DX79: RvL S | DZ79: 40.06999969 | EA79: 39.15645218 | EB79: 23140.50261 | EC79: 0.1443962902 | ED79: 68 | EE79: 68 | EF79: 68
B80: =BT542 -> H | C80: 2023-08-14 | D80: 38.83000183 | E80: 40.43999863 | F80: 38.59999847 | G80: 40.38999939 | H80: 71276800 | I80: 45.22999954 | J80: 38.59999847 | K80: 39.51999855 | L80: 39.70333227 | M80: 41.01218446 | O80: 41.29199944 | P80: 0 | Q80: 0 | U80: 0 | W80: 37.84729767 | X80: 37.92902756 | Y80: 0 | Z80: 0 | AA80: 0 | AB80: 0 | AC80: L | AF80: 38.60228348 | AG80: 40.90784836 | AH80: 33189.07174 | AI80: 0 | AK80: 37.4412117 | AL80: 36.43450546 | AM80: 0 | AN80: 0 | AO80: 0 | AP80: 0 | AQ80: S | AT80: 20.13024521 | AU80: 43.6224556 | AV80: 27156.56801 | AW80: 0.02561190166 | AY80: 37.49604034 | AZ80: 37.36222076 | BA80: 0 | BB80: 0 | BC80: 0 | BD80: 0 | BE80: S | BH80: 42.94559479 | BI80: 41.15999985 | BJ80: 22165.10289 | BK80: 0.08364108205 | BM80: 37.42277527 | BN80: 36.74720001 | BO80: 0 | BP80: 0 | BQ80: 0 | BR80: 0 | BS80: S | BV80: 21.77000046 | BW80: 43.06999969 | BX80: 23373.82559 | BY80: 0.02621006034 | CA80: 40.59473419 | CB80: 39.76115799 | CC80: 38.83000183 | CD80: 39.76115799 | CE80: 0 | CF80: 0 | CG80: L | CI80: RvS S | CJ80: 39.02999878 | CK80: 39.76115799 | CL80: 40405.26532 | CM80: 0 | CO80: 42.20352554 | CP80: 36.79541779 | CQ80: 40.06999969 | CR80: 0 | CS80: 0 | CT80: 0 | CU80: L | CX80: 41.29000092 | CY80: 41.11000061 | CZ80: 23804.06017 | DA80: 0.1237451062 | DC80: 45.60029602 | DD80: 39.15645218 | DE80: 38.83000183 | DF80: 39.15645218 | DG80: 0 | DH80: 0 | DI80: L | DK80: RvS S | DL80: 40.65999985 | DM80: 39.15645218 | DN80: 23326.81697 | DO80: 0.1191150621 | DQ80: 40.26660919 | DR80: 39.15645218 | DS80: 38.83000183 | DT80: 39.15645218 | DU80: 0 | DV80: 0 | DW80: L | DY80: RvS S | DZ80: 40.65999985 | EA80: 39.15645218 | EB80: 23824.25427 | EC80: 0.1191150621 | ED80: 69 | EE80: 69 | EF80: 69
B81: =BT543 -> B | C81: 2023-08-11 | D81: 39.02999878 | E81: 39.66999817 | F81: 38.59999847 | G81: 39.09000015 | H81: 100580600 | I81: 45.70999908 | J81: 38.59999847 | K81: 39.13499832 | L81: 39.03333282 | M81: 41.34378133 | O81: 41.86649952 | P81: 0 | Q81: 0 | U81: 0 | W81: 38.60228348 | X81: 38.70526505 | Y81: 38.60228348 | Z81: 38.70526505 | AA81: 0 | AB81: 0 | AC81: S | AD81: RvL S | AF81: 38.60228348 | AG81: 40.90784836 | AH81: 32162.00964 | AI81: 0.005086650141 | AK81: 37.95319748 | AL81: 37.95610809 | AM81: 0 | AN81: 0 | AO81: 0 | AP81: 0 | AQ81: S | AT81: 20.13024521 | AU81: 43.6224556 | AV81: 27870.38149 | AW81: 0 | AY81: 38.24401855 | AZ81: 38.12686157 | BA81: 0 | BB81: 0 | BC81: 0 | BD81: 0 | BE81: S | BH81: 42.94559479 | BI81: 41.15999985 | BJ81: 22815.62786 | BK81: 0.05674681067 | BM81: 37.42277527 | BN81: 37.48023987 | BO81: 0 | BP81: 0 | BQ81: 0 | BR81: 0 | BS81: S | BV81: 21.77000046 | BW81: 43.06999969 | BX81: 24002.94419 | BY81: 0 | CA81: 42.07288742 | CB81: 41.20895767 | CC81: 39.02999878 | CD81: 0 | CE81: 0 | CF81: 0 | CG81: S | CH81: RvL S | CJ81: 39.02999878 | CK81: 40.97528076 | CL81: 39767.91858 | CM81: 0.01498039439 | CO81: 42.20352554 | CP81: 37.5484581 | CQ81: 38.83000183 | CR81: 0 | CS81: 0 | CT81: 0 | CU81: L | CX81: 41.29000092 | CY81: 41.11000061 | CZ81: 23067.42468 | DA81: 0.1508615017 | DC81: 45.60029602 | DD81: 39.95781326 | DE81: 39.02999878 | DF81: 0 | DG81: 0 | DH81: 0 | DI81: L | DL81: 40.65999985 | DM81: 41.15999985 | DN81: 23684.92424 | DO81: 0.1055919454 | DQ81: 41.0906868 | DR81: 39.95781326 | DS81: 39.02999878 | DT81: 0 | DU81: 0 | DV81: 0 | DW81: L | DZ81: 40.65999985 | EA81: 41.15999985 | EB81: 24189.99807 | EC81: 0.1055919454 | ED81: 70 | EE81: 70 | EF81: 70
B82: P | C82: 2023-08-10 | D82: 40.65999985 | E82: 41.75 | F82: 39.36999893 | G82: 39.88999939 | H82: 130277100 | I82: 45.70999908 | J82: 39.36999893 | K82: 40.55999947 | L82: 40.04999924 | M82: 41.834622 | O82: 42.43899975 | P82: 0 | Q82: 0 | U82: 0 | W82: 38.6807251 | X82: 38.53061295 | Y82: 0 | Z82: 0 | AA82: 0 | AB82: 0 | AC82: S | AF82: 43.34790421 | AG82: 40.90784836 | AH82: 31656.93193 | AI82: 0.02071093954 | AK82: 38.26709747 | AL82: 38.42285919 | AM82: 0 | AN82: 0 | AO82: 0 | AP82: 0 | AQ82: S | AT82: 20.13024521 | AU82: 43.6224556 | AV82: 27755.25184 | AW82: 0 | AY82: 38.32173157 | AZ82: 37.95481873 | BA82: 0 | BB82: 0 | BC82: 0 | BD82: 0 | BE82: S | BH82: 42.94559479 | BI82: 41.15999985 | BJ82: 22710.7059 | BK82: 0.0610845387 | BM82: 37.42277527 | BN82: 37.5564003 | BO82: 0 | BP82: 0 | BQ82: 0 | BR82: 0 | BS82: S | BV82: 21.77000046 | BW82: 43.06999969 | BX82: 23901.47482 | BY82: 0 | CA82: 41.83430862 | CB82: 40.97528076 | CC82: 40.65999985 | CD82: 40.97528076 | CE82: 0 | CF82: 0 | CG82: L | CI82: RvS S | CJ82: 41.72999954 | CK82: 40.97528076 | CL82: 39972.74635 | CM82: 0.00990697369 | CO82: 42.20352554 | CP82: 37.37902069 | CQ82: 39.02999878 | CR82: 0 | CS82: 0 | CT82: 0 | CU82: L | CX82: 41.29000092 | CY82: 41.11000061 | CZ82: 23186.23525 | DA82: 0.1464879513 | DC82: 45.60029602 | DD82: 39.77750778 | DE82: 40.65999985 | DF82: 40.65999985 | DG82: 0 | DH82: 0 | DI82: S | DJ82: RvL S | DL82: 40.65999985 | DM82: 41.15999985 | DN82: 23806.91529 | DO82: 0.100985229 | DQ82: 40.90526962 | DR82: 39.77750778 | DS82: 40.65999985 | DT82: 40.65999985 | DU82: 0 | DV82: 0 | DW82: S | DX82: RvL S | DZ82: 40.65999985 | EA82: 41.15999985 | EB82: 24314.59054 | EC82: 0.100985229 | ED82: 71 | EE82: 71 | EF82: 71
B83: C | C83: 2023-08-09 | D83: 41.15999985 | E83: 41.20999908 | F83: 39.45000076 | G83: 39.70999908 | H83: 99715300 | I83: 45.70999908 | J83: 39.45000076 | K83: 40.32999992 | L83: 40.4399999 | M83: 42.11787145 | O83: 42.78999977 | P83: 0 | Q83: 0 | U83: 0 | W83: 39.22000122 | X83: 39.85992432 | Y83: 0 | Z83: 39.85992432 | AA83: 0 | AB83: 0 | AC83: S | AF83: 43.34790421 | AG83: 40.90784836 | AH83: 30450.90196 | AI83: 0.05801878497 | AK83: 38.51884079 | AL83: 38.54421616 | AM83: 0 | AN83: 0 | AO83: 0 | AP83: 0 | AQ83: S | AT83: 20.13024521 | AU83: 43.6224556 | AV83: 26816.93028 | AW83: 0.00310486299 | AY83: 38.85599899 | AZ83: 39.26426697 | BA83: 0 | BB83: 0 | BC83: 0 | BD83: 0 | BE83: S | BH83: 42.94559479 | BI83: 41.15999985 | BJ83: 21855.57829 | BK83: 0.09643758088 | BM83: 37.42277527 | BN83: 38.08000183 | BO83: 0 | BP83: 0 | BQ83: 0 | BR83: 0 | BS83: S | BV83: 21.77000046 | BW83: 43.06999969 | BX83: 23074.48631 | BY83: 0.0267494116 | CA83: 42.16106033 | CB83: 41.2953186 | CC83: 41.15999985 | CD83: 0 | CE83: 0 | CF83: 0 | CG83: L | CJ83: 41.72999954 | CK83: 42.42308044 | CL83: 37867.44208 | CM83: 0.06205368042 | CO83: 42.20352554 | CP83: 38.6686058 | CQ83: 40.65999985 | CR83: 0 | CS83: 0 | CT83: 0 | CU83: L | CX83: 41.29000092 | CY83: 41.11000061 | CZ83: 24154.55678 | DA83: 0.1108429208 | DC83: 45.60029602 | DD83: 41.14983749 | DE83: 41.15999985 | DF83: 41.15999985 | DG83: 0 | DH83: 0 | DI83: L | DK83: RvS S | DL83: 41.29000092 | DM83: 41.15999985 | DN83: 24801.15814 | DO83: 0.06343987584 | DQ83: 42.31650925 | DR83: 41.14983749 | DS83: 41.15999985 | DT83: 41.15999985 | DU83: 0 | DV83: 0 | DW83: L | DY83: RvS S | DZ83: 41.29000092 | EA83: 41.15999985 | EB83: 25330.03532 | EC83: 0.06343987584 | ED83: 72 | EE83: 72 | EF83: 72
B84: B | C84: 2023-08-08 | D84: 41.29000092 | E84: 41.29000092 | F84: 40 | G84: 41.08000183 | H84: 94390000 | I84: 45.70999908 | J84: 40 | K84: 40.64500046 | L84: 40.81666692 | M84: 42.51517623 | O84: 43.07149963 | P84: 0 | Q84: 0 | U84: 0 | W84: 40.14167023 | X84: 40.90784836 | Y84: 40.14167023 | Z84: 40.90784836 | AA84: 0 | AB84: 0 | AC84: L | AE84: RvS S | AF84: 43.34790421 | AG84: 40.90784836 | AH84: 30080.95436 | AI84: 0.06946290284 | AK84: 38.79026031 | AL84: 38.95495605 | AM84: 0 | AN84: 0 | AO84: 0 | AP84: 0 | AQ84: S | AT84: 20.13024521 | AU84: 43.6224556 | AV84: 26529.10177 | AW84: 0.01380462758 | AY84: 39.76911545 | AZ84: 40.29652786 | BA84: 0 | BB84: 41.15999985 | BC84: 0 | BD84: 0 | BE84: L | BG84: RvS O | BH84: 42.94559479 | BI84: 41.15999985 | BJ84: 21593.26938 | BK84: 0.1072820649 | BM84: 37.42277527 | BN84: 38.97488022 | BO84: 0 | BP84: 0 | BQ84: 0 | BR84: 0 | BS84: S | BV84: 21.77000046 | BW84: 43.06999969 | BX84: 22820.80902 | BY84: 0.03744917735 | CA84: 43.12055969 | CB84: 42.23511887 | CC84: 41.29000092 | CD84: 0 | CE84: 0 | CF84: 0 | CG84: L | CJ84: 41.72999954 | CK84: 42.42308044 | CL84: 38333.10173 | CM84: 0.05051966384 | CO84: 42.20352554 | CP84: 39.68520737 | CQ84: 41.15999985 | CR84: 0 | CS84: 0 | CT84: 0 | CU84: L | CX84: 41.29000092 | CY84: 41.11000061 | CZ84: 24451.58773 | DA84: 0.09990886599 | DC84: 45.60029602 | DD84: 42.23167038 | DE84: 41.29000092 | DF84: 0 | DG84: 0 | DH84: 0 | DI84: S | DJ84: RvL S | DL84: 41.29000092 | DM84: 41.72999954 | DN84: 24503.49662 | DO84: 0.07468039542 | DQ84: 43.42901611 | DR84: 42.23167038 | DS84: 41.29000092 | DT84: 0 | DU84: 0 | DV84: 0 | DW84: S | DX84: RvL S | DZ84: 41.29000092 | EA84: 41.72999954 | EB84: 25026.02625 | EC84: 0.07468039542 | ED84: 73 | EE84: 73 | EF84: 73
B85: BPC | C85: 2023-08-07 | D85: 41.72999954 | E85: 42.20000076 | F85: 40.93999863 | G85: 42.15999985 | H85: 74896100 | I85: 45.70999908 | J85: 40.93999863 | K85: 41.56999969 | L85: 41.47666677 | M85: 42.93077084 | O85: 43.37499962 | P85: 0 | Q85: 0 | U85: 0 | W85: 40.17108536 | X85: 39.91814041 | Y85: 0 | Z85: 0 | AA85: 0 | AB85: 0 | AC85: L | AF85: 43.34790421 | AG85: 44.94429398 | AH85: 30550.27363 | AI85: 0.05494477972 | AK85: 38.89623642 | AL85: 39.571064 | AM85: 0 | AN85: 0 | AO85: 0 | AP85: 0 | AQ85: S | AT85: 20.13024521 | AU85: 43.6224556 | AV85: 26454.26574 | AW85: 0.0165865887 | AY85: 39.79825974 | AZ85: 39.32161331 | BA85: 0 | BB85: 0 | BC85: 0 | BD85: 0 | BE85: L | BH85: 42.94559479 | BI85: 43.88000107 | BJ85: 21661.47026 | BK85: 0.1044624746 | BM85: 37.42277527 | BN85: 39.00344086 | BO85: 0 | BP85: 0 | BQ85: 0 | BR85: 0 | BS85: S | BV85: 21.77000046 | BW85: 43.06999969 | BX85: 22754.85238 | BY85: 0.04023113847 | CA85: 43.63920975 | CB85: 42.74311829 | CC85: 41.72999954 | CD85: 0 | CE85: 0 | CF85: 0 | CG85: S | CH85: RvL S | CJ85: 41.72999954 | CK85: 42.42308044 | CL85: 38454.17423 | CM85: 0.04752079397 | CO85: 42.20352554 | CP85: 38.7250824 | CQ85: 41.29000092 | CR85: 0 | CS85: 0 | CT85: 0 | CU85: S | CV85: RvL O | CX85: 41.29000092 | CY85: 41.11000061 | CZ85: 24528.81641 | DA85: 0.09706599265 | DC85: 45.60029602 | DD85: 41.20993805 | DE85: 41.72999954 | DF85: 41.72999954 | DG85: 0 | DH85: 0 | DI85: L | DK85: RvS S | DL85: 42.38999939 | DM85: 41.72999954 | DN85: 24580.88925 | DO85: 0.07175783813 | DQ85: 42.37831497 | DR85: 41.20993805 | DS85: 41.72999954 | DT85: 41.72999954 | DU85: 0 | DV85: 0 | DW85: L | DY85: RvS S | DZ85: 42.38999939 | EA85: 41.72999954 | EB85: 25105.06926 | EC85: 0.07175783813 | ED85: 74 | EE85: 74 | EF85: 74
B86: 1 | C86: 2023-08-04 | D86: 42.38999939 | E86: 43.16999817 | F86: 40.97000122 | G86: 41.13999939 | H86: 123503100 | I86: 45.70999908 | J86: 40.97000122 | K86: 42.06999969 | L86: 41.95666631 | M86: 43.23316443 | O86: 43.49349976 | P86: 0 | Q86: 0 | U86: 0 | W86: 40.24952316 | X86: 40.48091888 | Y86: 0 | Z86: 0 | AA86: 0 | AB86: 0 | AC86: L | AF86: 43.34790421 | AG86: 44.94429398 | AH86: 30875.8265 | AI86: 0.04487399012 | AK86: 39.01026154 | AL86: 38.37618637 | AM86: 0 | AN86: 0 | AO86: 0 | AP86: 0 | AQ86: S | AT86: 20.13024521 | AU86: 43.6224556 | AV86: 26200.97744 | AW86: 0.02600235306 | AY86: 39.87596893 | AZ86: 39.87597656 | BA86: 0 | BB86: 0 | BC86: 0 | BD86: 0 | BE86: L | BH86: 42.94559479 | BI86: 43.88000107 | BJ86: 21892.30138 | BK86: 0.09491936117 | BM86: 37.42277527 | BN86: 39.07959747 | BO86: 0 | BP86: 0 | BQ86: 0 | BR86: 0 | BS86: S | BV86: 21.77000046 | BW86: 43.06999969 | BX86: 22531.61706 | BY86: 0.04964690283 | CA86: 43.31246185 | CB86: 42.42308044 | CC86: 42.38999939 | CD86: 42.42308044 | CE86: 0 | CF86: 0 | CG86: L | CI86: RvS S | CJ86: 44.79000092 | CK86: 42.42308044 | CL86: 38863.95344 | CM86: 0.03737089038 | CO86: 42.20352554 | CP86: 39.27103806 | CQ86: 0 | CR86: 0 | CS86: 0 | CT86: 0 | CU86: S | CX86: 42.97999954 | CY86: 41.11000061 | CZ86: 24265.13096 | DA86: 0.1067725569 | DC86: 45.60029602 | DD86: 41.79092407 | DE86: 42.38999939 | DF86: 42.38999939 | DG86: 0 | DH86: 0 | DI86: S | DJ86: RvL S | DL86: 42.38999939 | DM86: 42.09143448 | DN86: 24324.41408 | DO86: 0.08144304901 | DQ86: 42.97577286 | DR86: 41.79092407 | DS86: 42.38999939 | DT86: 42.38999939 | DU86: 0 | DV86: 0 | DW86: S | DX86: RvL S | DZ86: 42.38999939 | EA86: 42.09143448 | EB86: 24843.12483 | EC86: 0.08144304901 | ED86: 75 | EE86: 75 | EF86: 75
B87: 0.1813 | C87: 2023-08-03 | D87: 41.11000061 | E87: 42.45999908 | F87: 41.04999924 | G87: 41.72000122 | H87: 100670100 | I87: 45.70999908 | J87: 41.04999924 | K87: 41.75499916 | L87: 41.9666659 | M87: 43.49164549 | O87: 43.62099972 | P87: 0 | Q87: 0 | U87: 0 | W87: 40.72016525 | X87: 40.77200699 | Y87: 0 | Z87: 0 | AA87: 0 | AB87: 0 | AC87: L | AF87: 43.34790421 | AG87: 44.94429398 | AH87: 31364.15723 | AI87: 0.02976775728 | AK87: 39.22846985 | AL87: 40.78461456 | AM87: 0 | AN87: 0 | AO87: 0 | AP87: 0 | AQ87: S | AT87: 20.13024521 | AU87: 43.6224556 | AV87: 25821.04389 | AW87: 0.04012604058 | AY87: 40.34223938 | AZ87: 40.16271591 | BA87: 0 | BB87: 0 | BC87: 0 | BD87: 0 | BE87: L | BH87: 42.94559479 | BI87: 43.88000107 | BJ87: 22238.54906 | BK87: 0.08060464263 | BM87: 37.42277527 | BN87: 39.53656006 | BO87: 0 | BP87: 0 | BQ87: 0 | BR87: 0 | BS87: S | BV87: 21.77000046 | BW87: 43.06999969 | BX87: 22196.76311 | BY87: 0.06377058476 | CA87: 44.20454025 | CB87: 43.29684067 | CC87: 41.11000061 | CD87: 0 | CE87: 0 | CF87: 0 | CG87: L | CJ87: 44.79000092 | CK87: 45.57775879 | CL87: 38209.40942 | CM87: 0.05358342081 | CO87: 42.20352554 | CP87: 39.55342484 | CQ87: 0 | CR87: 0 | CS87: 0 | CT87: 0 | CU87: S | CX87: 42.97999954 | CY87: 41.11000061 | CZ87: 23869.60164 | DA87: 0.1213324443 | DC87: 45.60029602 | DD87: 42.09143448 | DE87: 41.11000061 | DF87: 42.09143448 | DG87: 0 | DH87: 0 | DI87: L | DK87: RvS S | DL87: 44.79000092 | DM87: 42.09143448 | DN87: 24709.12795 | DO87: 0.06691519171 | DQ87: 43.28480148 | DR87: 42.09143448 | DS87: 41.11000061 | DT87: 42.09143448 | DU87: 0 | DV87: 0 | DW87: L | DY87: RvS S | DZ87: 44.79000092 | EA87: 42.09143448 | EB87: 25236.04261 | EC87: 0.06691519171 | ED87: 76 | EE87: 76 | EF87: 76
B88: =BU542 -> H | C88: 2023-08-02 | D88: 43.68999863 | E88: 43.70000076 | F88: 41.52999878 | G88: 42.02000046 | H88: 129022000 | I88: 45.70999908 | J88: 41.52999878 | K88: 42.61499977 | L88: 42.11333338 | M88: 43.87756689 | O88: 43.86499977 | P88: 0 | Q88: 0 | U88: 0 | W88: 43.34790421 | X88: 43.62468719 | Y88: 43.34790421 | Z88: 43.62468719 | AA88: 0 | AB88: 0 | AC88: S | AD88: RvL S | AF88: 43.34790421 | AG88: 44.94429398 | AH88: 30417.09227 | AI88: 0.0590646714 | AK88: 39.57411575 | AL88: 41.81146622 | AM88: 0 | AN88: 41.81146622 | AO88: 0 | AP88: 0 | AQ88: S | AT88: 20.13024521 | AU88: 43.6224556 | AV88: 26557.88418 | AW88: 0.0127346674 | AY88: 42.94559479 | AZ88: 42.97276688 | BA88: 42.94559479 | BB88: 41.11000061 | BC88: 0 | BD88: 0 | BE88: S | BF88: RvL S | BH88: 42.94559479 | BI88: 43.88000107 | BJ88: 21567.03889 | BK88: 0.1083664969 | BM88: 38.5935173 | BN88: 42.08791733 | BO88: 0 | BP88: 42.02000046 | BQ88: 0 | BR88: 0 | BS88: S | BV88: 21.77000046 | BW88: 43.06999969 | BX88: 22846.17636 | BY88: 0.0363792181 | CA88: 46.38805389 | CB88: 45.43552017 | CC88: 43.68999863 | CD88: 0 | CE88: 0 | CF88: 0 | CG88: L | CJ88: 44.79000092 | CK88: 45.57775879 | CL88: 37055.64679 | CM88: 0.08216120303 | CO88: 45.04721069 | CP88: 42.32084656 | CQ88: 41.11000061 | CR88: 41.11000061 | CS88: 0 | CT88: 0 | CU88: L | CW88: RvS O | CX88: 42.97999954 | CY88: 41.11000061 | CZ88: 24636.68825 | DA88: 0.09309510142 | DC88: 47.0268631 | DD88: 45.03643036 | DE88: 43.68999863 | DF88: 0 | DG88: 0 | DH88: 0 | DI88: L | DL88: 44.79000092 | DM88: 45.33000183 | DN88: 24305.3965 | DO88: 0.08216120303 | DQ88: 46.31329346 | DR88: 45.03643036 | DS88: 43.68999863 | DT88: 0 | DU88: 0 | DV88: 0 | DW88: L | DZ88: 44.79000092 | EA88: 45.33000183 | EB88: 24823.70172 | EC88: 0.08216120303 | ED88: 77 | EE88: 77 | EF88: 77
B89: =BU543 -> B | C89: 2023-08-01 | D89: 44.79000092 | E89: 45.22999954 | F89: 44.20999908 | G89: 44.95999908 | H89: 76528300 | I89: 47.13999939 | J89: 42.20000076 | K89: 44.71999931 | L89: 44.37666575 | M89: 44.15813736 | O89: 44.25149975 | P89: 0 | Q89: 0 | U89: 0 | W89: 43.94601059 | X89: 43.96429443 | Y89: 0 | Z89: 0 | AA89: 0 | AB89: 0 | AC89: S | AF89: 39.00428772 | AG89: 44.94429398 | AH89: 31837.15636 | AI89: 0.01513580047 | AK89: 39.65057755 | AL89: 42.31555557 | AM89: 0 | AN89: 0 | AO89: 0 | AP89: 0 | AQ89: S | AT89: 20.13024521 | AU89: 43.6224556 | AV89: 25072.6902 | AW89: 0.06794541329 | AY89: 43.53814697 | AZ89: 43.30730057 | BA89: 0 | BB89: 0 | BC89: 0 | BD89: 0 | BE89: S | BH89: 39.54569244 | BI89: 43.88000107 | BJ89: 22155.78054 | BK89: 0.08402649313 | BM89: 38.5935173 | BN89: 42.66864014 | BO89: 0 | BP89: 0 | BQ89: 0 | BR89: 0 | BS89: S | BV89: 21.77000046 | BW89: 43.06999969 | BX89: 21537.20253 | BY89: 0.09158995748 | CA89: 46.9533844 | CB89: 45.98923874 | CC89: 44.79000092 | CD89: 0 | CE89: 0 | CF89: 0 | CG89: S | CH89: RvL S | CJ89: 44.79000092 | CK89: 45.57775879 | CL89: 39381.20003 | CM89: 0.02455910482 | CO89: 45.04721069 | CP89: 42.65030289 | CQ89: 0 | CR89: 0 | CS89: 0 | CT89: 0 | CU89: L | CX89: 42.97999954 | CY89: 43.88000107 | CZ89: 26182.84748 | DA89: 0.03617919981 | DC89: 47.0268631 | DD89: 45.38702774 | DE89: 44.79000092 | DF89: 0 | DG89: 0 | DH89: 0 | DI89: S | DJ89: RvL S | DL89: 44.79000092 | DM89: 45.33000183 | DN89: 25830.76439 | DO89: 0.02455910482 | DQ89: 46.67383194 | DR89: 45.38702774 | DS89: 44.79000092 | DT89: 0 | DU89: 0 | DV89: 0 | DW89: S | DX89: RvL S | DZ89: 44.79000092 | EA89: 45.33000183 | EB89: 26381.59761 | EC89: 0.02455910482 | ED89: 78 | EE89: 78 | EF89: 78
B90: L | C90: 2023-07-31 | D90: 45.33000183 | E90: 45.70999908 | F90: 44.81999969 | G90: 45.31000137 | H90: 79504600 | I90: 47.13999939 | J90: 42.20000076 | K90: 45.26499939 | L90: 45.10666656 | M90: 44.03327915 | O90: 44.33699989 | P90: 0 | Q90: 0 | U90: 0 | W90: 43.2694664 | X90: 43.87696838 | Y90: 0 | Z90: 0 | AA90: 0 | AB90: 0 | AC90: S | AF90: 39.00428772 | AG90: 44.94429398 | AH90: 31079.10416 | AI90: 0.03858571127 | AK90: 39.61257172 | AL90: 41.35404968 | AM90: 0 | AN90: 0 | AO90: 0 | AP90: 0 | AQ90: S | AT90: 20.13024521 | AU90: 43.6224556 | AV90: 24439.46615 | AW90: 0.09148494154 | AY90: 42.86788177 | AZ90: 43.22127533 | BA90: 0 | BB90: 0 | BC90: 0 | BD90: 0 | BE90: S | BH90: 39.54569244 | BI90: 43.88000107 | BJ90: 21602.76472 | BK90: 0.1068895012 | BM90: 38.5935173 | BN90: 42.01176071 | BO90: 0 | BP90: 0 | BQ90: 0 | BR90: 0 | BS90: S | BV90: 21.77000046 | BW90: 43.06999969 | BX90: 20979.11133 | BY90: 0.1151294932 | CA90: 46.53327942 | CB90: 45.57775879 | CC90: 45.33000183 | CD90: 45.57775879 | CE90: 0 | CF90: 0 | CG90: L | CI90: RvS S | CJ90: 44.29999924 | CK90: 45.57775879 | CL90: 40372.7178 | CM90: 0 | CO90: 45.04721069 | CP90: 42.56558609 | CQ90: 0 | CR90: 0 | CS90: 0 | CT90: 0 | CU90: L | CX90: 42.97999954 | CY90: 43.88000107 | CZ90: 26842.06453 | DA90: 0.01191266067 | DC90: 47.0268631 | DD90: 45.296875 | DE90: 45.33000183 | DF90: 45.33000183 | DG90: 0 | DH90: 0 | DI90: L | DK90: RvS S | DL90: 44.29999924 | DM90: 45.33000183 | DN90: 26481.11689 | DO90: 0 | DQ90: 46.58112335 | DR90: 45.296875 | DS90: 45.33000183 | DT90: 45.33000183 | DU90: 0 | DV90: 0 | DW90: L | DY90: RvS S | DZ90: 44.19129181 | EA90: 45.33000183 | EB90: 27045.81868 | EC90: 0 | ED90: 79 | EE90: 79 | EF90: 79
B91: C | C91: 2023-07-28 | D91: 44.29999924 | E91: 45.59000015 | F91: 44.13000107 | G91: 45.22000122 | H91: 102243800 | I91: 47.13999939 | J91: 42.20000076 | K91: 44.86000061 | L91: 45.01666768 | M91: 43.75956354 | O91: 44.29449997 | P91: 0 | Q91: 0 | U91: 0 | W91: 41.62222672 | X91: 41.62586975 | Y91: 0 | Z91: 0 | AA91: 0 | AB91: 0 | AC91: S | AF91: 39.00428772 | AG91: 44.94429398 | AH91: 30706.96959 | AI91: 0.05009748042 | AK91: 39.58395386 | AL91: 42.11018372 | AM91: 0 | AN91: 0 | AO91: 0 | AP91: 0 | AQ91: S | AT91: 20.13024521 | AU91: 43.6224556 | AV91: 24128.61083 | AW91: 0.1030407101 | AY91: 41.2359314 | AZ91: 41.00382233 | BA91: 0 | BB91: 0 | BC91: 0 | BD91: 0 | BE91: S | BH91: 39.54569244 | BI91: 43.88000107 | BJ91: 21331.28433 | BK91: 0.1181131601 | BM91: 38.5935173 | BN91: 40.41239929 | BO91: 0 | BP91: 0 | BQ91: 0 | BR91: 0 | BS91: S | BV91: 21.77000046 | BW91: 43.06999969 | BX91: 20705.13939 | BY91: 0.1266852617 | CA91: 45.71380997 | CB91: 44.77511978 | CC91: 44.29999924 | CD91: 44.77511978 | CE91: 0 | CF91: 0 | CG91: S | CH91: RvL S | CJ91: 44.29999924 | CK91: 45.11000061 | CL91: 39471.04139 | CM91: 0 | CO91: 45.04721069 | CP91: 40.38177109 | CQ91: 0 | CR91: 0 | CS91: 0 | CT91: 0 | CU91: L | CX91: 42.97999954 | CY91: 43.88000107 | CZ91: 27165.68005 | DA91: 0 | DC91: 47.0268631 | DD91: 42.97293091 | DE91: 44.29999924 | DF91: 44.29999924 | DG91: 0 | DH91: 0 | DI91: S | DJ91: RvL S | DL91: 44.29999924 | DM91: 45.11000061 | DN91: 26169.37008 | DO91: 0 | DQ91: 44.19129181 | DR91: 42.97293091 | DS91: 44.19129181 | DT91: 44.29999924 | DU91: 0 | DV91: 0 | DW91: S | DX91: RvL S | DZ91: 44.19129181 | EA91: 45.11000061 | EB91: 26727.42396 | EC91: 0 | ED91: 80 | EE91: 80 | EF91: 80
B92: S | C92: 2023-07-27 | D92: 45.11000061 | E92: 45.68999863 | F92: 42.45000076 | G92: 42.90000153 | H92: 130551600 | I92: 47.13999939 | J92: 42.20000076 | K92: 44.06999969 | L92: 44.14666621 | M92: 43.51502197 | O92: 44.2625 | P92: 0 | Q92: 0 | U92: 0 | W92: 41.61241913 | X92: 41.98488235 | Y92: 0 | Z92: 0 | AA92: 0 | AB92: 0 | AC92: S | AF92: 39.00428772 | AG92: 44.94429398 | AH92: 31416.78241 | AI92: 0.02813982777 | AK92: 39.54147339 | AL92: 40.43922043 | AM92: 0 | AN92: 0 | AO92: 0 | AP92: 0 | AQ92: S | AT92: 20.13024521 | AU92: 43.6224556 | AV92: 24721.53906 | AW92: 0.08099913597 | AY92: 41.22621536 | AZ92: 41.35746765 | BA92: 0 | BB92: 0 | BC92: 0 | BD92: 0 | BE92: S | BH92: 39.54569244 | BI92: 43.88000107 | BJ92: 21849.10846 | BK92: 0.09670505673 | BM92: 38.5935173 | BN92: 40.40287781 | BO92: 0 | BP92: 0 | BQ92: 0 | BR92: 0 | BS92: S | BV92: 21.77000046 | BW92: 43.06999969 | BX92: 21227.71593 | BY92: 0.1046436876 | CA92: 44.75430679 | CB92: 43.83531952 | CC92: 44.75430679 | CD92: 45.11000061 | CE92: 0 | CF92: 0 | CG92: L | CI92: RvS S | CJ92: 43.31999969 | CK92: 45.11000061 | CL92: 38574.16794 | CM92: 0 | CO92: 45.04721069 | CP92: 40.73005295 | CQ92: 0 | CR92: 0 | CS92: 0 | CT92: 0 | CU92: L | CX92: 42.97999954 | CY92: 43.88000107 | CZ92: 26548.41291 | DA92: 0.01795613766 | DC92: 47.0268631 | DD92: 43.34355927 | DE92: 45.11000061 | DF92: 45.11000061 | DG92: 0 | DH92: 0 | DI92: L | DK92: RvS S | DL92: 43.31999969 | DM92: 45.11000061 | DN92: 25574.7414 | DO92: 0 | DQ92: 44.57242584 | DR92: 43.34355927 | DS92: 44.57242584 | DT92: 45.11000061 | DU92: 0 | DV92: 0 | DW92: L | DY92: RvS S | DZ92: 43.31999969 | EA92: 45.11000061 | EB92: 25994.48147 | EC92: 0 | ED92: 81 | EE92: 81 | EF92: 81
B93: BLC | C93: 2023-07-26 | D93: 43.31999969 | E93: 43.84999847 | F93: 42.43999863 | G93: 43.27000046 | H93: 102882300 | I93: 47.13999939 | J93: 42.20000076 | K93: 43.14499855 | L93: 43.79999924 | M93: 43.39169359 | O93: 44.21500015 | P93: 0 | Q93: 0 | U93: 0 | W93: 42.23994064 | X93: 42.42151642 | Y93: 0 | Z93: 0 | AA93: 0 | AB93: 0 | AC93: S | AF93: 39.00428772 | AG93: 44.94429398 | AH93: 30858.58055 | AI93: 0.04540748149 | AK93: 39.42074585 | AL93: 40.21518326 | AM93: 0 | AN93: 0 | AO93: 0 | AP93: 0 | AQ93: S | AT93: 20.13024521 | AU93: 43.6224556 | AV93: 24255.25608 | AW93: 0.09833278507 | AY93: 41.84791565 | AZ93: 41.78757858 | BA93: 0 | BB93: 0 | BC93: 0 | BD93: 0 | BE93: S | BH93: 39.54569244 | BI93: 43.88000107 | BJ93: 21441.88788 | BK93: 0.1135405451 | BM93: 38.5935173 | BN93: 41.01216125 | BO93: 0 | BP93: 0 | BQ93: 0 | BR93: 0 | BS93: S | BV93: 21.77000046 | BW93: 43.06999969 | BX93: 20816.75802 | BY93: 0.1219773367 | CA93: 45.30926514 | CB93: 44.37887955 | CC93: 43.31999969 | CD93: 0 | CE93: 0 | CF93: 0 | CG93: S | CH93: RvL S | CJ93: 43.31999969 | CK93: 43.43907928 | CL93: 37893.74269 | CM93: 0 | CO93: 45.04721069 | CP93: 41.15363693 | CQ93: 45.11000061 | CR93: 0 | CS93: 0 | CT93: 0 | CU93: L | CX93: 42.97999954 | CY93: 43.88000107 | CZ93: 27033.83619 | DA93: 0 | DC93: 47.0268631 | DD93: 43.79432678 | DE93: 43.31999969 | DF93: 43.79432678 | DG93: 0 | DH93: 0 | DI93: S | DJ93: RvL S | DL93: 43.31999969 | DM93: 43.08000183 | DN93: 25123.61826 | DO93: 0 | DQ93: 45.0359726 | DR93: 43.79432678 | DS93: 43.31999969 | DT93: 43.79432678 | DU93: 0 | DV93: 0 | DW93: S | DX93: RvL S | DZ93: 43.31999969 | EA93: 43.08000183 | EB93: 25535.95437 | EC93: 0 | ED93: 82 | EE93: 82 | EF93: 82
B94: 1 | C94: 2023-07-25 | D94: 43.08000183 | E94: 44.27999878 | F94: 43.08000183 | G94: 43.72000122 | H94: 69099600 | I94: 47.13999939 | J94: 41.15000153 | K94: 43.68000031 | L94: 43.5600001 | M94: 43.44651471 | O94: 44.08000031 | P94: 0 | Q94: 0 | U94: 0 | W94: 41.3771019 | X94: 41.58705902 | Y94: 0 | Z94: 0 | AA94: 0 | AB94: 0 | AC94: S | AF94: 39.00428772 | AG94: 44.94429398 | AH94: 32092.13629 | AI94: 0.007248142269 | AK94: 39.0880661 | AL94: 40.12182999 | AM94: 0 | AN94: 0 | AO94: 0 | AP94: 0 | AQ94: S | AT94: 20.13024521 | AU94: 43.6224556 | AV94: 25285.68268 | AW94: 0.06002760679 | AY94: 40.99308014 | AZ94: 40.96558762 | BA94: 0 | BB94: 0 | BC94: 0 | BD94: 0 | BE94: S | BH94: 39.54569244 | BI94: 43.88000107 | BJ94: 22341.79403 | BK94: 0.07633624971 | BM94: 38.5935173 | BN94: 40.17440033 | BO94: 0 | BP94: 0 | BQ94: 0 | BR94: 0 | BS94: S | BV94: 21.77000046 | BW94: 43.06999969 | BX94: 21724.92319 | BY94: 0.08367215842 | CA94: 44.34976196 | CB94: 43.43907928 | CC94: 43.08000183 | CD94: 43.43907928 | CE94: 0 | CF94: 0 | CG94: L | CI94: RvS S | CJ94: 45.15999985 | CK94: 43.43907928 | CL94: 36390.08866 | CM94: 0.03547026962 | CO94: 45.04721069 | CP94: 40.34412003 | CQ94: 43.31999969 | CR94: 0 | CS94: 0 | CT94: 0 | CU94: L | CX94: 42.97999954 | CY94: 43.88000107 | CZ94: 25961.11194 | DA94: 0.03414846212 | DC94: 47.0268631 | DD94: 42.93286133 | DE94: 43.08000183 | DF94: 43.08000183 | DG94: 0 | DH94: 0 | DI94: L | DK94: RvS S | DL94: 42.97999954 | DM94: 43.08000183 | DN94: 24126.69298 | DO94: 0.01164428331 | DQ94: 44.15008545 | DR94: 42.93286133 | DS94: 43.08000183 | DT94: 43.08000183 | DU94: 0 | DV94: 0 | DW94: L | DY94: RvS S | DZ94: 42.97999954 | EA94: 43.08000183 | EB94: 24522.66727 | EC94: 0.01164428331 | ED94: 83 | EE94: 83 | EF94: 83
B95: 0.048 | C95: 2023-07-24 | D95: 42.97999954 | E95: 43.31000137 | F95: 42.20000076 | G95: 42.86000061 | H95: 63214600 | I95: 47.13999939 | J95: 39.29999924 | K95: 42.75500107 | L95: 42.86333466 | M95: 43.39462902 | O95: 43.70800018 | P95: 0 | Q95: 0 | U95: 0 | W95: 41.68105316 | X95: 41.42210388 | Y95: 0 | Z95: 0 | AA95: 0 | AB95: 0 | AC95: S | AF95: 39.00428772 | AG95: 44.94429398 | AH95: 32257.52768 | AI95: 0.002131854417 | AK95: 38.79875946 | AL95: 40.96198273 | AM95: 0 | AN95: 0 | AO95: 0 | AP95: 0 | AQ95: S | AT95: 20.13024521 | AU95: 43.6224556 | AV95: 25423.83914 | AW95: 0.05489176512 | AY95: 41.29421234 | AZ95: 40.80310059 | BA95: 0 | BB95: 0 | BC95: 0 | BD95: 0 | BE95: S | BH95: 39.54569244 | BI95: 43.88000107 | BJ95: 22462.4507 | BK95: 0.07134801149 | BM95: 38.5935173 | BN95: 40.46951675 | BO95: 0 | BP95: 0 | BQ95: 0 | BR95: 0 | BS95: S | BV95: 21.77000046 | BW95: 43.06999969 | BX95: 21846.68721 | BY95: 0.07853631675 | CA95: 44.9617691 | CB95: 44.03852081 | CC95: 42.97999954 | CD95: 0 | CE95: 0 | CF95: 0 | CG95: L | CJ95: 45.15999985 | CK95: 46.72999954 | CL95: 35990.6157 | CM95: 0.04605841637 | CO95: 45.04721069 | CP95: 40.18409729 | CQ95: 43.08000183 | CR95: 0 | CS95: 0 | CT95: 0 | CU95: L | CX95: 42.97999954 | CY95: 43.88000107 | CZ95: 25817.28434 | DA95: 0.03949939087 | DC95: 47.0268631 | DD95: 42.76257324 | DE95: 42.97999954 | DF95: 42.97999954 | DG95: 0 | DH95: 0 | DI95: S | DJ95: RvL S | DL95: 42.97999954 | DM95: 43.88000107 | DN95: 24261.85531 | DO95: 0.006107326597 | DQ95: 43.97496796 | DR95: 42.76257324 | DS95: 42.97999954 | DT95: 42.97999954 | DU95: 0 | DV95: 0 | DW95: S | DX95: RvL S | DZ95: 42.97999954 | EA95: 43.88000107 | EB95: 24660.04792 | EC95: 0.006107326597 | ED95: 84 | EE95: 84 | EF95: 84
B96: =CH542 -> H | C96: 2023-07-21 | D96: 43.88000107 | E96: 44.18000031 | F96: 42.50999832 | G96: 42.68999863 | H96: 102377100 | I96: 47.13999939 | J96: 38.93000031 | K96: 43.34499931 | L96: 43.22333272 | M96: 43.53676857 | O96: 43.38450012 | P96: 0 | Q96: 0 | U96: 0 | W96: 41.85754395 | X96: 41.79082108 | Y96: 0 | Z96: 0 | AA96: 0 | AB96: 0 | AC96: S | AF96: 39.00428772 | AG96: 44.94429398 | AH96: 32326.44295 | AI96: 0 | AK96: 38.54611969 | AL96: 42.15686035 | AM96: 0 | AN96: 0 | AO96: 0 | AP96: 0 | AQ96: S | AT96: 20.13024521 | AU96: 43.6224556 | AV96: 25481.40616 | AW96: 0.05275176466 | AY96: 41.46906281 | AZ96: 41.16630554 | BA96: 0 | BB96: 0 | BC96: 0 | BD96: 0 | BE96: S | BH96: 39.54569244 | BI96: 43.88000107 | BJ96: 22512.72592 | BK96: 0.06926950812 | BM96: 38.5935173 | BN96: 40.64088058 | BO96: 0 | BP96: 0 | BQ96: 0 | BR96: 0 | BS96: S | BV96: 21.77000046 | BW96: 43.06999969 | BX96: 21897.42382 | BY96: 0.07639631629 | CA96: 45.84347153 | CB96: 44.90211868 | CC96: 43.88000107 | CD96: 0 | CE96: 0 | CF96: 0 | CG96: L | CJ96: 45.15999985 | CK96: 46.72999954 | CL96: 35907.07011 | CM96: 0.0482728146 | CO96: 45.04721069 | CP96: 40.54179001 | CQ96: 42.97999954 | CR96: 0 | CS96: 0 | CT96: 0 | CU96: S | CV96: RvL O | CX96: 42.97999954 | CY96: 43.88000107 | CZ96: 25757.35427 | DA96: 0.04172901809 | DC96: 47.0268631 | DD96: 43.14321899 | DE96: 43.88000107 | DF96: 43.88000107 | DG96: 0 | DH96: 0 | DI96: L | DK96: RvS S | DL96: 45.15999985 | DM96: 43.88000107 | DN96: 24205.53588 | DO96: 0.008414465003 | DQ96: 44.36640549 | DR96: 43.14321899 | DS96: 43.88000107 | DT96: 43.88000107 | DU96: 0 | DV96: 0 | DW96: L | DY96: RvS S | DZ96: 45.15999985 | EA96: 43.88000107 | EB96: 24602.80416 | EC96: 0.008414465003 | ED96: 85 | EE96: 85 | EF96: 85
B97: =CH543 -> B | C97: 2023-07-20 | D97: 45.15999985 | E97: 45.70000076 | F97: 42.68999863 | G97: 43.06999969 | H97: 116931400 | I97: 47.13999939 | J97: 38.93000031 | K97: 44.19499969 | L97: 44.09000015 | M97: 43.57938396 | O97: 43.10200005 | P97: 0 | Q97: 0 | U97: 0 | W97: 44.92650986 | X97: 44.94429398 | Y97: 44.92650986 | Z97: 44.94429398 | AA97: 0 | AB97: 0 | AC97: L | AE97: RvS S | AF97: 39.00428772 | AG97: 44.94429398 | AH97: 31706.21866 | AI97: 0.0154378172 | AK97: 38.15799332 | AL97: 43.6224556 | AM97: 0 | AN97: 43.6224556 | AO97: 0 | AP97: 0 | AQ97: L | AS97: RvS S | AT97: 20.13024521 | AU97: 43.6224556 | AV97: 24963.31396 | AW97: 0.07201137394 | AY97: 44.50954819 | AZ97: 44.27265549 | BA97: 44.50954819 | BB97: 43.88000107 | BC97: 0 | BD97: 0 | BE97: L | BG97: RvS O | BH97: 39.54569244 | BI97: 43.88000107 | BJ97: 22060.2586 | BK97: 0.08797559887 | BM97: 38.5935173 | BN97: 43.6206398 | BO97: 0 | BP97: 43.06999969 | BQ97: 0 | BR97: 0 | BS97: L | BU97: RvS C | BV97: 21.77000046 | BW97: 43.06999969 | BX97: 21440.80392 | BY97: 0.09565592557 | CA97: 48.21370316 | CB97: 47.22367859 | CC97: 45.15999985 | CD97: 0 | CE97: 0 | CF97: 0 | CG97: S | CH97: RvL S | CJ97: 45.15999985 | CK97: 46.72999954 | CL97: 36658.96444 | CM97: 0.02834364027 | CO97: 22.40041161 | CP97: 43.601017 | CQ97: 0 | CR97: 43.88000107 | CS97: 0 | CT97: 0 | CU97: L | CW97: RvS O | CX97: 20.46999931 | CY97: 43.88000107 | CZ97: 25239.67547 | DA97: 0.06098862737 | DC97: 47.0268631 | DD97: 46.39874268 | DE97: 45.15999985 | DF97: 0 | DG97: 0 | DH97: 0 | DI97: S | DJ97: RvL S | DL97: 45.15999985 | DM97: 46.72999954 | DN97: 23719.04598 | DO97: 0.02834364027 | DQ97: 47.7142334 | DR97: 46.39874268 | DS97: 45.15999985 | DT97: 0 | DU97: 0 | DV97: 0 | DW97: S | DX97: RvL S | DZ97: 45.15999985 | EA97: 46.72999954 | EB97: 24108.32984 | EC97: 0.02834364027 | ED97: 86 | EE97: 86 | EF97: 86
B98: A | C98: 2023-07-19 | D98: 46.72999954 | E98: 47.13999939 | F98: 45.81999969 | G98: 46.31999969 | H98: 100286900 | I98: 47.13999939 | J98: 38.93000031 | K98: 46.47999954 | L98: 46.03999964 | M98: 43.44258047 | O98: 42.66800003 | P98: 0 | Q98: 0 | U98: 0 | W98: 43.44595718 | X98: 44.94429398 | Y98: 0 | Z98: 0 | AA98: 0 | AB98: 0 | AC98: L | AF98: 39.00428772 | AG98: 39.97000122 | AH98: 31121.42361 | AI98: 0.03359725326 | AK98: 37.6925087 | AL98: 42.02616882 | AM98: 0 | AN98: 0 | AO98: 0 | AP98: 0 | AQ98: L | AT98: 20.13024521 | AU98: 21.6478653 | AV98: 25996.67114 | AW98: 0.03359725326 | AY98: 43.04273605 | AZ98: 44.27265549 | BA98: 0 | BB98: 0 | BC98: 0 | BD98: 0 | BE98: L | BH98: 39.54569244 | BI98: 35.02000046 | BJ98: 22703.76597 | BK98: 0.06137145311 | BM98: 38.34790802 | BN98: 42.18312073 | BO98: 0 | BP98: 0 | BQ98: 0 | BR98: 0 | BS98: L | BV98: 21.77000046 | BW98: 24.04000092 | BX98: 22912.133 | BY98: 0.03359725326 | CA98: 47.27494812 | CB98: 46.30419922 | CC98: 46.72999954 | CD98: 46.72999954 | CE98: 0 | CF98: 0 | CG98: L | CI98: RvS S | CJ98: 45.02000046 | CK98: 46.72999954 | CL98: 37728.32243 | CM98: 0 | CO98: 22.40041161 | CP98: 43.601017 | CQ98: 0 | CR98: 0 | CS98: 0 | CT98: 0 | CU98: L | CX98: 20.46999931 | CY98: 21.81999969 | CZ98: 25975.92782 | DA98: 0.03359725326 | DC98: 46.72758484 | DD98: 46.39874268 | DE98: 46.72758484 | DF98: 46.72999954 | DG98: 0 | DH98: 0 | DI98: L | DK98: RvS S | DL98: 45.02000046 | DM98: 46.72999954 | DN98: 24410.9409 | DO98: 0 | DQ98: 47.7142334 | DR98: 46.39874268 | DS98: 46.72999954 | DT98: 46.72999954 | DU98: 0 | DV98: 0 | DW98: L | DY98: RvS S | DZ98: 45.02000046 | EA98: 46.72999954 | EB98: 24811.58035 | EC98: 0 | ED98: 87 | EE98: 87 | EF98: 87
B99: S | C99: 2023-07-18 | D99: 45.02000046 | E99: 46.84000015 | F99: 44.31000137 | G99: 46.31999969 | H99: 98316800 | I99: 46.84000015 | J99: 38.93000031 | K99: 45.57500076 | L99: 45.96000036 | M99: 42.76759845 | O99: 42.14750004 | P99: 0 | Q99: 0 | U99: 0 | W99: 43.24985504 | X99: 43.89637375 | Y99: 0 | Z99: 0 | AA99: 0 | AB99: 0 | AC99: L | AF99: 39.00428772 | AG99: 39.97000122 | AH99: 32203.36838 | AI99: 0 | AK99: 37.29812241 | AL99: 41.33538055 | AM99: 0 | AN99: 0 | AO99: 0 | AP99: 0 | AQ99: L | AT99: 20.13024521 | AU99: 21.6478653 | AV99: 26900.4525 | AW99: 0 | AY99: 42.84845352 | AZ99: 43.24039459 | BA99: 0 | BB99: 0 | BC99: 0 | BD99: 0 | BE99: L | BH99: 39.54569244 | BI99: 35.02000046 | BJ99: 23493.06858 | BK99: 0.0287397746 | BM99: 37.30815887 | BN99: 41.99272156 | BO99: 0 | BP99: 0 | BQ99: 0 | BR99: 0 | BS99: L | BV99: 21.77000046 | BW99: 24.04000092 | BX99: 23708.67954 | BY99: 0 | CA99: 46.51253128 | CB99: 45.55744171 | CC99: 45.02000046 | CD99: 45.55744171 | CE99: 0 | CF99: 0 | CG99: S | CH99: RvL S | CJ99: 45.02000046 | CK99: 45.25263977 | CL99: 36501.95689 | CM99: 0 | CO99: 22.40041161 | CP99: 42.58441544 | CQ99: 0 | CR99: 0 | CS99: 0 | CT99: 0 | CU99: L | CX99: 20.46999931 | CY99: 21.81999969 | CZ99: 26878.98802 | DA99: 0 | DC99: 45.46063232 | DD99: 45.31690979 | DE99: 45.02000046 | DF99: 45.31690979 | DG99: 0 | DH99: 0 | DI99: S | DJ99: RvL S | DL99: 45.02000046 | DM99: 44.27999878 | DN99: 23617.45911 | DO99: 0.02000864409 | DQ99: 46.60172653 | DR99: 45.31690979 | DS99: 45.02000046 | DT99: 45.31690979 | DU99: 0 | DV99: 0 | DW99: S | DX99: RvL S | DZ99: 45.02000046 | EA99: 44.27999878 | EB99: 24005.0757 | EC99: 0.01748179272 | ED99: 88 | EE99: 88 | EF99: 88
B100: B | C100: 2023-07-17 | D100: 44.27999878 | E100: 45.56999969 | F100: 44.11000061 | G100: 45.24000168 | H100: 72762600 | I100: 45.56999969 | J100: 38.93000031 | K100: 44.84000015 | L100: 44.90000025 | M100: 42.14373127 | O100: 41.70650005 | P100: 0 | Q100: 0 | U100: 0 | W100: 42.86746216 | X100: 42.71260834 | Y100: 0 | Z100: 0 | AA100: 0 | AB100: 0 | AC100: L | AF100: 39.00428772 | AG100: 39.97000122 | AH100: 31024.94486 | AI100: 0 | AK100: 36.93861389 | AL100: 41.27936935 | AM100: 0 | AN100: 0 | AO100: 0 | AP100: 0 | AQ100: L | AT100: 20.13024521 | AU100: 21.6478653 | AV100: 25916.07951 | AW100: 0 | AY100: 42.46960831 | AZ100: 42.07431793 | BA100: 0 | BB100: 0 | BC100: 0 | BD100: 0 | BE100: L | BH100: 39.54569244 | BI100: 35.02000046 | BJ100: 22633.38259 | BK100: 0.06428126991 | BM100: 37.13623428 | BN100: 41.62144089 | BO100: 0 | BP100: 0 | BQ100: 0 | BR100: 0 | BS100: L | BV100: 21.77000046 | BW100: 24.04000092 | BX100: 22841.10366 | BY100: 0 | CA100: 46.20134354 | CB100: 45.25263977 | CC100: 44.27999878 | CD100: 45.25263977 | CE100: 0 | CF100: 0 | CG100: L | CI100: RvS S | CJ100: 44.22000122 | CK100: 45.25263977 | CL100: 35166.23437 | CM100: 7.885973173e-05 | CO100: 22.40041161 | CP100: 41.43602753 | CQ100: 0 | CR100: 0 | CS100: 0 | CT100: 0 | CU100: L | CX100: 20.46999931 | CY100: 21.81999969 | CZ100: 25895.40049 | DA100: 0 | DC100: 45.25113678 | DD100: 44.09483337 | DE100: 44.27999878 | DF100: 44.27999878 | DG100: 0 | DH100: 0 | DI100: L | DK100: RvS S | DL100: 44.22000122 | DM100: 44.27999878 | DN100: 22753.22128 | DO100: 0.05586963892 | DQ100: 45.34500122 | DR100: 44.09483337 | DS100: 44.27999878 | DT100: 44.27999878 | DU100: 0 | DV100: 0 | DW100: L | DY100: RvS S | DZ100: 44.22000122 | EA100: 44.27999878 | EB100: 23126.65375 | EC100: 0.05343525484 | ED100: 89 | EE100: 89 | EF100: 89
B101: BAS | C101: 2023-07-14 | D101: 44.22000122 | E101: 45.36000061 | F101: 43.72000122 | G101: 44.02000046 | H101: 92836500 | I101: 45.36000061 | J101: 38.93000031 | K101: 44.54000092 | L101: 44.45333354 | M101: 41.5445604 | O101: 41.30450001 | P101: 0 | Q101: 0 | U101: 0 | W101: 41.99481583 | X101: 42.75141907 | Y101: 0 | Z101: 0 | AA101: 0 | AB101: 0 | AC101: L | AF101: 39.00428772 | AG101: 39.97000122 | AH101: 30514.98238 | AI101: 0 | AK101: 36.45345688 | AL101: 40.15917206 | AM101: 0 | AN101: 0 | AO101: 0 | AP101: 0 | AQ101: L | AT101: 20.13024521 | AU101: 21.6478653 | AV101: 25490.09235 | AW101: 0 | AY101: 41.60506439 | AZ101: 42.11254883 | BA101: 0 | BB101: 0 | BC101: 0 | BD101: 0 | BE101: L | BH101: 39.54569244 | BI101: 35.02000046 | BJ101: 22261.35369 | BK101: 0.07966184616 | BM101: 36.31753159 | BN101: 40.77416229 | BO101: 0 | BP101: 0 | BQ101: 0 | BR101: 0 | BS101: L | BV101: 21.77000046 | BW101: 24.04000092 | BX101: 22465.66042 | BY101: 0 | CA101: 45.22109604 | CB101: 44.29252243 | CC101: 44.22000122 | CD101: 44.29252243 | CE101: 0 | CF101: 0 | CG101: S | CH101: RvL S | CJ101: 44.22000122 | CK101: 43.02000046 | CL101: 34234.38895 | CM101: 0.02657506987 | CO101: 22.40041161 | CP101: 41.47367859 | CQ101: 0 | CR101: 0 | CS101: 0 | CT101: 0 | CU101: L | CX101: 20.46999931 | CY101: 21.81999969 | CZ101: 25469.75323 | DA101: 0 | DC101: 44.25353622 | DD101: 44.13490295 | DE101: 44.22000122 | DF101: 44.22000122 | DG101: 0 | DH101: 0 | DI101: S | DJ101: RvL S | DL101: 44.22000122 | DM101: 43.02000046 | DN101: 23139.93288 | DO101: 0.03982328996 | DQ101: 45.38620758 | DR101: 44.13490295 | DS101: 44.22000122 | DT101: 44.22000122 | DU101: 0 | DV101: 0 | DW101: S | DX101: RvL S | DZ101: 44.22000122 | EA101: 43.02000046 | EB101: 23519.71217 | EC101: 0.03734752908 | ED101: 90 | EE101: 90 | EF101: 90
B102: 1 | C102: 2023-07-13 | D102: 43.02000046 | E102: 44.36000061 | F102: 42.83000183 | G102: 44.06000137 | H102: 82386600 | I102: 44.36000061 | J102: 38.66999817 | K102: 43.59500122 | L102: 43.80333455 | M102: 40.87890696 | O102: 40.76199989 | P102: 0 | Q102: 0 | U102: 0 | W102: 40.34757614 | X102: 40.72349167 | Y102: 0 | Z102: 0 | AA102: 0 | AB102: 0 | AC102: L | AF102: 39.00428772 | AG102: 39.97000122 | AH102: 30473.63585 | AI102: 0 | AK102: 36.0769577 | AL102: 39.04830551 | AM102: 0 | AN102: 0 | AO102: 0 | AP102: 0 | AQ102: L | AT102: 20.13024521 | AU102: 21.6478653 | AV102: 25455.55433 | AW102: 0 | AY102: 39.9731102 | AZ102: 40.11492538 | BA102: 0 | BB102: 0 | BC102: 0 | BD102: 0 | BE102: L | BH102: 39.54569244 | BI102: 35.02000046 | BJ102: 22231.19048 | BK102: 0.08090886474 | BM102: 34.74562836 | BN102: 39.17480087 | BO102: 0 | BP102: 0 | BQ102: 0 | BR102: 0 | BS102: L | BV102: 21.77000046 | BW102: 24.04000092 | BX102: 22435.22038 | BY102: 0 | CA102: 43.35395432 | CB102: 42.46371841 | CC102: 43.02000046 | CD102: 43.02000046 | CE102: 0 | CF102: 0 | CG102: L | CI102: RvS S | CJ102: 41.45050812 | CK102: 43.02000046 | CL102: 34188.00277 | CM102: 0.02789402008 | CO102: 22.40041161 | CP102: 39.50636292 | CQ102: 0 | CR102: 0 | CS102: 0 | CT102: 0 | CU102: L | CX102: 20.46999931 | CY102: 21.81999969 | CZ102: 25435.24277 | DA102: 0 | DC102: 42.3381424 | DD102: 42.04135132 | DE102: 0 | DF102: 43.02000046 | DG102: 0 | DH102: 0 | DI102: L | DK102: RvS S | DL102: 41.73958588 | DM102: 43.02000046 | DN102: 23108.57923 | DO102: 0.04112428799 | DQ102: 43.23329926 | DR102: 42.04135132 | DS102: 43.02000046 | DT102: 43.02000046 | DU102: 0 | DV102: 0 | DW102: L | DY102: RvS S | DZ102: 41.6881485 | EA102: 43.02000046 | EB102: 23487.84394 | EC102: 0.0386518836 | ED102: 91 | EE102: 91 | EF102: 91
B103: -0.0373 | C103: 2023-07-12 | D103: 41.83000183 | E103: 42.43999863 | F103: 41.15000153 | G103: 41.97000122 | H103: 115167700 | I103: 42.43999863 | J103: 38.63000107 | K103: 41.79500008 | L103: 42.20333354 | M103: 40.27533045 | O103: 40.34099979 | P103: 0 | Q103: 0 | U103: 0 | W103: 38.53364944 | X103: 39.26804352 | Y103: 0 | Z103: 0 | AA103: 0 | AB103: 0 | AC103: L | AF103: 39.00428772 | AG103: 39.97000122 | AH103: 29646.67101 | AI103: 0 | AK103: 35.78675461 | AL103: 37.35866928 | AM103: 0 | AN103: 0 | AO103: 0 | AP103: 0 | AQ103: L | AT103: 20.13024521 | AU103: 21.6478653 | AV103: 24764.76546 | AW103: 0 | AY103: 38.17601776 | AZ103: 38.68122864 | BA103: 0 | BB103: 0 | BC103: 0 | BD103: 0 | BE103: L | BH103: 39.54569244 | BI103: 35.02000046 | BJ103: 21627.90136 | BK103: 0.1058502942 | BM103: 34.25440979 | BN103: 37.41360092 | BO103: 0 | BP103: 0 | BQ103: 0 | BR103: 0 | BS103: L | BV103: 21.77000046 | BW103: 24.04000092 | BX103: 21826.39449 | BY103: 0 | CA103: 41.45050812 | CB103: 40.5993576 | CC103: 41.45050812 | CD103: 41.83000183 | CE103: 0 | CF103: 0 | CG103: S | CH103: RvL S | CJ103: 41.45050812 | CK103: 40.15232086 | CL103: 35169.00779 | CM103: 0 | CO103: 22.40041161 | CP103: 38.09441376 | CQ103: 0 | CR103: 0 | CS103: 0 | CT103: 0 | CU103: L | CX103: 20.46999931 | CY103: 21.81999969 | CZ103: 24745.0051 | DA103: 0 | DC103: 41.73958588 | DD103: 40.53879929 | DE103: 41.73958588 | DF103: 41.83000183 | DG103: 0 | DH103: 0 | DI103: S | DJ103: RvL S | DL103: 41.73958588 | DM103: 40.02000046 | DN103: 23771.66658 | DO103: 0.01360990386 | DQ103: 41.6881485 | DR103: 40.53879929 | DS103: 41.6881485 | DT103: 41.83000183 | DU103: 0 | DV103: 0 | DW103: S | DX103: RvL S | DZ103: 41.6881485 | EA103: 40.02000046 | EB103: 24161.81407 | EC103: 0.01106655411 | ED103: 92 | EE103: 92 | EF103: 92
B104: =CI542 -> H | C104: 2023-07-11 | D104: 40.02000046 | E104: 40.61999893 | F104: 39.29999924 | G104: 40.47000122 | H104: 81239300 | I104: 41.84000015 | J104: 37.59999847 | K104: 39.95999908 | L104: 40.58333333 | M104: 39.93762609 | O104: 40.01649971 | P104: 0 | Q104: 0 | U104: 0 | W104: 38.17086411 | X104: 38.71496964 | Y104: 0 | Z104: 0 | AA104: 0 | AB104: 0 | AC104: L | AF104: 39.00428772 | AG104: 39.97000122 | AH104: 28826.59901 | AI104: 0 | AK104: 35.65663528 | AL104: 37.11595917 | AM104: 0 | AN104: 0 | AO104: 0 | AP104: 0 | AQ104: L | AT104: 20.13024521 | AU104: 21.6478653 | AV104: 24079.73439 | AW104: 0.0103856558 | AY104: 37.8166008 | AZ104: 38.1364212 | BA104: 0 | BB104: 0 | BC104: 0 | BD104: 0 | BE104: L | BH104: 39.54569244 | BI104: 35.02000046 | BJ104: 21029.64073 | BK104: 0.1305838376 | BM104: 34.25440979 | BN104: 37.06135941 | BO104: 0 | BP104: 0 | BQ104: 0 | BR104: 0 | BS104: L | BV104: 21.77000046 | BW104: 24.04000092 | BX104: 21222.64323 | BY104: 0.0103856558 | CA104: 40.99409485 | CB104: 40.15232086 | CC104: 40.02000046 | CD104: 40.15232086 | CE104: 0 | CF104: 0 | CG104: L | CI104: RvS S | CJ104: 39.75999832 | CK104: 40.15232086 | CL104: 33554.97157 | CM104: 0.03861472756 | CO104: 22.40041161 | CP104: 37.55787277 | CQ104: 0 | CR104: 0 | CS104: 0 | CT104: 0 | CU104: L | CX104: 20.46999931 | CY104: 21.81999969 | CZ104: 24060.52063 | DA104: 0.0103856558 | DC104: 41.73958588 | DD104: 39.96783066 | DE104: 40.02000046 | DF104: 40.02000046 | DG104: 0 | DH104: 0 | DI104: L | DK104: RvS S | DL104: 39.75999832 | DM104: 40.02000046 | DN104: 23009.69516 | DO104: 0.04522741958 | DQ104: 41.1009903 | DR104: 39.96783066 | DS104: 40.02000046 | DT104: 40.02000046 | DU104: 0 | DV104: 0 | DW104: L | DY104: RvS S | DZ104: 39.75999832 | EA104: 40.02000046 | EB104: 23327.18916 | EC104: 0.04522741958 | ED104: 93 | EE104: 93 | EF104: 93
B105: =CI543 -> A | C105: 2023-07-10 | D105: 39.75999832 | E105: 40.11000061 | F105: 38.93000031 | G105: 39.90000153 | H105: 86006800 | I105: 41.84000015 | J105: 37.34000015 | K105: 39.52000046 | L105: 39.68666712 | M105: 39.93265432 | O105: 39.87099972 | P105: 0 | Q105: 0 | U105: 0 | W105: 39.00428772 | X105: 38.68585968 | Y105: 39.00428772 | Z105: 0 | AA105: 0 | AB105: 0 | AC105: S | AD105: RvL S | AF105: 39.00428772 | AG105: 39.97000122 | AH105: 27579.26022 | AI105: 0 | AK105: 35.61415482 | AL105: 37.5173645 | AM105: 0 | AN105: 0 | AO105: 0 | AP105: 0 | AQ105: L | AT105: 20.13024521 | AU105: 21.6478653 | AV105: 23037.79439 | AW105: 0.05320667475 | AY105: 38.64229202 | AZ105: 38.10774612 | BA105: 0 | BB105: 0 | BC105: 0 | BD105: 0 | BE105: L | BH105: 39.54569244 | BI105: 35.02000046 | BJ105: 20119.67953 | BK105: 0.1682038307 | BM105: 34.25440979 | BN105: 37.87055969 | BO105: 0 | BP105: 0 | BQ105: 0 | BR105: 0 | BS105: L | BV105: 21.77000046 | BW105: 24.04000092 | BX105: 20304.33074 | BY105: 0.05320667475 | CA105: 42.03139496 | CB105: 41.1683197 | CC105: 39.75999832 | CD105: 0 | CE105: 0 | CF105: 0 | CG105: S | CH105: RvL S | CJ105: 39.75999832 | CK105: 40.4926796 | CL105: 34902.73096 | CM105: 0 | CO105: 22.40041161 | CP105: 37.52962875 | CQ105: 0 | CR105: 0 | CS105: 0 | CT105: 0 | CU105: L | CX105: 20.46999931 | CY105: 21.81999969 | CZ105: 23019.41201 | DA105: 0.05320667475 | DC105: 41.73958588 | DD105: 39.93777847 | DE105: 39.75999832 | DF105: 39.93777847 | DG105: 0 | DH105: 0 | DI105: S | DJ105: RvL S | DL105: 39.75999832 | DM105: 40.34847641 | DN105: 24099.66064 | DO105: 0 | DQ105: 41.07008743 | DR105: 39.93777847 | DS105: 39.75999832 | DT105: 39.93777847 | DU105: 0 | DV105: 0 | DW105: S | DX105: RvL S | DZ105: 39.75999832 | EA105: 40.34847641 | EB105: 24432.19428 | EC105: 0 | ED105: 94 | EE105: 94 | EF105: 94
B106: A | C106: 2023-07-07 | D106: 40.18999863 | E106: 41.25999832 | F106: 39.77999878 | G106: 39.86999893 | H106: 84068400 | I106: 41.84000015 | J106: 37.34000015 | K106: 40.51999855 | L106: 40.26666514 | M106: 40.02435517 | O106: 39.82349968 | P106: 0 | Q106: 0 | U106: 0 | W106: 38.52384567 | X106: 39.08368301 | Y106: 0 | Z106: 0 | AA106: 0 | AB106: 0 | AC106: S | AF106: 37.6315918 | AG106: 39.97000122 | AH106: 26383.08021 | AI106: 0.02475719899 | AK106: 35.49744797 | AL106: 37.31199646 | AM106: 0 | AN106: 0 | AO106: 0 | AP106: 0 | AQ106: L | AT106: 20.13024521 | AU106: 21.6478653 | AV106: 22888.12233 | AW106: 0.05935780704 | AY106: 38.16630554 | AZ106: 38.49962234 | BA106: 0 | BB106: 0 | BC106: 0 | BD106: 0 | BE106: L | BH106: 39.54569244 | BI106: 35.02000046 | BJ106: 19988.9659 | BK106: 0.1736078411 | BM106: 34.25440979 | BN106: 37.40407944 | BO106: 0 | BP106: 0 | BQ106: 0 | BR106: 0 | BS106: L | BV106: 21.77000046 | BW106: 24.04000092 | BX106: 20172.41746 | BY106: 0.05935780704 | CA106: 41.34159088 | CB106: 40.4926796 | CC106: 40.18999863 | CD106: 40.4926796 | CE106: 0 | CF106: 0 | CG106: L | CI106: RvS S | CJ106: 39.97000122 | CK106: 40.4926796 | CL106: 34675.97473 | CM106: 0 | CO106: 22.40041161 | CP106: 37.91556168 | CQ106: 0 | CR106: 0 | CS106: 0 | CT106: 0 | CU106: L | CX106: 20.46999931 | CY106: 21.81999969 | CZ106: 22869.85938 | DA106: 0.05935780704 | DC106: 41.73958588 | DD106: 40.34847641 | DE106: 40.18999863 | DF106: 40.34847641 | DG106: 0 | DH106: 0 | DI106: L | DK106: RvS S | DL106: 39.97000122 | DM106: 40.34847641 | DN106: 23943.08984 | DO106: 0 | DQ106: 41.49242783 | DR106: 40.34847641 | DS106: 40.18999863 | DT106: 40.34847641 | DU106: 0 | DV106: 0 | DW106: L | DY106: RvS S | DZ106: 39.97000122 | EA106: 40.34847641 | EB106: 24273.46308 | EC106: 0 | ED106: 95 | EE106: 95 | EF106: 95
B107: S | C107: 2023-07-06 | D107: 39.97000122 | E107: 40.41999817 | F107: 39.29000092 | G107: 40.27999878 | H107: 85236700 | I107: 41.84000015 | J107: 37.34000015 | K107: 39.85499954 | L107: 39.9666659 | M107: 39.9142122 | O107: 39.69299984 | P107: 0 | Q107: 0 | U107: 0 | W107: 39.91615295 | X107: 40.02487564 | Y107: 39.91615295 | Z107: 39.97000122 | AA107: 0 | AB107: 0 | AC107: L | AE107: RvS S | AF107: 37.6315918 | AG107: 39.97000122 | AH107: 26100.73249 | AI107: 0.03519409895 | AK107: 35.45318222 | AL107: 38.01211929 | AM107: 0 | AN107: 0 | AO107: 0 | AP107: 0 | AQ107: L | AT107: 20.13024521 | AU107: 21.6478653 | AV107: 23135.65503 | AW107: 0.0491848588 | AY107: 39.54569244 | AZ107: 39.42675018 | BA107: 39.54569244 | BB107: 40.18999863 | BC107: 0 | BD107: 0 | BE107: S | BF107: RvL S | BH107: 39.54569244 | BI107: 35.02000046 | BJ107: 20205.14451 | BK107: 0.1646704972 | BM107: 34.25440979 | BN107: 38.75592041 | BO107: 0 | BP107: 0 | BQ107: 0 | BR107: 0 | BS107: L | BV107: 21.77000046 | BW107: 24.04000092 | BX107: 20390.58009 | BY107: 0.0491848588 | CA107: 42.81455612 | CB107: 41.9353981 | CC107: 39.97000122 | CD107: 0 | CE107: 0 | CF107: 0 | CG107: S | CH107: RvL S | CJ107: 39.97000122 | CK107: 41.82364273 | CL107: 33805.0984 | CM107: 0 | CO107: 22.40041161 | CP107: 38.82862473 | CQ107: 0 | CR107: 0 | CS107: 0 | CT107: 0 | CU107: L | CX107: 20.46999931 | CY107: 21.81999969 | CZ107: 23117.19457 | DA107: 0.0491848588 | DC107: 41.73958588 | DD107: 41.32012558 | DE107: 39.97000122 | DF107: 0 | DG107: 0 | DH107: 0 | DI107: S | DJ107: RvL S | DL107: 39.97000122 | DM107: 41.35017395 | DN107: 23506.21429 | DO107: 0 | DQ107: 42.49162674 | DR107: 41.32012558 | DS107: 39.97000122 | DT107: 0 | DU107: 0 | DV107: 0 | DW107: S | DX107: RvL S | DZ107: 39.97000122 | EA107: 41.35017395 | EB107: 23830.55939 | EC107: 0 | ED107: 96 | EE107: 96 | EF107: 96
B108: S | C108: 2023-07-05 | D108: 40.72000122 | E108: 41.84000015 | F108: 40.70999908 | G108: 41.25 | H108: 69503700 | I108: 41.84000015 | J108: 37.34000015 | K108: 41.27499962 | L108: 40.84000015 | M108: 39.92737057 | O108: 39.64349995 | P108: 0 | Q108: 0 | U108: 0 | W108: 40.04362106 | X108: 40.05398178 | Y108: 0 | Z108: 0 | AA108: 0 | AB108: 0 | AC108: L | AF108: 37.6315918 | AG108: 39.3941803 | AH108: 26245.18766 | AI108: 0.02985435724 | AK108: 35.36956406 | AL108: 38.46020126 | AM108: 0 | AN108: 0 | AO108: 0 | AP108: 0 | AQ108: L | AT108: 20.13024521 | AU108: 21.6478653 | AV108: 23009.01198 | AW108: 0.05438955873 | AY108: 39.671978 | AZ108: 39.45542145 | BA108: 0 | BB108: 0 | BC108: 0 | BD108: 0 | BE108: S | BH108: 25.39239502 | BI108: 35.02000046 | BJ108: 19602.46307 | BK108: 0.1895868033 | BM108: 33.96786499 | BN108: 38.87968063 | BO108: 0 | BP108: 0 | BQ108: 0 | BR108: 0 | BS108: L | BV108: 21.77000046 | BW108: 24.04000092 | BX108: 20278.96339 | BY108: 0.05438955873 | CA108: 42.70045471 | CB108: 41.82364273 | CC108: 40.72000122 | CD108: 41.82364273 | CE108: 0 | CF108: 0 | CG108: L | CI108: RvS S | CJ108: 41.20000076 | CK108: 41.82364273 | CL108: 33620.05152 | CM108: 0 | CO108: 22.40041161 | CP108: 38.85686111 | CQ108: 0 | CR108: 0 | CS108: 0 | CT108: 0 | CU108: L | CX108: 20.46999931 | CY108: 21.81999969 | CZ108: 22990.65257 | DA108: 0.05438955873 | DC108: 41.39042664 | DD108: 41.35017395 | DE108: 40.72000122 | DF108: 41.35017395 | DG108: 0 | DH108: 0 | DI108: L | DK108: RvS S | DL108: 41.20000076 | DM108: 41.35017395 | DN108: 23377.54282 | DO108: 0 | DQ108: 42.52252579 | DR108: 41.35017395 | DS108: 40.72000122 | DT108: 41.35017395 | DU108: 0 | DV108: 0 | DW108: L | DY108: RvS S | DZ108: 41.20000076 | EA108: 41.35017395 | EB108: 23700.11248 | EC108: 0 | ED108: 97 | EE108: 97 | EF108: 97
B109: AAS | C109: 2023-07-03 | D109: 41.20000076 | E109: 41.49000168 | F109: 40.84000015 | G109: 41.27999878 | H109: 39934000 | I109: 41.49000168 | J109: 37.34000015 | K109: 41.16500092 | L109: 41.01666768 | M109: 39.62789745 | O109: 39.55 | P109: 0 | Q109: 0 | U109: 0 | W109: 39.50434494 | X109: 39.78229904 | Y109: 0 | Z109: 0 | AA109: 0 | AB109: 0 | AC109: L | AF109: 37.6315918 | AG109: 39.3941803 | AH109: 26737.65426 | AI109: 0.01165047381 | AK109: 35.40354919 | AL109: 37.71340179 | AM109: 0 | AN109: 0 | AO109: 0 | AP109: 0 | AQ109: L | AT109: 20.13024521 | AU109: 21.6478653 | AV109: 23440.75475 | AW109: 0.03664605319 | AY109: 39.13770676 | AZ109: 39.18780136 | BA109: 0 | BB109: 0 | BC109: 0 | BD109: 0 | BE109: S | BH109: 25.39239502 | BI109: 35.02000046 | BJ109: 19109.72638 | BK109: 0.2099577338 | BM109: 34.74562836 | BN109: 38.3560791 | BO109: 0 | BP109: 0 | BQ109: 0 | BR109: 0 | BS109: L | BV109: 21.77000046 | BW109: 24.04000092 | BX109: 20659.47933 | BY109: 0.03664605319 | CA109: 42.34258652 | CB109: 41.47311783 | CC109: 41.20000076 | CD109: 41.47311783 | CE109: 0 | CF109: 0 | CG109: S | CH109: RvL S | CJ109: 41.20000076 | CK109: 40.40000153 | CL109: 31343.72193 | CM109: 0.0312217325 | CO109: 22.40041161 | CP109: 38.59329987 | CQ109: 0 | CR109: 0 | CS109: 0 | CT109: 0 | CU109: L | CX109: 20.46999931 | CY109: 21.81999969 | CZ109: 23422.05084 | DA109: 0.03664605319 | DC109: 42.3381424 | DD109: 41.06969833 | DE109: 41.20000076 | DF109: 41.20000076 | DG109: 0 | DH109: 0 | DI109: S | DJ109: RvL S | DL109: 41.20000076 | DM109: 40.40000153 | DN109: 22277.69277 | DO109: 0.0312217325 | DQ109: 42.23410034 | DR109: 41.06969833 | DS109: 41.20000076 | DT109: 41.20000076 | DU109: 0 | DV109: 0 | DW109: S | DX109: RvL S | DZ109: 41.20000076 | EA109: 40.40000153 | EB109: 22585.0864 | EC109: 0.0312217325 | ED109: 98 | EE109: 98 | EF109: 98
B110: 1 | C110: 2023-06-30 | D110: 40.40000153 | E110: 41.34999847 | F110: 40.29000092 | G110: 41 | H110: 91993400 | I110: 42.43999863 | J110: 37.34000015 | K110: 40.81999969 | L110: 40.94666672 | M110: 39.2863189 | O110: 39.58799992 | P110: 0 | Q110: 0 | U110: 0 | W110: 37.9159317 | X110: 38.06486893 | Y110: 0 | Z110: 0 | AA110: 0 | AB110: 0 | AC110: L | AF110: 37.6315918 | AG110: 39.3941803 | AH110: 27052.83258 | AI110: 0 | AK110: 35.4017601 | AL110: 36.74256134 | AM110: 0 | AN110: 0 | AO110: 0 | AP110: 0 | AQ110: L | AT110: 20.13024521 | AU110: 21.6478653 | AV110: 23717.06985 | AW110: 0.02529022284 | AY110: 37.56403732 | AZ110: 37.49603271 | BA110: 0 | BB110: 0 | BC110: 0 | BD110: 0 | BE110: S | BH110: 25.39239502 | BI110: 35.02000046 | BJ110: 18794.3752 | BK110: 0.2229951173 | BM110: 34.74562836 | BN110: 36.81383896 | BO110: 0 | BP110: 0 | BQ110: 0 | BR110: 0 | BS110: L | BV110: 21.77000046 | BW110: 24.04000092 | BX110: 20903.0093 | BY110: 0.02529022284 | CA110: 40.57398987 | CB110: 39.74084091 | CC110: 40.40000153 | CD110: 40.40000153 | CE110: 0 | CF110: 0 | CG110: L | CI110: RvS S | CJ110: 39.36000061 | CK110: 40.40000153 | CL110: 31713.19569 | CM110: 0.01980196126 | CO110: 22.40041161 | CP110: 36.92720032 | CQ110: 0 | CR110: 0 | CS110: 0 | CT110: 0 | CU110: L | CX110: 20.46999931 | CY110: 21.81999969 | CZ110: 23698.14547 | DA110: 0.02529022284 | DC110: 42.3381424 | DD110: 39.29669189 | DE110: 40.40000153 | DF110: 40.40000153 | DG110: 0 | DH110: 0 | DI110: L | DK110: RvS S | DL110: 39.36000061 | DM110: 40.40000153 | DN110: 22540.29793 | DO110: 0.01980196126 | DQ110: 40.41082382 | DR110: 39.29669189 | DS110: 40.40000153 | DT110: 40.40000153 | DU110: 0 | DV110: 0 | DW110: L | DY110: RvS S | DZ110: 39.36000061 | EA110: 40.40000153 | EB110: 22851.31506 | EC110: 0.01980196126 | ED110: 99 | EE110: 99 | EF110: 99
B111: 0.016 | C111: 2023-06-29 | D111: 39.36000061 | E111: 39.56000137 | F111: 38.66999817 | G111: 39.22999954 | H111: 99133200 | I111: 42.43999863 | J111: 37.34000015 | K111: 39.11499977 | L111: 39.54333369 | M111: 38.94550095 | O111: 39.58599987 | P111: 0 | Q111: 0 | U111: 0 | W111: 37.87671661 | X111: 38.32685089 | Y111: 0 | Z111: 0 | AA111: 0 | AB111: 0 | AC111: L | AF111: 37.6315918 | AG111: 39.3941803 | AH111: 26527.53537 | AI111: 0 | AK111: 35.42367172 | AL111: 36.09844208 | AM111: 0 | AN111: 0 | AO111: 0 | AP111: 0 | AQ111: L | AT111: 20.13024521 | AU111: 21.6478653 | AV111: 23256.54467 | AW111: 0.04421660677 | AY111: 37.52518463 | AZ111: 37.7541008 | BA111: 0 | BB111: 0 | BC111: 0 | BD111: 0 | BE111: S | BH111: 25.39239502 | BI111: 35.02000046 | BJ111: 19319.9605 | BK111: 0.2012661546 | BM111: 34.74562836 | BN111: 36.77576065 | BO111: 0 | BP111: 0 | BQ111: 0 | BR111: 0 | BS111: L | BV111: 21.77000046 | BW111: 24.04000092 | BX111: 20497.12602 | BY111: 0.04421660677 | CA111: 40.85406113 | CB111: 40.01515961 | CC111: 39.36000061 | CD111: 0 | CE111: 0 | CF111: 0 | CG111: S | CH111: RvL S | CJ111: 39.36000061 | CK111: 39.16679764 | CL111: 32353.86567 | CM111: 0 | CO111: 22.40041161 | CP111: 37.18135071 | CQ111: 0 | CR111: 0 | CS111: 0 | CT111: 0 | CU111: L | CX111: 20.46999931 | CY111: 21.81999969 | CZ111: 23237.98775 | DA111: 0.04421660677 | DC111: 42.3381424 | DD111: 39.56715012 | DE111: 39.36000061 | DF111: 0 | DG111: 0 | DH111: 0 | DI111: S | DJ111: RvL S | DL111: 39.36000061 | DM111: 39.32674026 | DN111: 22995.65702 | DO111: 0 | DQ111: 40.68894958 | DR111: 39.56715012 | DS111: 39.36000061 | DT111: 0 | DU111: 0 | DV111: 0 | DW111: S | DX111: RvL S | DZ111: 39.36000061 | EA111: 39.32674026 | EB111: 23312.95732 | EC111: 0 | ED111: 100 | EE111: 100 | EF111: 100
B112: =CV542 -> M | C112: 2023-06-28 | D112: 38.66999817 | E112: 40.13999939 | F112: 38.63000107 | G112: 39.5 | H112: 108676300 | I112: 42.43999863 | J112: 37.34000015 | K112: 39.38500023 | L112: 39.37666702 | M112: 38.90783454 | O112: 39.61049976 | P112: 0 | Q112: 0 | U112: 0 | W112: 36.8667984 | X112: 38.09397507 | Y112: 0 | Z112: 0 | AA112: 0 | AB112: 0 | AC112: L | AF112: 37.6315918 | AG112: 39.3941803 | AH112: 25844.64775 | AI112: 0 | AK112: 35.38700485 | AL112: 35.33297348 | AM112: 0 | AN112: 0 | AO112: 0 | AP112: 0 | AQ112: L | AT112: 20.13024521 | AU112: 21.6478653 | AV112: 22657.86084 | AW112: 0.06882095337 | AY112: 36.52463913 | AZ112: 37.52470779 | BA112: 0 | BB112: 0 | BC112: 0 | BD112: 0 | BE112: S | BH112: 25.39239502 | BI112: 35.02000046 | BJ112: 20003.22264 | BK112: 0.1730184406 | BM112: 34.74562836 | BN112: 35.79520035 | BO112: 0 | BP112: 0 | BQ112: 0 | BR112: 0 | BS112: L | BV112: 21.77000046 | BW112: 24.04000092 | BX112: 19969.47679 | BY112: 0.06882095337 | CA112: 39.98791504 | CB112: 39.16679764 | CC112: 38.66999817 | CD112: 39.16679764 | CE112: 0 | CF112: 0 | CG112: L | CI112: RvS S | CJ112: 37.84999847 | CK112: 39.16679764 | CL112: 31520.99317 | CM112: 0 | CO112: 22.40041161 | CP112: 36.95543671 | CQ112: 0 | CR112: 0 | CS112: 0 | CT112: 0 | CU112: L | CX112: 20.46999931 | CY112: 21.81999969 | CZ112: 22639.78162 | DA112: 0.06882095337 | DC112: 42.3381424 | DD112: 39.32674026 | DE112: 38.66999817 | DF112: 39.32674026 | DG112: 0 | DH112: 0 | DI112: L | DK112: RvS S | DL112: 37.84999847 | DM112: 39.32674026 | DN112: 22403.68911 | DO112: 0 | DQ112: 40.44172287 | DR112: 39.32674026 | DS112: 38.66999817 | DT112: 39.32674026 | DU112: 0 | DV112: 0 | DW112: L | DY112: RvS S | DZ112: 37.84999847 | EA112: 39.32674026 | EB112: 22712.82128 | EC112: 0.01848294213 | ED112: 101 | EE112: 101 | EF112: 101
B113: =CV543 -> A | C113: 2023-06-27 | D113: 37.84999847 | E113: 39.5 | F113: 37.59999847 | G113: 39.25999832 | H113: 97677000 | I113: 42.43999863 | J113: 37.34000015 | K113: 38.54999924 | L113: 38.58999888 | M113: 38.80179772 | O113: 39.56949978 | P113: 0 | Q113: 0 | U113: 0 | W113: 36.61186981 | X113: 36.29892349 | Y113: 0 | Z113: 0 | AA113: 0 | AB113: 0 | AC113: L | AF113: 37.6315918 | AG113: 39.3941803 | AH113: 25391.57687 | AI113: 0 | AK113: 35.30875397 | AL113: 36.18245697 | AM113: 0 | AN113: 0 | AO113: 0 | AP113: 0 | AQ113: L | AT113: 20.13024521 | AU113: 21.6478653 | AV113: 22260.65609 | AW113: 0.0851450339 | AY113: 36.27207565 | AZ113: 35.75647736 | BA113: 0 | BB113: 0 | BC113: 0 | BD113: 0 | BE113: S | BH113: 25.39239502 | BI113: 35.02000046 | BJ113: 20456.542 | BK113: 0.1542771161 | BM113: 34.74562836 | BN113: 35.5476799 | BO113: 0 | BP113: 0 | BQ113: 0 | BR113: 0 | BS113: L | BV113: 21.77000046 | BW113: 24.04000092 | BX113: 19619.40089 | BY113: 0.0851450339 | CA113: 39.94123459 | CB113: 39.12107849 | CC113: 37.84999847 | CD113: 39.12107849 | CE113: 0 | CF113: 0 | CG113: S | CH113: RvL S | CJ113: 37.84999847 | CK113: 39.6697197 | CL113: 31275.4484 | CM113: 0 | CO113: 22.40041161 | CP113: 35.21403122 | CQ113: 0 | CR113: 0 | CS113: 0 | CT113: 0 | CU113: L | CX113: 20.46999931 | CY113: 21.81999969 | CZ113: 22242.89381 | DA113: 0.0851450339 | DC113: 42.3381424 | DD113: 37.47359848 | DE113: 37.84999847 | DF113: 37.84999847 | DG113: 0 | DH113: 0 | DI113: S | DJ113: RvL S | DL113: 37.84999847 | DM113: 39.01621628 | DN113: 22048.20282 | DO113: 0.01359256078 | DQ113: 38.53604126 | DR113: 37.47359848 | DS113: 37.84999847 | DT113: 37.84999847 | DU113: 0 | DV113: 0 | DW113: S | DX113: RvL S | DZ113: 37.84999847 | EA113: 39.01621628 | EB113: 22352.42988 | EC113: 0.03405698016 | ED113: 102 | EE113: 102 | EF113: 102
B114: S | C114: 2023-06-26 | D114: 38.75999832 | E114: 39.66999817 | F114: 37.34000015 | G114: 37.40999985 | H114: 108450000 | I114: 42.43999863 | J114: 36.84000015 | K114: 38.50499916 | L114: 38.2866656 | M114: 38.85775294 | O114: 39.48199978 | P114: 0 | Q114: 0 | U114: 0 | W114: 37.6315918 | X114: 37.79318619 | Y114: 37.6315918 | Z114: 37.79318619 | AA114: 0 | AB114: 0 | AC114: S | AD114: RvL S | AF114: 37.6315918 | AG114: 39.3941803 | AH114: 24853.14692 | AI114: 0.02094085328 | AK114: 35.16611099 | AL114: 36.24780655 | AM114: 0 | AN114: 0 | AO114: 0 | AP114: 0 | AQ114: L | AT114: 20.13024521 | AU114: 21.6478653 | AV114: 21788.6175 | AW114: 0.1045445874 | AY114: 37.28233337 | AZ114: 37.22841263 | BA114: 0 | BB114: 0 | BC114: 0 | BD114: 0 | BE114: S | BH114: 25.39239502 | BI114: 35.02000046 | BJ114: 20995.26724 | BK114: 0.1320049167 | BM114: 34.74562836 | BN114: 36.53776169 | BO114: 0 | BP114: 0 | BQ114: 0 | BR114: 0 | BS114: L | BV114: 21.77000046 | BW114: 24.04000092 | BX114: 19203.37028 | BY114: 0.1045445874 | CA114: 40.50137711 | CB114: 39.6697197 | CC114: 38.75999832 | CD114: 39.6697197 | CE114: 0 | CF114: 0 | CG114: L | CI114: RvS S | CJ114: 38.83000183 | CK114: 39.6697197 | CL114: 30612.25059 | CM114: 0.01226045471 | CO114: 22.40041161 | CP114: 36.66363525 | CQ114: 0 | CR114: 0 | CS114: 0 | CT114: 0 | CU114: L | CX114: 20.46999931 | CY114: 21.81999969 | CZ114: 21771.23188 | DA114: 0.1045445874 | DC114: 42.3381424 | DD114: 39.01621628 | DE114: 38.75999832 | DF114: 39.01621628 | DG114: 0 | DH114: 0 | DI114: L | DK114: RvS S | DL114: 38.83000183 | DM114: 39.01621628 | DN114: 21580.66932 | DO114: 0.03450939059 | DQ114: 40.12239456 | DR114: 39.01621628 | DS114: 38.75999832 | DT114: 39.01621628 | DU114: 0 | DV114: 0 | DW114: L | DY114: RvS S | DZ114: 38.83000183 | EA114: 39.01621628 | EB114: 21878.44523 | EC114: 0.05453985929 | ED114: 103 | EE114: 103 | EF114: 103
B115: O | C115: 2023-06-23 | D115: 38.83000183 | E115: 39.70999908 | F115: 38.38000107 | G115: 38.95000076 | H115: 112379100 | I115: 42.43999863 | J115: 36.20000076 | K115: 39.04500008 | L115: 38.94999949 | M115: 38.93614267 | O115: 39.32249985 | P115: 0 | Q115: 0 | U115: 0 | W115: 37.49431992 | X115: 38.94784164 | Y115: 0 | Z115: 38.83000183 | AA115: 0 | AB115: 0 | AC115: S | AF115: 35.55292892 | AG115: 39.3941803 | AH115: 24036.5749 | AI115: 0.05310870335 | AK115: 34.8638382 | AL115: 35.81839371 | AM115: 0 | AN115: 0 | AO115: 0 | AP115: 0 | AQ115: L | AT115: 20.13024521 | AU115: 21.6478653 | AV115: 22312.46531 | AW115: 0.08301580697 | AY115: 37.14633942 | AZ115: 38.36581039 | BA115: 0 | BB115: 0 | BC115: 0 | BD115: 0 | BE115: S | BH115: 25.39239502 | BI115: 35.02000046 | BJ115: 20397.41349 | BK115: 0.1567216367 | BM115: 34.74562836 | BN115: 36.40447998 | BO115: 0 | BP115: 0 | BQ115: 0 | BR115: 0 | BS115: L | BV115: 21.77000046 | BW115: 24.04000092 | BX115: 19665.06288 | BY115: 0.08301580697 | CA115: 40.67771912 | CB115: 39.84244156 | CC115: 38.83000183 | CD115: 0 | CE115: 0 | CF115: 0 | CG115: S | CH115: RvL S | CJ115: 38.83000183 | CK115: 39.98976135 | CL115: 28598.37909 | CM115: 0.07724034041 | CO115: 22.40041161 | CP115: 37.78378296 | CQ115: 0 | CR115: 0 | CS115: 0 | CT115: 0 | CU115: L | CX115: 20.46999931 | CY115: 21.81999969 | CZ115: 22294.66169 | DA115: 0.08301580697 | DC115: 42.3381424 | DD115: 40.20823669 | DE115: 38.83000183 | DF115: 0 | DG115: 0 | DH115: 0 | DI115: S | DJ115: RvL S | DL115: 38.83000183 | DM115: 38.91604233 | DN115: 20816.72619 | DO115: 0.0686871931 | DQ115: 41.3482132 | DR115: 40.20823669 | DS115: 38.83000183 | DT115: 0 | DU115: 0 | DV115: 0 | DW115: S | DX115: RvL S | DZ115: 38.83000183 | EA115: 38.91604233 | EB115: 21103.96101 | EC115: 0.08800859749 | ED115: 104 | EE115: 104 | EF115: 104
B116: B | C116: 2023-06-22 | D116: 38.36999893 | E116: 40.18999863 | F116: 38.24000168 | G116: 40.13999939 | H116: 105099600 | I116: 42.43999863 | J116: 34.95000076 | K116: 39.21500015 | L116: 39.08666738 | M116: 38.91195213 | O116: 38.98449993 | P116: 0 | Q116: 0 | U116: 0 | W116: 37.7492485 | X116: 37.69615173 | Y116: 0 | Z116: 0 | AA116: 0 | AB116: 0 | AC116: S | AF116: 35.55292892 | AG116: 39.3941803 | AH116: 23994.81372 | AI116: 0.05475383252 | AK116: 34.5910759 | AL116: 37.41468048 | AM116: 0 | AN116: 0 | AO116: 0 | AP116: 0 | AQ116: L | AT116: 20.13024521 | AU116: 21.6478653 | AV116: 22352.76332 | AW116: 0.08135966957 | AY116: 37.39889908 | AZ116: 37.13282776 | BA116: 0 | BB116: 0 | BC116: 0 | BD116: 0 | BE116: S | BH116: 25.39239502 | BI116: 35.02000046 | BJ116: 20351.42243 | BK116: 0.1586230248 | BM116: 34.74562836 | BN116: 36.65200043 | BO116: 0 | BP116: 0 | BQ116: 0 | BR116: 0 | BS116: L | BV116: 21.77000046 | BW116: 24.04000092 | BX116: 19700.57948 | BY116: 0.08135966957 | CA116: 40.82812881 | CB116: 39.98976135 | CC116: 38.36999893 | CD116: 39.98976135 | CE116: 0 | CF116: 0 | CG116: L | CI116: RvS S | CJ116: 42.32183838 | CK116: 39.98976135 | CL116: 28650.02994 | CM116: 0.07557376474 | CO116: 22.40041161 | CP116: 36.56950378 | CQ116: 0 | CR116: 0 | CS116: 0 | CT116: 0 | CU116: L | CX116: 20.46999931 | CY116: 21.81999969 | CZ116: 22334.92755 | DA116: 0.08135966957 | DC116: 42.3381424 | DD116: 38.91604233 | DE116: 38.36999893 | DF116: 38.91604233 | DG116: 0 | DH116: 0 | DI116: L | DK116: RvS S | DL116: 40.08000183 | DM116: 38.91604233 | DN116: 20854.32278 | DO116: 0.06700517237 | DQ116: 40.01938248 | DR116: 38.91604233 | DS116: 38.36999893 | DT116: 38.91604233 | DU116: 0 | DV116: 0 | DW116: L | DY116: RvS S | DZ116: 40.08000183 | EA116: 38.91604233 | EB116: 21142.07637 | EC116: 0.08636147529 | ED116: 105 | EE116: 105 | EF116: 105
B117: MASO | C117: 2023-06-21 | D117: 40.08000183 | E117: 40.22000122 | F117: 38.5 | G117: 38.84999847 | H117: 99633300 | I117: 42.43999863 | J117: 34.77000046 | K117: 39.36000061 | L117: 39.03000005 | M117: 38.84460813 | O117: 38.67950001 | P117: 0 | Q117: 0 | U117: 0.128 | W117: 38.82779694 | X117: 39.3941803 | Y117: 38.82779694 | Z117: 39.3941803 | AA117: 0.1280000061 | AB117: 76.6150589 | AC117: L | AE117: RvS S | AF117: 35.55292892 | AG117: 39.3941803 | AH117: 24269.23232 | AI117: 0.04394344985 | AK117: 34.35408783 | AL117: 37.61071396 | AM117: 0 | AN117: 0 | AO117: 0.1280000061 | AP117: 73.4391098 | AQ117: L | AT117: 20.13024521 | AU117: 21.6478653 | AV117: 22087.95942 | AW117: 0.09224241972 | AY117: 38.46743774 | AZ117: 38.80547714 | BA117: 0 | BB117: 38.36999893 | BC117: 0.1280000061 | BD117: -83.81413269 | BE117: S | BH117: 25.39239502 | BI117: 35.02000046 | BJ117: 20653.63617 | BK117: 0.1461287737 | BM117: 34.74562836 | BN117: 37.69919968 | BO117: 0 | BP117: 0 | BQ117: 0.1280000061 | BR117: 64.72546387 | BS117: L | BV117: 21.77000046 | BW117: 24.04000092 | BX117: 19467.1949 | BY117: 0.09224241972 | CA117: 41.84468079 | CB117: 40.9854393 | CC117: 40.08000183 | CD117: 0 | CE117: 0.1280000061 | CF117: 88.82268524 | CG117: L | CJ117: 42.32183838 | CK117: 39.98975754 | CL117: 26714.81063 | CM117: 0.1380158514 | CO117: 22.40041161 | CP117: 38.2167778 | CQ117: 0 | CR117: 0 | CS117: 0.1280000061 | CT117: 73.38050842 | CU117: L | CX117: 20.46999931 | CY117: 21.81999969 | CZ117: 22070.33494 | DA117: 0.09224241972 | DC117: 42.3381424 | DD117: 40.66901779 | DE117: 40.08000183 | DF117: 0 | DG117: 0.1280000061 | DH117: -66.05963898 | DI117: S | DJ117: RvL S | DL117: 40.08000183 | DM117: 40.86935806 | DN117: 20516.34779 | DO117: 0.08212573081 | DQ117: 41.82205963 | DR117: 40.66901779 | DS117: 40.08000183 | DT117: 0 | DU117: 0.1280000061 | DV117: -66.97114563 | DW117: S | DX117: RvL S | DZ117: 40.08000183 | EA117: 40.86935806 | EB117: 20799.43791 | EC117: 0.101168327 | ED117: 106 | EE117: 106 | EF117: 106
B118: 1 | C118: 2023-06-20 | D118: 40.29000092 | E118: 41.08000183 | F118: 39.59999847 | G118: 40.59999847 | H118: 84124900 | I118: 42.43999863 | J118: 34.77000046 | K118: 40.34000015 | L118: 40.25333405 | M118: 38.73007647 | O118: 38.41449986 | P118: 0 | Q118: 0 | U118: 0 | W118: 39.85732651 | X118: 39.58823776 | Y118: 39.85732651 | Z118: 0 | AA118: 0 | AB118: 0 | AC118: L | AF118: 35.55292892 | AG118: 34.41654205 | AH118: 23990.09236 | AI118: 0.05493982509 | AK118: 34.0670166 | AL118: 39.58973312 | AM118: 0 | AN118: 0 | AO118: 0 | AP118: 0 | AQ118: L | AT118: 20.13024521 | AU118: 21.6478653 | AV118: 22995.62259 | AW118: 0.05493982509 | AY118: 39.4874115 | AZ118: 38.99663925 | BA118: 0 | BB118: 0 | BC118: 0 | BD118: 0 | BE118: S | BH118: 25.39239502 | BI118: 35.02000046 | BJ118: 19617.74402 | BK118: 0.1889550537 | BM118: 34.74562836 | BN118: 38.69880295 | BO118: 0 | BP118: 0 | BQ118: 0 | BR118: 0 | BS118: L | BV118: 21.77000046 | BW118: 24.04000092 | BX118: 20267.16268 | BY118: 0.05493982509 | CA118: 43.09462738 | CB118: 42.20972061 | CC118: 40.29000092 | CD118: 0 | CE118: 0 | CF118: 0 | CG118: L | CJ118: 42.32183838 | CK118: 39.98975754 | CL118: 27812.60555 | CM118: 0.1025942266 | CO118: 22.40041161 | CP118: 38.40504074 | CQ118: 0 | CR118: 0 | CS118: 0 | CT118: 0 | CU118: L | CX118: 20.46999931 | CY118: 21.81999969 | CZ118: 22977.27387 | DA118: 0.05493982509 | DC118: 42.3381424 | DD118: 40.86935806 | DE118: 40.29000092 | DF118: 40.86935806 | DG118: 0 | DH118: 0 | DI118: L | DK118: RvS S | DL118: 41.98898315 | DM118: 40.86935806 | DN118: 21499.68597 | DO118: 0.03813247755 | DQ118: 42.02807999 | DR118: 40.86935806 | DS118: 40.29000092 | DT118: 40.86935806 | DU118: 0 | DV118: 0 | DW118: L | DY118: RvS S | DZ118: 42.40999985 | EA118: 40.86935806 | EB118: 21796.34445 | EC118: 0.05808778107 | ED118: 107 | EE118: 107 | EF118: 107
B119: 0.0266 | C119: 2023-06-16 | D119: 42.40999985 | E119: 42.43999863 | F119: 40.65000153 | G119: 40.79999924 | H119: 112156600 | I119: 42.43999863 | J119: 34.77000046 | K119: 41.54500008 | L119: 41.12666702 | M119: 38.37231565 | O119: 38.09349995 | P119: 0 | Q119: 0 | U119: 0 | W119: 38.73955154 | X119: 40.36447906 | Y119: 0 | Z119: 0 | AA119: 0 | AB119: 0 | AC119: L | AF119: 35.55292892 | AG119: 34.41654205 | AH119: 24115.7884 | AI119: 0.04998818412 | AK119: 33.62478638 | AL119: 37.09729004 | AM119: 0 | AN119: 0 | AO119: 0 | AP119: 0 | AQ119: L | AT119: 20.13024521 | AU119: 21.6478653 | AV119: 23116.10811 | AW119: 0.04998818412 | AY119: 38.38001251 | AZ119: 39.76128006 | BA119: 0 | BB119: 0 | BC119: 0 | BD119: 0 | BE119: S | BH119: 25.39239502 | BI119: 35.02000046 | BJ119: 19480.23706 | BK119: 0.1946399212 | BM119: 34.45908356 | BN119: 37.61351776 | BO119: 0 | BP119: 0 | BQ119: 0 | BR119: 0 | BS119: L | BV119: 21.77000046 | BW119: 24.04000092 | BX119: 20373.35243 | BY119: 0.04998818412 | CA119: 42.32183838 | CB119: 41.45280075 | CC119: 42.32183838 | CD119: 42.40999985 | CE119: 0 | CF119: 0 | CG119: S | CH119: RvL S | CJ119: 42.32183838 | CK119: 39.98975754 | CL119: 27958.32964 | CM119: 0.09789227694 | CO119: 22.40041161 | CP119: 39.15807724 | CQ119: 0 | CR119: 0 | CS119: 0 | CT119: 0 | CU119: L | CX119: 20.46999931 | CY119: 21.81999969 | CZ119: 23097.66325 | DA119: 0.04998818412 | DC119: 41.98898315 | DD119: 41.67071915 | DE119: 41.98898315 | DF119: 42.40999985 | DG119: 0 | DH119: 0 | DI119: S | DJ119: RvL S | DL119: 41.98898315 | DM119: 40.25831985 | DN119: 20793.30419 | DO119: 0.0697350651 | DQ119: 42.85215759 | DR119: 41.67071915 | DS119: 42.40999985 | DT119: 42.40999985 | DU119: 0 | DV119: 0 | DW119: S | DX119: RvL S | DZ119: 42.40999985 | EA119: 40.25831985 | EB119: 21080.21583 | EC119: 0.08903472871 | ED119: 108 | EE119: 108 | EF119: 108
B120: =CW542 -> H | C120: 2023-06-15 | D120: 39.74000168 | E120: 42.09000015 | F120: 39.50999832 | G120: 41.59999847 | H120: 127937000 | I120: 42.09000015 | J120: 34.77000046 | K120: 40.79999924 | L120: 41.33666611 | M120: 37.66727466 | O120: 37.59899979 | P120: 0 | Q120: 0 | U120: 0 | W120: 37.67080688 | X120: 38.99635696 | Y120: 0 | Z120: 0 | AA120: 0 | AB120: 0 | AC120: L | AF120: 35.55292892 | AG120: 34.41654205 | AH120: 25384.72472 | AI120: 0 | AK120: 33.14365387 | AL120: 36.73322296 | AM120: 0 | AN120: 0 | AO120: 0 | AP120: 0 | AQ120: L | AT120: 20.13024521 | AU120: 21.6478653 | AV120: 24332.44277 | AW120: 0 | AY120: 37.32118607 | AZ120: 38.41360092 | BA120: 0 | BB120: 0 | BC120: 0 | BD120: 0 | BE120: S | BH120: 25.39239502 | BI120: 35.02000046 | BJ120: 18092.06625 | BK120: 0.2520302534 | BM120: 32.99361038 | BN120: 36.57584 | BO120: 0 | BP120: 0 | BQ120: 0 | BR120: 0 | BS120: L | BV120: 21.77000046 | BW120: 24.04000092 | BX120: 21445.36743 | BY120: 0 | CA120: 40.828125 | CB120: 39.98975754 | CC120: 39.74000168 | CD120: 39.98975754 | CE120: 0 | CF120: 0 | CG120: L | CI120: RvS S | CJ120: 39.34999847 | CK120: 39.98975754 | CL120: 29299.52334 | CM120: 0.05461711437 | CO120: 22.40041161 | CP120: 37.83084488 | CQ120: 0 | CR120: 0 | CS120: 0 | CT120: 0 | CU120: L | CX120: 20.46999931 | CY120: 21.81999969 | CZ120: 24313.02736 | DA120: 0 | DC120: 40.20327759 | DD120: 40.25831985 | DE120: 39.74000168 | DF120: 40.25831985 | DG120: 0 | DH120: 0 | DI120: L | DK120: RvS S | DL120: 39.34999847 | DM120: 40.25831985 | DN120: 21433.331 | DO120: 0.04110111296 | DQ120: 41.39971924 | DR120: 40.25831985 | DS120: 39.74000168 | DT120: 40.25831985 | DU120: 0 | DV120: 0 | DW120: L | DY120: RvS S | DZ120: 39.34999847 | EA120: 40.25831985 | EB120: 22189.42491 | EC120: 0.04110111296 | ED120: 109 | EE120: 109 | EF120: 109
B121: =CW543 -> B | C121: 2023-06-14 | D121: 39.34999847 | E121: 40.29999924 | F121: 38.41999817 | G121: 40.18999863 | H121: 152656500 | I121: 40.29999924 | J121: 34.40999985 | K121: 39.3599987 | L121: 39.48666636 | M121: 36.97111365 | O121: 37.06099987 | P121: 0 | Q121: 0 | U121: 0 | W121: 37.57276154 | X121: 38.18130493 | Y121: 0 | Z121: 0 | AA121: 0 | AB121: 0 | AC121: L | AF121: 35.55292892 | AG121: 34.41654205 | AH121: 23786.58351 | AI121: 0 | AK121: 32.75329208 | AL121: 36.7518959 | AM121: 0 | AN121: 0 | AO121: 0 | AP121: 0 | AQ121: L | AT121: 20.13024521 | AU121: 21.6478653 | AV121: 22800.54987 | AW121: 0 | AY121: 37.22404861 | AZ121: 37.61072922 | BA121: 0 | BB121: 0 | BC121: 0 | BD121: 0 | BE121: S | BH121: 25.39239502 | BI121: 35.02000046 | BJ121: 19840.3754 | BK121: 0.1797509342 | BM121: 32.44508362 | BN121: 36.48064041 | BO121: 0 | BP121: 0 | BQ121: 0 | BR121: 0 | BS121: L | BV121: 21.77000046 | BW121: 24.04000092 | BX121: 20095.23558 | BY121: 0 | CA121: 40.42876816 | CB121: 39.59860229 | CC121: 39.34999847 | CD121: 39.59860229 | CE121: 0 | CF121: 0 | CG121: S | CH121: RvL S | CJ121: 39.34999847 | CK121: 39.36999893 | CL121: 30992.22943 | CM121: 0 | CO121: 22.40041161 | CP121: 37.0401535 | CQ121: 0 | CR121: 0 | CS121: 0 | CT121: 0 | CU121: L | CX121: 20.46999931 | CY121: 21.81999969 | CZ121: 22782.35679 | DA121: 0 | DC121: 39.53488922 | DD121: 39.41689301 | DE121: 39.34999847 | DF121: 39.41689301 | DG121: 0 | DH121: 0 | DI121: S | DJ121: RvL S | DL121: 39.34999847 | DM121: 39.36999893 | DN121: 22352.02406 | DO121: 0 | DQ121: 40.53443527 | DR121: 39.41689301 | DS121: 39.34999847 | DT121: 39.41689301 | DU121: 0 | DV121: 0 | DW121: S | DX121: RvL S | DZ121: 39.34999847 | EA121: 39.36999893 | EB121: 23140.52629 | EC121: 0 | ED121: 110 | EE121: 110 | EF121: 110
B122: C | C122: 2023-06-13 | D122: 39.36999893 | E122: 39.63000107 | F122: 38.31999969 | G122: 39.34999847 | H122: 133267100 | I122: 39.63000107 | J122: 34.40000153 | K122: 38.97500038 | L122: 39.09999975 | M122: 36.4402503 | O122: 36.62450008 | P122: 0 | Q122: 0 | U122: 0 | W122: 36.12162018 | X122: 37.34684753 | Y122: 0 | Z122: 0 | AA122: 0 | AB122: 0 | AC122: L | AF122: 35.55292892 | AG122: 34.41654205 | AH122: 23553.14508 | AI122: 0.0005080126575 | AK122: 32.47426987 | AL122: 34.67952728 | AM122: 0 | AN122: 0 | AO122: 0 | AP122: 0 | AQ122: L | AT122: 20.13024521 | AU122: 21.6478653 | AV122: 22576.78824 | AW122: 0.0005080126575 | AY122: 35.78637695 | AZ122: 36.78874207 | BA122: 0 | BB122: 0 | BC122: 0 | BD122: 0 | BE122: S | BH122: 25.39239502 | BI122: 35.02000046 | BJ122: 20095.74867 | BK122: 0.1691931933 | BM122: 31.5281353 | BN122: 35.07168198 | BO122: 0 | BP122: 0 | BQ122: 0 | BR122: 0 | BS122: L | BV122: 21.77000046 | BW122: 24.04000092 | BX122: 19898.02355 | BY122: 0.0005080126575 | CA122: 39.08027649 | CB122: 38.2777977 | CC122: 39.08027649 | CD122: 39.36999893 | CE122: 0 | CF122: 0 | CG122: L | CI122: RvS S | CJ122: 37.15000153 | CK122: 39.36999893 | CL122: 30688.07573 | CM122: 0 | CO122: 22.40041161 | CP122: 36.23064041 | CQ122: 0 | CR122: 0 | CS122: 0 | CT122: 0 | CU122: L | CX122: 20.46999931 | CY122: 21.81999969 | CZ122: 22558.77371 | DA122: 0.0005080126575 | DC122: 38.41757584 | DD122: 38.55543518 | DE122: 38.41757584 | DF122: 39.36999893 | DG122: 0 | DH122: 0 | DI122: L | DK122: RvS S | DL122: 37.15000153 | DM122: 39.36999893 | DN122: 22132.6642 | DO122: 0 | DQ122: 39.64855194 | DR122: 38.55543518 | DS122: 39.36999893 | DT122: 39.36999893 | DU122: 0 | DV122: 0 | DW122: L | DY122: RvS S | DZ122: 37.15000153 | EA122: 39.36999893 | EB122: 22913.42817 | EC122: 0 | ED122: 111 | EE122: 111 | EF122: 111
B123: O | C123: 2023-06-12 | D123: 37.15000153 | E123: 38.50999832 | F123: 36.84000015 | G123: 38.49000168 | H123: 77428700 | I123: 38.50999832 | J123: 34.40000153 | K123: 37.67499924 | L123: 38.23999914 | M123: 35.87697251 | O123: 36.3125 | P123: 0 | Q123: 0 | U123: 0 | W123: 35.49410248 | X123: 35.53238678 | Y123: 0 | Z123: 0 | AA123: 0 | AB123: 0 | AC123: L | AF123: 35.55292892 | AG123: 34.41654205 | AH123: 23565.11645 | AI123: 0 | AK123: 32.14740372 | AL123: 34.24077988 | AM123: 0 | AN123: 0 | AO123: 0 | AP123: 0 | AQ123: L | AT123: 20.13024521 | AU123: 21.6478653 | AV123: 22588.26336 | AW123: 0 | AY123: 35.16468048 | AZ123: 35.00139618 | BA123: 0 | BB123: 0 | BC123: 0 | BD123: 0 | BE123: S | BH123: 25.39239502 | BI123: 35.02000046 | BJ123: 20082.65241 | BK123: 0.169734627 | BM123: 30.86499023 | BN123: 34.46240234 | BO123: 0 | BP123: 0 | BQ123: 0 | BR123: 0 | BS123: L | BV123: 21.77000046 | BW123: 24.04000092 | BX123: 19908.13714 | BY123: 0 | CA123: 38.28674316 | CB123: 37.50056076 | CC123: 37.15000153 | CD123: 37.50056076 | CE123: 0 | CF123: 0 | CG123: S | CH123: RvL S | CJ123: 37.15000153 | CK123: 36.68000031 | CL123: 30672.49371 | CM123: 0 | CO123: 22.40041161 | CP123: 34.47040558 | CQ123: 0 | CR123: 0 | CS123: 0 | CT123: 0 | CU123: L | CX123: 20.46999931 | CY123: 21.81999969 | CZ123: 22570.23968 | DA123: 0 | DC123: 37.60951996 | DD123: 36.68225479 | DE123: 37.15000153 | DF123: 37.15000153 | DG123: 0 | DH123: 0 | DI123: S | DJ123: RvL S | DL123: 37.15000153 | DM123: 36.68000031 | DN123: 22121.42624 | DO123: 0 | DQ123: 37.72225952 | DR123: 36.68225479 | DS123: 37.15000153 | DT123: 37.15000153 | DU123: 0 | DV123: 0 | DW123: S | DX123: RvL S | DZ123: 37.15000153 | EA123: 36.68000031 | EB123: 22901.79377 | EC123: 0 | ED123: 112 | EE123: 112 | EF123: 112
B124: S | C124: 2023-06-09 | D124: 36.68000031 | E124: 37.61999893 | F124: 36.20000076 | G124: 36.61999893 | H124: 103851700 | I124: 37.70000076 | J124: 32.79000092 | K124: 36.90999985 | L124: 36.99000041 | M124: 35.47741101 | O124: 35.94700012 | P124: 0 | Q124: 0 | U124: 0 | W124: 34.26847458 | X124: 35.10545349 | Y124: 0 | Z124: 0 | AA124: 0 | AB124: 0 | AC124: L | AF124: 35.55292892 | AG124: 34.41654205 | AH124: 22236.32553 | AI124: 0.04227120057 | AK124: 31.7328949 | AL124: 32.69116974 | AM124: 0 | AN124: 0 | AO124: 0 | AP124: 0 | AQ124: L | AT124: 20.13024521 | AU124: 21.6478653 | AV124: 21314.55527 | AW124: 0 | AY124: 33.95043182 | AZ124: 34.58084488 | BA124: 0 | BB124: 0 | BC124: 0 | BD124: 0 | BE124: S | BH124: 25.39239502 | BI124: 35.02000046 | BJ124: 21536.30202 | BK124: 0.1096372306 | BM124: 30.86499023 | BN124: 33.2723999 | BO124: 0 | BP124: 0 | BQ124: 0 | BR124: 0 | BS124: L | BV124: 21.77000046 | BW124: 24.04000092 | BX124: 18785.55614 | BY124: 0 | CA124: 36.99530411 | CB124: 36.23564148 | CC124: 36.68000031 | CD124: 36.68000031 | CE124: 0 | CF124: 0 | CG124: L | CI124: RvS S | CJ124: 35.02000046 | CK124: 36.68000031 | CL124: 28942.93165 | CM124: 0.01281355508 | CO124: 22.40041161 | CP124: 34.05623245 | CQ124: 0 | CR124: 0 | CS124: 0 | CT124: 0 | CU124: L | CX124: 20.46999931 | CY124: 21.81999969 | CZ124: 21297.54791 | DA124: 0 | DC124: 37.60951996 | DD124: 36.24150467 | DE124: 36.68000031 | DF124: 36.68000031 | DG124: 0 | DH124: 0 | DI124: L | DK124: RvS S | DL124: 35.02000046 | DM124: 36.68000031 | DN124: 20874.04218 | DO124: 0.01281355508 | DQ124: 37.26902008 | DR124: 36.24150467 | DS124: 36.68000031 | DT124: 36.68000031 | DU124: 0 | DV124: 0 | DW124: L | DY124: RvS S | DZ124: 35.02000046 | EA124: 36.68000031 | EB124: 21610.40632 | EC124: 0.01281355508 | ED124: 113 | EE124: 113 | EF124: 113
B125: BCO | C125: 2023-06-08 | D125: 35.02000046 | E125: 36.38000107 | F125: 34.95000076 | G125: 36.18000031 | H125: 94076900 | I125: 37.70000076 | J125: 31.68000031 | K125: 35.66500092 | L125: 36.00333405 | M125: 35.15905794 | O125: 35.4835001 | P125: 0 | Q125: 0 | U125: 0 | W125: 34.0919838 | X125: 33.94109344 | Y125: 0 | Z125: 0 | AA125: 0 | AB125: 0 | AC125: L | AF125: 35.55292892 | AG125: 34.41654205 | AH125: 21955.00387 | AI125: 0.05438785627 | AK125: 31.24728966 | AL125: 34.48348999 | AM125: 0 | AN125: 0 | AO125: 0 | AP125: 0 | AQ125: L | AT125: 20.13024521 | AU125: 21.6478653 | AV125: 21044.89534 | AW125: 0.007038395386 | AY125: 33.77557755 | AZ125: 33.43388367 | BA125: 0 | BB125: 0 | BC125: 0 | BD125: 0 | BE125: S | BH125: 25.39239502 | BI125: 35.02000046 | BJ125: 21844.05782 | BK125: 0.0969138667 | BM125: 30.86499023 | BN125: 33.10103989 | BO125: 0 | BP125: 0 | BQ125: 0 | BR125: 0 | BS125: L | BV125: 21.77000046 | BW125: 24.04000092 | BX125: 18547.8917 | BY125: 0.007038395386 | CA125: 37.51395416 | CB125: 36.7436409 | CC125: 35.02000046 | CD125: 0 | CE125: 0 | CF125: 0 | CG125: S | CH125: RvL S | CJ125: 35.02000046 | CK125: 37.29735947 | CL125: 29318.60725 | CM125: 0 | CO125: 22.40041161 | CP125: 32.92667389 | CQ125: 0 | CR125: 0 | CS125: 0 | CT125: 0 | CU125: L | CX125: 20.46999931 | CY125: 21.81999969 | CZ125: 21028.10314 | DA125: 0.007038395386 | DC125: 37.60951996 | DD125: 35.03946686 | DE125: 35.02000046 | DF125: 35.03946686 | DG125: 0 | DH125: 0 | DI125: S | DJ125: RvL S | DL125: 35.02000046 | DM125: 36.93999863 | DN125: 21144.98462 | DO125: 0 | DQ125: 36.03289795 | DR125: 35.03946686 | DS125: 35.02000046 | DT125: 35.03946686 | DU125: 0 | DV125: 0 | DW125: S | DX125: RvL S | DZ125: 35.02000046 | EA125: 36.93999863 | EB125: 21890.90666 | EC125: 0 | ED125: 114 | EE125: 114 | EF125: 114
B126: 1 | C126: 2023-06-07 | D126: 36.93999863 | E126: 37.56000137 | F126: 34.77000046 | G126: 34.97999954 | H126: 114242700 | I126: 37.70000076 | J126: 29.77000046 | K126: 36.16500092 | L126: 35.7833341 | M126: 35.04662617 | O126: 34.94050007 | P126: 0 | Q126: 0 | U126: 0 | W126: 35.55292892 | X126: 35.76525879 | Y126: 35.55292892 | Z126: 35.76525879 | AA126: 0 | AB126: 0 | AC126: S | AD126: RvL S | AF126: 35.55292892 | AG126: 34.41654205 | AH126: 20961.40237 | AI126: 0.09718272835 | AK126: 30.81355286 | AL126: 34.25011444 | AM126: 0 | AN126: 0 | AO126: 0 | AP126: 0 | AQ126: L | AT126: 20.13024521 | AU126: 21.6478653 | AV126: 20092.48196 | AW126: 0.05197612941 | AY126: 35.22296143 | AZ126: 35.23078918 | BA126: 35.22296143 | BB126: 35.02000046 | BC126: 0 | BD126: 0 | BE126: L | BG126: RvS O | BH126: 25.39239502 | BI126: 35.02000046 | BJ126: 22931.02221 | BK126: 0.05197612941 | BM126: 30.86499023 | BN126: 34.51951981 | BO126: 0 | BP126: 0 | BQ126: 0 | BR126: 0 | BS126: L | BV126: 21.77000046 | BW126: 24.04000092 | BX126: 17708.48338 | BY126: 0.05197612941 | CA126: 38.07928085 | CB126: 37.29735947 | CC126: 36.93999863 | CD126: 37.29735947 | CE126: 0 | CF126: 0 | CG126: L | CI126: RvS S | CJ126: 36.68999863 | CK126: 37.29735947 | CL126: 27991.75657 | CM126: 0 | CO126: 22.40041161 | CP126: 34.69631958 | CQ126: 0 | CR126: 0 | CS126: 0 | CT126: 0 | CU126: L | CX126: 20.46999931 | CY126: 21.81999969 | CZ126: 20076.44972 | DA126: 0.05197612941 | DC126: 37.60951996 | DD126: 36.92266083 | DE126: 36.93999863 | DF126: 36.93999863 | DG126: 0 | DH126: 0 | DI126: L | DK126: RvS S | DL126: 36.68999863 | DM126: 36.93999863 | DN126: 20188.04157 | DO126: 0 | DQ126: 37.96948624 | DR126: 36.92266083 | DS126: 36.93999863 | DT126: 36.93999863 | DU126: 0 | DV126: 0 | DW126: L | DY126: RvS S | DZ126: 36.68999863 | EA126: 36.93999863 | EB126: 20900.20597 | EC126: 0 | ED126: 115 | EE126: 115 | EF126: 115
B127: 0.0587 | C127: 2023-06-06 | D127: 36.68999863 | E127: 37.15999985 | F127: 36.25999832 | G127: 36.86000061 | H127: 79754500 | I127: 37.70000076 | J127: 29.77000046 | K127: 36.70999908 | L127: 36.7866656 | M127: 34.79809844 | O127: 34.45549994 | P127: 0 | Q127: 0 | U127: 0 | W127: 35.84708023 | X127: 35.80407333 | Y127: 0 | Z127: 0 | AA127: 0 | AB127: 0 | AC127: S | AF127: 30.13076401 | AG127: 34.41654205 | AH127: 20393.45232 | AI127: 0.1216446012 | AK127: 30.39368057 | AL127: 34.31546021 | AM127: 0 | AN127: 0 | AO127: 0 | AP127: 0 | AQ127: L | AT127: 20.13024521 | AU127: 21.6478653 | AV127: 21194.06757 | AW127: 0 | AY127: 35.51438522 | AZ127: 35.26902008 | BA127: 0 | BB127: 0 | BC127: 0 | BD127: 0 | BE127: L | BH127: 25.39239502 | BI127: 26.45999908 | BJ127: 24188.23295 | BK127: 0 | BM127: 30.86499023 | BN127: 34.80512238 | BO127: 0 | BP127: 0 | BQ127: 0 | BR127: 0 | BS127: L | BV127: 21.77000046 | BW127: 24.04000092 | BX127: 18679.36445 | BY127: 0 | CA127: 38.5149498 | CB127: 37.72408295 | CC127: 36.68999863 | CD127: 0 | CE127: 0 | CF127: 0 | CG127: S | CH127: RvL S | CJ127: 36.68999863 | CK127: 37.18560028 | CL127: 26128.18258 | CM127: 0 | CO127: 22.40041161 | CP127: 34.73397064 | CQ127: 0 | CR127: 0 | CS127: 0 | CT127: 0 | CU127: L | CX127: 20.46999931 | CY127: 21.81999969 | CZ127: 21177.15635 | DA127: 0 | DC127: 37.60951996 | DD127: 36.96273041 | DE127: 36.68999863 | DF127: 36.96273041 | DG127: 0 | DH127: 0 | DI127: S | DJ127: RvL S | DL127: 36.68999863 | DM127: 36.88259506 | DN127: 19190.58902 | DO127: 0.03481797129 | DQ127: 38.0106926 | DR127: 36.96273041 | DS127: 36.68999863 | DT127: 36.96273041 | DU127: 0 | DV127: 0 | DW127: S | DX127: RvL S | DZ127: 36.68999863 | EA127: 36.88259506 | EB127: 19867.56674 | EC127: 0.03481797129 | ED127: 116 | EE127: 116 | EF127: 116
B128: =DJ542 -> H | C128: 2023-06-05 | D128: 36.75999832 | E128: 37.70000076 | F128: 36.56000137 | G128: 36.90000153 | H128: 103130900 | I128: 37.70000076 | J128: 29.77000046 | K128: 37.13000107 | L128: 36.98333359 | M128: 34.37323163 | O128: 33.98600006 | P128: 0 | Q128: 0 | U128: 0 | W128: 35.30780411 | X128: 35.72644424 | Y128: 0 | Z128: 0 | AA128: 0 | AB128: 0 | AC128: S | AF128: 30.13076401 | AG128: 34.41654205 | AH128: 20553.31026 | AI128: 0.1147594452 | AK128: 29.92104149 | AL128: 34.12876129 | AM128: 0 | AN128: 0 | AO128: 0 | AP128: 0 | AQ128: L | AT128: 20.13024521 | AU128: 21.6478653 | AV128: 21050.63181 | AW128: 0.001904235571 | AY128: 34.98011398 | AZ128: 35.19255447 | BA128: 0 | BB128: 0 | BC128: 0 | BD128: 0 | BE128: L | BH128: 25.39239502 | BI128: 26.45999908 | BJ128: 24024.53348 | BK128: 0.001904235571 | BM128: 30.44745255 | BN128: 34.28151703 | BO128: 0 | BP128: 0 | BQ128: 0 | BR128: 0 | BS128: L | BV128: 21.77000046 | BW128: 24.04000092 | BX128: 18552.94753 | BY128: 0.001904235571 | CA128: 37.96517944 | CB128: 37.18560028 | CC128: 36.75999832 | CD128: 37.18560028 | CE128: 0 | CF128: 0 | CG128: L | CI128: RvS S | CJ128: 36.56000137 | CK128: 37.18560028 | CL128: 25951.35405 | CM128: 0 | CO128: 22.40041161 | CP128: 34.6586647 | CQ128: 0 | CR128: 0 | CS128: 0 | CT128: 0 | CU128: L | CX128: 20.46999931 | CY128: 21.81999969 | CZ128: 21033.83503 | DA128: 0.001904235571 | DC128: 37.10074234 | DD128: 36.88259506 | DE128: 36.75999832 | DF128: 36.88259506 | DG128: 0 | DH128: 0 | DI128: L | DK128: RvS S | DL128: 36.56000137 | DM128: 36.88259506 | DN128: 19060.71226 | DO128: 0.04135006294 | DQ128: 37.92827988 | DR128: 36.88259506 | DS128: 36.75999832 | DT128: 36.88259506 | DU128: 0 | DV128: 0 | DW128: L | DY128: RvS S | DZ128: 36.56000137 | EA128: 36.88259506 | EB128: 19733.10838 | EC128: 0.04135006294 | ED128: 117 | EE128: 117 | EF128: 117
B129: =DJ543 -> B | C129: 2023-06-02 | D129: 36.56000137 | E129: 37.18999863 | F129: 36.00999832 | G129: 36.81999969 | H129: 108007500 | I129: 37.18999863 | J129: 29.77000046 | K129: 36.59999847 | L129: 36.65333176 | M129: 33.7606162 | O129: 33.45750008 | P129: 0 | Q129: 0 | U129: 0 | W129: 33.73900604 | X129: 34.94050217 | Y129: 0 | Z129: 0 | AA129: 0 | AB129: 0 | AC129: S | AF129: 30.13076401 | AG129: 34.41654205 | AH129: 20508.55023 | AI129: 0.1166872829 | AK129: 29.43990898 | AL129: 32.4297905 | AM129: 0 | AN129: 0 | AO129: 0 | AP129: 0 | AQ129: L | AT129: 20.13024521 | AU129: 21.6478653 | AV129: 21090.79364 | AW129: 0 | AY129: 33.4258728 | AZ129: 34.41835785 | BA129: 0 | BB129: 0 | BC129: 0 | BD129: 0 | BE129: L | BH129: 25.39239502 | BI129: 26.45999908 | BJ129: 24070.36913 | BK129: 0 | BM129: 30.02172661 | BN129: 32.75831985 | BO129: 0 | BP129: 0 | BQ129: 0 | BR129: 0 | BS129: L | BV129: 21.77000046 | BW129: 24.04000092 | BX129: 18588.34411 | BY129: 0 | CA129: 36.74116516 | CB129: 35.98672104 | CC129: 36.56000137 | CD129: 36.56000137 | CE129: 0 | CF129: 0 | CG129: S | CH129: RvL S | CJ129: 36.56000137 | CK129: 35.5549202 | CL129: 25316.916 | CM129: 0.006610244978 | CO129: 22.40041161 | CP129: 33.89620972 | CQ129: 0 | CR129: 0 | CS129: 0 | CT129: 0 | CU129: L | CX129: 20.46999931 | CY129: 21.81999969 | CZ129: 21073.96483 | DA129: 0 | DC129: 36.58198929 | DD129: 36.07121658 | DE129: 36.56000137 | DF129: 36.56000137 | DG129: 0 | DH129: 0 | DI129: S | DJ129: RvL S | DL129: 36.56000137 | DM129: 34.8090744 | DN129: 18898.66982 | DO129: 0.04949991405 | DQ129: 37.09389877 | DR129: 36.07121658 | DS129: 36.56000137 | DT129: 36.56000137 | DU129: 0 | DV129: 0 | DW129: S | DX129: RvL S | DZ129: 36.56000137 | EA129: 34.8090744 | EB129: 19565.34963 | EC129: 0.04949991405 | ED129: 118 | EE129: 118 | EF129: 118
B130: P | C130: 2023-06-01 | D130: 34.74000168 | E130: 36.43000031 | F130: 34.40999985 | G130: 36.00999832 | H130: 108379600 | I130: 36.66999817 | J130: 29.77000046 | K130: 35.42000008 | L130: 35.80000051 | M130: 33.12964237 | O130: 32.91950026 | P130: 0 | Q130: 0 | U130: 0 | W130: 33.72920227 | X130: 33.71792603 | Y130: 0 | Z130: 0 | AA130: 0 | AB130: 0 | AC130: S | AF130: 30.13076401 | AG130: 34.41654205 | AH130: 20636.43464 | AI130: 0.11117924 | AK130: 28.94223022 | AL130: 32.64449692 | AM130: 0 | AN130: 0 | AO130: 0 | AP130: 0 | AQ130: L | AT130: 20.13024521 | AU130: 21.6478653 | AV130: 20976.04678 | AW130: 0 | AY130: 33.41616058 | AZ130: 33.21405029 | BA130: 0 | BB130: 0 | BC130: 0 | BD130: 0 | BE130: L | BH130: 25.39239502 | BI130: 26.45999908 | BJ130: 23939.41155 | BK130: 0 | BM130: 30.02172661 | BN130: 32.74880219 | BO130: 0 | BP130: 0 | BQ130: 0 | BR130: 0 | BS130: L | BV130: 21.77000046 | BW130: 24.04000092 | BX130: 18487.21211 | BY130: 0 | CA130: 36.30031586 | CB130: 35.5549202 | CC130: 34.74000168 | CD130: 35.5549202 | CE130: 0 | CF130: 0 | CG130: L | CI130: RvS S | CJ130: 34.97000122 | CK130: 35.5549202 | CL130: 25179.17644 | CM130: 0.01201489475 | CO130: 22.40041161 | CP130: 32.71017456 | CQ130: 0 | CR130: 0 | CS130: 0 | CT130: 0 | CU130: L | CX130: 20.46999931 | CY130: 21.81999969 | CZ130: 20959.30953 | DA130: 0 | DC130: 36.58198929 | DD130: 34.8090744 | DE130: 34.74000168 | DF130: 34.8090744 | DG130: 0 | DH130: 0 | DI130: L | DK130: RvS S | DL130: 34.97000122 | DM130: 34.8090744 | DN130: 18795.84946 | DO130: 0.05467122048 | DQ130: 35.79597473 | DR130: 34.8090744 | DS130: 34.74000168 | DT130: 34.8090744 | DU130: 0 | DV130: 0 | DW130: L | DY130: RvS S | DZ130: 34.97000122 | EA130: 34.8090744 | EB130: 19458.90213 | EC130: 0.05467122048 | ED130: 119 | EE130: 119 | EF130: 119
B131: S | C131: 2023-05-31 | D131: 34.97000122 | E131: 35.59000015 | F131: 34.40000153 | G131: 34.75 | H131: 105144500 | I131: 36.66999817 | J131: 29.22999954 | K131: 34.99500084 | L131: 34.91000112 | M131: 32.62067399 | O131: 32.3630002 | P131: 0 | Q131: 0 | U131: 0 | W131: 34.35671997 | X131: 34.41654205 | Y131: 0 | Z131: 34.41654205 | AA131: 0 | AB131: 0 | AC131: L | AE131: RvS S | AF131: 30.13076401 | AG131: 34.41654205 | AH131: 21800.20027 | AI131: 0.06105531752 | AK131: 28.43739891 | AL131: 33.89538574 | AM131: 0 | AN131: 0 | AO131: 0 | AP131: 0 | AQ131: L | AT131: 20.13024521 | AU131: 21.6478653 | AV131: 19931.8346 | AW131: 0.04323876649 | AY131: 34.03785706 | AZ131: 33.90222549 | BA131: 0 | BB131: 0 | BC131: 0 | BD131: 0 | BE131: L | BH131: 25.39239502 | BI131: 26.45999908 | BJ131: 22747.6796 | BK131: 0.04323876649 | BM131: 30.02172661 | BN131: 33.35808182 | BO131: 0 | BP131: 0 | BQ131: 0 | BR131: 0 | BS131: L | BV131: 21.77000046 | BW131: 24.04000092 | BX131: 17566.89704 | BY131: 0.04323876649 | CA131: 37.19239044 | CB131: 36.42868042 | CC131: 34.97000122 | CD131: 0 | CE131: 0 | CF131: 0 | CG131: S | CH131: RvL S | CJ131: 34.97000122 | CK131: 36.31000137 | CL131: 25317.76191 | CM131: 0.006577052642 | CO131: 22.40041161 | CP131: 33.38791275 | CQ131: 0 | CR131: 0 | CS131: 0 | CT131: 0 | CU131: L | CX131: 20.46999931 | CY131: 21.81999969 | CZ131: 19915.93055 | DA131: 0.04323876649 | DC131: 36.58198929 | DD131: 35.53030014 | DE131: 34.97000122 | DF131: 35.53030014 | DG131: 0 | DH131: 0 | DI131: S | DJ131: RvL S | DL131: 34.97000122 | DM131: 36.31000137 | DN131: 19752.09952 | DO131: 0.006577052642 | DQ131: 36.53764725 | DR131: 35.53030014 | DS131: 34.97000122 | DT131: 35.53030014 | DU131: 0 | DV131: 0 | DW131: S | DX131: RvL S | DZ131: 34.97000122 | EA131: 36.31000137 | EB131: 20448.88539 | EC131: 0.006577052642 | ED131: 120 | EE131: 120 | EF131: 120
B132: B | C132: 2023-05-30 | D132: 36.31000137 | E132: 36.66999817 | F132: 35.04000092 | G132: 35.47000122 | H132: 135306400 | I132: 36.66999817 | J132: 28.95999908 | K132: 35.85499954 | L132: 35.5600001 | M132: 32.0930458 | O132: 31.79850006 | P132: 0 | Q132: 0 | U132: 0 | W132: 32.15059662 | X132: 33.94109344 | Y132: 0 | Z132: 0 | AA132: 0 | AB132: 0 | AC132: L | AF132: 30.13076401 | AG132: 31.11752129 | AH132: 22360.92983 | AI132: 0.0369044356 | AK132: 27.81004715 | AL132: 30.62813568 | AM132: 0 | AN132: 0 | AO132: 0 | AP132: 0 | AQ132: L | AT132: 20.13024521 | AU132: 21.6478653 | AV132: 20063.79524 | AW132: 0.0369044356 | AY132: 31.85220718 | AZ132: 33.43388367 | BA132: 0 | BB132: 0 | BC132: 0 | BD132: 0 | BE132: L | BH132: 25.39239502 | BI132: 26.45999908 | BJ132: 22898.28282 | BK132: 0.0369044356 | BM132: 28.85917473 | BN132: 31.21608162 | BO132: 0 | BP132: 0 | BQ132: 0 | BR132: 0 | BS132: L | BV132: 21.77000046 | BW132: 24.04000092 | BX132: 17683.20038 | BY132: 0.0369044356 | CA132: 35.28894806 | CB132: 34.56431961 | CC132: 35.28894806 | CD132: 36.31000137 | CE132: 0 | CF132: 0 | CG132: L | CI132: RvS S | CJ132: 32.81000137 | CK132: 36.31000137 | CL132: 25485.38061 | CM132: 0 | CO132: 22.40041161 | CP132: 32.92667389 | CQ132: 0 | CR132: 0 | CS132: 0 | CT132: 0 | CU132: L | CX132: 20.46999931 | CY132: 21.81999969 | CZ132: 20047.78589 | DA132: 0.0369044356 | DC132: 35.16540146 | DD132: 35.03946686 | DE132: 35.16540146 | DF132: 36.31000137 | DG132: 0 | DH132: 0 | DI132: L | DK132: RvS S | DL132: 32.79111099 | DM132: 36.31000137 | DN132: 19882.87021 | DO132: 0 | DQ132: 36.03289795 | DR132: 35.03946686 | DS132: 36.03289795 | DT132: 36.31000137 | DU132: 0 | DV132: 0 | DW132: L | DY132: RvS S | DZ132: 32.81000137 | EA132: 36.31000137 | EB132: 20584.26922 | EC132: 0 | ED132: 121 | EE132: 121 | EF132: 121
B133: BPS | C133: 2023-05-26 | D133: 32.81000137 | E133: 35.25 | F133: 32.79000092 | G133: 34.97999954 | H133: 126392200 | I133: 35.25 | J133: 28.43000031 | K133: 34.02000046 | L133: 34.7833341 | M133: 31.25705607 | O133: 31.09700012 | P133: 0 | Q133: 0 | U133: 0 | W133: 31.0622406 | X133: 31.55415726 | Y133: 0 | Z133: 0 | AA133: 0 | AB133: 0 | AC133: L | AF133: 30.13076401 | AG133: 31.11752129 | AH133: 23217.76851 | AI133: 0 | AK133: 27.33740997 | AL133: 30.20806122 | AM133: 0 | AN133: 0 | AO133: 0 | AP133: 0 | AQ133: L | AT133: 20.13024521 | AU133: 21.6478653 | AV133: 20832.61102 | AW133: 0 | AY133: 30.77395248 | AZ133: 31.08261681 | BA133: 0 | BB133: 0 | BC133: 0 | BD133: 0 | BE133: L | BH133: 25.39239502 | BI133: 26.45999908 | BJ133: 23775.71208 | BK133: 0 | BM133: 26.91066742 | BN133: 30.15936089 | BO133: 0 | BP133: 0 | BQ133: 0 | BR133: 0 | BS133: L | BV133: 21.77000046 | BW133: 24.04000092 | BX133: 18360.79519 | BY133: 0 | CA133: 33.47885895 | CB133: 32.79140091 | CC133: 32.81000137 | CD133: 32.81000137 | CE133: 0 | CF133: 0 | CG133: S | CH133: RvL S | CJ133: 32.81000137 | CK133: 32.36000061 | CL133: 24578.33114 | CM133: 0 | CO133: 22.40041161 | CP133: 30.61107635 | CQ133: 0 | CR133: 0 | CS133: 0 | CT133: 0 | CU133: L | CX133: 20.46999931 | CY133: 21.81999969 | CZ133: 20815.98821 | DA133: 0 | DC133: 32.79111099 | DD133: 32.57528305 | DE133: 32.79111099 | DF133: 32.81000137 | DG133: 0 | DH133: 0 | DI133: S | DJ133: RvL S | DL133: 32.79111099 | DM133: 32.36000061 | DN133: 19175.21953 | DO133: 0 | DQ133: 33.49885178 | DR133: 32.57528305 | DS133: 32.81000137 | DT133: 32.81000137 | DU133: 0 | DV133: 0 | DW133: S | DX133: RvL S | DZ133: 32.81000137 | EA133: 32.36000061 | EB133: 19851.65507 | EC133: 0 | ED133: 122 | EE133: 122 | EF133: 122
B134: 1 | C134: 2023-05-25 | D134: 32.36000061 | E134: 32.86999893 | F134: 31.68000031 | G134: 32.52000046 | H134: 130873500 | I134: 32.86999893 | J134: 28.17000008 | K134: 32.27499962 | L134: 32.45333354 | M134: 30.64306843 | O134: 30.56850004 | P134: 0 | Q134: 0 | U134: 0 | W134: 29.18948555 | X134: 29.42919922 | Y134: 0 | Z134: 0 | AA134: 0 | AB134: 0 | AC134: L | AF134: 30.13076401 | AG134: 31.11752129 | AH134: 20979.75731 | AI134: 0 | AK134: 27.03021812 | AL134: 28.25704575 | AM134: 0 | AN134: 0 | AO134: 0 | AP134: 0 | AQ134: L | AT134: 20.13024521 | AU134: 21.6478653 | AV134: 18824.51034 | AW134: 0 | AY134: 28.9185791 | AZ134: 28.98941422 | BA134: 0 | BB134: 0 | BC134: 0 | BD134: 0 | BE134: L | BH134: 25.39239502 | BI134: 26.45999908 | BJ134: 21483.91949 | BK134: 0 | BM134: 26.49313164 | BN134: 28.34103966 | BO134: 0 | BP134: 0 | BQ134: 0 | BR134: 0 | BS134: L | BV134: 21.77000046 | BW134: 24.04000092 | BX134: 16590.95821 | BY134: 0 | CA134: 31.36276627 | CB134: 30.71876144 | CC134: 0 | CD134: 32.36000061 | CE134: 0 | CF134: 0 | CG134: L | CI134: RvS S | CJ134: 31.68000031 | CK134: 32.36000061 | CL134: 22209.17235 | CM134: 0.01390608028 | CO134: 22.40041161 | CP134: 28.54962921 | CQ134: 0 | CR134: 0 | CS134: 0 | CT134: 0 | CU134: L | CX134: 20.46999931 | CY134: 21.81999969 | CZ134: 18809.48984 | DA134: 0 | DC134: 32.28233719 | DD134: 30.38156128 | DE134: 32.28233719 | DF134: 32.36000061 | DG134: 0 | DH134: 0 | DI134: L | DK134: RvS S | DL134: 31.55999947 | DM134: 32.36000061 | DN134: 17306.65704 | DO134: 0.03895340487 | DQ134: 31.24293327 | DR134: 30.38156128 | DS134: 0 | DT134: 32.36000061 | DU134: 0 | DV134: 0 | DW134: L | DY134: RvS S | DZ134: 31.55999947 | EA134: 32.36000061 | EB134: 17938.11086 | EC134: 0.04318524152 | ED134: 123 | EE134: 123 | EF134: 123
B135: 0.0024 | C135: 2023-05-24 | D135: 30.27000046 | E135: 30.70000076 | F135: 29.77000046 | G135: 30.32999992 | H135: 117972500 | I135: 32.36000061 | J135: 28.17000008 | K135: 30.23500061 | L135: 30.94333394 | M135: 30.28041706 | O135: 30.2250001 | P135: 0 | Q135: 0 | U135: 0 | W135: 30.13076401 | X135: 29.9143486 | Y135: 30.13076401 | Z135: 29.9143486 | AA135: 0 | AB135: 0 | AC135: S | AD135: RvL S | AF135: 30.13076401 | AG135: 31.11752129 | AH135: 20692.01252 | AI135: 0 | AK135: 26.87013817 | AL135: 29.46125984 | AM135: 0 | AN135: 0 | AO135: 0 | AP135: 0 | AQ135: L | AT135: 20.13024521 | AU135: 21.6478653 | AV135: 18566.32553 | AW135: 0 | AY135: 29.8511219 | AZ135: 29.46731377 | BA135: 29.8511219 | BB135: 0 | BC135: 0 | BD135: 0 | BE135: L | BH135: 25.39239502 | BI135: 26.45999908 | BJ135: 21189.25994 | BK135: 0 | BM135: 26.49313164 | BN135: 29.25495911 | BO135: 0 | BP135: 0 | BQ135: 0 | BR135: 0 | BS135: L | BV135: 21.77000046 | BW135: 24.04000092 | BX135: 16363.40735 | BY135: 0 | CA135: 32.48304749 | CB135: 31.81604004 | CC135: 30.27000046 | CD135: 0 | CE135: 0 | CF135: 0 | CG135: L | CJ135: 31.68000031 | CK135: 32.02999878 | CL135: 22522.37023 | CM135: 0 | CO135: 22.40041161 | CP135: 29.02027893 | CQ135: 0 | CR135: 0 | CS135: 0 | CT135: 0 | CU135: L | CX135: 20.46999931 | CY135: 21.81999969 | CZ135: 18551.51104 | DA135: 0 | DC135: 32.28233719 | DD135: 30.88241005 | DE135: 30.27000046 | DF135: 0 | DG135: 0 | DH135: 0 | DI135: L | DL135: 31.55999947 | DM135: 31.79395866 | DN135: 17550.71874 | DO135: 0.02540054731 | DQ135: 31.75798225 | DR135: 30.88241005 | DS135: 30.27000046 | DT135: 0 | DU135: 0 | DV135: 0 | DW135: L | DZ135: 31.55999947 | EA135: 31.79395866 | EB135: 18191.07744 | EC135: 0.02969206125 | ED135: 124 | EE135: 124 | EF135: 124
B136: =DK542 -> H | C136: 2023-05-23 | D136: 31.55999947 | E136: 31.89999962 | F136: 30.72999954 | G136: 30.82999992 | H136: 106315000 | I136: 32.36000061 | J136: 27.87000084 | K136: 31.31499958 | L136: 30.96666654 | M136: 30.2905096 | O136: 30.0460001 | P136: 0 | Q136: 0 | U136: 0 | W136: 31.05243492 | X136: 31.11752129 | Y136: 31.05243492 | Z136: 31.11752129 | AA136: 0 | AB136: 0 | AC136: L | AE136: RvS S | AF136: 26.30681419 | AG136: 31.11752129 | AH136: 19183.00926 | AI136: 0.002028031042 | AK136: 26.57501793 | AL136: 29.57328033 | AM136: 0 | AN136: 0 | AO136: 0 | AP136: 0 | AQ136: L | AT136: 20.13024521 | AU136: 21.6478653 | AV136: 17367.20246 | AW136: 0.05494843423 | AY136: 30.76423836 | AZ136: 30.65250587 | BA136: 30.76423836 | BB136: 0 | BC136: 0 | BD136: 0 | BE136: L | BH136: 25.39239502 | BI136: 26.45999908 | BJ136: 19820.73226 | BK136: 0.05494843423 | BM136: 26.49313164 | BN136: 30.1498394 | BO136: 0 | BP136: 0 | BQ136: 0 | BR136: 0 | BS136: L | BV136: 21.77000046 | BW136: 24.04000092 | BX136: 15306.56176 | BY136: 0.05494843423 | CA136: 33.20915985 | CB136: 32.52724075 | CC136: 31.55999947 | CD136: 0 | CE136: 0 | CF136: 0 | CG136: L | CJ136: 31.68000031 | CK136: 32.02999878 | CL136: 21067.74241 | CM136: 0.04450757056 | CO136: 22.40041161 | CP136: 30.18749046 | CQ136: 0 | CR136: 0 | CS136: 0 | CT136: 0 | CU136: L | CX136: 20.46999931 | CY136: 21.81999969 | CZ136: 17353.34478 | DA136: 0.05494843423 | DC136: 32.28233719 | DD136: 32.12451935 | DE136: 31.55999947 | DF136: 0 | DG136: 0 | DH136: 0 | DI136: S | DJ136: RvL S | DL136: 31.55999947 | DM136: 31.79395866 | DN136: 16417.18956 | DO136: 0.08834594488 | DQ136: 33.03530502 | DR136: 32.12451935 | DS136: 31.55999947 | DT136: 0 | DU136: 0 | DV136: 0 | DW136: S | DX136: RvL S | DZ136: 31.55999947 | EA136: 31.79395866 | EB136: 17016.19011 | EC136: 0.0923602879 | ED136: 125 | EE136: 125 | EF136: 125
B137: =DK543 -> A | C137: 2023-05-22 | D137: 31.68000031 | E137: 32.36000061 | F137: 31.67000008 | G137: 32.06999969 | H137: 83312400 | I137: 32.36000061 | J137: 27.80999947 | K137: 32.01500034 | L137: 31.86333338 | M137: 30.06284516 | O137: 29.71600008 | P137: 0 | Q137: 0 | U137: 0 | W137: 30.83672523 | X137: 30.79732132 | Y137: 0 | Z137: 0 | AA137: 0 | AB137: 0 | AC137: L | AF137: 26.30681419 | AG137: 27.33335114 | AH137: 18939.93387 | AI137: 0.01467372291 | AK137: 26.23205566 | AL137: 29.90000343 | AM137: 0 | AN137: 0 | AO137: 0 | AP137: 0 | AQ137: L | AT137: 20.13024521 | AU137: 21.6478653 | AV137: 18107.33043 | AW137: 0.01467372291 | AY137: 30.55053139 | AZ137: 30.33709145 | BA137: 0 | BB137: 0 | BC137: 0 | BD137: 0 | BE137: L | BH137: 25.39239502 | BI137: 26.45999908 | BJ137: 20665.42088 | BK137: 0.01467372291 | BM137: 26.39488983 | BN137: 29.94040108 | BO137: 0 | BP137: 0 | BQ137: 0 | BR137: 0 | BS137: L | BV137: 21.77000046 | BW137: 24.04000092 | BX137: 15958.87261 | BY137: 0.01467372291 | CA137: 33.03282166 | CB137: 32.35452271 | CC137: 31.68000031 | CD137: 32.35452271 | CE137: 0 | CF137: 0 | CG137: S | CH137: RvL S | CJ137: 31.68000031 | CK137: 32.02999878 | CL137: 21965.57414 | CM137: 0.003787905211 | CO137: 22.40041161 | CP137: 29.87686157 | CQ137: 0 | CR137: 0 | CS137: 0 | CT137: 0 | CU137: L | CX137: 20.46999931 | CY137: 21.81999969 | CZ137: 18092.88218 | DA137: 0.01467372291 | DC137: 32.16262436 | DD137: 31.79395866 | DE137: 31.68000031 | DF137: 31.79395866 | DG137: 0 | DH137: 0 | DI137: L | DK137: RvS S | DL137: 31.96310425 | DM137: 31.79395866 | DN137: 17116.83138 | DO137: 0.04949451238 | DQ137: 32.69537354 | DR137: 31.79395866 | DS137: 31.68000031 | DT137: 31.79395866 | DU137: 0 | DV137: 0 | DW137: L | DY137: RvS S | DZ137: 32.02999878 | EA137: 31.79395866 | EB137: 17741.35919 | EC137: 0.05367993191 | ED137: 126 | EE137: 126 | EF137: 126
B138: C | C138: 2023-05-19 | D138: 32.02999878 | E138: 32.24000168 | F138: 31.45000076 | G138: 31.73999977 | H138: 98804300 | I138: 32.24000168 | J138: 27.80999947 | K138: 31.84500122 | L138: 31.79000092 | M138: 29.6290329 | O138: 29.33250008 | P138: 0 | Q138: 0 | U138: 0 | W138: 29.80719948 | X138: 31.01078796 | Y138: 0 | Z138: 0 | AA138: 0 | AB138: 0 | AC138: L | AF138: 26.30681419 | AG138: 27.33335114 | AH138: 19011.94934 | AI138: 0.0109272087 | AK138: 25.86539078 | AL138: 28.3783989 | AM138: 0 | AN138: 0 | AO138: 0 | AP138: 0 | AQ138: L | AT138: 20.13024521 | AU138: 21.6478653 | AV138: 18176.18008 | AW138: 0.0109272087 | AY138: 29.53055954 | AZ138: 30.5473671 | BA138: 0 | BB138: 0 | BC138: 0 | BD138: 0 | BE138: L | BH138: 25.39239502 | BI138: 26.45999908 | BJ138: 20743.99718 | BK138: 0.0109272087 | BM138: 26.23114967 | BN138: 28.94079971 | BO138: 0 | BP138: 0 | BQ138: 0 | BR138: 0 | BS138: L | BV138: 21.77000046 | BW138: 24.04000092 | BX138: 16019.55316 | BY138: 0.0109272087 | CA138: 32.38450623 | CB138: 31.71952057 | CC138: 32.02999878 | CD138: 32.02999878 | CE138: 0 | CF138: 0 | CG138: L | CI138: RvS S | CJ138: 30.39999962 | CK138: 32.02999878 | CL138: 22049.09402 | CM138: 0 | CO138: 22.40041161 | CP138: 30.08394623 | CQ138: 0 | CR138: 0 | CS138: 0 | CT138: 0 | CU138: L | CX138: 20.46999931 | CY138: 21.81999969 | CZ138: 18161.67689 | DA138: 0.0109272087 | DC138: 31.96310425 | DD138: 32.01433182 | DE138: 31.96310425 | DF138: 32.02999878 | DG138: 0 | DH138: 0 | DI138: S | DJ138: RvL S | DL138: 31.96310425 | DM138: 30.39999962 | DN138: 16930.8931 | DO138: 0.05981974676 | DQ138: 32.92199326 | DR138: 32.01433182 | DS138: 32.02999878 | DT138: 32.02999878 | DU138: 0 | DV138: 0 | DW138: S | DX138: RvL S | DZ138: 32.02999878 | EA138: 30.39999962 | EB138: 17548.63674 | EC138: 0.06395970285 | ED138: 127 | EE138: 127 | EF138: 127
B139: S | C139: 2023-05-18 | D139: 30.39999962 | E139: 32.04000092 | F139: 30.39999962 | G139: 31.95999908 | H139: 135933800 | I139: 32.04000092 | J139: 27.03000069 | K139: 31.22000027 | L139: 31.48999977 | M139: 29.1365955 | O139: 28.92249994 | P139: 0 | Q139: 0 | U139: 0 | W139: 28.66001511 | X139: 29.42919922 | Y139: 0 | Z139: 0 | AA139: 0 | AB139: 0 | AC139: L | AF139: 26.30681419 | AG139: 27.33335114 | AH139: 19221.99205 | AI139: 0 | AK139: 25.4593792 | AL139: 27.5849247 | AM139: 0 | AN139: 0 | AO139: 0 | AP139: 0 | AQ139: L | AT139: 20.13024521 | AU139: 21.6478653 | AV139: 18376.98927 | AW139: 0 | AY139: 28.39402199 | AZ139: 28.98941422 | BA139: 0 | BB139: 0 | BC139: 0 | BD139: 0 | BE139: L | BH139: 25.39239502 | BI139: 26.45999908 | BJ139: 20973.17544 | BK139: 0 | BM139: 24.95397568 | BN139: 27.82695961 | BO139: 0 | BP139: 0 | BQ139: 0 | BR139: 0 | BS139: L | BV139: 21.77000046 | BW139: 24.04000092 | BX139: 16196.53608 | BY139: 0 | CA139: 30.96859169 | CB139: 30.33267975 | CC139: 30.39999962 | CD139: 30.39999962 | CE139: 0 | CF139: 0 | CG139: S | CH139: RvL S | CJ139: 30.39999962 | CK139: 29.81959915 | CL139: 21810.76326 | CM139: 0 | CO139: 22.40041161 | CP139: 28.54962921 | CQ139: 0 | CR139: 0 | CS139: 0 | CT139: 0 | CU139: L | CX139: 20.46999931 | CY139: 21.81999969 | CZ139: 18362.32586 | DA139: 0 | DC139: 30.406847 | DD139: 30.38156128 | DE139: 30.39999962 | DF139: 30.39999962 | DG139: 0 | DH139: 0 | DI139: L | DK139: RvS S | DL139: 29.54999924 | DM139: 30.39999962 | DN139: 17042.56793 | DO139: 0.05361839384 | DQ139: 31.24293327 | DR139: 30.38156128 | DS139: 30.39999962 | DT139: 30.39999962 | DU139: 0 | DV139: 0 | DW139: L | DY139: RvS S | DZ139: 29.54999924 | EA139: 30.39999962 | EB139: 17742.51287 | EC139: 0.05361839384 | ED139: 128 | EE139: 128 | EF139: 128
B140: S | C140: =OFFSET(DataPrepRoot, $EF140, 0) -> 2023-05-17 | D140: =OFFSET(DataPrepRoot, $EF140, 1) -> 29.54999924 | E140: =OFFSET(DataPrepRoot, $EF140, 2) -> 30.47999954 | F140: =OFFSET(DataPrepRoot, $EF140, 3) -> 29.22999954 | G140: =OFFSET(DataPrepRoot, $EF140, 4) -> 30.32999992 | H140: =OFFSET(DataPrepRoot, $EF140, 5) -> 101104600 | I140: =OFFSET(DataPrepRoot, $EF140, 40) -> 30.47999954 | J140: =OFFSET(DataPrepRoot, $EF140, 41) -> 26.28000069 | K140: =(E140+F140)/2 -> 29.85499954 | L140: 30.03666623 | M140: =OFFSET(DataPrepRoot, $EF140, 38) -> 28.67361666 | O140: =OFFSET(DataPrepRoot, $EF140, 37) -> 28.46849995 | P140: =OFFSET(DataPrepRoot, $EF140, BandColumnOffset+BuyBandIndex) -> 0 | Q140: =OFFSET(DataPrepRoot, $EF140, BandColumnOffset+SellBandIndex) -> 0 | T140: =IF(Style = "Long", "L", IF(Style = "Short", "S", "")) ->  | U140: =IF(ROW()-ROW($C$11)<DaysToAnalyze+1,OFFSET(DataPrepRoot, $EF140, 6),0)*(IF(AdjDividend = "Y", 0,1)) -> 0 | W140: 28.39527893 | X140: 28.41038513 | Y140: 0 | Z140: 0 | AA140: 0 | AB140: 0 | AC140: L | AF140: 26.30681419 | AG140: 27.33335114 | AH140: 18243.78936 | AI140: 0 | AK140: 25.25011253 | AL140: 27.05282974 | AM140: 0 | AN140: 0 | AO140: 0 | AP140: 0 | AQ140: L | AT140: 20.13024521 | AU140: 21.6478653 | AV140: 17441.78858 | AW140: 0 | AY140: 28.13174248 | AZ140: 27.98582458 | BA140: 0 | BB140: 0 | BC140: 0 | BD140: 0 | BE140: L | BH140: 25.39239502 | BI140: 26.45999908 | BJ140: 19905.85544 | BK140: 0 | BM140: 24.3481369 | BN140: 27.56991959 | BO140: 0 | BP140: 0 | BQ140: 0 | BR140: 0 | BS140: L | BV140: 21.77000046 | BW140: 24.04000092 | BX140: 15372.29814 | BY140: 0 | CA140: 30.44475365 | CB140: 29.81959915 | CC140: 29.54999924 | CD140: 29.81959915 | CE140: 0 | CF140: 0 | CG140: L | CI140: RvS S | CJ140: 28.97999954 | CK140: 29.81959915 | CL140: 20700.81861 | CM140: 0.01051776763 | CO140: 22.40041161 | CP140: 27.56126404 | CQ140: 0 | CR140: 0 | CS140: 0 | CT140: 0 | CU140: L | CX140: 20.46999931 | CY140: 21.81999969 | CZ140: 17427.87138 | DA140: 0 | DC140: 29.66862297 | DD140: 29.32977676 | DE140: 29.54999924 | DF140: 29.54999924 | DG140: 0 | DH140: 0 | DI140: S | DJ140: RvL S | DL140: 29.54999924 | DM140: 29.21958923 | DN140: 18008.13522 | DO140: 0 | DQ140: 30.16132927 | DR140: 29.32977676 | DS140: 29.54999924 | DT140: 29.54999924 | DU140: 0 | DV140: 0 | DW140: S | DX140: RvL S | DZ140: 29.54999924 | EA140: 29.21958923 | EB140: 18747.73639 | EC140: 0 | ED140: 129 | EE140: =IF(ED140<DaysRequested, ED140, DaysRequested)+DateOffset+DPRowOffset -> 129 | EF140: =IF(EE140>DatesAvailable, DatesAvailable, EE140) -> 129
B141: ACS | C141: 2023-05-16 | D141: 28.97999954 | E141: 29.73999977 | F141: 28.95999908 | G141: 29.28000069 | H141: 79663500 | I141: 29.73999977 | J141: 26.28000069 | K141: 29.34999943 | L141: 29.41666603 | M141: 28.41108713 | O141: 28.23450003 | P141: 0 | Q141: 0 | U141: 0 | W141: 27.87561607 | X141: 28.30365181 | Y141: 0 | Z141: 0 | AA141: 0 | AB141: 0 | AC141: L | AF141: 26.30681419 | AG141: 27.33335114 | AH141: 17733.68318 | AI141: 0 | AK141: 25.09271622 | AL141: 26.93147469 | AM141: 0 | AN141: 0 | AO141: 0 | AP141: 0 | AQ141: L | AT141: 20.13024521 | AU141: 21.6478653 | AV141: 16954.10676 | AW141: 0 | AY141: 27.6169014 | AZ141: 27.88068581 | BA141: 0 | BB141: 0 | BC141: 0 | BD141: 0 | BE141: L | BH141: 25.39239502 | BI141: 26.45999908 | BJ141: 19349.27699 | BK141: 0 | BM141: 23.98790932 | BN141: 27.06536102 | BO141: 0 | BP141: 0 | BQ141: 0 | BR141: 0 | BS141: L | BV141: 21.77000046 | BW141: 24.04000092 | BX141: 14942.4804 | BY141: 0 | CA141: 29.91573143 | CB141: 29.30143929 | CC141: 28.97999954 | CD141: 29.30143929 | CE141: 0 | CF141: 0 | CG141: S | CH141: RvL S | CJ141: 28.97999954 | CK141: 29.19475937 | CL141: 20920.85934 | CM141: 0 | CO141: 22.40041161 | CP141: 27.45772171 | CQ141: 0 | CR141: 0 | CS141: 0 | CT141: 0 | CU141: L | CX141: 20.46999931 | CY141: 21.81999969 | CZ141: 16940.5787 | DA141: 0 | DC141: 29.22967911 | DD141: 29.21958923 | DE141: 28.97999954 | DF141: 29.21958923 | DG141: 0 | DH141: 0 | DI141: L | DK141: RvS S | DL141: 28.85000038 | DM141: 29.21958923 | DN141: 17504.61805 | DO141: 0.003133907216 | DQ141: 30.0480175 | DR141: 29.21958923 | DS141: 28.97999954 | DT141: 29.21958923 | DU141: 0 | DV141: 0 | DW141: L | DY141: RvS S | DZ141: 28.85000038 | EA141: 29.21958923 | EB141: 18223.53957 | EC141: 0.003133907216 | ED141: 130 | EE141: =IF(ED141<DaysRequested, ED141, DaysRequested)+DateOffset+DPRowOffset -> 130 | EF141: 130
B142: 1 | C142: 2023-05-15 | D142: 28.85000038 | E142: 29.25 | F142: 28.43000031 | G142: 29.17000008 | H142: 86467600 | I142: 29.29999924 | J142: 26.28000069 | K142: 28.84000015 | L142: =(E142+F142+D141)/3 -> 28.88666662 | M142: 28.20243995 | O142: 28.0585 | P142: 0 | Q142: 0 | U142: 0 | W142: 27.62068558 | X142: 27.87671852 | Y142: 0 | Z142: 0 | AA142: 0 | AB142: 0 | AC142: L | AF142: 26.30681419 | AG142: 27.33335114 | AH142: 17391.6123 | AI142: 0.006854035892 | AK142: 25.0354805 | AL142: 27.23953056 | AM142: 0 | AN142: 0 | AO142: 0 | AP142: 0 | AQ142: L | AT142: 20.13024521 | AU142: 21.6478653 | AV142: 16627.0734 | AW142: 0.006854035892 | AY142: 27.36433792 | AZ142: 27.46013451 | BA142: 0 | BB142: 0 | BC142: 0 | BD142: 0 | BE142: L | BH142: 25.39239502 | BI142: 26.45999908 | BJ142: 18976.04239 | BK142: 0.006854035892 | BM142: 23.98790932 | BN142: 26.81784058 | BO142: 0 | BP142: 0 | BQ142: 0 | BR142: 0 | BS142: L | BV142: 21.77000046 | BW142: 24.04000092 | BX142: 14654.24996 | BY142: 0.006854035892 | CA142: 29.80681419 | CB142: 29.19475937 | CC142: 28.85000038 | CD142: 29.19475937 | CE142: 0 | CF142: 0 | CG142: L | CI142: RvS S | CJ142: 28.90999985 | CK142: 29.19475937 | CL142: 20517.30997 | CM142: 0.0184347555 | CO142: 22.40041161 | CP142: 27.04354858 | CQ142: 0 | CR142: 0 | CS142: 0 | CT142: 0 | CU142: L | CX142: 20.46999931 | CY142: 21.81999969 | CZ142: 16613.80628 | DA142: 0.006854035892 | DC142: 29.22967911 | DD142: 28.77884102 | DE142: 28.85000038 | DF142: 28.85000038 | DG142: 0 | DH142: 0 | DI142: S | DJ142: RvL S | DL142: 28.85000038 | DM142: 29.18000031 | DN142: 17559.64836 | DO142: 0 | DQ142: 29.59477234 | DR142: 28.77884102 | DS142: 28.85000038 | DT142: 28.85000038 | DU142: 0 | DV142: 0 | DW142: S | DX142: RvL S | DZ142: 28.85000038 | EA142: 29.18000031 | EB142: 18280.83 | EC142: 0 | ED142: 131 | EE142: 131 | EF142: 131
B143: 0.0017 | C143: 2023-05-12 | D143: 29.18000031 | E143: 29.29999924 | F143: 28.17000008 | G143: 28.72999954 | H143: 105114100 | I143: 29.29999924 | J143: 26.28000069 | K143: 28.73499966 | L143: 28.77333323 | M143: 28.06075991 | O143: 27.99450006 | P143: 0 | Q143: 0 | U143: 0 | W143: 27.93444443 | X143: 28.16781044 | Y143: 0 | Z143: 0 | AA143: 0 | AB143: 0 | AC143: L | AF143: 26.30681419 | AG143: 27.33335114 | AH143: 17313.5966 | AI143: 0.01130911335 | AK143: 24.95231247 | AL143: 26.98748398 | AM143: 0 | AN143: 0 | AO143: 0 | AP143: 0 | AQ143: L | AT143: 20.13024521 | AU143: 21.6478653 | AV143: 16552.48728 | AW143: 0.01130911335 | AY143: 27.67518616 | AZ143: 27.74687386 | BA143: 0 | BB143: 0 | BC143: 0 | BD143: 0 | BE143: L | BH143: 25.39239502 | BI143: 26.45999908 | BJ143: 18890.91922 | BK143: 0.01130911335 | BM143: 23.89785385 | BN143: 27.12248039 | BO143: 0 | BP143: 0 | BQ143: 0 | BR143: 0 | BS143: L | BV143: 21.77000046 | BW143: 24.04000092 | BX143: 14588.51358 | BY143: 0.01130911335 | CA143: 29.91573143 | CB143: 29.30143929 | CC143: 29.18000031 | CD143: 0 | CE143: 0 | CF143: 0 | CG143: L | CJ143: 28.90999985 | CK143: 28.52000046 | CL143: 20126.96587 | CM143: 0.03710914403 | CO143: 22.40041161 | CP143: 27.32593918 | CQ143: 0 | CR143: 0 | CS143: 0 | CT143: 0 | CU143: L | CX143: 20.46999931 | CY143: 21.81999969 | CZ143: 16539.27968 | DA143: 0.01130911335 | DC143: 29.11994362 | DD143: 29.07935143 | DE143: 29.11994362 | DF143: 29.18000031 | DG143: 0 | DH143: 0 | DI143: L | DK143: RvS S | DL143: 28.90999985 | DM143: 29.18000031 | DN143: 17480.87888 | DO143: 0 | DQ143: 29.90380287 | DR143: 29.07935143 | DS143: 29.18000031 | DT143: 29.18000031 | DU143: 0 | DV143: 0 | DW143: L | DY143: RvS S | DZ143: 28.90999985 | EA143: 29.18000031 | EB143: 18198.82542 | EC143: 0 | ED143: 132 | EE143: 132 | EF143: 132
B144: =DX542 -> H | C144: 2023-05-11 | D144: 28.90999985 | E144: 29.19000053 | F144: 28.48999977 | G144: 29.03000069 | H144: 97341500 | I144: 29.19000053 | J144: 26.28000069 | K144: 28.84000015 | L144: 28.95333354 | M144: 27.91092885 | O144: 27.90150013 | P144: 0 | Q144: 0 | U144: 0 | W144: 27.32653618 | X144: 27.93493843 | Y144: 0 | Z144: 0 | AA144: 0 | AB144: 0 | AC144: L | AF144: 26.30681419 | AG144: 27.33335114 | AH144: 17511.63769 | AI144: 0 | AK144: 24.79759789 | AL144: 26.62342072 | AM144: 0 | AN144: 0 | AO144: 0 | AP144: 0 | AQ144: L | AT144: 20.13024521 | AU144: 21.6478653 | AV144: 16741.82245 | AW144: 0 | AY144: 27.07291794 | AZ144: 27.51748276 | BA144: 0 | BB144: 0 | BC144: 0 | BD144: 0 | BE144: L | BH144: 25.39239502 | BI144: 26.45999908 | BJ144: 19107.00247 | BK144: 0 | BM144: 23.75867462 | BN144: 26.53223991 | BO144: 0 | BP144: 0 | BQ144: 0 | BR144: 0 | BS144: L | BV144: 21.77000046 | BW144: 24.04000092 | BX144: 14755.38388 | BY144: 0 | CA144: 29.50599861 | CB144: 28.90011978 | CC144: 28.90999985 | CD144: 28.90999985 | CE144: 0 | CF144: 0 | CG144: S | CH144: RvL S | CJ144: 28.90999985 | CK144: 28.52000046 | CL144: 20357.18761 | CM144: 0.02609514259 | CO144: 22.40041161 | CP144: 27.10002708 | CQ144: 0 | CR144: 0 | CS144: 0 | CT144: 0 | CU144: L | CX144: 20.46999931 | CY144: 21.81999969 | CZ144: 16728.46377 | DA144: 0 | DC144: 28.95035172 | DD144: 28.83894348 | DE144: 28.90999985 | DF144: 28.90999985 | DG144: 0 | DH144: 0 | DI144: S | DJ144: RvL S | DL144: 28.90999985 | DM144: 28.52000046 | DN144: 17285.39638 | DO144: 0.004462959711 | DQ144: 29.65657997 | DR144: 28.83894348 | DS144: 28.90999985 | DT144: 28.90999985 | DU144: 0 | DV144: 0 | DW144: S | DX144: RvL S | DZ144: 28.90999985 | EA144: 28.52000046 | EB144: 17995.31438 | EC144: 0.004462959711 | ED144: 133 | EE144: 133 | EF144: 133
B145: =DX543 -> B | C145: 2023-05-10 | D145: 28.52000046 | E145: 29.02000046 | F145: 27.87000084 | G145: 28.79000092 | H145: 151551000 | I145: 29.02000046 | J145: 26.28000069 | K145: 28.44500065 | L145: 28.60000038 | M145: 27.70446857 | O145: 27.72850008 | P145: 0 | Q145: 0 | U145: 0 | W145: 27.26770401 | X145: 27.06166649 | Y145: 0 | Z145: 0 | AA145: 0 | AB145: 0 | AC145: L | AF145: 26.30681419 | AG145: 27.33335114 | AH145: 17349.60376 | AI145: 0 | AK145: 24.57447052 | AL145: 26.12866402 | AM145: 0 | AN145: 0 | AO145: 0 | AP145: 0 | AQ145: L | AT145: 20.13024521 | AU145: 21.6478653 | AV145: 16586.91156 | AW145: 0 | AY145: 27.01463318 | AZ145: 26.65726089 | BA145: 0 | BB145: 0 | BC145: 0 | BD145: 0 | BE145: L | BH145: 25.39239502 | BI145: 26.45999908 | BJ145: 18930.20674 | BK145: 0 | BM145: 23.36569786 | BN145: 26.47511864 | BO145: 0 | BP145: 0 | BQ145: 0 | BR145: 0 | BS145: L | BV145: 21.77000046 | BW145: 24.04000092 | BX145: 14618.85337 | BY145: 0 | CA145: 29.05995941 | CB145: 28.46323967 | CC145: 28.52000046 | CD145: 28.52000046 | CE145: 0 | CF145: 0 | CG145: L | CI145: RvS S | CJ145: 28.10000038 | CK145: 28.52000046 | CL145: 20168.82401 | CM145: 0.03510661423 | CO145: 22.40041161 | CP145: 26.25285721 | CQ145: 0 | CR145: 0 | CS145: 0 | CT145: 0 | CU145: L | CX145: 20.46999931 | CY145: 21.81999969 | CZ145: 16573.67649 | DA145: 0 | DC145: 28.47150421 | DD145: 27.93741226 | DE145: 28.47150421 | DF145: 28.52000046 | DG145: 0 | DH145: 0 | DI145: L | DK145: RvS S | DL145: 27.98999977 | DM145: 28.52000046 | DN145: 17125.45584 | DO145: 0.0136745926 | DQ145: 28.72948837 | DR145: 27.93741226 | DS145: 28.52000046 | DT145: 28.52000046 | DU145: 0 | DV145: 0 | DW145: L | DY145: RvS S | DZ145: 27.98999977 | EA145: 28.52000046 | EB145: 17828.80502 | EC145: 0.0136745926 | ED145: 134 | EE145: 134 | EF145: 134
B146: C | C146: 2023-05-09 | D146: 27.98999977 | E146: 28.21999931 | F146: 27.80999947 | G146: 27.88999939 | H146: 64840700 | I146: 28.54000092 | J146: 25.51000023 | K146: 28.01499939 | L146: 28.18333308 | M146: 27.53990588 | O146: 27.479 | P146: 0 | Q146: 0 | U146: 0 | W146: 27.27750969 | X146: 27.5953331 | Y146: 0 | Z146: 0 | AA146: 0 | AB146: 0 | AC146: L | AF146: 26.30681419 | AG146: 27.33335114 | AH146: 17115.55551 | AI146: 0 | AK146: 24.37727737 | AL146: 26.23134995 | AM146: 0 | AN146: 0 | AO146: 0 | AP146: 0 | AQ146: L | AT146: 20.13024521 | AU146: 21.6478653 | AV146: 16363.15212 | AW146: 0 | AY146: 27.02434731 | AZ146: 27.18295288 | BA146: 0 | BB146: 0 | BC146: 0 | BD146: 0 | BE146: L | BH146: 25.39239502 | BI146: 26.45999908 | BJ146: 18674.83596 | BK146: 0 | BM146: 23.36569786 | BN146: 26.48464012 | BO146: 0 | BP146: 0 | BQ146: 0 | BR146: 0 | BS146: L | BV146: 21.77000046 | BW146: 24.04000092 | BX146: 14421.64327 | BY146: 0 | CA146: 29.23111343 | CB146: 28.63088036 | CC146: 27.98999977 | CD146: 0 | CE146: 0 | CF146: 0 | CG146: L | CJ146: 28.10000038 | CK146: 27.12000084 | CL146: 20448.44821 | CM146: 0.0217291601 | CO146: 22.40041161 | CP146: 26.77057266 | CQ146: 0 | CR146: 0 | CS146: 0 | CT146: 0 | CU146: L | CX146: 20.46999931 | CY146: 21.81999969 | CZ146: 16350.09559 | DA146: 0 | DC146: 28.47150421 | DD146: 28.48834801 | DE146: 27.98999977 | DF146: 0 | DG146: 0 | DH146: 0 | DI146: S | DJ146: RvL S | DL146: 27.98999977 | DM146: 28.25795555 | DN146: 17362.88624 | DO146: 0 | DQ146: 29.2960453 | DR146: 28.48834801 | DS146: 27.98999977 | DT146: 0 | DU146: 0 | DV146: 0 | DW146: S | DX146: RvL S | DZ146: 27.98999977 | EA146: 28.25795555 | EB146: 18075.98678 | EC146: 0 | ED146: 135 | EE146: 135 | EF146: 135
B147: S | C147: 2023-05-08 | D147: 28.10000038 | E147: 28.54000092 | F147: 27.81999969 | G147: 28.44000053 | H147: 75738500 | I147: 28.54000092 | J147: 25.17000008 | K147: 28.18000031 | L147: 28.11666679 | M147: 27.43432955 | O147: 27.2585001 | P147: 0 | Q147: 0 | U147: 0 | W147: 26.50291634 | X147: 27.37216187 | Y147: 0 | Z147: 0 | AA147: 0 | AB147: 0 | AC147: L | AF147: 26.30681419 | AG147: 27.33335114 | AH147: 16797.48903 | AI147: 0.003914612345 | AK147: 24.24089622 | AL147: 25.31652069 | AM147: 0 | AN147: 0 | AO147: 0 | AP147: 0 | AQ147: L | AT147: 20.13024521 | AU147: 21.6478653 | AV147: 16059.06791 | AW147: 0.006036934443 | AY147: 26.25694275 | AZ147: 26.9631176 | BA147: 0 | BB147: 0 | BC147: 0 | BD147: 0 | BE147: L | BH147: 25.39239502 | BI147: 26.45999908 | BJ147: 18327.79264 | BK147: 0.00533047691 | BM147: 23.35751152 | BN147: 25.73256111 | BO147: 0 | BP147: 0 | BQ147: 0 | BR147: 0 | BS147: L | BV147: 21.77000046 | BW147: 24.04000092 | BX147: 14153.63904 | BY147: 0.006036934443 | CA147: 28.77988815 | CB147: 28.18891907 | CC147: 28.10000038 | CD147: 28.18891907 | CE147: 0 | CF147: 0 | CG147: S | CH147: RvL S | CJ147: 28.10000038 | CK147: 27.12000084 | CL147: 20068.445 | CM147: 0.03990883008 | CO147: 22.40041161 | CP147: 26.55407143 | CQ147: 0 | CR147: 0 | CS147: 0 | CT147: 0 | CU147: L | CX147: 20.46999931 | CY147: 21.81999969 | CZ147: 16046.25401 | DA147: 0.006036934443 | DC147: 28.46152878 | DD147: 28.25795555 | DE147: 28.10000038 | DF147: 28.25795555 | DG147: 0 | DH147: 0 | DI147: L | DK147: RvS S | DL147: 27.12000084 | DM147: 28.25795555 | DN147: 17040.22349 | DO147: 0 | DQ147: 29.05912018 | DR147: 28.25795555 | DS147: 28.10000038 | DT147: 28.25795555 | DU147: 0 | DV147: 0 | DW147: L | DY147: RvS S | DZ147: 27.12000084 | EA147: 28.25795555 | EB147: 17740.07215 | EC147: 0 | ED147: 136 | EE147: 136 | EF147: 136
B148: B | C148: 2023-05-05 | D148: 27.12000084 | E148: 28.45999908 | F148: 27.03000069 | G148: 28.20999908 | H148: 97627100 | I148: 28.53000069 | J148: 25.17000008 | K148: 27.74499989 | L148: 27.86333338 | M148: 27.26862493 | O148: 27.10600004 | P148: 0 | Q148: 0 | U148: 0 | W148: 25.76753998 | X148: 25.79057312 | Y148: 0 | Z148: 0 | AA148: 0 | AB148: 0 | AC148: L | AF148: 26.30681419 | AG148: 27.33335114 | AH148: 16863.50311 | AI148: 0 | AK148: 24.14475822 | AL148: 24.99913025 | AM148: 0 | AN148: 0 | AO148: 0 | AP148: 0 | AQ148: L | AT148: 20.13024521 | AU148: 21.6478653 | AV148: 16122.17999 | AW148: 0.00213066279 | AY148: 25.52839279 | AZ148: 25.40516472 | BA148: 0 | BB148: 0 | BC148: 0 | BD148: 0 | BE148: L | BH148: 25.39239502 | BI148: 26.45999908 | BJ148: 18399.8208 | BK148: 0.001421428868 | BM148: 23.35751152 | BN148: 25.01856041 | BO148: 0 | BP148: 0 | BQ148: 0 | BR148: 0 | BS148: L | BV148: 21.77000046 | BW148: 24.04000092 | BX148: 14209.2628 | BY148: 0.00213066279 | CA148: 27.67516518 | CB148: 27.10688019 | CC148: 27.12000084 | CD148: 27.12000084 | CE148: 0 | CF148: 0 | CG148: L | CI148: RvS S | CJ148: 26.78000069 | CK148: 27.12000084 | CL148: 20147.31393 | CM148: 0.03613567352 | CO148: 22.40041161 | CP148: 25.01975441 | CQ148: 0 | CR148: 0 | CS148: 0 | CT148: 0 | CU148: L | CX148: 20.46999931 | CY148: 21.81999969 | CZ148: 16109.31574 | DA148: 0.00213066279 | DC148: 28.46152878 | DD148: 26.62518501 | DE148: 27.12000084 | DF148: 27.12000084 | DG148: 0 | DH148: 0 | DI148: S | DJ148: RvL S | DL148: 27.12000084 | DM148: 26.92569542 | DN148: 16785.80092 | DO148: 0 | DQ148: 27.38005829 | DR148: 26.62518501 | DS148: 27.12000084 | DT148: 27.12000084 | DU148: 0 | DV148: 0 | DW148: S | DX148: RvL S | DZ148: 27.12000084 | EA148: 26.92569542 | EB148: 17475.20034 | EC148: 0 | ED148: 137 | EE148: 137 | EF148: 137
B149: BCS | C149: 2023-05-04 | D149: 26.78000069 | E149: 27.07999992 | F149: 26.28000069 | G149: 26.57999992 | H149: 121310800 | I149: 28.53000069 | J149: 25.17000008 | K149: 26.68000031 | L149: 26.82666715 | M149: 27.16276383 | O149: 26.99850006 | P149: 0 | Q149: 0 | U149: 0 | W149: 26.30681419 | X149: 26.08166313 | Y149: 26.30681419 | Z149: 0 | AA149: 0 | AB149: 0 | AC149: S | AD149: RvL S | AF149: 26.30681419 | AG149: 27.33335114 | AH149: 16275.38122 | AI149: 0 | AK149: 24.1756115 | AL149: 25.67124939 | AM149: 0 | AN149: 0 | AO149: 0 | AP149: 0 | AQ149: L | AT149: 20.13024521 | AU149: 21.6478653 | AV149: 15559.91206 | AW149: 0.03693178296 | AY149: 26.06266212 | AZ149: 25.69190407 | BA149: 0 | BB149: 0 | BC149: 0 | BD149: 0 | BE149: L | BH149: 25.39239502 | BI149: 26.45999908 | BJ149: 17758.11918 | BK149: 0.03624728322 | BM149: 23.35751152 | BN149: 25.54216003 | BO149: 0 | BP149: 0 | BQ149: 0 | BR149: 0 | BS149: L | BV149: 21.77000046 | BW149: 24.04000092 | BX149: 13713.70868 | BY149: 0.03693178296 | CA149: 28.54130936 | CB149: 27.95524025 | CC149: 26.78000069 | CD149: 0 | CE149: 0 | CF149: 0 | CG149: S | CH149: RvL S | CJ149: 26.78000069 | CK149: 28.03143883 | CL149: 20902.64512 | CM149: 0 | CO149: 22.40041161 | CP149: 25.3021431 | CQ149: 0 | CR149: 0 | CS149: 0 | CT149: 0 | CU149: L | CX149: 20.46999931 | CY149: 21.81999969 | CZ149: 15547.49646 | DA149: 0.03693178296 | DC149: 28.46152878 | DD149: 26.92569542 | DE149: 26.78000069 | DF149: 26.92569542 | DG149: 0 | DH149: 0 | DI149: L | DK149: RvS S | DL149: 27.5 | DM149: 26.92569542 | DN149: 16200.38893 | DO149: 0.02794947289 | DQ149: 27.68908691 | DR149: 26.92569542 | DS149: 26.78000069 | DT149: 26.92569542 | DU149: 0 | DV149: 0 | DW149: L | DY149: RvS S | DZ149: 27.5 | EA149: 26.92569542 | EB149: 16865.74525 | EC149: 0.02794947289 | ED149: 138 | EE149: 138 | EF149: 138
B150: 1 | C150: 2023-05-03 | D150: 27.5 | E150: 28.20000076 | F150: 26.82999992 | G150: 26.87999916 | H150: 170133800 | I150: 28.53000069 | J150: 25.17000008 | K150: 27.51500034 | L150: 27.27000046 | M150: 27.27004462 | O150: 27.03299999 | P150: 0 | Q150: 0 | U150: 0 | W150: 26.43427849 | X150: 26.60562515 | Y150: 0 | Z150: 0 | AA150: 0 | AB150: 0 | AC150: S | AF150: 25.63027 | AG150: 27.33335114 | AH150: 15523.95548 | AI150: 0.009001348168 | AK150: 24.15549088 | AL150: 26.26869011 | AM150: 0 | AN150: 0 | AO150: 0 | AP150: 0 | AQ150: L | AT150: 20.13024521 | AU150: 21.6478653 | AV150: 15364.83934 | AW150: 0.04900565371 | AY150: 26.18894386 | AZ150: 26.20803642 | BA150: 0 | BB150: 0 | BC150: 0 | BD150: 0 | BE150: L | BH150: 25.39239502 | BI150: 26.45999908 | BJ150: 17535.48779 | BK150: 0.04832973331 | BM150: 23.35751152 | BN150: 25.66591835 | BO150: 0 | BP150: 0 | BQ150: 0 | BR150: 0 | BS150: L | BV150: 21.77000046 | BW150: 24.04000092 | BX150: 13541.78158 | BY150: 0.04900565371 | CA150: 28.61910629 | CB150: 28.03143883 | CC150: 27.5 | CD150: 28.03143883 | CE150: 0 | CF150: 0 | CG150: L | CI150: RvS S | CJ150: 28.13999939 | CK150: 28.03143883 | CL150: 20640.5912 | CM150: 0 | CO150: 22.40041161 | CP150: 25.81044579 | CQ150: 0 | CR150: 0 | CS150: 0 | CT150: 0 | CU150: L | CX150: 20.46999931 | CY150: 21.81999969 | CZ150: 15352.57939 | DA150: 0.04900565371 | DC150: 28.46152878 | DD150: 27.46661377 | DE150: 27.5 | DF150: 27.5 | DG150: 0 | DH150: 0 | DI150: S | DJ150: RvL S | DL150: 27.5 | DM150: 28.21788979 | DN150: 16229.84944 | DO150: 0.02618179284 | DQ150: 28.24534225 | DR150: 27.46661377 | DS150: 27.5 | DT150: 27.5 | DU150: 0 | DV150: 0 | DW150: S | DX150: RvL S | DZ150: 27.5 | EA150: 28.21788979 | EB150: 16896.41572 | EC150: 0.02618179284 | ED150: 139 | EE150: 139 | EF150: 139
B151: -0.0301 | C151: 2023-05-02 | D151: 28.13999939 | E151: 28.21999931 | F151: 26.95999908 | G151: 27.42000008 | H151: 124656000 | I151: 28.53000069 | J151: 25.17000008 | K151: 27.5899992 | L151: 27.55999947 | M151: 27.21561001 | O151: 27.01049995 | P151: 0 | Q151: 0 | U151: 0 | W151: 27.32653618 | X151: 27.33335114 | Y151: 27.32653618 | Z151: 27.33335114 | AA151: 0 | AB151: 0 | AC151: L | AE151: RvS S | AF151: 25.63027 | AG151: 27.33335114 | AH151: 15123.14661 | AI151: 0.03458767757 | AK151: 24.16443253 | AL151: 26.26869011 | AM151: 0 | AN151: 0 | AO151: 0 | AP151: 0 | AQ151: L | AT151: 20.13024521 | AU151: 21.6478653 | AV151: 15777.93394 | AW151: 0.02343749441 | AY151: 27.07291794 | AZ151: 26.9248867 | BA151: 27.07291794 | BB151: 0 | BC151: 0 | BD151: 0 | BE151: L | BH151: 25.39239502 | BI151: 26.45999908 | BJ151: 18006.94182 | BK151: 0.02274340391 | BM151: 23.35751152 | BN151: 26.53223991 | BO151: 0 | BP151: 0 | BQ151: 0 | BR151: 0 | BS151: L | BV151: 21.77000046 | BW151: 24.04000092 | BX151: 13905.86198 | BY151: 0.02343749441 | CA151: 29.25186157 | CB151: 28.65120125 | CC151: 28.13999939 | CD151: 0 | CE151: 0 | CF151: 0 | CG151: L | CJ151: 28.13999939 | CK151: 27.63999939 | CL151: 19383.89609 | CM151: 0.04042170942 | CO151: 22.40041161 | CP151: 26.51642036 | CQ151: 0 | CR151: 0 | CS151: 0 | CT151: 0 | CU151: L | CX151: 20.46999931 | CY151: 21.81999969 | CZ151: 15765.34437 | DA151: 0.02343749441 | DC151: 28.46152878 | DD151: 28.21788979 | DE151: 28.13999939 | DF151: 28.21788979 | DG151: 0 | DH151: 0 | DI151: L | DK151: RvS S | DL151: 28.13999939 | DM151: 28.21788979 | DN151: 16666.20046 | DO151: 0 | DQ151: 29.01791763 | DR151: 28.21788979 | DS151: 28.13999939 | DT151: 28.21788979 | DU151: 0 | DV151: 0 | DW151: L | DY151: RvS S | DZ151: 28.13999939 | EA151: 28.21788979 | EB151: 17350.68784 | EC151: 0 | ED151: 140 | EE151: 140 | EF151: 140
B152: =DY542 -> H | C152: 2023-05-01 | D152: 28.13999939 | E152: 28.53000069 | F152: 27.87000084 | G152: 28.17000008 | H152: 89001300 | I152: 28.53000069 | J152: 25.17000008 | K152: 28.20000076 | L152: 28.18000031 | M152: 27.13241241 | O152: 27.02050009 | P152: 0 | Q152: 0 | U152: 0 | W152: 26.79706573 | X152: 27.4109745 | Y152: 0 | Z152: 0 | AA152: 0 | AB152: 0 | AC152: L | AF152: 25.63027 | AG152: 26.80938911 | AH152: 15664.96125 | AI152: 0 | AK152: 24.07634544 | AL152: 25.80193901 | AM152: 0 | AN152: 0 | AO152: 0 | AP152: 0 | AQ152: L | AT152: 20.13024521 | AU152: 21.6478653 | AV152: 16145.12915 | AW152: 0.0007102435338 | AY152: 26.54836273 | AZ152: 27.0013504 | BA152: 0 | BB152: 0 | BC152: 0 | BD152: 0 | BE152: L | BH152: 25.39239502 | BI152: 26.45999908 | BJ152: 18426.01207 | BK152: 0 | BM152: 23.15283585 | BN152: 26.01815987 | BO152: 0 | BP152: 0 | BQ152: 0 | BR152: 0 | BS152: L | BV152: 21.77000046 | BW152: 24.04000092 | BX152: 14229.489 | BY152: 0.0007102435338 | CA152: 28.84212685 | CB152: 28.24987984 | CC152: 28.13999939 | CD152: 28.24987984 | CE152: 0 | CF152: 0 | CG152: S | CH152: RvL S | CJ152: 28.13999939 | CK152: 27.63999939 | CL152: 19835.01178 | CM152: 0.0180897247 | CO152: 22.40041161 | CP152: 26.5917244 | CQ152: 0 | CR152: 0 | CS152: 0 | CT152: 0 | CU152: L | CX152: 20.46999931 | CY152: 21.81999969 | CZ152: 16132.24658 | DA152: 0.0007102435338 | DC152: 28.21212959 | DD152: 28.29802513 | DE152: 28.13999939 | DF152: 28.29802513 | DG152: 0 | DH152: 0 | DI152: S | DJ152: RvL S | DL152: 28.13999939 | DM152: 27.7370739 | DN152: 16207.8541 | DO152: 0.01106554642 | DQ152: 29.10032463 | DR152: 28.29802513 | DS152: 28.13999939 | DT152: 28.29802513 | DU152: 0 | DV152: 0 | DW152: S | DX152: RvL S | DZ152: 28.13999939 | EA152: 27.7370739 | EB152: 16873.51702 | EC152: 0.01106554642 | ED152: 141 | EE152: 141 | EF152: 141
B153: =DY543 -> A | C153: 2023-04-28 | D153: 27.63999939 | E153: 28.28000069 | F153: 27.32999992 | G153: 28.25 | H153: 130536100 | I153: 28.28000069 | J153: 25.17000008 | K153: 27.80500031 | L153: 27.91666667 | M153: 26.89517055 | O153: 26.92200003 | P153: 0 | Q153: 0 | U153: 0 | W153: 25.87539482 | X153: 26.86760712 | Y153: 0 | Z153: 0 | AA153: 0 | AB153: 0 | AC153: L | AF153: 25.63027 | AG153: 26.80938911 | AH153: 15664.96125 | AI153: 0 | AK153: 24.03252411 | AL153: 24.7937603 | AM153: 0 | AN153: 0 | AO153: 0 | AP153: 0 | AQ153: L | AT153: 20.13024521 | AU153: 21.6478653 | AV153: 16145.12915 | AW153: 0.0007102435338 | AY153: 25.63524628 | AZ153: 26.4661026 | BA153: 0 | BB153: 0 | BC153: 0 | BD153: 0 | BE153: L | BH153: 25.39239502 | BI153: 26.45999908 | BJ153: 18426.01207 | BK153: 0 | BM153: 23.07096672 | BN153: 25.12327957 | BO153: 0 | BP153: 0 | BQ153: 0 | BR153: 0 | BS153: L | BV153: 21.77000046 | BW153: 24.04000092 | BX153: 14229.489 | BY153: 0.0007102435338 | CA153: 28.12120247 | CB153: 27.5437603 | CC153: 27.63999939 | CD153: 27.63999939 | CE153: 0 | CF153: 0 | CG153: L | CI153: RvS S | CJ153: 26.55999947 | CK153: 27.63999939 | CL153: 19835.01178 | CM153: 0.0180897247 | CO153: 22.40041161 | CP153: 26.06459808 | CQ153: 0 | CR153: 0 | CS153: 0 | CT153: 0 | CU153: L | CX153: 20.46999931 | CY153: 21.81999969 | CZ153: 16132.24658 | DA153: 0.0007102435338 | DC153: 28.11236763 | DD153: 27.7370739 | DE153: 27.63999939 | DF153: 27.7370739 | DG153: 0 | DH153: 0 | DI153: L | DK153: RvS S | DL153: 26.55999947 | DM153: 27.7370739 | DN153: 16207.8541 | DO153: 0.01106554735 | DQ153: 28.52346992 | DR153: 27.7370739 | DS153: 27.63999939 | DT153: 27.7370739 | DU153: 0 | DV153: 0 | DW153: L | DY153: RvS S | DZ153: 26.39116287 | EA153: 27.7370739 | EB153: 16873.51702 | EC153: 0.01106554735 | ED153: 142 | EE153: 142 | EF153: 142
B154: C | C154: 2023-04-27 | D154: 26.55999947 | E154: 27.82999992 | F154: 26.38999939 | G154: 27.69000053 | H154: 127815600 | I154: 28.18000031 | J154: 25.17000008 | K154: 27.10999966 | L154: 27.28666623 | M154: 26.69298617 | O154: 26.87300005 | P154: 0 | Q154: 0 | U154: 0 | W154: 25.01255608 | X154: 24.85908699 | Y154: 0 | Z154: 0 | AA154: 0 | AB154: 0 | AC154: L | AF154: 25.63027 | AG154: 26.80938911 | AH154: 15386.62149 | AI154: 0 | AK154: 24.03297043 | AL154: 24.28967094 | AM154: 0 | AN154: 0 | AO154: 0 | AP154: 0 | AQ154: L | AT154: 20.13024521 | AU154: 21.6478653 | AV154: 15858.25762 | AW154: 0.01846592501 | AY154: 24.78041458 | AZ154: 24.48759651 | BA154: 0 | BB154: 0 | BC154: 0 | BD154: 0 | BE154: L | BH154: 25.39239502 | BI154: 26.45999908 | BJ154: 18098.61313 | BK154: 0 | BM154: 23.07096672 | BN154: 24.28552055 | BO154: 0 | BP154: 0 | BQ154: 0 | BR154: 0 | BS154: L | BV154: 21.77000046 | BW154: 24.04000092 | BX154: 13976.65515 | BY154: 0.01846592501 | CA154: 26.91793442 | CB154: 26.36520004 | CC154: 26.55999947 | CD154: 26.55999947 | CE154: 0 | CF154: 0 | CG154: S | CH154: RvL S | CJ154: 26.55999947 | CK154: 26.22295952 | CL154: 20200.43205 | CM154: 0 | CO154: 22.40041161 | CP154: 24.11610603 | CQ154: 0 | CR154: 0 | CS154: 0 | CT154: 0 | CU154: L | CX154: 20.46999931 | CY154: 21.81999969 | CZ154: 15845.60396 | DA154: 0.01846592501 | DC154: 28.11236763 | DD154: 25.66355515 | DE154: 26.55999947 | DF154: 26.55999947 | DG154: 0 | DH154: 0 | DI154: S | DJ154: RvL S | DL154: 26.55999947 | DM154: 26.02000046 | DN154: 16389.20967 | DO154: 0 | DQ154: 26.39116287 | DR154: 25.66355515 | DS154: 26.39116287 | DT154: 26.55999947 | DU154: 0 | DV154: 0 | DW154: S | DX154: RvL S | DZ154: 26.39116287 | EA154: 26.02000046 | EB154: 17062.32093 | EC154: 0 | ED154: 143 | EE154: 143 | EF154: 143
B155: S | C155: 2023-04-26 | D155: 26.02000046 | E155: 26.38999939 | F155: 25.51000023 | G155: 25.62000084 | H155: 124862300 | I155: 28.18000031 | J155: 25.17000008 | K155: 25.94999981 | L155: 26.15333303 | M155: 26.6003165 | O155: 26.87350006 | P155: 0 | Q155: 0 | U155: 0 | W155: 24.67918587 | X155: 24.45156097 | Y155: 0 | Z155: 0 | AA155: 0 | AB155: 0 | AC155: L | AF155: 25.63027 | AG155: 26.80938911 | AH155: 14785.40765 | AI155: 0 | AK155: 24.10406876 | AL155: 24.53238106 | AM155: 0 | AN155: 0 | AO155: 0 | AP155: 0 | AQ155: L | AT155: 20.13024521 | AU155: 21.6478653 | AV155: 15238.61517 | AW155: 0.05681819469 | AY155: 24.45013809 | AZ155: 24.08616066 | BA155: 0 | BB155: 0 | BC155: 0 | BD155: 0 | BE155: L | BH155: 25.39239502 | BI155: 26.45999908 | BJ155: 17391.43146 | BK155: 0 | BM155: 23.07096672 | BN155: 23.96183968 | BO155: 0 | BP155: 0 | BQ155: 0 | BR155: 0 | BS155: L | BV155: 21.77000046 | BW155: 24.04000092 | BX155: 13430.53406 | BY155: 0.05681819469 | CA155: 26.77271271 | CB155: 26.22295952 | CC155: 26.02000046 | CD155: 26.22295952 | CE155: 0 | CF155: 0 | CG155: L | CI155: RvS S | CJ155: 26.28000069 | CK155: 26.22295952 | CL155: 19411.12433 | CM155: 0.01499540638 | CO155: 22.40041161 | CP155: 23.72076035 | CQ155: 0 | CR155: 0 | CS155: 0 | CT155: 0 | CU155: L | CX155: 20.46999931 | CY155: 21.81999969 | CZ155: 15226.45593 | DA155: 0.05681819469 | DC155: 28.11236763 | DD155: 25.24283981 | DE155: 26.02000046 | DF155: 26.02000046 | DG155: 0 | DH155: 0 | DI155: L | DK155: RvS S | DL155: 26.28000069 | DM155: 26.02000046 | DN155: 15748.8209 | DO155: 0.03044136986 | DQ155: 25.95852089 | DR155: 25.24283981 | DS155: 25.95852089 | DT155: 26.02000046 | DU155: 0 | DV155: 0 | DW155: L | DY155: RvS S | DZ155: 26.28000069 | EA155: 26.02000046 | EB155: 16184.16723 | EC155: 0.03044136986 | ED155: 144 | EE155: 144 | EF155: 144
B156: S | C156: 2023-04-25 | D156: 26.28000069 | E156: 26.45000076 | F156: 25.17000008 | G156: 25.20000076 | H156: 138288000 | I156: 28.18000031 | J156: 25.17000008 | K156: 25.81000042 | L156: 25.88000043 | M156: 26.74483132 | O156: 26.95300007 | P156: 0 | Q156: 0 | U156: 0 | W156: 25.63027 | X156: 25.91671181 | Y156: 25.63027 | Z156: 25.91671181 | AA156: 0 | AB156: 0 | AC156: S | AD156: RvL S | AF156: 25.63027 | AG156: 26.80938911 | AH156: 14484.80127 | AI156: 0 | AK156: 24.21361923 | AL156: 25.02713394 | AM156: 0 | AN156: 0 | AO156: 0 | AP156: 0 | AQ156: L | AT156: 20.13024521 | AU156: 21.6478653 | AV156: 14928.79449 | AW156: 0.07599429786 | AY156: 25.39239502 | AZ156: 25.52941704 | BA156: 25.39239502 | BB156: 26.02000046 | BC156: 0 | BD156: 0 | BE156: S | BF156: RvL S | BH156: 25.39239502 | BI156: 26.45999908 | BJ156: 17037.84125 | BK156: 0 | BM156: 23.07096672 | BN156: 24.8852787 | BO156: 0 | BP156: 0 | BQ156: 0 | BR156: 0 | BS156: L | BV156: 21.77000046 | BW156: 24.04000092 | BX156: 13157.474 | BY156: 0.07599429786 | CA156: 27.64923096 | CB156: 27.08148003 | CC156: 26.28000069 | CD156: 0 | CE156: 0 | CF156: 0 | CG156: S | CH156: RvL S | CJ156: 26.28000069 | CK156: 27.09671974 | CL156: 19511.66645 | CM156: 0.009893463925 | CO156: 22.40041161 | CP156: 25.14212227 | CQ156: 0 | CR156: 0 | CS156: 0 | CT156: 0 | CU156: L | CX156: 20.46999931 | CY156: 21.81999969 | CZ156: 14916.88247 | DA156: 0.07599429786 | DC156: 28.11236763 | DD156: 26.75540543 | DE156: 26.28000069 | DF156: 0 | DG156: 0 | DH156: 0 | DI156: S | DJ156: RvL S | DL156: 26.28000069 | DM156: 26.91567993 | DN156: 16082.58649 | DO156: 0.009893463925 | DQ156: 27.51396942 | DR156: 26.75540543 | DS156: 26.28000069 | DT156: 0 | DU156: 0 | DV156: 0 | DW156: S | DX156: RvL S | DZ156: 26.28000069 | EA156: 26.91567993 | EB156: 16527.15913 | EC156: 0.009893463925 | ED156: 145 | EE156: 145 | EF156: 145
B157: ACS | C157: 2023-04-24 | D157: 26.80999947 | E157: 27.17000008 | F157: 26.13999939 | G157: 26.70999908 | H157: 107645400 | I157: 28.18000031 | J157: 26 | K157: 26.65499973 | L157: 26.53000005 | M157: 26.95257152 | O157: 27.07550011 | P157: 0 | Q157: 0 | U157: 0 | W157: 25.73812485 | X157: 26.07196236 | Y157: 0 | Z157: 0 | AA157: 0 | AB157: 0 | AC157: S | AF157: 26.1793499 | AG157: 26.80938911 | AH157: 13936.62909 | AI157: 0 | AK157: 24.22435188 | AL157: 24.92444992 | AM157: 0 | AN157: 0 | AO157: 0 | AP157: 0 | AQ157: L | AT157: 20.13024521 | AU157: 21.6478653 | AV157: 15077.96781 | AW157: 0.06676133722 | AY157: 25.49925041 | AZ157: 25.68234634 | BA157: 0 | BB157: 0 | BC157: 0 | BD157: 0 | BE157: S | BH157: 24.3432827 | BI157: 26.45999908 | BJ157: 16090.76628 | BK157: 0.05397735536 | BM157: 23.07096672 | BN157: 24.98999977 | BO157: 0 | BP157: 0 | BQ157: 0 | BR157: 0 | BS157: L | BV157: 21.77000046 | BW157: 24.04000092 | BX157: 13288.94772 | BY157: 0.06676133722 | CA157: 27.66479111 | CB157: 27.09671974 | CC157: 26.80999947 | CD157: 27.09671974 | CE157: 0 | CF157: 0 | CG157: L | CI157: RvS S | CJ157: 26.87000084 | CK157: 27.09671974 | CL157: 19706.63331 | CM157: 0 | CO157: 22.40041161 | CP157: 25.29273224 | CQ157: 0 | CR157: 0 | CS157: 0 | CT157: 0 | CU157: L | CX157: 20.46999931 | CY157: 21.81999969 | CZ157: 15065.93676 | DA157: 0.06676133722 | DC157: 28.11236763 | DD157: 26.91567993 | DE157: 26.80999947 | DF157: 26.91567993 | DG157: 0 | DH157: 0 | DI157: L | DK157: RvS S | DL157: 26.70000076 | DM157: 26.91567993 | DN157: 16243.28888 | DO157: 0 | DQ157: 27.67878723 | DR157: 26.91567993 | DS157: 26.80999947 | DT157: 26.91567993 | DU157: 0 | DV157: 0 | DW157: L | DY157: RvS S | DZ157: 26.70000076 | EA157: 26.91567993 | EB157: 16692.30383 | EC157: 0 | ED157: 146 | EE157: 146 | EF157: 146
B158: 1 | C158: 2023-04-21 | D158: 26.70000076 | E158: 27.09000015 | F158: 26.25 | G158: 26.87000084 | H158: 114444000 | I158: 28.18000031 | J158: 26 | K158: 26.67000008 | L158: 26.71666654 | M158: 27.01869859 | O158: 27.0875001 | P158: 0 | Q158: 0 | U158: 0 | W158: 25.95383453 | X158: 26.02344513 | Y158: 0 | Z158: 0 | AA158: 0 | AB158: 0 | AC158: S | AF158: 26.1793499 | AG158: 26.80938911 | AH158: 13666.44888 | AI158: 0.0147453947 | AK158: 24.23910713 | AL158: 24.89644432 | AM158: 0 | AN158: 0 | AO158: 0 | AP158: 0 | AQ158: L | AT158: 20.13024521 | AU158: 21.6478653 | AV158: 15382.05093 | AW158: 0.04794035479 | AY158: 25.71295738 | AZ158: 25.63455582 | BA158: 0 | BB158: 0 | BC158: 0 | BD158: 0 | BE158: S | BH158: 24.3432827 | BI158: 26.45999908 | BJ158: 15770.64288 | BK158: 0.07279833406 | BM158: 23.07096672 | BN158: 25.19944 | BO158: 0 | BP158: 0 | BQ158: 0 | BR158: 0 | BS158: L | BV158: 21.77000046 | BW158: 24.04000092 | BX158: 13556.95099 | BY158: 0.04794035479 | CA158: 28.03303146 | CB158: 27.45739937 | CC158: 26.70000076 | CD158: 0 | CE158: 0 | CF158: 0 | CG158: L | CJ158: 26.87000084 | CK158: 28.06999969 | CL158: 18927.61474 | CM158: 0.002233024687 | CO158: 22.40041161 | CP158: 25.2456665 | CQ158: 0 | CR158: 0 | CS158: 0 | CT158: 0 | CU158: L | CX158: 20.46999931 | CY158: 21.81999969 | CZ158: 15369.77724 | DA158: 0.04794035479 | DC158: 28.11236763 | DD158: 26.86559296 | DE158: 26.70000076 | DF158: 26.86559296 | DG158: 0 | DH158: 0 | DI158: S | DJ158: RvL S | DL158: 26.70000076 | DM158: 27.50668144 | DN158: 15806.21 | DO158: 0 | DQ158: 27.62728119 | DR158: 26.86559296 | DS158: 26.70000076 | DT158: 26.86559296 | DU158: 0 | DV158: 0 | DW158: S | DX158: RvL S | DZ158: 26.70000076 | EA158: 27.50668144 | EB158: 16243.14274 | EC158: 0 | ED158: 147 | EE158: 147 | EF158: 147
B159: =DY549 -> 0.0017 | C159: 2023-04-20 | D159: 26.67000008 | E159: 27.57999992 | F159: 26.46999931 | G159: 26.81999969 | H159: 136847600 | I159: 28.18000031 | J159: 26 | K159: 27.02499962 | L159: 26.91666667 | M159: 27.09618714 | O159: 27.10400009 | P159: 0 | Q159: 0 | U159: 0 | W159: 26.31661987 | X159: 26.64443779 | Y159: 0 | Z159: 26.64443779 | AA159: 0 | AB159: 0 | AC159: S | AF159: 26.1793499 | AG159: 26.80938911 | AH159: 13722.52348 | AI159: 0.01070281118 | AK159: 24.23374176 | AL159: 25.08314514 | AM159: 0 | AN159: 0 | AO159: 0 | AP159: 0 | AQ159: L | AT159: 20.13024521 | AU159: 21.6478653 | AV159: 15318.93994 | AW159: 0.05184656009 | AY159: 26.07237625 | AZ159: 26.24626732 | BA159: 0 | BB159: 0 | BC159: 0 | BD159: 0 | BE159: S | BH159: 24.3432827 | BI159: 26.45999908 | BJ159: 15837.08296 | BK159: 0.06889213622 | BM159: 23.07096672 | BN159: 25.55167961 | BO159: 0 | BP159: 0 | BQ159: 0 | BR159: 0 | BS159: L | BV159: 21.77000046 | BW159: 24.04000092 | BX159: 13501.3282 | BY159: 0.05184656009 | CA159: 28.30791664 | CB159: 27.7266407 | CC159: 26.67000008 | CD159: 0 | CE159: 0 | CF159: 0 | CG159: L | CJ159: 26.87000084 | CK159: 28.06999969 | CL159: 18849.95666 | CM159: 0.006326761097 | CO159: 22.40041161 | CP159: 25.84809685 | CQ159: 0 | CR159: 0 | CS159: 0 | CT159: 0 | CU159: L | CX159: 20.46999931 | CY159: 21.81999969 | CZ159: 15306.71661 | DA159: 0.05184656009 | DC159: 28.11236763 | DD159: 27.50668144 | DE159: 26.67000008 | DF159: 27.50668144 | DG159: 0 | DH159: 0 | DI159: L | DK159: RvS S | DL159: 26.87000084 | DM159: 27.50668144 | DN159: 15741.35873 | DO159: 0 | DQ159: 28.2865448 | DR159: 27.50668144 | DS159: 26.67000008 | DT159: 27.50668144 | DU159: 0 | DV159: 0 | DW159: L | DY159: RvS S | DZ159: 26.87000084 | EA159: 27.50668144 | EB159: 16176.49878 | EC159: 0 | ED159: 148 | EE159: 148 | EF159: 148
B160: =ColsPerAlg -> 14 | C160: 2023-04-19 | D160: 26.87000084 | E160: 27.73999977 | F160: 26.84000015 | G160: 27.45999908 | H160: 95925300 | I160: 28.18000031 | J160: 26 | K160: 27.28999996 | L160: 27.08333333 | M160: 27.11200659 | O160: 27.09800014 | P160: 0 | Q160: 0 | U160: 0 | W160: 26.66960144 | X160: 26.70265579 | Y160: 0 | Z160: 0 | AA160: 0 | AB160: 0 | AC160: S | AF160: 26.1793499 | AG160: 26.80938911 | AH160: 13737.81709 | AI160: 0.00960025005 | AK160: 24.29052925 | AL160: 26.20334435 | AM160: 0 | AN160: 0 | AO160: 0 | AP160: 0 | AQ160: L | AT160: 20.13024521 | AU160: 21.6478653 | AV160: 15301.72725 | AW160: 0.05291192234 | AY160: 26.42208099 | AZ160: 26.30361557 | BA160: 0 | BB160: 0 | BC160: 0 | BD160: 0 | BE160: S | BH160: 24.3432827 | BI160: 26.45999908 | BJ160: 15855.20361 | BK160: 0.06782677025 | BM160: 23.27564049 | BN160: 25.89440155 | BO160: 0 | BP160: 0 | BQ160: 0 | BR160: 0 | BS160: L | BV160: 21.77000046 | BW160: 24.04000092 | BX160: 13486.15782 | BY160: 0.05291192234 | CA160: 28.72283745 | CB160: 28.13304138 | CC160: 26.87000084 | CD160: 0 | CE160: 0 | CF160: 0 | CG160: S | CH160: RvL S | CJ160: 26.87000084 | CK160: 28.06999969 | CL160: 18828.77645 | CM160: 0.00744327344 | CO160: 22.40041161 | CP160: 25.90457726 | CQ160: 0 | CR160: 0 | CS160: 0 | CT160: 0 | CU160: L | CX160: 20.46999931 | CY160: 21.81999969 | CZ160: 15289.51766 | DA160: 0.05291192234 | DC160: 28.36176872 | DD160: 27.56678391 | DE160: 26.87000084 | DF160: 27.56678391 | DG160: 0 | DH160: 0 | DI160: S | DJ160: RvL S | DL160: 26.87000084 | DM160: 28.06999969 | DN160: 14827.70034 | DO160: 0.00744327344 | DQ160: 28.34835243 | DR160: 27.56678391 | DS160: 26.87000084 | DT160: 27.56678391 | DU160: 0 | DV160: 0 | DW160: S | DX160: RvL S | DZ160: 26.87000084 | EA160: 28.06999969 | EB160: 15237.58403 | EC160: 0.00744327344 | ED160: 149 | EE160: 149 | EF160: 149
